Workbook

Sheet Guidance (hidden)

Sheet HWB ID
C1: Health and Wellbeing Board Details | J1: ROCR approval applied for
J2: Version 3
C3: Please select Health and Wellbeing Board:
C5: Devon | D5: =VLOOKUP(C5,a!$P$2:$Q$154,2,FALSE) -> E10000008
E10: Please provide: | K10: subcode
C11: Description | D11: Blank1 | E11: Name | F11: Blank2 | G11: Blank3 | H11: Blank4 | I11: Blank5 | J11: Blank6 | K11: subcode
E12: <Contact Name> | K12: 100
E13: <Contact Email> | K13: 200
C17: Signed on behalf of the Council:
C18: Description | D18: Blank1 | E18: Name | F18: Blank2 | G18: Blank3 | H18: Blank4 | I18: Blank5 | J18: Blank6 | K18: subcode
K19: S01
K20: S02
K21: S03
K22: B01
K23: B02
C24: <Print Name> | E24: <Print Name> | K24: 100
C25: <Organisation> | E25: <Organisation> | K25: 101
C26: <Date> | E26: <Date> | K26: 102
C27: <Position> | E27: <Position> | K27: 103
C31: Signed on behalf of the CCG(s):
C32: Description | D32: Blank1 | E32: Name | F32: Blank2 | G32: Blank3 | H32: Blank4 | I32: Blank5 | J32: Blank6 | K32: subcode
K33: S01
K34: S02
K35: S03
K36: B01
K37: B02
K38: B03
C39: <Print Name> | E39: <Print Name> | K39: 100
C40: <Organisation> | E40: <Organisation> | K40: 101
C41: <Date> | E41: <Date> | K41: 102
C42: <Position> | E42: <Position> | K42: 103
K43: B04
K44: S04
K45: S05
K46: S06
K47: B05
C48: <Print Name> | E48: <Print Name> | K48: 200
C49: <Organisation> | E49: <Organisation> | K49: 201
C50: <Date> | E50: <Date> | K50: 202
C51: <Position> | E51: <Position> | K51: 203

Sheet Payment for Performance
A1: Health and Wellbeing Board Payment for Performance
A2: There is no need to enter any data on this sheet. All values will be populated from entries elsewhere in the template
A4: ='HWB ID'!C5 -> Devon
E5: 2015/16 Quarterly Breakdown of P4P
A6: 1. Reduction in non elective activity | B6: Numbers | C6: Subcode
C7: B01 | F7: Q4 14/15 | G7: Q1 15/16 | H7: Q2 15/16 | I7: Q3 15/16 | J7: Subcode
C8: B02 | J8: B01
A9: Baseline of Non Elective Activity (Q4 13/14 - Q3 14/15) | B9: =I9 -> 78857 | C9: 100 | E9: Cumulative Quarterly Baseline of Non Elective Activity | F9: ='5. HWB P4P metric'!C10 -> 19612 | G9: ='5. HWB P4P metric'!D10+F9 -> 38955 | H9: ='5. HWB P4P metric'!E10+G9 -> 58777 | I9: ='5. HWB P4P metric'!F10+H9 -> 78857 | J9: 100
C10: B03 | J10: B02
A11: Change in Non Elective Activity | B11: =I11 -> -2761 | C11: 200 | E11: Cumulative Change in Non Elective Activity | F11: ='5. HWB P4P metric'!G10-'5. HWB P4P metric'!C10 -> -687 | G11: ='5. HWB P4P metric'!H10-'5. HWB P4P metric'!D10+F11 -> -1364 | H11: ='5. HWB P4P metric'!I10-'5. HWB P4P metric'!E10+G11 -> -2058 | I11: ='5. HWB P4P metric'!J10-'5. HWB P4P metric'!F10+H11 -> -2761 | J11: 200
C12: B04 | J12: B03
A13: % Change in Non Elective Activity | B13: =IFERROR(B11/B9,0) -> -0.03501274459 | C13: 300 | E13: Cumulative % Change in Non Elective Activity | F13: =F11/$I$9 -> -0.008711972304 | G13: =G11/$I$9 -> -0.01729713278 | H13: =H11/$I$9 -> -0.02609787337 | I13: =I11/$I$9 -> -0.03501274459 | J13: 300
C14: B05 | J14: B04
C15: B06 | J15: B05
A16: 2. Calculation of Performance and NHS Commissioned Ringfenced Funds | C16: T01 | J16: B06
A17: Figures in £ | C17: T02 | J17: B07
C18: B07 | J18: B08
A19: Financial Value of Non Elective Saving/ Performance Fund | B19: =IF('5. HWB P4P metric'!H14<0,0,'5. HWB P4P metric'!H14) -> 4113890 | C19: 400 | E19: Financial Value of Non Elective Saving/ Performance Fund (£) | F19: =MIN(IF(F11/$I$11*$B$19<0,0,F11/$I$11*$B$19),B19) -> 1023630 | G19: =MIN(IF(G11/$I$11*$B$19-F19<0,0,G11/$I$11*$B$19-F19),B19-F19) -> 1008730 | H19: =MIN(IF(H11/$I$11*$B$19-G19-F19<0,0,H11/$I$11*$B$19-G19-F19),B19-G19-F19) -> 1034060 | I19: =MIN(IF(I11/$I$11*$B$19-H19-G19-F19<0,0,I11/$I$11*$B$19-H19-G19-F19),B19-H19-G19-F19) -> 1047470 | J19: 400
C20: B08
A21: Combined total of Performance and Ringfenced Funds | B21: =IFERROR(VLOOKUP(A4,a!$AU$4:$AV$156,2,FALSE)*1000,0) -> 14522543.35 | C21: 500
C22: B09
A23: Ringfenced Fund | B23: =IF(B21-B19<0,0,B21-B19) -> 10408653.35 | C23: 600
C24: B10
A25: Value of NHS Commissioned Services | B25: ='3. HWB Expenditure Plan'!N109*1000 -> 26344119.25 | C25: 700
C26: B11
A27: Shortfall of Contribution to NHS Commissioned Services | B27: =IF((B23-B25)<0,0,(B23-B25)) -> 0 | C27: 800

Sheet 1. HWB Funding Sources
A1: Health and Wellbeing Funding Sources
A4: ='HWB ID'!C5 -> Devon | B4: =VLOOKUP(A4,a!$AA$3:$AB$154,2,FALSE) -> E10000008
A6: Please complete white cells
B7: Gross Contribution (£000)
A8: Headings | B8: 2014/15 | C8: 2015/16 | D8: Subcode
A9: Local Authority Social Services | D9: T01
A10: Devon | B10: 16538 | C10: 9162 | D10: 100
A11: <Please select Local Authority> | D11: 101
A12: <Please select Local Authority>
A13: <Please select Local Authority>
A14: <Please select Local Authority> | D14: 102
A15: <Please select Local Authority> | D15: 103
A16: <Please select Local Authority> | D16: 104
A17: Total Local Authority Contribution | B17: =SUM(B10:B16) -> 16538 | C17: =SUM(C10:C16) -> 9162 | D17: TT1
D18: B01
A19: CCG Minimum Contribution | D19: T02
A20: =IF(ISERROR(VLOOKUP($A$4&ROW()-19,a!$AM$3:$AP$347,3,FALSE)),"-",VLOOKUP($A$4&ROW()-19,a!$AM$3:$AP$347,3,FALSE)) -> NHS South Devon and Torbay CCG | C20: =IF(ISERROR(VLOOKUP($A$4&ROW()-19,a!$AM$3:$AP$347,4,FALSE)),"-",VLOOKUP($A$4&ROW()-19,a!$AM$3:$AP$347,4,FALSE)) -> 10262 | D20: 200
A21: =IF(ISERROR(VLOOKUP($A$4&ROW()-19,a!$AM$3:$AP$347,3,FALSE)),"-",VLOOKUP($A$4&ROW()-19,a!$AM$3:$AP$347,3,FALSE)) -> NHS North, East, West Devon CCG | C21: =IF(ISERROR(VLOOKUP($A$4&ROW()-19,a!$AM$3:$AP$347,4,FALSE)),"-",VLOOKUP($A$4&ROW()-19,a!$AM$3:$AP$347,4,FALSE)) -> 39986 | D21: 201
A22: =IF(ISERROR(VLOOKUP($A$4&ROW()-19,a!$AM$3:$AP$347,3,FALSE)),"-",VLOOKUP($A$4&ROW()-19,a!$AM$3:$AP$347,3,FALSE)) -> - | C22: =IF(ISERROR(VLOOKUP($A$4&ROW()-19,a!$AM$3:$AP$347,4,FALSE)),"-",VLOOKUP($A$4&ROW()-19,a!$AM$3:$AP$347,4,FALSE)) -> - | D22: 202
A23: =IF(ISERROR(VLOOKUP($A$4&ROW()-19,a!$AM$3:$AP$347,3,FALSE)),"-",VLOOKUP($A$4&ROW()-19,a!$AM$3:$AP$347,3,FALSE)) -> - | C23: =IF(ISERROR(VLOOKUP($A$4&ROW()-19,a!$AM$3:$AP$347,4,FALSE)),"-",VLOOKUP($A$4&ROW()-19,a!$AM$3:$AP$347,4,FALSE)) -> - | D23: 203
A24: =IF(ISERROR(VLOOKUP($A$4&ROW()-19,a!$AM$3:$AP$347,3,FALSE)),"-",VLOOKUP($A$4&ROW()-19,a!$AM$3:$AP$347,3,FALSE)) -> - | C24: =IF(ISERROR(VLOOKUP($A$4&ROW()-19,a!$AM$3:$AP$347,4,FALSE)),"-",VLOOKUP($A$4&ROW()-19,a!$AM$3:$AP$347,4,FALSE)) -> - | D24: 204
A25: =IF(ISERROR(VLOOKUP($A$4&ROW()-19,a!$AM$3:$AP$347,3,FALSE)),"-",VLOOKUP($A$4&ROW()-19,a!$AM$3:$AP$347,3,FALSE)) -> - | C25: =IF(ISERROR(VLOOKUP($A$4&ROW()-19,a!$AM$3:$AP$347,4,FALSE)),"-",VLOOKUP($A$4&ROW()-19,a!$AM$3:$AP$347,4,FALSE)) -> - | D25: 205
A26: =IF(ISERROR(VLOOKUP($A$4&ROW()-19,a!$AM$3:$AP$347,3,FALSE)),"-",VLOOKUP($A$4&ROW()-19,a!$AM$3:$AP$347,3,FALSE)) -> - | C26: =IF(ISERROR(VLOOKUP($A$4&ROW()-19,a!$AM$3:$AP$347,4,FALSE)),"-",VLOOKUP($A$4&ROW()-19,a!$AM$3:$AP$347,4,FALSE)) -> - | D26: 206
A27: Total Minimum CCG Contribution | B27: =SUM(B20:B25) -> 0 | C27: =SUM(C20:C26) -> 50248 | D27: TT2
D28: B02
A29: CCG Share of £1.1bn Contribution to Social Care | D29: T02
A30: =IF(ISERROR(VLOOKUP($A$4&ROW()-26,a!$AX$2:$BA$244,3,FALSE)),"-",VLOOKUP($A$4&ROW()-26,a!$AX$2:$BA$244,3,FALSE)) -> - | C30: =IF(ISERROR(VLOOKUP($A$4&ROW()-26,a!$AX$2:$BA$244,4,FALSE)),"-",VLOOKUP($A$4&ROW()-26,a!$AX$2:$BA$244,4,FALSE)) -> - | D30: 300
A31: =IF(ISERROR(VLOOKUP($A$4&ROW()-26,a!$AX$2:$BA$244,3,FALSE)),"-",VLOOKUP($A$4&ROW()-26,a!$AX$2:$BA$244,3,FALSE)) -> - | C31: =IF(ISERROR(VLOOKUP($A$4&ROW()-26,a!$AX$2:$BA$244,4,FALSE)),"-",VLOOKUP($A$4&ROW()-26,a!$AX$2:$BA$244,4,FALSE)) -> - | D31: 301
A32: =IF(ISERROR(VLOOKUP($A$4&ROW()-26,a!$AX$2:$BA$244,3,FALSE)),"-",VLOOKUP($A$4&ROW()-26,a!$AX$2:$BA$244,3,FALSE)) -> - | C32: =IF(ISERROR(VLOOKUP($A$4&ROW()-26,a!$AX$2:$BA$244,4,FALSE)),"-",VLOOKUP($A$4&ROW()-26,a!$AX$2:$BA$244,4,FALSE)) -> - | D32: 302
A33: =IF(ISERROR(VLOOKUP($A$4&ROW()-26,a!$AX$2:$BA$244,3,FALSE)),"-",VLOOKUP($A$4&ROW()-26,a!$AX$2:$BA$244,3,FALSE)) -> - | C33: =IF(ISERROR(VLOOKUP($A$4&ROW()-26,a!$AX$2:$BA$244,4,FALSE)),"-",VLOOKUP($A$4&ROW()-26,a!$AX$2:$BA$244,4,FALSE)) -> - | D33: 303
A34: =IF(ISERROR(VLOOKUP($A$4&ROW()-26,a!$AX$2:$BA$244,3,FALSE)),"-",VLOOKUP($A$4&ROW()-26,a!$AX$2:$BA$244,3,FALSE)) -> - | C34: =IF(ISERROR(VLOOKUP($A$4&ROW()-26,a!$AX$2:$BA$244,4,FALSE)),"-",VLOOKUP($A$4&ROW()-26,a!$AX$2:$BA$244,4,FALSE)) -> - | D34: 304
A35: =IF(ISERROR(VLOOKUP($A$4&ROW()-26,a!$AX$2:$BA$244,3,FALSE)),"-",VLOOKUP($A$4&ROW()-26,a!$AX$2:$BA$244,3,FALSE)) -> - | C35: =IF(ISERROR(VLOOKUP($A$4&ROW()-26,a!$AX$2:$BA$244,4,FALSE)),"-",VLOOKUP($A$4&ROW()-26,a!$AX$2:$BA$244,4,FALSE)) -> - | D35: 305
A36: Total Minimum CCG Share of £1.1bn Contribution to Social Care | B36: =SUM(B30:B35) -> 0 | C36: =SUM(C30:C35) -> 0 | D36: TT2
D37: B03
A38: CCG Share of £2.4m Minimum Contribution | D38: T03
A39: =A20 -> NHS South Devon and Torbay CCG | C39: =IF(ISERROR(C20-IF(ISERROR(VLOOKUP(A39,$A$30:$C$35,3,FALSE)),0,VLOOKUP(A39,$A$30:$C$35,3,FALSE))),"-",C20-IF(ISERROR(VLOOKUP(A39,$A$30:$C$35,3,FALSE)),0,VLOOKUP(A39,$A$30:$C$35,3,FALSE))) -> 10262 | D39: 400
A40: NHS North, East, West Devon CCG | C40: 39986 | D40: 401
A41: - | C41: - | D41: 402
A42: - | C42: - | D42: 403
A43: - | C43: - | D43: 404
A44: - | C44: - | D44: 405
A45: Total CCG Share of Minimum £2.4bn Contribution | B45: =SUM(B39:B44) -> 0 | C45: =SUM(C39:C44) -> 50248 | D45: TT3
D46: B04
A47: Additional CCG Contribution | D47: T04
A48: NHS South Devon and Torbay CCG | B48: 702 | C48: 277 | D48: 500
A49: NHS North, East, West Devon CCG | B49: 3198 | D49: 501
A50: <Please Select CCG> | D50: 502
A51: <Please Select CCG> | D51: 503
A52: <Please Select CCG> | D52: 504
A53: <Please Select CCG> | D53: 505
A54: <Please Select CCG> | D54: 506
A55: Total Additional CCG Contribution | B55: =SUM(B48:B54) -> 3900 | C55: =SUM(C48:C54) -> 277 | D55: TT4
D56: B05
A57: Total Contribution | B57: =B17+B27+B55 -> 20438 | C57: =C17+C27+C55 -> 59687 | D57: TT3

Sheet 2. Summary
B1: Summary of Health and Wellbeing Board Schemes
B4: ='1. HWB Funding Sources'!A4 -> Devon
B6: Please complete white cells
B8: Summary of Total BCF Expenditure
B9: Figures in £000
C10: From 3. HWB Expenditure Plan | E10: Please confirm the amount allocated for the protection of adult social care | G10: If different to the figure in cell D18, please indicate the total amount from the BCF that has been allocated for the protection of adult social care services
B11: Headings | C11: 2014/15 | D11: 2015/16 | E11: 2014/15 | F11: 2015/16 | M11: subcode
M12: B01
B13: Acute | C13: =SUMIF('3. HWB Expenditure Plan'!$B$9:$B$108,B13,'3. HWB Expenditure Plan'!$K$9:$K$108) -> 367.1385 | D13: =SUMIF('3. HWB Expenditure Plan'!$B$9:$B$108,B13,'3. HWB Expenditure Plan'!$L$9:$L$108) -> 794.5 | M13: 100
B14: Mental Health | C14: =SUMIF('3. HWB Expenditure Plan'!$B$9:$B$108,B14,'3. HWB Expenditure Plan'!$K$9:$K$108) -> 1568.4 | D14: =SUMIF('3. HWB Expenditure Plan'!$B$9:$B$108,B14,'3. HWB Expenditure Plan'!$L$9:$L$108) -> 1657.4 | M14: 101
B15: Community Health | C15: =SUMIF('3. HWB Expenditure Plan'!$B$9:$B$108,B15,'3. HWB Expenditure Plan'!$K$9:$K$108) -> 8250.297825 | D15: =SUMIF('3. HWB Expenditure Plan'!$B$9:$B$108,B15,'3. HWB Expenditure Plan'!$L$9:$L$108) -> 26776.88414 | M15: 102
B16: Continuing Care | C16: =SUMIF('3. HWB Expenditure Plan'!$B$9:$B$108,B16,'3. HWB Expenditure Plan'!$K$9:$K$108) -> 0 | D16: =SUMIF('3. HWB Expenditure Plan'!$B$9:$B$108,B16,'3. HWB Expenditure Plan'!$L$9:$L$108) -> 0 | M16: 103
B17: Primary Care | C17: =SUMIF('3. HWB Expenditure Plan'!$B$9:$B$108,B17,'3. HWB Expenditure Plan'!$K$9:$K$108) -> 168.99852 | D17: =SUMIF('3. HWB Expenditure Plan'!$B$9:$B$108,B17,'3. HWB Expenditure Plan'!$L$9:$L$108) -> 199.4 | M17: 104
B18: Social Care | C18: =SUMIF('3. HWB Expenditure Plan'!$B$9:$B$108,B18,'3. HWB Expenditure Plan'!$K$9:$K$108) -> 9548.813401 | D18: =SUMIF('3. HWB Expenditure Plan'!$B$9:$B$108,B18,'3. HWB Expenditure Plan'!$L$9:$L$108) -> 26397.4 | E18: 4224 | F18: 14224 | M18: 105
B19: Other | C19: =SUMIF('3. HWB Expenditure Plan'!$B$9:$B$108,B19,'3. HWB Expenditure Plan'!$K$9:$K$108) -> 534 | D19: =SUMIF('3. HWB Expenditure Plan'!$B$9:$B$108,B19,'3. HWB Expenditure Plan'!$L$9:$L$108) -> 3861 | M19: 106
B20: Total | C20: =SUM(C13:C19) -> 20437.64825 | D20: =SUM(D13:D19) -> 59686.58414 | F20: =SUM(F13:F19) -> 14224 | M20: TT1
B22: Summary of NHS Commissioned out of hospital services spend from MINIMUM BCF Pool
B23: Figures in £000
C24: From 3. HWB Expenditure Plan
B25: Headings | D25: 2015/16 | E25: subcode
E26: B01
E27: B01
B28: Mental Health | D28: =SUMIFS('3. HWB Expenditure Plan'!$N$9:$N$108,'3. HWB Expenditure Plan'!$B$9:$B$108,B28,'3. HWB Expenditure Plan'!$F$9:$F$108,"Joint")+ SUMIFS('3. HWB Expenditure Plan'!$N$9:$N$108,'3. HWB Expenditure Plan'!$B$9:$B$108,B28,'3. HWB Expenditure Plan'!$F$9:$F$108,"NHS England")+ SUMIFS('3. HWB Expenditure Plan'!$N$9:$N$108,'3. HWB Expenditure Plan'!$B$9:$B$108,B28,'3. HWB Expenditure Plan'!$F$9:$F$108,"CCG") -> 791.2 | E28: 100
B29: Community Health | D29: =SUMIFS('3. HWB Expenditure Plan'!$N$9:$N$108,'3. HWB Expenditure Plan'!$B$9:$B$108,B29,'3. HWB Expenditure Plan'!$F$9:$F$108,"Joint")+ SUMIFS('3. HWB Expenditure Plan'!$N$9:$N$108,'3. HWB Expenditure Plan'!$B$9:$B$108,B29,'3. HWB Expenditure Plan'!$F$9:$F$108,"NHS England")+ SUMIFS('3. HWB Expenditure Plan'!$N$9:$N$108,'3. HWB Expenditure Plan'!$B$9:$B$108,B29,'3. HWB Expenditure Plan'!$F$9:$F$108,"CCG") -> 23114.07669 | E29: 101
B30: Continuing Care | D30: =SUMIFS('3. HWB Expenditure Plan'!$N$9:$N$108,'3. HWB Expenditure Plan'!$B$9:$B$108,B30,'3. HWB Expenditure Plan'!$F$9:$F$108,"Joint")+ SUMIFS('3. HWB Expenditure Plan'!$N$9:$N$108,'3. HWB Expenditure Plan'!$B$9:$B$108,B30,'3. HWB Expenditure Plan'!$F$9:$F$108,"NHS England")+ SUMIFS('3. HWB Expenditure Plan'!$N$9:$N$108,'3. HWB Expenditure Plan'!$B$9:$B$108,B30,'3. HWB Expenditure Plan'!$F$9:$F$108,"CCG") -> 0 | E30: 102
B31: Primary Care | D31: =SUMIFS('3. HWB Expenditure Plan'!$N$9:$N$108,'3. HWB Expenditure Plan'!$B$9:$B$108,B31,'3. HWB Expenditure Plan'!$F$9:$F$108,"Joint")+ SUMIFS('3. HWB Expenditure Plan'!$N$9:$N$108,'3. HWB Expenditure Plan'!$B$9:$B$108,B31,'3. HWB Expenditure Plan'!$F$9:$F$108,"NHS England")+ SUMIFS('3. HWB Expenditure Plan'!$N$9:$N$108,'3. HWB Expenditure Plan'!$B$9:$B$108,B31,'3. HWB Expenditure Plan'!$F$9:$F$108,"CCG") -> 199.4 | E31: 103
B32: Social Care | D32: =SUMIFS('3. HWB Expenditure Plan'!$N$9:$N$108,'3. HWB Expenditure Plan'!$B$9:$B$108,B32,'3. HWB Expenditure Plan'!$F$9:$F$108,"Joint")+ SUMIFS('3. HWB Expenditure Plan'!$N$9:$N$108,'3. HWB Expenditure Plan'!$B$9:$B$108,B32,'3. HWB Expenditure Plan'!$F$9:$F$108,"NHS England")+ SUMIFS('3. HWB Expenditure Plan'!$N$9:$N$108,'3. HWB Expenditure Plan'!$B$9:$B$108,B32,'3. HWB Expenditure Plan'!$F$9:$F$108,"CCG") -> 2027.942553 | E32: 104
B33: Other | D33: =SUMIFS('3. HWB Expenditure Plan'!$N$9:$N$108,'3. HWB Expenditure Plan'!$B$9:$B$108,B33,'3. HWB Expenditure Plan'!$F$9:$F$108,"Joint")+ SUMIFS('3. HWB Expenditure Plan'!$N$9:$N$108,'3. HWB Expenditure Plan'!$B$9:$B$108,B33,'3. HWB Expenditure Plan'!$F$9:$F$108,"NHS England")+ SUMIFS('3. HWB Expenditure Plan'!$N$9:$N$108,'3. HWB Expenditure Plan'!$B$9:$B$108,B33,'3. HWB Expenditure Plan'!$F$9:$F$108,"CCG") -> 211.5 | E33: 105
B34: Total | D34: =SUM(D27:D33) -> 26344.11925 | E34: TT1
E35: TT1
B36: Summary of Benefits
B37: Figures in £000
C38: From 4. HWB Benefits | E38: From 5.HWB P4P metric
B39: Headings | C39: 2014/15 vs outturn from 4 | D39: 2015/16 vs outturn from 4 | E39: 2015/16 from 5 | F39: Subcode
F40: T01
B41: Reduction in permanent residential admissions | C41: =SUMIF('4. HWB Benefits Plan'!$A$11:$A$111,B41,'4. HWB Benefits Plan'!$H$11:$H$111)/1000 -> -722.832 | D41: =SUMIF('4. HWB Benefits Plan'!$A$119:$A$219,B41,'4. HWB Benefits Plan'!$H$119:$H$219)/1000 -> -1728.672 | F41: 100
B42: Increased effectiveness of reablement | C42: =SUMIF('4. HWB Benefits Plan'!$A$11:$A$111,B42,'4. HWB Benefits Plan'!$H$11:$H$111)/1000 -> 0 | D42: =SUMIF('4. HWB Benefits Plan'!$A$119:$A$219,B42,'4. HWB Benefits Plan'!$H$119:$H$219)/1000 -> 0 | F42: 101
B43: Reduction in delayed transfers of care | C43: =SUMIF('4. HWB Benefits Plan'!$A$11:$A$111,B43,'4. HWB Benefits Plan'!$H$11:$H$111)/1000 -> -828.85 | D43: =SUMIF('4. HWB Benefits Plan'!$A$119:$A$219,B43,'4. HWB Benefits Plan'!$H$119:$H$219)/1000 -> -1274.35 | F43: 102
B44: Reduction in non-elective (general + acute only) | C44: =SUMIF('4. HWB Benefits Plan'!$A$11:$A$111,B44,'4. HWB Benefits Plan'!$H$11:$H$111)/1000 -> -1023.63 | D44: =SUMIF('4. HWB Benefits Plan'!$A$119:$A$219,B44,'4. HWB Benefits Plan'!$H$119:$H$219)/1000 -> -4113.89 | E44: ='5. HWB P4P metric'!H14/1000 -> 4113.89 | F44: 103 | G44: <Please explain discrepancy between D44 and E44 if applicable>
B45: Other | C45: =SUMIF('4. HWB Benefits Plan'!$A$11:$A$111,B45,'4. HWB Benefits Plan'!$H$11:$H$111)/1000 -> 0 | D45: =SUMIF('4. HWB Benefits Plan'!$A$119:$A$219,B45,'4. HWB Benefits Plan'!$H$119:$H$219)/1000 -> 0 | F45: 104
B46: Total | C46: =SUM(C41:C45) -> -2575.312 | D46: =SUM(D41:D45) -> -7116.912 | E46: 4113.89 | F46: TT1

Sheet 3. HWB Expenditure Plan
A1: Health and Wellbeing Board Expenditure Plan
A3: ='1. HWB Funding Sources'!A4 -> Devon
A5: Please complete white cells (for as many rows as required):
B6: Expenditure | Q6: Acute | R6: 2
A7: Scheme Name | B7: Area of Spend | C7: driver column | D7: Specific Line in Financial Plan | E7: Please specify if Other | F7: Commissioner | G7: if Joint % NHS | H7: if Joint % LA | I7: Provider | J7: Source of Funding | K7: 2014/15 (£000) | L7: 2015/16 (£000) | M7: Validation1415 | N7: Validation1516 | O7: subcode | Q7: Mental Health | R7: 3
O8: B01
A9: Disabled Facilities Grant | B9: Other | C9: =VLOOKUP(B9,$Q$3:$R$13,2,FALSE) ->  | E9: DFG | F9: Local Authority | I9: Local Authority | J9: Local Authority Social Services | K9: 0 | L9: 3392 | M9: =IF($B9="acute",0,IF($F9="Local Authority",0,IF(AND($J9="CCG Minimum Contribution",$F9="Joint"),$K9*$G9,IF($J9="CCG Minimum Contribution",$K9,0)))) -> 0 | N9: =IF($B9="acute",0,IF($F9="Local Authority",0,IF(AND($F9="Joint",$J9="CCG Minimum Contribution"),$L9*$G9,IF($J9="CCG Minimum Contribution",$L9,0)))) -> 0 | O9: 100 | Q9: Community Health | R9: 4
A10: Enabler | B10: Social Care | E10: =IF(B10="Other","<Please specify area of spend>"," ") ->  | F10: Local Authority | I10: Local Authority | J10: Local Authority Social Services | K10: 0 | L10: 1991 | M10: 0 | N10: 0 | O10: 101 | Q10: Continuing Care | R10: 5
A11: Enhanced Carers offer | B11: Community Health | F11: Joint | G11: 0.4343262411 | H11: 0.5656737589 | I11: Charity/Voluntary Sector | J11: Local Authority Social Services | K11: 0 | L11: 669 | M11: 0 | N11: 0 | O11: 102 | Q11: Primary Care | R11: 6
A12: Enhanced Carers offer | B12: Community Health | F12: Joint | G12: 0.4343262411 | H12: 0.5656737589 | I12: Private Sector | J12: Local Authority Social Services | K12: 0 | L12: 498.5 | M12: 0 | N12: 0 | O12: 103 | Q12: Other Programme Services | R12: 7
A13: Enhanced Carers offer | B13: Social Care | F13: Joint | G13: 0.4343262411 | H13: 0.5656737589 | I13: Charity/Voluntary Sector | J13: Local Authority Social Services | K13: 0 | L13: 669 | M13: 0 | N13: 0 | O13: 104 | Q13: Running Costs | R13: 8
A14: Enhanced Carers offer | B14: Social Care | F14: Joint | G14: 0.4343262411 | H14: 0.5656737589 | I14: Private Sector | J14: Local Authority Social Services | K14: 0 | L14: 498.5 | M14: 0 | N14: 0 | O14: 105
A15: Enhanced Community Equipment Service | B15: Community Health | F15: Joint | G15: 0.6 | H15: 0.4 | I15: Charity/Voluntary Sector | J15: Local Authority Social Services | K15: 0 | L15: 686.5 | M15: 0 | N15: 0 | O15: 106
A16: Enhanced Community Equipment Service | B16: Social Care | F16: Joint | G16: 0.6 | H16: 0.4 | I16: Charity/Voluntary Sector | J16: Local Authority Social Services | K16: 0 | L16: 686.5 | M16: 0 | N16: 0 | O16: 107
A17: Frailty and Community Care | B17: Mental Health | F17: Joint | G17: 0.2197802198 | H17: 0.7802197802 | I17: Charity/Voluntary Sector | J17: Local Authority Social Services | K17: 0 | L17: 71 | M17: 0 | N17: 0 | O17: 108
A18: Enhanced Carers offer | B18: Community Health | F18: Joint | G18: 0.4343262411 | H18: 0.5656737589 | I18: Charity/Voluntary Sector | J18: Additional CCG Contribution | K18: 0 | L18: 15 | M18: 0 | N18: 0 | O18: 109
A19: Enhanced Carers offer | B19: Social Care | F19: Joint | G19: 0.4343262411 | H19: 0.5656737589 | I19: Charity/Voluntary Sector | J19: Additional CCG Contribution | K19: 0 | L19: 15 | M19: 0 | N19: 0 | O19: 110
A20: Enhanced Community Equipment Service | B20: Community Health | F20: Joint | G20: 0.6 | H20: 0.4 | I20: Charity/Voluntary Sector | J20: Additional CCG Contribution | K20: 0 | L20: 121.5 | M20: 0 | N20: 0 | O20: 111
A21: Enhanced Community Equipment Service | B21: Social Care | F21: Joint | G21: 0.6 | H21: 0.4 | I21: Charity/Voluntary Sector | J21: Additional CCG Contribution | K21: 0 | L21: 121.5 | M21: 0 | N21: 0 | O21: 112
A22: Frailty and Community Care | B22: Mental Health | F22: Joint | G22: 0.2197802198 | H22: 0.7802197802 | I22: Charity/Voluntary Sector | J22: Additional CCG Contribution | K22: 0 | L22: 4 | M22: 0 | N22: 0 | O22: 113
A23: Care Act Implementation | B23: Social Care | F23: Local Authority | I23: Local Authority | J23: CCG Minimum Contribution | K23: 0 | L23: 2000 | M23: 0 | N23: 0 | O23: 114
A24: Dementia Diagnosis | B24: Mental Health | F24: Joint | G24: 0.5 | H24: 0.5 | I24: Charity/Voluntary Sector | J24: CCG Minimum Contribution | K24: 721 | L24: 719 | M24: 360.5 | N24: 359.5 | O24: 115
A25: Enabler | B25: Acute | F25: CCG | I25: NHS Acute Provider | J25: CCG Minimum Contribution | K25: 367.1385 | L25: 603.5 | M25: 0 | N25: 0 | O25: 116
A26: Enabler | B26: Community Health | F26: CCG | I26: NHS Community Health Provider | J26: CCG Minimum Contribution | K26: 171.7155 | L26: 162.5 | M26: 171.7155 | N26: 162.5 | O26: 117
A27: Enabler | B27: Mental Health | F27: Joint | G27: 0.5 | H27: 0.5 | I27: Charity/Voluntary Sector | J27: CCG Minimum Contribution | K27: 631 | L27: 631 | M27: 315.5 | N27: 315.5 | O27: 118
A28: Enabler | B28: Mental Health | F28: Joint | G28: 0.5 | H28: 0.5 | I28: Private Sector | J28: CCG Minimum Contribution | K28: 131 | L28: 131 | M28: 65.5 | N28: 65.5 | O28: 119
A29: Enabler | B29: Other | E29: Joint working | F29: Local Authority | I29: Local Authority | J29: CCG Minimum Contribution | K29: 196 | L29: 180 | M29: 0 | N29: 0 | O29: 120
A30: Enabler | B30: Other | E30: Joint working | F30: CCG | I30: NHS Community Health Provider | J30: CCG Minimum Contribution | K30: 123 | L30: 134 | M30: 123 | N30: 134 | O30: 121
A31: Enabler | B31: Other | E31: Back office support | F31: Joint | G31: 0.5 | H31: 0.5 | I31: Private Sector | J31: CCG Minimum Contribution | K31: 60 | L31: 0 | M31: 30 | N31: 0 | O31: 122
A32: Enabler | B32: Primary Care | F32: CCG | I32: Private Sector | J32: CCG Minimum Contribution | K32: 108.59852 | L32: 139 | M32: 108.59852 | N32: 139 | O32: 123
A33: Enabler | B33: Social Care | F33: Local Authority | I33: Charity/Voluntary Sector | J33: CCG Minimum Contribution | K33: 37 | L33: 37 | M33: 0 | N33: 0 | O33: 124
A34: Enabler | B34: Social Care | F34: Local Authority | I34: Local Authority | J34: CCG Minimum Contribution | K34: 213 | L34: 124 | M34: 0 | N34: 0 | O34: 125
A35: Enabler | B35: Social Care | F35: Local Authority | I35: Private Sector | J35: CCG Minimum Contribution | K35: 36 | L35: 36 | M35: 0 | N35: 0 | O35: 126
A36: Enabler infrastructure - Hospital Discharge services | B36: Community Health | F36: CCG | I36: NHS Acute Provider | J36: CCG Minimum Contribution | K36: 200.5 | L36: 62.5 | M36: 200.5 | N36: 62.5 | O36: 127
A37: Enabler infrastructure - Hospital Discharge services | B37: Community Health | F37: CCG | I37: NHS Community Health Provider | J37: CCG Minimum Contribution | K37: 342.98414 | L37: 342.98414 | M37: 342.98414 | N37: 342.98414 | O37: 128
A38: Enabler infrastructure - Hospital Discharge services | B38: Mental Health | F38: Joint | G38: 0.5 | H38: 0.5 | I38: NHS Mental Health Provider | J38: CCG Minimum Contribution | K38: 25 | L38: 25 | M38: 12.5 | N38: 12.5 | O38: 129
A39: Enabler infrastructure - Hospital Discharge services | B39: Social care | F39: Local Authority | I39: Local Authority | J39: CCG Minimum Contribution | K39: 168 | L39: 176 | M39: 0 | N39: 0 | O39: 130
A40: Enabler infrastructure - Hospital Discharge services | B40: Social care | F40: Joint | G40: 0.5 | H40: 0.5 | I40: NHS Acute Provider | J40: CCG Minimum Contribution | K40: 100.863355 | L40: 62.5 | M40: 50.4316775 | N40: 31.25 | O40: 131
A41: Enhanced Carers offer | B41: Community Health | F41: Joint | G41: 0.4343262411 | H41: 0.5656737589 | I41: Charity/Voluntary Sector | J41: CCG Minimum Contribution | K41: 0 | L41: 453.25 | M41: =IF($B41="acute",0,IF($F41="Local Authority",0,IF(AND($J41="CCG Minimum Contribution",$F41="Joint"),$K41*$G41,IF($J41="CCG Minimum Contribution",$K41,0)))) -> 0 | N41: =IF($B41="acute",0,IF($F41="Local Authority",0,IF(AND($F41="Joint",$J41="CCG Minimum Contribution"),$L41*$G41,IF($J41="CCG Minimum Contribution",$L41,0)))) -> 196.8583688 | O41: 132
A42: Enhanced Carers offer | B42: Community Health | F42: Joint | G42: 0.4343262411 | H42: 0.5656737589 | I42: Private Sector | J42: CCG Minimum Contribution | K42: 0 | L42: 385.25 | M42: 0 | N42: 167.3241844 | O42: 133
A43: Enhanced Carers offer | B43: Social Care | F43: Joint | G43: 0.4343262411 | H43: 0.5656737589 | I43: Charity/Voluntary Sector | J43: CCG Minimum Contribution | K43: 0 | L43: 453.25 | M43: 0 | N43: 196.8583688 | O43: 134
A44: Enhanced Carers offer | B44: Social Care | F44: Joint | G44: 0.4343262411 | H44: 0.5656737589 | I44: Private Sector | J44: CCG Minimum Contribution | K44: 0 | L44: 385.25 | M44: 0 | N44: 167.3241844 | O44: 135
A45: Enhanced Community Equipment Service | B45: Community Health | F45: Joint | G45: 0.6 | H45: 0.4 | I45: Charity/Voluntary Sector | J45: CCG Minimum Contribution | K45: 1939.5 | L45: 2383 | M45: 1163.7 | N45: 1429.8 | O45: 136
A46: Enhanced Community Equipment Service | B46: Social Care | F46: Joint | G46: 0.6 | H46: 0.4 | I46: Charity/Voluntary Sector | J46: CCG Minimum Contribution | K46: 1939.5 | L46: 2383 | M46: 1163.7 | N46: 1429.8 | O46: 137
A47: Frailty and Community Care | B47: Community Health | F47: CCG | I47: Charity/Voluntary Sector | J47: CCG Minimum Contribution | K47: 704.212685 | L47: 596.4 | M47: 704.212685 | N47: 596.4 | O47: 138
A48: Frailty and Community Care | B48: Community Health | F48: CCG | I48: NHS Acute Provider | J48: CCG Minimum Contribution | K48: 140.048 | L48: 135 | M48: 140.048 | N48: 135 | O48: 139
A49: Frailty and Community Care | B49: Community Health | F49: CCG | I49: NHS Community Health Provider | J49: CCG Minimum Contribution | K49: 30 | L49: =10842+40 -> 10882 | M49: 30 | N49: 10882 | O49: 140
A50: Frailty and Community Care | B50: Mental Health | F50: Joint | G50: 0.5 | H50: 0.5 | I50: Charity/Voluntary Sector | J50: CCG Minimum Contribution | K50: 60.4 | L50: 76.4 | M50: 30.2 | N50: 38.2 | O50: 141
A51: Frailty and Community Care | B51: Other | E51: Community volunteering | F51: Joint | G51: 0.5 | H51: 0.5 | I51: Charity/Voluntary Sector | J51: CCG Minimum Contribution | K51: 155 | L51: 155 | M51: 77.5 | N51: 77.5 | O51: 142
A52: Frailty and Community Care | B52: Primary Care | F52: CCG | I52: Charity/Voluntary Sector | J52: CCG Minimum Contribution | K52: 60.4 | L52: 60.4 | M52: 60.4 | N52: 60.4 | O52: 143
A53: Frailty and Community Care | B53: Social Care | F53: Local Authority | I53: Charity/Voluntary Sector | J53: CCG Minimum Contribution | K53: 208.212685 | L53: 120.4 | M53: 0 | N53: 0 | O53: 144
A54: Frailty and Community Care | B54: Social Care | F54: Local Authority | I54: Local Authority | J54: CCG Minimum Contribution | K54: 40 | L54: 0 | M54: 0 | N54: 0 | O54: 145
A55: Frailty and Community Care | B55: Social Care | F55: Local Authority | I55: NHS Community Health Provider | J55: CCG Minimum Contribution | K55: 11 | L55: 11 | M55: 0 | N55: 0 | O55: 146
A56: Frailty and Community Care | B56: Social Care | F56: Local Authority | I56: Private Sector | J56: CCG Minimum Contribution | K56: 9.97 | L56: 0 | M56: 0 | N56: 0 | O56: 147
A57: Rapid Response Domiciliary Care | B57: Community Health | F57: Joint | G57: 0.87 | H57: 0.13 | I57: NHS Community Health Provider | J57: CCG Minimum Contribution | K57: 1883 | L57: 1883 | M57: 1638.21 | N57: 1638.21 | O57: 148
A58: Rapid Response Domiciliary Care | B58: Social Care | E58: =IF(B58="Other","<Please specify area of spend>"," ") ->  | F58: Joint | G58: 0.87 | H58: 0.13 | I58: NHS Community Health Provider | J58: CCG Minimum Contribution | K58: 233 | L58: 233 | M58: 202.71 | N58: 202.71 | O58: =ROW()+91 -> 149
A59: Scaling up of existing services to enable reduction in admissions | B59: Community Health | F59: CCG | I59: NHS Community Health Provider | J59: CCG Minimum Contribution | L59: =4743-4154 -> 589 | M59: 0 | N59: 589 | O59: 150
A60: Single Point of Co-ordination | B60: Community Health | F60: CCG | I60: NHS Community Health Provider | J60: CCG Minimum Contribution | K60: 207.532 | L60: 226.5 | M60: 207.532 | N60: 226.5 | O60: 151
A61: Single Point of Co-ordination | B61: Social Care | F61: Local Authority | I61: Local Authority | J61: CCG Minimum Contribution | K61: 164.5 | L61: 176.5 | M61: 0 | N61: 0 | O61: 152
A62: Single Point of Co-ordination | B62: Social Care | F62: Local Authority | I62: NHS Community Health Provider | J62: CCG Minimum Contribution | K62: 43.032 | L62: 50 | M62: 0 | N62: 0 | O62: 153
A63: Social Care Reablement | B63: Social Care | F63: Local Authority | I63: Local Authority | J63: CCG Minimum Contribution | K63: 600 | L63: 600 | M63: 0 | N63: 0 | O63: 154
A64: Step Up Step Down Care | B64: Community Health | F64: CCG | I64: Local Authority | J64: CCG Minimum Contribution | K64: 320.6105 | L64: 336 | M64: 320.6105 | N64: 336 | O64: 155
A65: Step Up Step Down Care | B65: Community Health | F65: CCG | I65: NHS Acute Provider | J65: CCG Minimum Contribution | K65: 79.591 | L65: 75 | M65: 79.591 | N65: 75 | O65: 156
A66: Step Up Step Down Care | B66: Community Health | F66: CCG | I66: NHS Community Health Provider | J66: CCG Minimum Contribution | K66: 260.604 | L66: 206 | M66: 260.604 | N66: 206 | O66: 157
A67: Step Up Step Down Care | B67: Community Health | F67: CCG | I67: Private Sector | J67: CCG Minimum Contribution | K67: 1970 | L67: 1954 | M67: 1970 | N67: 1954 | O67: 158
A68: Step Up Step Down Care | B68: Social Care | F68: Local Authority | I68: Local Authority | J68: CCG Minimum Contribution | K68: 1096.848361 | L68: 1113 | M68: 0 | N68: 0 | O68: 159
A69: Step Up Step Down Care | B69: Social Care | F69: Local Authority | I69: NHS Acute Provider | J69: CCG Minimum Contribution | K69: 79.591 | L69: 75 | M69: 0 | N69: 0 | O69: 160
A70: Step Up Step Down Care | B70: Social Care | F70: Local Authority | I70: NHS Community Health Provider | J70: CCG Minimum Contribution | K70: 225.296 | L70: 156 | M70: 0 | N70: 0 | O70: 161
A71: Support to social care | B71: Social Care | F71: Local Authority | I71: Local Authority | J71: CCG Minimum Contribution | K71: 4343 | L71: 14224 | M71: 0 | N71: 0 | O71: 162
A72: SWAST Right Care, Right Place | B72: Acute | F72: CCG | I72: NHS Acute Provider | J72: CCG Minimum Contribution | L72: 191 | M72: 0 | N72: 0 | O72: 163
A73: Performance Fund | B73: Community Health | F73: CCG | I73: NHS Community Provider | J73: CCG Minimum Contribution | L73: 4114 | M73: =IF($B73="acute",0,IF($F73="Local Authority",0,IF(AND($J73="CCG Minimum Contribution",$F73="Joint"),$K73*$G73,IF($J73="CCG Minimum Contribution",$K73,0)))) -> 0 | N73: =IF($B73="acute",0,IF($F73="Local Authority",0,IF(AND($F73="Joint",$J73="CCG Minimum Contribution"),$L73*$G73,IF($J73="CCG Minimum Contribution",$L73,0)))) -> 4114 | O73: 164
M74: 0 | N74: 0 | O74: 165
M75: 0 | N75: 0 | O75: 166
M76: 0 | N76: 0 | O76: 167
M77: 0 | N77: 0 | O77: 168
M78: 0 | N78: 0 | O78: 169
M79: 0 | N79: 0 | O79: 170
M80: 0 | N80: 0 | O80: 171
M81: 0 | N81: 0 | O81: 172
M82: 0 | N82: 0 | O82: 173
M83: 0 | N83: 0 | O83: 174
M84: 0 | N84: 0 | O84: 175
M85: 0 | N85: 0 | O85: 176
M86: 0 | N86: 0 | O86: 177
M87: 0 | N87: 0 | O87: 178
M88: 0 | N88: 0 | O88: 179
M89: 0 | N89: 0 | O89: 180
M90: 0 | N90: 0 | O90: =ROW()+91 -> 181
M91: 0 | N91: 0 | O91: 182
M92: 0 | N92: 0 | O92: 183
M93: 0 | N93: 0 | O93: 184
M94: 0 | N94: 0 | O94: 185
M95: 0 | N95: 0 | O95: 186
M96: 0 | N96: 0 | O96: 187
M97: 0 | N97: 0 | O97: 188
M98: 0 | N98: 0 | O98: 189
M99: 0 | N99: 0 | O99: 190
M100: 0 | N100: 0 | O100: 191
M101: 0 | N101: 0 | O101: 192
M102: 0 | N102: 0 | O102: 193
M103: 0 | N103: 0 | O103: 194
M104: 0 | N104: 0 | O104: 195
M105: 0 | N105: 0 | O105: 196
M106: 0 | N106: 0 | O106: 197
M107: 0 | N107: 0 | O107: 198
M108: 0 | N108: 0 | O108: 199
A109: Total | K109: =SUM(K$9:K$108) -> 20437.64825 | L109: 59686.58414 | M109: 9830.248022 | N109: 26344.11925 | O109: TT1

Sheet 4. HWB Benefits Plan
A1: Health and Wellbeing Board Financial Benefits Plan
C2: If you would prefer to provide aggregated figures for the savings (columns F-J), for a group of schemes related to one benefit type (e.g. delayed transfers of care), rather than filling in figures against each of your individual schemes, then you may do so. If so, please do this as a separate row entitled “Aggregated benefit of schemes for X”, completing columns D, F, G, I and J for that row. But please make sure you do not enter values against both the individual schemes you have listed, and the “aggregated benefit” line. This is to avoid double counting the benefits. However, if the aggregated benefits fall to different organisations (e.g. some to the CCG and some to the local authority) then you will need to provide one row for the aggregated benefits to each type of organisation (identifying the type of organisation in column D) with values entered in columns F-J.
A3: ='1. HWB Funding Sources'!A4 -> Devon
A5: 2014/15
A7: Please complete white cells (for as many rows as required):
D8: 2014/15
A9: Benefit achieved from | B9: If other please specifiy | C9: Scheme Name | D9: Organisation to Benefit | E9: Area of spend to benefit | F9: Change in activity measure | G9: Unit Price (£) | H9: Total (Saving) (£) | I9: How was the saving value calculated? | J9: How will the savings against plan be monitored? | K9: subcode
K10: B01
A11: Reduction in non-elective (general + acute only) | B11: =IF($A11="Other","<Please specify>"," ") ->  | C11: Aggregate benefit of schemes for reducing non-elective admissions | D11: NHS Commissioner | F11: -687 | G11: 1490 | H11: =$F11*$G11 -> -1023630 | I11: Used national average unit cost | J11: Monitoring via System Resilience Group | K11: 100
A12: Reduction in non-elective (general + acute only) | C12: Enhanced community equipment service | D12: NHS Commissioner | H12: 0 | K12: 101
A13: Reduction in non-elective (general + acute only) | C13: Frailty and community care | D13: NHS Commissioner | H13: 0 | K13: 102
A14: Reduction in non-elective (general + acute only) | C14: SWAST Right Care | D14: NHS Commissioner | H14: 0 | K14: 103
A15: Reduction in non-elective (general + acute only) | C15: Rapid response domiciliary care | D15: NHS Commissioner | H15: 0 | K15: 104
A16: Reduction in non-elective (general + acute only) | C16: Social Care Reablement | D16: NHS Commissioner | H16: 0 | K16: 105
A17: Reduction in non-elective (general + acute only) | C17: Single point of co-ordination | D17: NHS Commissioner | H17: 0 | K17: 106
A18: Reduction in non-elective (general + acute only) | C18: Step up step down care | D18: NHS Commissioner | H18: 0 | K18: 107
A19: Reduction in non-elective (general + acute only) | C19: Enhanced Carers Offer | D19: NHS Commissioner | H19: 0 | K19: 108
A20: Reduction in delayed transfers of care | C20: Aggregate benefit of schemes for reducing delayed transfers of care | D20: NHS Provider | F20: -3014 | G20: 275 | H20: -828850 | I20: Average bed day cost (reference costs) | J20: Monitoring via System Resilience Group | K20: 109
A21: Reduction in delayed transfers of care | C21: Enhanced community equipment service | D21: NHS Provider | H21: 0 | K21: 110
A22: Reduction in delayed transfers of care | C22: Frailty and community care | D22: NHS Provider | H22: 0 | K22: 111
A23: Reduction in delayed transfers of care | C23: Enhanced Carers Offer | D23: NHS Provider | H23: 0 | K23: 112
A24: Reduction in delayed transfers of care | C24: Rapid response domiciliary care | D24: NHS Provider | H24: 0 | K24: 113
A25: Reduction in delayed transfers of care | C25: Social Care Reablement | D25: NHS Provider | H25: 0 | K25: 114
A26: Reduction in delayed transfers of care | C26: Single point of co-ordination | D26: NHS Provider | H26: 0 | K26: 115
A27: Reduction in delayed transfers of care | C27: Step up step down beds | D27: NHS Provider | H27: 0 | K27: 116
A28: Reduction in permanent residential admissions | C28: Aggregate benefit of schemes for reducing care home admissions | D28: Local Authority | F28: -1369 | G28: 528 | H28: -722832 | I28: Calculated from average unit cost per week for residential care from PSSEX1 multiplied by numbers of weeks care avoided | J28: Monitoring via System Resilience Group | K28: 117
A29: Reduction in permanent residential admissions | C29: Frailty and community care | D29: Local Authority | H29: 0 | K29: 118
A30: Reduction in permanent residential admissions | C30: Enhanced Carers Offer | D30: Local Authority | H30: 0 | K30: 119
A31: Reduction in permanent residential admissions | C31: Social Care Reablement | D31: Local Authority | H31: 0 | K31: 120
A32: Reduction in permanent residential admissions | C32: Step up step down beds | D32: Local Authority | H32: 0 | K32: 121
A33: Increased effectiveness of reablement | C33: Aggregate benefit of schemes for improving reablement rate | D33: NHS Commissioner | H33: 0 | I33: Improvement already included in reduction in hospital / care home admissions | J33: Monitoring via System Resilience Group | K33: 122
H34: 0 | K34: 123
H35: 0 | K35: 124
H36: 0 | K36: 125
H37: 0 | K37: 126
H38: 0 | K38: 127
H39: 0 | K39: 128
H40: 0 | K40: 129
H41: 0 | K41: 130
H42: 0 | K42: 131
B43: =IF($A43="Other","<Please specify>"," ") ->  | H43: =$F43*$G43 -> 0 | K43: 132
H44: 0 | K44: 133
H45: 0 | K45: 134
H46: 0 | K46: 135
H47: 0 | K47: 136
H48: 0 | K48: 137
H49: 0 | K49: 138
H50: 0 | K50: 139
H51: 0 | K51: 140
H52: 0 | K52: 141
H53: 0 | K53: 142
H54: 0 | K54: 143
H55: 0 | K55: 144
H56: 0 | K56: 145
H57: 0 | K57: 146
H58: 0 | K58: 147
H59: 0 | K59: 148
H60: 0 | K60: 149
H61: 0 | K61: =ROW()+89 -> 150
H62: 0 | K62: 151
H63: 0 | K63: 152
H64: 0 | K64: 153
H65: 0 | K65: 154
H66: 0 | K66: 155
H67: 0 | K67: 156
H68: 0 | K68: 157
H69: 0 | K69: 158
H70: 0 | K70: 159
H71: 0 | K71: 160
H72: 0 | K72: 161
H73: 0 | K73: 162
H74: 0 | K74: 163
H75: =$F75*$G75 -> 0 | K75: 164
H76: 0 | K76: 165
H77: 0 | K77: 166
H78: 0 | K78: 167
H79: 0 | K79: 168
H80: 0 | K80: 169
H81: 0 | K81: 170
H82: 0 | K82: 171
H83: 0 | K83: 172
H84: 0 | K84: 173
H85: 0 | K85: 174
H86: 0 | K86: 175
H87: 0 | K87: 176
H88: 0 | K88: 177
H89: 0 | K89: 178
H90: 0 | K90: 179
H91: 0 | K91: 180
H92: 0 | K92: 181
H93: 0 | K93: =ROW()+89 -> 182
H94: 0 | K94: 183
H95: 0 | K95: 184
H96: 0 | K96: 185
H97: 0 | K97: 186
H98: 0 | K98: 187
H99: 0 | K99: 188
H100: 0 | K100: 189
H101: 0 | K101: 190
H102: 0 | K102: 191
H103: 0 | K103: 192
H104: 0 | K104: 193
H105: 0 | K105: 194
H106: 0 | K106: 195
H107: 0 | K107: 196
H108: 0 | K108: 197
H109: 0 | K109: 198
H110: 0 | K110: 199
A111: Total | H111: =SUM(H11:H110) -> -2575312 | K111: TT1
A114: 2015/16
D116: 2015/16
A117: Benefit achieved from | C117: Scheme Name | D117: Organisation to Benefit | E117: Area of spend to benefit | F117: Change in activity measure | G117: Unit Price (£) | H117: Total (Saving) (£) | I117: How was the saving value calculated? | J117: How will the savings against plan be monitored? | K117: subcode
K118: B01
A119: Reduction in non-elective (general + acute only) | C119: Aggregate benefit of schemes for reducing non-elective admissions | D119: NHS Commissioner | F119: -2761 | G119: 1490 | H119: =$F119*$G119 -> -4113890 | I119: Used national average unit cost | J119: Monitoring via System Resilience Group | K119: 100
A120: Reduction in non-elective (general + acute only) | C120: Enhanced community equipment service | D120: NHS Commissioner | H120: 0 | K120: 101
A121: Reduction in non-elective (general + acute only) | C121: Frailty and community care | D121: NHS Commissioner | H121: 0 | K121: 102
A122: Reduction in non-elective (general + acute only) | C122: SWAST Right Care | D122: NHS Commissioner | H122: 0 | K122: 103
A123: Reduction in non-elective (general + acute only) | C123: Rapid response domiciliary care | D123: NHS Commissioner | H123: 0 | K123: 104
A124: Reduction in non-elective (general + acute only) | C124: Social Care Reablement | D124: NHS Commissioner | H124: 0 | K124: 105
A125: Reduction in non-elective (general + acute only) | C125: Single point of co-ordination | D125: NHS Commissioner | H125: 0 | K125: 106
A126: Reduction in non-elective (general + acute only) | C126: Step up step down care | D126: NHS Commissioner | H126: 0 | K126: 107
A127: Reduction in non-elective (general + acute only) | C127: Enhanced Carers Offer | D127: NHS Commissioner | H127: 0 | K127: 108
A128: Reduction in delayed transfers of care | C128: Aggregate benefit of schemes for reducing delayed transfers of care | D128: NHS Provider | F128: -4634 | G128: 275 | H128: -1274350 | I128: Average bed day cost (reference costs) | J128: Monitoring via System Resilience Group | K128: 109
A129: Reduction in delayed transfers of care | C129: Enhanced community equipment service | D129: NHS Provider | H129: 0 | K129: 110
A130: Reduction in delayed transfers of care | C130: Frailty and community care | D130: NHS Provider | H130: 0 | K130: 111
A131: Reduction in delayed transfers of care | C131: Enhanced Carers Offer | D131: NHS Provider | H131: 0 | K131: 112
A132: Reduction in delayed transfers of care | C132: Rapid response domiciliary care | D132: NHS Provider | H132: 0 | K132: 113
A133: Reduction in delayed transfers of care | C133: Social Care Reablement | D133: NHS Provider | H133: 0 | K133: 114
A134: Reduction in delayed transfers of care | C134: Single point of co-ordination | D134: NHS Provider | H134: 0 | K134: 115
A135: Reduction in delayed transfers of care | C135: Step up step down beds | D135: NHS Provider | H135: 0 | K135: 116
A136: Reduction in permanent residential admissions | C136: Aggregate benefit of schemes for reducing care home admissions | D136: Local Authority | F136: -3274 | G136: 528 | H136: -1728672 | I136: Calculated from average unit cost per week for residential care from PSSEX1 multiplied by numbers of weeks care avoided | J136: Monitoring via System Resilience Group | K136: 117
A137: Reduction in permanent residential admissions | C137: Frailty and community care | D137: Local Authority | H137: 0 | K137: 118
A138: Reduction in permanent residential admissions | C138: Enhanced Carers Offer | D138: Local Authority | H138: 0 | K138: 119
A139: Reduction in permanent residential admissions | C139: Social Care Reablement | D139: Local Authority | H139: 0 | K139: 120
A140: Reduction in permanent residential admissions | C140: Step up step down beds | D140: Local Authority | H140: 0 | K140: 121
A141: Increased effectiveness of reablement | C141: Aggregate benefit of schemes for improving reablement rate | D141: NHS Commissioner | H141: 0 | I141: Improvement already included in reduction in hospital / care home admissions | J141: Monitoring via System Resilience Group | K141: 122
B142: =IF($A142="Other","<Please specify>"," ") ->  | H142: 0 | K142: 123
H143: 0 | K143: 124
H144: 0 | K144: 125
H145: 0 | K145: 126
H146: 0 | K146: 127
H147: 0 | K147: 128
H148: 0 | K148: 129
H149: 0 | K149: 130
H150: 0 | K150: 131
H151: =$F151*$G151 -> 0 | K151: 132
H152: 0 | K152: 133
H153: 0 | K153: 134
H154: 0 | K154: 135
H155: 0 | K155: 136
H156: 0 | K156: 137
B157: =IF($A157="Other","<Please specify>"," ") ->  | H157: 0 | K157: 138
H158: 0 | K158: 139
H159: 0 | K159: 140
H160: 0 | K160: 141
H161: 0 | K161: 142
H162: 0 | K162: 143
H163: 0 | K163: 144
H164: 0 | K164: 145
H165: 0 | K165: 146
H166: 0 | K166: 147
H167: 0 | K167: 148
H168: 0 | K168: 149
H169: 0 | K169: =ROW()-19 -> 150
H170: 0 | K170: 151
H171: 0 | K171: 152
H172: 0 | K172: 153
H173: 0 | K173: 154
H174: 0 | K174: 155
H175: 0 | K175: 156
H176: 0 | K176: 157
H177: 0 | K177: 158
H178: 0 | K178: 159
H179: 0 | K179: 160
H180: 0 | K180: 161
H181: 0 | K181: 162
H182: 0 | K182: 163
H183: =$F183*$G183 -> 0 | K183: 164
H184: 0 | K184: 165
H185: 0 | K185: 166
H186: 0 | K186: 167
H187: 0 | K187: 168
H188: 0 | K188: 169
H189: 0 | K189: 170
H190: 0 | K190: 171
H191: 0 | K191: 172
H192: 0 | K192: 173
H193: 0 | K193: 174
H194: 0 | K194: 175
H195: 0 | K195: 176
H196: 0 | K196: 177
H197: 0 | K197: 178
H198: 0 | K198: 179
H199: 0 | K199: 180
H200: 0 | K200: 181
H201: 0 | K201: =ROW()-19 -> 182
H202: 0 | K202: 183
H203: 0 | K203: 184
H204: 0 | K204: 185
H205: 0 | K205: 186
... 14 more rows

Sheet Intro (hidden)

Sheet 5. HWB P4P metric
A1: ='1. HWB Funding Sources'!A4 -> Devon | I1: Red triangles indicate comments
I2: Planned deterioration on baseline (or validity issue)
A3: Please complete the five white cells in the Non-Elective admissions table. Other white cells can be completed/revised as appropriate. | I3: Planned improvement on baseline of less than 3.5%
I4: Planned improvement on baseline of 3.5% or more
A5: Non - Elective admissions (general and acute)
A6: Metric | C6: Baseline (14-15 figures are CCG plans) | G6: Pay for performance period
C7: Q4 (Jan 14 - Mar 14) | D7: Q1 (Apr 14 - Jun 14) | E7: Q2 (Jul 14 - Sep 14) | F7: Q3 (Oct 14 - Dec 14) | G7: Q4 (Jan 15 - Mar 15) | H7: Q1 (Apr 15 - Jun 15) | I7: Q2 (Jul 15 - Sep 15) | J7: Q3 (Oct 15 - Dec 15) | K7: Q4 (Jan 16 - Mar 16)
M8: Rationale for red/amber ratings
A9: Total non-elective admissions in to hospital (general & acute), all-age, per 100,000 population | B9: Quarterly rate | C9: =C10/C11*100000 -> 2580.363447 | D9: 2544.970944 | E9: 2607.993282 | F9: 2641.938508 | G9: 2476.671459 | H9: 2442.776722 | I9: 2503.237605 | J9: 2535.823665 | K9: 2462.728151
B10: Numerator | C10: =ROUND(I41,0) -> 19612 | D10: =ROUND(J41,0) -> 19343 | E10: 19822 | F10: 20080 | G10: 18925 | H10: 18666 | I10: 19128 | J10: 19377 | K10: 18925
B11: Denominator | C11: =VLOOKUP($A$1,Data!$CM$5:$FK$156,75,0) -> 760047.97 | D11: =VLOOKUP($A$1,Data!$CM$5:$FK$156,75,0) -> 760047.97 | E11: =VLOOKUP($A$1,Data!$CM$5:$FK$156,75,0) -> 760047.97 | F11: =VLOOKUP($A$1,Data!$CM$5:$FK$156,75,0) -> 760047.97 | G11: =VLOOKUP($A$1,Data!$CM$5:$FK$156,76,0) -> 764130.419 | H11: =VLOOKUP($A$1,Data!$CM$5:$FK$156,76,0) -> 764130.419 | I11: =VLOOKUP($A$1,Data!$CM$5:$FK$156,76,0) -> 764130.419 | J11: =VLOOKUP($A$1,Data!$CM$5:$FK$156,76,0) -> 764130.419 | K11: =VLOOKUP($A$1,Data!$CM$5:$FK$156,77,0) -> 768456.721
F12: P4P annual change in admissions | H12: =IF(SUM(G10:J10)=0,0,SUM(G10:J10)-SUM(C10:F10)) -> -2761
F13: P4P annual change in admissions (%) | H13: =IF(OR(G10<0,H10<0,I10<0,J10<0),"",IF(OR(ISTEXT(G10),ISTEXT(H10),ISTEXT(I10),ISTEXT(J10)),"",IF(SUM(G10:J10)=0,"",(SUM(G10:J10)/SUM(C10:F10))-1))) -> -0.03501274459 | I13: Please enter the average cost of a non-elective admission1 | K13: Rationale for change from £1,490
F14: P4P annual saving | H14: =IF(H13="","",-H12*J14) -> 4113890 | J14: 1490
A17: The figures above are mapped from the following CCG operational plans. If any CCG plans are updated then the white cells can be revised:
A18: Contributing CCGs | C18: CCG baseline activity (14-15 figures are CCG plans) | G18: ="% CCG registered population that has resident population in "& A1 -> % CCG registered population that has resident population in Devon | H18: ="% "&A1&" resident population that is in CCG registered population" -> % Devon resident population that is in CCG registered population | I18: Contributing CCG activity
C19: Q4 (Jan 14 - Mar 14) | D19: Q1 (Apr 14 - Jun 14) | E19: Q2 (Jul 14 - Sep 14) | F19: Q3 (Oct 14 - Dec 14) | I19: Q4 (Jan 14 - Mar 14) | J19: Q1 (Apr 14 - Jun 14) | K19: Q2 (Jul 14 - Sep 14) | L19: Q3 (Oct 14 - Dec 14)
A20: =IF(ISERROR(VLOOKUP($A$1&$M20,'9.Non-elective admissions - Map'!$F$5:$U$899,2,0)),"",VLOOKUP($A$1&$M20,'9.Non-elective admissions - Map'!$F$5:$U$899,2,0)) -> NHS Dorset CCG | C20: =IF(ISERROR(VLOOKUP($A20,'8.Non-elective admissions - CCG'!$E$5:$Q$216,5,0)),"",VLOOKUP($A20,'8.Non-elective admissions - CCG'!$E$5:$Q$216,5,0)) -> 21156 | D20: =IF(ISERROR(VLOOKUP($A20,'8.Non-elective admissions - CCG'!$E$5:$Q$216,6,0)),"",VLOOKUP($A20,'8.Non-elective admissions - CCG'!$E$5:$Q$216,6,0)) -> 19263 | E20: =IF(ISERROR(VLOOKUP($A20,'8.Non-elective admissions - CCG'!$E$5:$Q$216,7,0)),"",VLOOKUP($A20,'8.Non-elective admissions - CCG'!$E$5:$Q$216,7,0)) -> 19576 | F20: =IF(ISERROR(VLOOKUP($A20,'8.Non-elective admissions - CCG'!$E$5:$Q$216,8,0)),"",VLOOKUP($A20,'8.Non-elective admissions - CCG'!$E$5:$Q$216,8,0)) -> 20281 | G20: =IF(ISERROR(VLOOKUP($A$1&M20,'9.Non-elective admissions - Map'!$F$5:$U$899,3,0)),"",VLOOKUP($A$1&M20,'9.Non-elective admissions - Map'!$F$5:$U$899,3,0)) -> 0.00322124894 | H20: =IF(ISERROR(VLOOKUP($A$1&M20,'9.Non-elective admissions - Map'!$F$5:$U$899,4,0)),"",VLOOKUP($A$1&M20,'9.Non-elective admissions - Map'!$F$5:$U$899,4,0)) -> 0.003188936881 | I20: =IF($G20="","",C20*$G20) -> 68.14874258 | J20: 62.05091834 | K20: 63.05916926 | L20: 65.33014976 | M20: 1
A21: =IF(ISERROR(VLOOKUP($A$1&$M21,'9.Non-elective admissions - Map'!$F$5:$U$899,2,0)),"",VLOOKUP($A$1&$M21,'9.Non-elective admissions - Map'!$F$5:$U$899,2,0)) -> NHS Kernow CCG | C21: =IF(ISERROR(VLOOKUP($A21,'8.Non-elective admissions - CCG'!$E$5:$Q$216,5,0)),"",VLOOKUP($A21,'8.Non-elective admissions - CCG'!$E$5:$Q$216,5,0)) -> 13647 | D21: =IF(ISERROR(VLOOKUP($A21,'8.Non-elective admissions - CCG'!$E$5:$Q$216,6,0)),"",VLOOKUP($A21,'8.Non-elective admissions - CCG'!$E$5:$Q$216,6,0)) -> 11490 | E21: =IF(ISERROR(VLOOKUP($A21,'8.Non-elective admissions - CCG'!$E$5:$Q$216,7,0)),"",VLOOKUP($A21,'8.Non-elective admissions - CCG'!$E$5:$Q$216,7,0)) -> 11434 | F21: =IF(ISERROR(VLOOKUP($A21,'8.Non-elective admissions - CCG'!$E$5:$Q$216,8,0)),"",VLOOKUP($A21,'8.Non-elective admissions - CCG'!$E$5:$Q$216,8,0)) -> 11976 | G21: =IF(ISERROR(VLOOKUP($A$1&M21,'9.Non-elective admissions - Map'!$F$5:$U$899,3,0)),"",VLOOKUP($A$1&M21,'9.Non-elective admissions - Map'!$F$5:$U$899,3,0)) -> 0.002734886901 | H21: =IF(ISERROR(VLOOKUP($A$1&M21,'9.Non-elective admissions - Map'!$F$5:$U$899,4,0)),"",VLOOKUP($A$1&M21,'9.Non-elective admissions - Map'!$F$5:$U$899,4,0)) -> 0.001953033114 | I21: 37.32300154 | J21: 31.42385049 | K21: 31.27069683 | L21: 32.75300553 | M21: 2
A22: =IF(ISERROR(VLOOKUP($A$1&$M22,'9.Non-elective admissions - Map'!$F$5:$U$899,2,0)),"",VLOOKUP($A$1&$M22,'9.Non-elective admissions - Map'!$F$5:$U$899,2,0)) -> NHS North, East, West Devon CCG | C22: 23004 | D22: =IF(ISERROR(VLOOKUP($A22,'8.Non-elective admissions - CCG'!$E$5:$Q$216,6,0)),"",VLOOKUP($A22,'8.Non-elective admissions - CCG'!$E$5:$Q$216,6,0)) -> 21324 | E22: =IF(ISERROR(VLOOKUP($A22,'8.Non-elective admissions - CCG'!$E$5:$Q$216,7,0)),"",VLOOKUP($A22,'8.Non-elective admissions - CCG'!$E$5:$Q$216,7,0)) -> 21891 | F22: =IF(ISERROR(VLOOKUP($A22,'8.Non-elective admissions - CCG'!$E$5:$Q$216,8,0)),"",VLOOKUP($A22,'8.Non-elective admissions - CCG'!$E$5:$Q$216,8,0)) -> 21985 | G22: =IF(ISERROR(VLOOKUP($A$1&M22,'9.Non-elective admissions - Map'!$F$5:$U$899,3,0)),"",VLOOKUP($A$1&M22,'9.Non-elective admissions - Map'!$F$5:$U$899,3,0)) -> 0.6983742474 | H22: =IF(ISERROR(VLOOKUP($A$1&M22,'9.Non-elective admissions - Map'!$F$5:$U$899,4,0)),"",VLOOKUP($A$1&M22,'9.Non-elective admissions - Map'!$F$5:$U$899,4,0)) -> 0.8049904065 | I22: 16065.40119 | J22: 14892.13245 | K22: 15288.11065 | L22: 15353.75783 | M22: 3
A23: =IF(ISERROR(VLOOKUP($A$1&$M23,'9.Non-elective admissions - Map'!$F$5:$U$899,2,0)),"",VLOOKUP($A$1&$M23,'9.Non-elective admissions - Map'!$F$5:$U$899,2,0)) -> NHS Somerset CCG | C23: =IF(ISERROR(VLOOKUP($A23,'8.Non-elective admissions - CCG'!$E$5:$Q$216,5,0)),"",VLOOKUP($A23,'8.Non-elective admissions - CCG'!$E$5:$Q$216,5,0)) -> 14655 | D23: =IF(ISERROR(VLOOKUP($A23,'8.Non-elective admissions - CCG'!$E$5:$Q$216,6,0)),"",VLOOKUP($A23,'8.Non-elective admissions - CCG'!$E$5:$Q$216,6,0)) -> 16641 | E23: =IF(ISERROR(VLOOKUP($A23,'8.Non-elective admissions - CCG'!$E$5:$Q$216,7,0)),"",VLOOKUP($A23,'8.Non-elective admissions - CCG'!$E$5:$Q$216,7,0)) -> 16654 | F23: =IF(ISERROR(VLOOKUP($A23,'8.Non-elective admissions - CCG'!$E$5:$Q$216,8,0)),"",VLOOKUP($A23,'8.Non-elective admissions - CCG'!$E$5:$Q$216,8,0)) -> 17370 | G23: =IF(ISERROR(VLOOKUP($A$1&M23,'9.Non-elective admissions - Map'!$F$5:$U$899,3,0)),"",VLOOKUP($A$1&M23,'9.Non-elective admissions - Map'!$F$5:$U$899,3,0)) -> 0.004149227557 | H23: =IF(ISERROR(VLOOKUP($A$1&M23,'9.Non-elective admissions - Map'!$F$5:$U$899,4,0)),"",VLOOKUP($A$1&M23,'9.Non-elective admissions - Map'!$F$5:$U$899,4,0)) -> 0.002918106117 | I23: 60.80692984 | J23: 69.04729577 | K23: 69.10123573 | L23: 72.07208266 | M23: 4
A24: =IF(ISERROR(VLOOKUP($A$1&$M24,'9.Non-elective admissions - Map'!$F$5:$U$899,2,0)),"",VLOOKUP($A$1&$M24,'9.Non-elective admissions - Map'!$F$5:$U$899,2,0)) -> NHS South Devon and Torbay CCG | C24: 6627 | D24: =IF(ISERROR(VLOOKUP($A24,'8.Non-elective admissions - CCG'!$E$5:$Q$216,6,0)),"",VLOOKUP($A24,'8.Non-elective admissions - CCG'!$E$5:$Q$216,6,0)) -> 8406 | E24: =IF(ISERROR(VLOOKUP($A24,'8.Non-elective admissions - CCG'!$E$5:$Q$216,7,0)),"",VLOOKUP($A24,'8.Non-elective admissions - CCG'!$E$5:$Q$216,7,0)) -> 8567 | F24: =IF(ISERROR(VLOOKUP($A24,'8.Non-elective admissions - CCG'!$E$5:$Q$216,8,0)),"",VLOOKUP($A24,'8.Non-elective admissions - CCG'!$E$5:$Q$216,8,0)) -> 8932 | G24: =IF(ISERROR(VLOOKUP($A$1&M24,'9.Non-elective admissions - Map'!$F$5:$U$899,3,0)),"",VLOOKUP($A$1&M24,'9.Non-elective admissions - Map'!$F$5:$U$899,3,0)) -> 0.5101240702 | H24: =IF(ISERROR(VLOOKUP($A$1&M24,'9.Non-elective admissions - Map'!$F$5:$U$899,4,0)),"",VLOOKUP($A$1&M24,'9.Non-elective admissions - Map'!$F$5:$U$899,4,0)) -> 0.1869495174 | I24: 3380.592213 | J24: =IF($G24="","",D24*$G24) -> 4288.102934 | K24: =IF($G24="","",E24*$G24) -> 4370.232909 | L24: =IF($G24="","",F24*$G24) -> 4556.428195 | M24: 5
A25: =IF(ISERROR(VLOOKUP($A$1&$M25,'9.Non-elective admissions - Map'!$F$5:$U$899,2,0)),"",VLOOKUP($A$1&$M25,'9.Non-elective admissions - Map'!$F$5:$U$899,2,0)) ->  | C25: =IF(ISERROR(VLOOKUP($A25,'8.Non-elective admissions - CCG'!$E$5:$Q$216,5,0)),"",VLOOKUP($A25,'8.Non-elective admissions - CCG'!$E$5:$Q$216,5,0)) ->  | D25: =IF(ISERROR(VLOOKUP($A25,'8.Non-elective admissions - CCG'!$E$5:$Q$216,6,0)),"",VLOOKUP($A25,'8.Non-elective admissions - CCG'!$E$5:$Q$216,6,0)) ->  | E25: =IF(ISERROR(VLOOKUP($A25,'8.Non-elective admissions - CCG'!$E$5:$Q$216,7,0)),"",VLOOKUP($A25,'8.Non-elective admissions - CCG'!$E$5:$Q$216,7,0)) ->  | F25: =IF(ISERROR(VLOOKUP($A25,'8.Non-elective admissions - CCG'!$E$5:$Q$216,8,0)),"",VLOOKUP($A25,'8.Non-elective admissions - CCG'!$E$5:$Q$216,8,0)) ->  | G25: =IF(ISERROR(VLOOKUP($A$1&M25,'9.Non-elective admissions - Map'!$F$5:$U$899,3,0)),"",VLOOKUP($A$1&M25,'9.Non-elective admissions - Map'!$F$5:$U$899,3,0)) ->  | H25: =IF(ISERROR(VLOOKUP($A$1&M25,'9.Non-elective admissions - Map'!$F$5:$U$899,4,0)),"",VLOOKUP($A$1&M25,'9.Non-elective admissions - Map'!$F$5:$U$899,4,0)) ->  | M25: 6
A26: =IF(ISERROR(VLOOKUP($A$1&$M26,'9.Non-elective admissions - Map'!$F$5:$U$899,2,0)),"",VLOOKUP($A$1&$M26,'9.Non-elective admissions - Map'!$F$5:$U$899,2,0)) ->  | C26: =IF(ISERROR(VLOOKUP($A26,'8.Non-elective admissions - CCG'!$E$5:$Q$216,5,0)),"",VLOOKUP($A26,'8.Non-elective admissions - CCG'!$E$5:$Q$216,5,0)) ->  | D26: =IF(ISERROR(VLOOKUP($A26,'8.Non-elective admissions - CCG'!$E$5:$Q$216,6,0)),"",VLOOKUP($A26,'8.Non-elective admissions - CCG'!$E$5:$Q$216,6,0)) ->  | E26: =IF(ISERROR(VLOOKUP($A26,'8.Non-elective admissions - CCG'!$E$5:$Q$216,7,0)),"",VLOOKUP($A26,'8.Non-elective admissions - CCG'!$E$5:$Q$216,7,0)) ->  | F26: =IF(ISERROR(VLOOKUP($A26,'8.Non-elective admissions - CCG'!$E$5:$Q$216,8,0)),"",VLOOKUP($A26,'8.Non-elective admissions - CCG'!$E$5:$Q$216,8,0)) ->  | G26: =IF(ISERROR(VLOOKUP($A$1&M26,'9.Non-elective admissions - Map'!$F$5:$U$899,3,0)),"",VLOOKUP($A$1&M26,'9.Non-elective admissions - Map'!$F$5:$U$899,3,0)) ->  | H26: =IF(ISERROR(VLOOKUP($A$1&M26,'9.Non-elective admissions - Map'!$F$5:$U$899,4,0)),"",VLOOKUP($A$1&M26,'9.Non-elective admissions - Map'!$F$5:$U$899,4,0)) ->  | M26: 7
A27: =IF(ISERROR(VLOOKUP($A$1&$M27,'9.Non-elective admissions - Map'!$F$5:$U$899,2,0)),"",VLOOKUP($A$1&$M27,'9.Non-elective admissions - Map'!$F$5:$U$899,2,0)) ->  | C27: =IF(ISERROR(VLOOKUP($A27,'8.Non-elective admissions - CCG'!$E$5:$Q$216,5,0)),"",VLOOKUP($A27,'8.Non-elective admissions - CCG'!$E$5:$Q$216,5,0)) ->  | D27: =IF(ISERROR(VLOOKUP($A27,'8.Non-elective admissions - CCG'!$E$5:$Q$216,6,0)),"",VLOOKUP($A27,'8.Non-elective admissions - CCG'!$E$5:$Q$216,6,0)) ->  | E27: =IF(ISERROR(VLOOKUP($A27,'8.Non-elective admissions - CCG'!$E$5:$Q$216,7,0)),"",VLOOKUP($A27,'8.Non-elective admissions - CCG'!$E$5:$Q$216,7,0)) ->  | F27: =IF(ISERROR(VLOOKUP($A27,'8.Non-elective admissions - CCG'!$E$5:$Q$216,8,0)),"",VLOOKUP($A27,'8.Non-elective admissions - CCG'!$E$5:$Q$216,8,0)) ->  | G27: =IF(ISERROR(VLOOKUP($A$1&M27,'9.Non-elective admissions - Map'!$F$5:$U$899,3,0)),"",VLOOKUP($A$1&M27,'9.Non-elective admissions - Map'!$F$5:$U$899,3,0)) ->  | H27: =IF(ISERROR(VLOOKUP($A$1&M27,'9.Non-elective admissions - Map'!$F$5:$U$899,4,0)),"",VLOOKUP($A$1&M27,'9.Non-elective admissions - Map'!$F$5:$U$899,4,0)) ->  | M27: 8
A28: =IF(ISERROR(VLOOKUP($A$1&$M28,'9.Non-elective admissions - Map'!$F$5:$U$899,2,0)),"",VLOOKUP($A$1&$M28,'9.Non-elective admissions - Map'!$F$5:$U$899,2,0)) ->  | C28: =IF(ISERROR(VLOOKUP($A28,'8.Non-elective admissions - CCG'!$E$5:$Q$216,5,0)),"",VLOOKUP($A28,'8.Non-elective admissions - CCG'!$E$5:$Q$216,5,0)) ->  | D28: =IF(ISERROR(VLOOKUP($A28,'8.Non-elective admissions - CCG'!$E$5:$Q$216,6,0)),"",VLOOKUP($A28,'8.Non-elective admissions - CCG'!$E$5:$Q$216,6,0)) ->  | E28: =IF(ISERROR(VLOOKUP($A28,'8.Non-elective admissions - CCG'!$E$5:$Q$216,7,0)),"",VLOOKUP($A28,'8.Non-elective admissions - CCG'!$E$5:$Q$216,7,0)) ->  | F28: =IF(ISERROR(VLOOKUP($A28,'8.Non-elective admissions - CCG'!$E$5:$Q$216,8,0)),"",VLOOKUP($A28,'8.Non-elective admissions - CCG'!$E$5:$Q$216,8,0)) ->  | G28: =IF(ISERROR(VLOOKUP($A$1&M28,'9.Non-elective admissions - Map'!$F$5:$U$899,3,0)),"",VLOOKUP($A$1&M28,'9.Non-elective admissions - Map'!$F$5:$U$899,3,0)) ->  | H28: =IF(ISERROR(VLOOKUP($A$1&M28,'9.Non-elective admissions - Map'!$F$5:$U$899,4,0)),"",VLOOKUP($A$1&M28,'9.Non-elective admissions - Map'!$F$5:$U$899,4,0)) ->  | M28: 9
A29: =IF(ISERROR(VLOOKUP($A$1&$M29,'9.Non-elective admissions - Map'!$F$5:$U$899,2,0)),"",VLOOKUP($A$1&$M29,'9.Non-elective admissions - Map'!$F$5:$U$899,2,0)) ->  | C29: =IF(ISERROR(VLOOKUP($A29,'8.Non-elective admissions - CCG'!$E$5:$Q$216,5,0)),"",VLOOKUP($A29,'8.Non-elective admissions - CCG'!$E$5:$Q$216,5,0)) ->  | D29: =IF(ISERROR(VLOOKUP($A29,'8.Non-elective admissions - CCG'!$E$5:$Q$216,6,0)),"",VLOOKUP($A29,'8.Non-elective admissions - CCG'!$E$5:$Q$216,6,0)) ->  | E29: =IF(ISERROR(VLOOKUP($A29,'8.Non-elective admissions - CCG'!$E$5:$Q$216,7,0)),"",VLOOKUP($A29,'8.Non-elective admissions - CCG'!$E$5:$Q$216,7,0)) ->  | F29: =IF(ISERROR(VLOOKUP($A29,'8.Non-elective admissions - CCG'!$E$5:$Q$216,8,0)),"",VLOOKUP($A29,'8.Non-elective admissions - CCG'!$E$5:$Q$216,8,0)) ->  | G29: =IF(ISERROR(VLOOKUP($A$1&M29,'9.Non-elective admissions - Map'!$F$5:$U$899,3,0)),"",VLOOKUP($A$1&M29,'9.Non-elective admissions - Map'!$F$5:$U$899,3,0)) ->  | H29: =IF(ISERROR(VLOOKUP($A$1&M29,'9.Non-elective admissions - Map'!$F$5:$U$899,4,0)),"",VLOOKUP($A$1&M29,'9.Non-elective admissions - Map'!$F$5:$U$899,4,0)) ->  | M29: 10
A30: =IF(ISERROR(VLOOKUP($A$1&$M30,'9.Non-elective admissions - Map'!$F$5:$U$899,2,0)),"",VLOOKUP($A$1&$M30,'9.Non-elective admissions - Map'!$F$5:$U$899,2,0)) ->  | C30: =IF(ISERROR(VLOOKUP($A30,'8.Non-elective admissions - CCG'!$E$5:$Q$216,5,0)),"",VLOOKUP($A30,'8.Non-elective admissions - CCG'!$E$5:$Q$216,5,0)) ->  | D30: =IF(ISERROR(VLOOKUP($A30,'8.Non-elective admissions - CCG'!$E$5:$Q$216,6,0)),"",VLOOKUP($A30,'8.Non-elective admissions - CCG'!$E$5:$Q$216,6,0)) ->  | E30: =IF(ISERROR(VLOOKUP($A30,'8.Non-elective admissions - CCG'!$E$5:$Q$216,7,0)),"",VLOOKUP($A30,'8.Non-elective admissions - CCG'!$E$5:$Q$216,7,0)) ->  | F30: =IF(ISERROR(VLOOKUP($A30,'8.Non-elective admissions - CCG'!$E$5:$Q$216,8,0)),"",VLOOKUP($A30,'8.Non-elective admissions - CCG'!$E$5:$Q$216,8,0)) ->  | G30: =IF(ISERROR(VLOOKUP($A$1&M30,'9.Non-elective admissions - Map'!$F$5:$U$899,3,0)),"",VLOOKUP($A$1&M30,'9.Non-elective admissions - Map'!$F$5:$U$899,3,0)) ->  | H30: =IF(ISERROR(VLOOKUP($A$1&M30,'9.Non-elective admissions - Map'!$F$5:$U$899,4,0)),"",VLOOKUP($A$1&M30,'9.Non-elective admissions - Map'!$F$5:$U$899,4,0)) ->  | M30: 11
A31: =IF(ISERROR(VLOOKUP($A$1&$M31,'9.Non-elective admissions - Map'!$F$5:$U$899,2,0)),"",VLOOKUP($A$1&$M31,'9.Non-elective admissions - Map'!$F$5:$U$899,2,0)) ->  | C31: =IF(ISERROR(VLOOKUP($A31,'8.Non-elective admissions - CCG'!$E$5:$Q$216,5,0)),"",VLOOKUP($A31,'8.Non-elective admissions - CCG'!$E$5:$Q$216,5,0)) ->  | D31: =IF(ISERROR(VLOOKUP($A31,'8.Non-elective admissions - CCG'!$E$5:$Q$216,6,0)),"",VLOOKUP($A31,'8.Non-elective admissions - CCG'!$E$5:$Q$216,6,0)) ->  | E31: =IF(ISERROR(VLOOKUP($A31,'8.Non-elective admissions - CCG'!$E$5:$Q$216,7,0)),"",VLOOKUP($A31,'8.Non-elective admissions - CCG'!$E$5:$Q$216,7,0)) ->  | F31: =IF(ISERROR(VLOOKUP($A31,'8.Non-elective admissions - CCG'!$E$5:$Q$216,8,0)),"",VLOOKUP($A31,'8.Non-elective admissions - CCG'!$E$5:$Q$216,8,0)) ->  | G31: =IF(ISERROR(VLOOKUP($A$1&M31,'9.Non-elective admissions - Map'!$F$5:$U$899,3,0)),"",VLOOKUP($A$1&M31,'9.Non-elective admissions - Map'!$F$5:$U$899,3,0)) ->  | H31: =IF(ISERROR(VLOOKUP($A$1&M31,'9.Non-elective admissions - Map'!$F$5:$U$899,4,0)),"",VLOOKUP($A$1&M31,'9.Non-elective admissions - Map'!$F$5:$U$899,4,0)) ->  | M31: 12
A32: =IF(ISERROR(VLOOKUP($A$1&$M32,'9.Non-elective admissions - Map'!$F$5:$U$899,2,0)),"",VLOOKUP($A$1&$M32,'9.Non-elective admissions - Map'!$F$5:$U$899,2,0)) ->  | C32: =IF(ISERROR(VLOOKUP($A32,'8.Non-elective admissions - CCG'!$E$5:$Q$216,5,0)),"",VLOOKUP($A32,'8.Non-elective admissions - CCG'!$E$5:$Q$216,5,0)) ->  | D32: =IF(ISERROR(VLOOKUP($A32,'8.Non-elective admissions - CCG'!$E$5:$Q$216,6,0)),"",VLOOKUP($A32,'8.Non-elective admissions - CCG'!$E$5:$Q$216,6,0)) ->  | E32: =IF(ISERROR(VLOOKUP($A32,'8.Non-elective admissions - CCG'!$E$5:$Q$216,7,0)),"",VLOOKUP($A32,'8.Non-elective admissions - CCG'!$E$5:$Q$216,7,0)) ->  | F32: =IF(ISERROR(VLOOKUP($A32,'8.Non-elective admissions - CCG'!$E$5:$Q$216,8,0)),"",VLOOKUP($A32,'8.Non-elective admissions - CCG'!$E$5:$Q$216,8,0)) ->  | G32: =IF(ISERROR(VLOOKUP($A$1&M32,'9.Non-elective admissions - Map'!$F$5:$U$899,3,0)),"",VLOOKUP($A$1&M32,'9.Non-elective admissions - Map'!$F$5:$U$899,3,0)) ->  | H32: =IF(ISERROR(VLOOKUP($A$1&M32,'9.Non-elective admissions - Map'!$F$5:$U$899,4,0)),"",VLOOKUP($A$1&M32,'9.Non-elective admissions - Map'!$F$5:$U$899,4,0)) ->  | M32: 13
A33: =IF(ISERROR(VLOOKUP($A$1&$M33,'9.Non-elective admissions - Map'!$F$5:$U$899,2,0)),"",VLOOKUP($A$1&$M33,'9.Non-elective admissions - Map'!$F$5:$U$899,2,0)) ->  | C33: =IF(ISERROR(VLOOKUP($A33,'8.Non-elective admissions - CCG'!$E$5:$Q$216,5,0)),"",VLOOKUP($A33,'8.Non-elective admissions - CCG'!$E$5:$Q$216,5,0)) ->  | D33: =IF(ISERROR(VLOOKUP($A33,'8.Non-elective admissions - CCG'!$E$5:$Q$216,6,0)),"",VLOOKUP($A33,'8.Non-elective admissions - CCG'!$E$5:$Q$216,6,0)) ->  | E33: =IF(ISERROR(VLOOKUP($A33,'8.Non-elective admissions - CCG'!$E$5:$Q$216,7,0)),"",VLOOKUP($A33,'8.Non-elective admissions - CCG'!$E$5:$Q$216,7,0)) ->  | F33: =IF(ISERROR(VLOOKUP($A33,'8.Non-elective admissions - CCG'!$E$5:$Q$216,8,0)),"",VLOOKUP($A33,'8.Non-elective admissions - CCG'!$E$5:$Q$216,8,0)) ->  | G33: =IF(ISERROR(VLOOKUP($A$1&M33,'9.Non-elective admissions - Map'!$F$5:$U$899,3,0)),"",VLOOKUP($A$1&M33,'9.Non-elective admissions - Map'!$F$5:$U$899,3,0)) ->  | H33: =IF(ISERROR(VLOOKUP($A$1&M33,'9.Non-elective admissions - Map'!$F$5:$U$899,4,0)),"",VLOOKUP($A$1&M33,'9.Non-elective admissions - Map'!$F$5:$U$899,4,0)) ->  | M33: 14
A34: =IF(ISERROR(VLOOKUP($A$1&$M34,'9.Non-elective admissions - Map'!$F$5:$U$899,2,0)),"",VLOOKUP($A$1&$M34,'9.Non-elective admissions - Map'!$F$5:$U$899,2,0)) ->  | C34: =IF(ISERROR(VLOOKUP($A34,'8.Non-elective admissions - CCG'!$E$5:$Q$216,5,0)),"",VLOOKUP($A34,'8.Non-elective admissions - CCG'!$E$5:$Q$216,5,0)) ->  | D34: =IF(ISERROR(VLOOKUP($A34,'8.Non-elective admissions - CCG'!$E$5:$Q$216,6,0)),"",VLOOKUP($A34,'8.Non-elective admissions - CCG'!$E$5:$Q$216,6,0)) ->  | E34: =IF(ISERROR(VLOOKUP($A34,'8.Non-elective admissions - CCG'!$E$5:$Q$216,7,0)),"",VLOOKUP($A34,'8.Non-elective admissions - CCG'!$E$5:$Q$216,7,0)) ->  | F34: =IF(ISERROR(VLOOKUP($A34,'8.Non-elective admissions - CCG'!$E$5:$Q$216,8,0)),"",VLOOKUP($A34,'8.Non-elective admissions - CCG'!$E$5:$Q$216,8,0)) ->  | G34: =IF(ISERROR(VLOOKUP($A$1&M34,'9.Non-elective admissions - Map'!$F$5:$U$899,3,0)),"",VLOOKUP($A$1&M34,'9.Non-elective admissions - Map'!$F$5:$U$899,3,0)) ->  | H34: =IF(ISERROR(VLOOKUP($A$1&M34,'9.Non-elective admissions - Map'!$F$5:$U$899,4,0)),"",VLOOKUP($A$1&M34,'9.Non-elective admissions - Map'!$F$5:$U$899,4,0)) ->  | M34: 15
A35: =IF(ISERROR(VLOOKUP($A$1&$M35,'9.Non-elective admissions - Map'!$F$5:$U$899,2,0)),"",VLOOKUP($A$1&$M35,'9.Non-elective admissions - Map'!$F$5:$U$899,2,0)) ->  | C35: =IF(ISERROR(VLOOKUP($A35,'8.Non-elective admissions - CCG'!$E$5:$Q$216,5,0)),"",VLOOKUP($A35,'8.Non-elective admissions - CCG'!$E$5:$Q$216,5,0)) ->  | D35: =IF(ISERROR(VLOOKUP($A35,'8.Non-elective admissions - CCG'!$E$5:$Q$216,6,0)),"",VLOOKUP($A35,'8.Non-elective admissions - CCG'!$E$5:$Q$216,6,0)) ->  | E35: =IF(ISERROR(VLOOKUP($A35,'8.Non-elective admissions - CCG'!$E$5:$Q$216,7,0)),"",VLOOKUP($A35,'8.Non-elective admissions - CCG'!$E$5:$Q$216,7,0)) ->  | F35: =IF(ISERROR(VLOOKUP($A35,'8.Non-elective admissions - CCG'!$E$5:$Q$216,8,0)),"",VLOOKUP($A35,'8.Non-elective admissions - CCG'!$E$5:$Q$216,8,0)) ->  | G35: =IF(ISERROR(VLOOKUP($A$1&M35,'9.Non-elective admissions - Map'!$F$5:$U$899,3,0)),"",VLOOKUP($A$1&M35,'9.Non-elective admissions - Map'!$F$5:$U$899,3,0)) ->  | H35: =IF(ISERROR(VLOOKUP($A$1&M35,'9.Non-elective admissions - Map'!$F$5:$U$899,4,0)),"",VLOOKUP($A$1&M35,'9.Non-elective admissions - Map'!$F$5:$U$899,4,0)) ->  | M35: 16
A36: =IF(ISERROR(VLOOKUP($A$1&$M36,'9.Non-elective admissions - Map'!$F$5:$U$899,2,0)),"",VLOOKUP($A$1&$M36,'9.Non-elective admissions - Map'!$F$5:$U$899,2,0)) ->  | C36: =IF(ISERROR(VLOOKUP($A36,'8.Non-elective admissions - CCG'!$E$5:$Q$216,5,0)),"",VLOOKUP($A36,'8.Non-elective admissions - CCG'!$E$5:$Q$216,5,0)) ->  | D36: =IF(ISERROR(VLOOKUP($A36,'8.Non-elective admissions - CCG'!$E$5:$Q$216,6,0)),"",VLOOKUP($A36,'8.Non-elective admissions - CCG'!$E$5:$Q$216,6,0)) ->  | E36: =IF(ISERROR(VLOOKUP($A36,'8.Non-elective admissions - CCG'!$E$5:$Q$216,7,0)),"",VLOOKUP($A36,'8.Non-elective admissions - CCG'!$E$5:$Q$216,7,0)) ->  | F36: =IF(ISERROR(VLOOKUP($A36,'8.Non-elective admissions - CCG'!$E$5:$Q$216,8,0)),"",VLOOKUP($A36,'8.Non-elective admissions - CCG'!$E$5:$Q$216,8,0)) ->  | G36: =IF(ISERROR(VLOOKUP($A$1&M36,'9.Non-elective admissions - Map'!$F$5:$U$899,3,0)),"",VLOOKUP($A$1&M36,'9.Non-elective admissions - Map'!$F$5:$U$899,3,0)) ->  | H36: =IF(ISERROR(VLOOKUP($A$1&M36,'9.Non-elective admissions - Map'!$F$5:$U$899,4,0)),"",VLOOKUP($A$1&M36,'9.Non-elective admissions - Map'!$F$5:$U$899,4,0)) ->  | I36: =IF($G36="","",C36*$G36) ->  | M36: 17
A37: =IF(ISERROR(VLOOKUP($A$1&$M37,'9.Non-elective admissions - Map'!$F$5:$U$899,2,0)),"",VLOOKUP($A$1&$M37,'9.Non-elective admissions - Map'!$F$5:$U$899,2,0)) ->  | C37: =IF(ISERROR(VLOOKUP($A37,'8.Non-elective admissions - CCG'!$E$5:$Q$216,5,0)),"",VLOOKUP($A37,'8.Non-elective admissions - CCG'!$E$5:$Q$216,5,0)) ->  | D37: =IF(ISERROR(VLOOKUP($A37,'8.Non-elective admissions - CCG'!$E$5:$Q$216,6,0)),"",VLOOKUP($A37,'8.Non-elective admissions - CCG'!$E$5:$Q$216,6,0)) ->  | E37: =IF(ISERROR(VLOOKUP($A37,'8.Non-elective admissions - CCG'!$E$5:$Q$216,7,0)),"",VLOOKUP($A37,'8.Non-elective admissions - CCG'!$E$5:$Q$216,7,0)) ->  | F37: =IF(ISERROR(VLOOKUP($A37,'8.Non-elective admissions - CCG'!$E$5:$Q$216,8,0)),"",VLOOKUP($A37,'8.Non-elective admissions - CCG'!$E$5:$Q$216,8,0)) ->  | G37: =IF(ISERROR(VLOOKUP($A$1&M37,'9.Non-elective admissions - Map'!$F$5:$U$899,3,0)),"",VLOOKUP($A$1&M37,'9.Non-elective admissions - Map'!$F$5:$U$899,3,0)) ->  | H37: =IF(ISERROR(VLOOKUP($A$1&M37,'9.Non-elective admissions - Map'!$F$5:$U$899,4,0)),"",VLOOKUP($A$1&M37,'9.Non-elective admissions - Map'!$F$5:$U$899,4,0)) ->  | M37: 18
A38: =IF(ISERROR(VLOOKUP($A$1&$M38,'9.Non-elective admissions - Map'!$F$5:$U$899,2,0)),"",VLOOKUP($A$1&$M38,'9.Non-elective admissions - Map'!$F$5:$U$899,2,0)) ->  | C38: =IF(ISERROR(VLOOKUP($A38,'8.Non-elective admissions - CCG'!$E$5:$Q$216,5,0)),"",VLOOKUP($A38,'8.Non-elective admissions - CCG'!$E$5:$Q$216,5,0)) ->  | D38: =IF(ISERROR(VLOOKUP($A38,'8.Non-elective admissions - CCG'!$E$5:$Q$216,6,0)),"",VLOOKUP($A38,'8.Non-elective admissions - CCG'!$E$5:$Q$216,6,0)) ->  | E38: =IF(ISERROR(VLOOKUP($A38,'8.Non-elective admissions - CCG'!$E$5:$Q$216,7,0)),"",VLOOKUP($A38,'8.Non-elective admissions - CCG'!$E$5:$Q$216,7,0)) ->  | F38: =IF(ISERROR(VLOOKUP($A38,'8.Non-elective admissions - CCG'!$E$5:$Q$216,8,0)),"",VLOOKUP($A38,'8.Non-elective admissions - CCG'!$E$5:$Q$216,8,0)) ->  | G38: =IF(ISERROR(VLOOKUP($A$1&M38,'9.Non-elective admissions - Map'!$F$5:$U$899,3,0)),"",VLOOKUP($A$1&M38,'9.Non-elective admissions - Map'!$F$5:$U$899,3,0)) ->  | H38: =IF(ISERROR(VLOOKUP($A$1&M38,'9.Non-elective admissions - Map'!$F$5:$U$899,4,0)),"",VLOOKUP($A$1&M38,'9.Non-elective admissions - Map'!$F$5:$U$899,4,0)) ->  | M38: 19
A39: =IF(ISERROR(VLOOKUP($A$1&$M39,'9.Non-elective admissions - Map'!$F$5:$U$899,2,0)),"",VLOOKUP($A$1&$M39,'9.Non-elective admissions - Map'!$F$5:$U$899,2,0)) ->  | C39: =IF(ISERROR(VLOOKUP($A39,'8.Non-elective admissions - CCG'!$E$5:$Q$216,5,0)),"",VLOOKUP($A39,'8.Non-elective admissions - CCG'!$E$5:$Q$216,5,0)) ->  | D39: =IF(ISERROR(VLOOKUP($A39,'8.Non-elective admissions - CCG'!$E$5:$Q$216,6,0)),"",VLOOKUP($A39,'8.Non-elective admissions - CCG'!$E$5:$Q$216,6,0)) ->  | E39: =IF(ISERROR(VLOOKUP($A39,'8.Non-elective admissions - CCG'!$E$5:$Q$216,7,0)),"",VLOOKUP($A39,'8.Non-elective admissions - CCG'!$E$5:$Q$216,7,0)) ->  | F39: =IF(ISERROR(VLOOKUP($A39,'8.Non-elective admissions - CCG'!$E$5:$Q$216,8,0)),"",VLOOKUP($A39,'8.Non-elective admissions - CCG'!$E$5:$Q$216,8,0)) ->  | G39: =IF(ISERROR(VLOOKUP($A$1&M39,'9.Non-elective admissions - Map'!$F$5:$U$899,3,0)),"",VLOOKUP($A$1&M39,'9.Non-elective admissions - Map'!$F$5:$U$899,3,0)) ->  | H39: =IF(ISERROR(VLOOKUP($A$1&M39,'9.Non-elective admissions - Map'!$F$5:$U$899,4,0)),"",VLOOKUP($A$1&M39,'9.Non-elective admissions - Map'!$F$5:$U$899,4,0)) ->  | M39: 20
A40: =IF(ISERROR(VLOOKUP($A$1&$M40,'9.Non-elective admissions - Map'!$F$5:$U$899,2,0)),"",VLOOKUP($A$1&$M40,'9.Non-elective admissions - Map'!$F$5:$U$899,2,0)) ->  | C40: =IF(ISERROR(VLOOKUP($A40,'8.Non-elective admissions - CCG'!$E$5:$Q$216,5,0)),"",VLOOKUP($A40,'8.Non-elective admissions - CCG'!$E$5:$Q$216,5,0)) ->  | D40: =IF(ISERROR(VLOOKUP($A40,'8.Non-elective admissions - CCG'!$E$5:$Q$216,6,0)),"",VLOOKUP($A40,'8.Non-elective admissions - CCG'!$E$5:$Q$216,6,0)) ->  | E40: =IF(ISERROR(VLOOKUP($A40,'8.Non-elective admissions - CCG'!$E$5:$Q$216,7,0)),"",VLOOKUP($A40,'8.Non-elective admissions - CCG'!$E$5:$Q$216,7,0)) ->  | F40: =IF(ISERROR(VLOOKUP($A40,'8.Non-elective admissions - CCG'!$E$5:$Q$216,8,0)),"",VLOOKUP($A40,'8.Non-elective admissions - CCG'!$E$5:$Q$216,8,0)) ->  | G40: =IF(ISERROR(VLOOKUP($A$1&M40,'9.Non-elective admissions - Map'!$F$5:$U$899,3,0)),"",VLOOKUP($A$1&M40,'9.Non-elective admissions - Map'!$F$5:$U$899,3,0)) ->  | H40: =IF(ISERROR(VLOOKUP($A$1&M40,'9.Non-elective admissions - Map'!$F$5:$U$899,4,0)),"",VLOOKUP($A$1&M40,'9.Non-elective admissions - Map'!$F$5:$U$899,4,0)) ->  | M40: 21
A41: Total | H41: =SUM(H20:H40) -> 1 | I41: =SUM(I20:I40) -> 19612.27207 | J41: =SUM(J20:J40) -> 19342.75745 | K41: 19821.77466 | L41: 20080.34126
A43: References
A44: 1 The default figure of £1,490 in the template is based on the average reported cost of a non-elective inpatient episode (excluding excess bed days), taken from the latest (2012/13) Reference Costs. Alternatively the average reported spell cost of a non-elective inpatient admission (including excess bed days) from the same source is £2,118. To note, these average figures do not account for the 30% marginal rate rule and may not reflect costs variations to a locality such as MFF or cohort pricing. In recognition of these variations the average cost can be revised in the template although a rationale for any change should be provided.

Sheet 6. HWB Supporting Metrics
A1: ='1. HWB Funding Sources'!A4 -> Devon | I1: Red triangles indicate comments
I2: Planned deterioration on baseline (or validity issue)
A3: Please complete all white cells in tables. Other white cells should be completed/revised as appropriate. | I3: Planned improvement on baseline
A5: Residential admissions
A6: Metric | C6: Baseline (2013/14) | D6: Planned 14/15 | E6: Planned 15/16
G7: Rationale for red rating
A8: Permanent admissions of older people (aged 65 and over) to residential and nursing care homes, per 100,000 population | B8: Annual rate | C8: =VLOOKUP($A$1,Data!$D$5:$Z$156,12,0) -> 556.4 | D8: =D9/D10*100000 -> 526.4781693 | E8: =E9/E10*100000 -> 514.8212467
B9: Numerator | C9: =VLOOKUP($A$1,Data!$D$5:$Z$156,4,0) -> 980 | D9: 980 | E9: 980
B10: Denominator | C10: =VLOOKUP($A$1,Data!$D$5:$Z$156,6,0) -> 176490 | D10: =VLOOKUP($A$1,Data!$D$5:$Z$156,8,0) -> 186142.571 | E10: =VLOOKUP($A$1,Data!$D$5:$Z$156,9,0) -> 190357.334
C11: Annual change in admissions | D11: =IF(D9=0,0,D9-C9) -> 0 | E11: =IF(E9=0,0,E9-D9) -> 0
C12: Annual change in admissions % | D12: =IF(D9=0,0,D9/C9-1) -> 0 | E12: =IF(E9=0,0,E9/D9-1) -> 0
C13: Estimated savings | D13: =ROUND((-D11*G13),-3) -> 0 | E13: =ROUND((-E11*G13),-3) -> 0 | G13: 25950 | H13: Average annual cost of permanent admission to residential care1
A15: Reablement
A16: Metric | C16: Baseline (2013/14) | D16: Planned 14/15 | E16: Planned 15/16
A18: Proportion of older people (65 and over) who were still at home 91 days after discharge from hospital into reablement / rehabilitation services | B18: Annual % | C18: =VLOOKUP($A$1,Data!$Q$5:$AB$156,10,0) -> 89.8 | D18: =IF(ISERROR(D19/D20*100),0,D19/D20*100) -> 81.52424942 | E18: =IF(ISERROR(E19/E20*100),0,E19/E20*100) -> 81.52424942 | G18: Rationale for red rating | H18: Significant expansion in coverage will include focus on cohort f patients with higher needs
B19: Numerator | C19: =VLOOKUP($A$1,Data!$Q$5:$AB$156,4,0) -> 465 | D19: 706 | E19: 706
B20: Denominator | C20: =VLOOKUP($A$1,Data!$Q$5:$AB$156,7,0) -> 520 | D20: 866 | E20: 866
C21: Annual change in proportion | D21: =IF(D19=0,0,D18-C18) -> -8.275750577 | E21: =IF(E19=0,0,E18-D18) -> 0
C22: Annual change in proportion % | D22: =IF(D19=0,0,D18/C18-1) -> -0.09215757881 | E22: =IF(E19=0,0,E18/D18-1) -> 0
C23: Estimated savings | D23: =ROUND(D21*G23,-3) -> 0 | E23: =ROUND(E21*G23,-3) -> 0 | H23: Average annual saving due to being at home 91 days from discharge2
A25: Delayed transfers of care
A26: Metric | C26: 13-14 Baseline | G26: 14/15 plans | K26: 15-16 plans
C27: Q1 (Apr 13 - Jun 13) | D27: Q2 (Jul 13 - Sep 13) | E27: Q3 (Oct 13 - Dec 13) | F27: Q4 (Jan 14 - Mar 14) | G27: Q1 (Apr 14 - Jun 14) | H27: Q2 (Jul 14 - Sep 14) | I27: Q3 (Oct 14 - Dec 14) | J27: Q4 (Jan 15 - Mar 15) | K27: Q1 (Apr 15 - Jun 15) | L27: Q2 (Jul 15 - Sep 15) | M27: Q3 (Oct 15 - Dec 15) | N27: Q4 (Jan 16 - Mar 16)
Q28: Rationale for red ratings
A29: Delayed transfers of care (delayed days) from hospital per 100,000 population (aged 18+). | B29: Quarterly rate | C29: =C30/C31*100000 -> 1087.9033 | D29: 1107.692208 | E29: 957.0045433 | F29: 1009.056269 | G29: 970.5574883 | H29: 938.205572 | I29: 905.8536558 | J29: 845.8041038 | K29: 845.8041038 | L29: 845.8041038 | M29: 845.8041038 | N29: 841.0917303
B30: Numerator | C30: =VLOOKUP($A$1,Data!$AC$5:$CL$156,46,0) -> 6707 | D30: =VLOOKUP($A$1,Data!$AC$5:$CL$156,47,0) -> 6829 | E30: =VLOOKUP($A$1,Data!$AC$5:$CL$156,48,0) -> 5900 | F30: =VLOOKUP($A$1,Data!$AC$5:$CL$156,49,0) -> 6238 | G30: 6000 | H30: 5800 | I30: 5600 | J30: 5260 | K30: 5260 | L30: 5260 | M30: 5260 | N30: 5260
B31: Denominator | C31: =VLOOKUP($A$1,Data!$AC$5:$CL$156,59,0) -> 616507 | D31: =VLOOKUP($A$1,Data!$AC$5:$CL$156,59,0) -> 616507 | E31: =VLOOKUP($A$1,Data!$AC$5:$CL$156,59,0) -> 616507 | F31: =VLOOKUP($A$1,Data!$AC$5:$CL$156,60,0) -> 618201.402 | G31: =VLOOKUP($A$1,Data!$AC$5:$CL$156,60,0) -> 618201.402 | H31: =VLOOKUP($A$1,Data!$AC$5:$CL$156,60,0) -> 618201.402 | I31: =VLOOKUP($A$1,Data!$AC$5:$CL$156,60,0) -> 618201.402 | J31: =VLOOKUP($A$1,Data!$AC$5:$CL$156,61,0) -> 621893.412 | K31: =VLOOKUP($A$1,Data!$AC$5:$CL$156,61,0) -> 621893.412 | L31: =VLOOKUP($A$1,Data!$AC$5:$CL$156,61,0) -> 621893.412 | M31: =VLOOKUP($A$1,Data!$AC$5:$CL$156,61,0) -> 621893.412 | N31: =VLOOKUP($A$1,Data!$AC$5:$CL$156,62,0) -> 625377.686
I32: Annual change in admissions | J32: =IF(SUM(G30:J30)=0,0,SUM(G30:J30)-SUM(C30:F30)) -> -3014 | M32: Annual change in admissions | N32: =IF(SUM(K30:N30)=0,0,SUM(K30:N30)-SUM(G30:J30)) -> -1620
I33: Annual change in admissions % | J33: =IF(SUM(G30:J30)=0,0,(SUM(G30:J30)/SUM(C30:F30))-1) -> -0.11739503 | M33: Annual change in admissions % | N33: =IF(SUM(K30:N30)=0,0,(SUM(K30:N30)/SUM(G30:J30))-1) -> -0.07149161518
I34: Annual saving | J34: =ROUND(-J32*P34,-3) -> 829000 | M34: Annual saving | N34: =ROUND(-N32*P34,-3) -> 446000 | P34: 275 | Q34: Average cost of delayed transfer day3
A36: Patient / Service User Experience Metric
A37: Metric | C37: Baseline | D37: Planned 14/15 (if available) | E37: Planned 15/16
C38: 2013/14
A39: % of adults using services satisfied with the care and support they receive (ASCOF 3A) | B39: Metric Value | C39: 66.74418605 | D39: 67.7076412 | E39: 68.50498339
B40: Numerator | C40: 10045 | D40: 10190 | E40: 10310
B41: Denominator | C41: 15050 | D41: 15050 | E41: 15050
A42: Improvement indicated by: | B42: Increase
A45: Local Metric
A46: Metric | C46: Baseline | D46: Planned 14/15 (if available) | E46: Planned 15/16
C47: 2012/13
A48: Dementia diagnosis rate | B48: Metric Value | C48: =SUM(C49/C50)*100 -> 37.07839388 | D48: =SUM(D49/D50)*100 -> 51.45861099 | E48: =SUM(E49/E50)*100 -> 55.53087517
B49: Numerator | C49: 4848 | D49: 6950 | E49: 7500
B50: Denominator | C50: 13075 | D50: 13506 | E50: 13506
A51: Improvement indicated by: | B51: Increase
A54: References/notes
A56: Population projections are based on Subnational Population Projections, Interim 2012-based (published May 2014)
A58: 1. Based on "Personal Social Services: Expenditure and Unit Costs, England 2012-13" (HSCIC) http://www.hscic.gov.uk/catalogue/PUB13085/pss-exp-eng-12-13-fin-rpt.pdf
A59: 2. There is no robust national source for the average annual saving due to being at home 91 days after discharge from hospital in to reablement / rehabilitation services. Therefore HWBs should provide the estimate that underpins their planned financial savings, which it is assumed will include the impact of reduction admissions to hospital and to residential care
A60: 3. Based on 12-13 Reference Costs: average cost of an excess bed day. https://www.gov.uk/government/uploads/system/uploads/attachment_data/file/261154/nhs_reference_costs_2012-13_acc.pdf

Sheet 7. Metric trends
A1: ='1. HWB Funding Sources'!A4 -> Devon
A3: To support finalisation of plans, we have provided estimates of future performance, based on a simple ‘straight line’ projection of historic data for each metric. We recognise that these are crude methodologies, but it may be useful to consider when setting your plans for each of the national metrics in 2014/15 and 2015/16. As part of the assurance process centrally we will be looking at plans compared to the counterfactual (what the performance might have been if there was no BCF).
A4: No cells need to be completed in this tab. However, 2014-15 and 2015-16 projected counts for each metric can be overwritten (white cells) if areas wish to set their own projections.
B6: Non-elective admissions (general and acute)
D7: 1 | E7: 2 | F7: 3 | G7: 4 | H7: 5 | I7: 6 | J7: 7 | K7: 8 | L7: 9 | M7: 10 | N7: 11 | O7: 12
B8: Metric | D8: Historic | G8: Baseline | K8: Projection
D9: 1 | E9: 2 | F9: 3 | G9: 4 | H9: 5 | I9: 6 | J9: 7 | K9: 8 | L9: 9 | M9: 10 | N9: 11 | O9: 12
D10: 13-14 Q1 | E10: 13-14 Q2 | F10: 13-14 Q3 | G10: 13-14 Q4 | H10: 14-15 Q1 | I10: 14-15 Q2 | J10: 14-15 Q3 | K10: 14-15 Q4 | L10: 15-16 Q1 | M10: 15-16 Q2 | N10: 15-16 Q3 | O10: 15-16 Q4
B11: Total non-elective admissions (general & acute), all-age | C11: No. of admissions - historic and projected | D11: =VLOOKUP($A$1,'10.Non-elective admissions -HWB'!$E$5:$M$155,2,0) -> 19646.08508 | E11: =VLOOKUP($A$1,'10.Non-elective admissions -HWB'!$E$5:$M$155,3,0) -> 20799.86058 | F11: =VLOOKUP($A$1,'10.Non-elective admissions -HWB'!$E$5:$M$155,4,0) -> 20865.67444 | G11: =VLOOKUP($A$1,'10.Non-elective admissions -HWB'!$E$5:$M$155,5,0) -> 20415.06888 | H11: =VLOOKUP($A$1,'10.Non-elective admissions -HWB'!$E$5:$M$155,6,0) -> 19342.75745 | I11: =VLOOKUP($A$1,'10.Non-elective admissions -HWB'!$E$5:$M$155,7,0) -> 19821.77466 | J11: =VLOOKUP($A$1,'10.Non-elective admissions -HWB'!$E$5:$M$155,8,0) -> 20080.34126 | K11: =IF(FORECAST(K7,$D$11:$J$11,$D$7:$J$7)<0,0,FORECAST(K7,$D$11:$J$11,$D$7:$J$7)) -> 19827.89172 | L11: =IF(FORECAST(L7,$D$11:$J$11,$D$7:$J$7)<0,0,FORECAST(L7,$D$11:$J$11,$D$7:$J$7)) -> 19750.166 | M11: =IF(FORECAST(M7,$D$11:$J$11,$D$7:$J$7)<0,0,FORECAST(M7,$D$11:$J$11,$D$7:$J$7)) -> 19672.44027 | N11: =IF(FORECAST(N7,$D$11:$J$11,$D$7:$J$7)<0,0,FORECAST(N7,$D$11:$J$11,$D$7:$J$7)) -> 19594.71455 | O11: =IF(FORECAST(O7,$D$11:$J$11,$D$7:$J$7)<0,0,FORECAST(O7,$D$11:$J$11,$D$7:$J$7)) -> 19516.98883
C12: Planned (from 'HWB P4P metric' tab) | D12: =D11 -> 19646.08508 | E12: 20799.86058 | F12: 20865.67444 | G12: 20415.06888 | H12: 19342.75745 | I12: 19821.77466 | J12: 20080.34126 | K12: ='5. HWB P4P metric'!G10 -> 18925 | L12: ='5. HWB P4P metric'!H10 -> 18666 | M12: ='5. HWB P4P metric'!I10 -> 19128 | N12: ='5. HWB P4P metric'!J10 -> 19377 | O12: ='5. HWB P4P metric'!K10 -> 18925
B30: Metric | D30: Projected rates
D31: 2014 -2015 | E31: 2015-16 | F31: 2015-16 | G31: 2015-16 | H31: 2015-16
D32: Q4 | E32: Q1 | F32: Q2 | G32: Q3 | H32: Q4
B33: Total non-elective admissions (general & acute), all-age | C33: Quarterly rate | D33: =D34/D35*100000 -> 2608.76846 | E33: =E34/E35*100000 -> 2584.659046 | F33: =F34/F35*100000 -> 2574.487258 | G33: =G34/G35*100000 -> 2564.315471 | H33: =H34/H35*100000 -> 2539.764217
C34: Numerator | D34: =K11 -> 19827.89172 | E34: =L11 -> 19750.166 | F34: =M11 -> 19672.44027 | G34: =N11 -> 19594.71455 | H34: =O11 -> 19516.98883
C35: Denominator | D35: =VLOOKUP($A$1,Data!$CM$5:$FK$156,75,0) -> 760047.97 | E35: =VLOOKUP($A$1,Data!$CM$5:$FK$156,76,0) -> 764130.419 | F35: =VLOOKUP($A$1,Data!$CM$5:$FK$156,76,0) -> 764130.419 | G35: =VLOOKUP($A$1,Data!$CM$5:$FK$156,76,0) -> 764130.419 | H35: =VLOOKUP($A$1,Data!$CM$5:$FK$156,77,0) -> 768456.721
B37: * The projected rates are based on annual population projections and therefore will not change linearly
B39: Residential admissions
D40: 1 | E40: 2 | F40: 3 | G40: 4 | H40: 5
B41: Metric | D41: 2011-12 | E41: 2012-13 | F41: 2013-14 baseline | G41: 2014-15 | H41: 2015-16
D42: Historic | E42: historic | G42: Projected | H42: Projected
B43: Permanent admissions of older people (aged 65 and over) to residential and nursing care homes, per 100,000 population | C43: Historic and projected annual rate | D43: =VLOOKUP($A$1,Data!$D$5:$P$156,10,0) -> 625.3 | E43: =VLOOKUP($A$1,Data!$D$5:$P$156,11,0) -> 625 | F43: =VLOOKUP($A$1,Data!$D$5:$P$156,12,0) -> 556.4 | G43: =IF(FORECAST(G40,$D$43:$F$43,$D$40:$F$40)<0,0,FORECAST(G40,$D$43:$F$43,$D$40:$F$40)) -> 533.3333333 | H43: =IF(FORECAST(H40,$D$43:$F$43,$D$40:$F$40)<0,0,FORECAST(H40,$D$43:$F$43,$D$40:$F$40)) -> 498.8833333
C44: Numerator | D44: =VLOOKUP($A$1,Data!$D$5:$P$156,2,0) -> 1060 | E44: =VLOOKUP($A$1,Data!$D$5:$P$156,3,0) -> 1105 | F44: =VLOOKUP($A$1,Data!$D$5:$P$156,4,0) -> 980 | G44: =G43/100000*G45 -> 992.7603787 | H44: =H43/100000*H45 -> 949.6610131
C45: Denominator | D45: =VLOOKUP($A$1,Data!$D$5:$P$156,5,0) -> 169840 | E45: =VLOOKUP($A$1,Data!$D$5:$P$156,6,0) -> 176490 | F45: =VLOOKUP($A$1,Data!$D$5:$P$156,6,0) -> 176490 | G45: =VLOOKUP($A$1,Data!$D$5:$P$156,8,0) -> 186142.571 | H45: =VLOOKUP($A$1,Data!$D$5:$P$156,9,0) -> 190357.334
C46: Planned (from ''HWB Supporting Metrics' tab) | D46: =D43 -> 625.3 | E46: =E43 -> 625 | F46: =F43 -> 556.4 | G46: ='6. HWB Supporting Metrics'!D8 -> 526.4781693 | H46: ='6. HWB Supporting Metrics'!E8 -> 514.8212467
G48: This is based on a simple projection of the metric proportion.
B62: Reablement
D63: 1 | E63: 2 | F63: 3 | G63: 4 | H63: 5
B64: Metric | D64: 2011-12 | E64: 2012-13 | F64: 2013-14 | G64: 2014-15 | H64: 2015-16
D65: Historic | E65: Historic | F65: Baseline | G65: Projected | H65: Projected
B66: Proportion of older people (65 and over) who were still at home 91 days after discharge from hospital into reablement / rehabilitation services | C66: Historic and projected annual % | D66: =VLOOKUP($A$1,Data!$Q$5:$AB$156,8,0) -> 85.8 | E66: =VLOOKUP($A$1,Data!$Q$5:$AB$156,9,0) -> 87.7 | F66: =VLOOKUP($A$1,Data!$Q$5:$AB$156,10,0) -> 89.8 | G66: =IF(FORECAST(G63,$D$66:$F$66,$D$63:$F$63)<0,0,IF(FORECAST(G63,$D$66:$F$66,$D$63:$F$63)>100,100,FORECAST(G63,$D$66:$F$66,$D$63:$F$63))) -> 91.76666667 | H66: =IF(FORECAST(H63,$D$66:$F$66,$D$63:$F$63)<0,0,IF(FORECAST(H63,$D$66:$F$66,$D$63:$F$63)>100,100,FORECAST(H63,$D$66:$F$66,$D$63:$F$63))) -> 93.76666667
C67: Numerator | D67: =VLOOKUP($A$1,Data!$Q$5:$AB$156,2,0) -> 400 | E67: =VLOOKUP($A$1,Data!$Q$5:$AB$156,3,0) -> 400 | F67: =VLOOKUP($A$1,Data!$Q$5:$AB$156,4,0) -> 465 | G67: =G66/100*G68 -> 477.1866667 | H67: =H66/100*H68 -> 487.5866667
C68: Denominator | D68: =VLOOKUP($A$1,Data!$Q$5:$AB$156,5,0) -> 465 | E68: =VLOOKUP($A$1,Data!$Q$5:$AB$156,6,0) -> 455 | F68: =VLOOKUP($A$1,Data!$Q$5:$AB$156,7,0) -> 520 | G68: =F68 -> 520 | H68: =F68 -> 520
C69: Planned (from ''HWB Supporting Metrics' tab) | D69: =D66 -> 85.8 | E69: =E66 -> 87.7 | F69: 89.8 | G69: ='6. HWB Supporting Metrics'!D18 -> 81.52424942 | H69: ='6. HWB Supporting Metrics'!E18 -> 81.52424942
G71: This is based on a simple projection of the metric proportion, and an unchanging denominator (number of people offered reablement)
B84: Delayed transfers
B86: Metric | D86: Historic | AJ86: Baseline | AV86: Linear projection* (set so cannot fall below zero)
D87: 1 | E87: 2 | F87: 3 | G87: 4 | H87: 5 | I87: 6 | J87: 7 | K87: 8 | L87: 9 | M87: 10 | N87: 11 | O87: 12 | P87: 13 | Q87: 14 | R87: 15 | S87: 16 | T87: 17 | U87: 18 | V87: 19 | W87: 20 | X87: 21 | Y87: 22 | Z87: 23 | AA87: 24 | AB87: 25 | AC87: 26 | AD87: 27 | AE87: 28 | AF87: 29 | AG87: 30 | AH87: 31 | AI87: 32 | AJ87: 33 | AK87: 34 | AL87: 35 | AM87: 36 | AN87: 37 | AO87: 38 | AP87: 39 | AQ87: 40 | AR87: 41 | AS87: 42 | AT87: 43 | AU87: 44 | AV87: 45 | AW87: 46 | AX87: 47 | AY87: 48 | AZ87: 49 | BA87: 50 | BB87: 51 | BC87: 52 | BD87: 53 | BE87: 54 | BF87: 55 | BG87: 56 | BH87: 57 | BI87: 58 | BJ87: 59 | BK87: 60 | BL87: 61 | BM87: 62 | BN87: 63 | BO87: 64 | BP87: 65 | BQ87: 66 | BR87: 67 | BS87: 68
D88: 2010-08-01 | E88: 2010-09-01 | F88: 2010-10-01 | G88: 2010-11-01 | H88: 2010-12-01 | I88: 2011-01-01 | J88: 2011-02-01 | K88: 2011-03-01 | L88: 2011-04-01 | M88: 2011-05-01 | N88: 2011-06-01 | O88: 2011-07-01 | P88: 2011-08-01 | Q88: 2011-09-01 | R88: 2011-10-01 | S88: 2011-11-01 | T88: 2011-12-01 | U88: 2012-01-01 | V88: 2012-02-01 | W88: 2012-03-01 | X88: 2012-04-01 | Y88: 2012-05-01 | Z88: 2012-06-01 | AA88: 2012-07-01 | AB88: 2012-08-01 | AC88: 2012-09-01 | AD88: 2012-10-01 | AE88: 2012-11-01 | AF88: 2012-12-01 | AG88: 2013-01-01 | AH88: 2013-02-01 | AI88: 2013-03-01 | AJ88: 2013-04-01 | AK88: 2013-05-01 | AL88: 2013-06-01 | AM88: 2013-07-01 | AN88: 2013-08-01 | AO88: 2013-09-01 | AP88: 2013-10-01 | AQ88: 2013-11-01 | AR88: 2013-12-01 | AS88: 2014-01-01 | AT88: 2014-02-01 | AU88: 2014-03-01 | AV88: 2014-04-01 | AW88: 2014-05-01 | AX88: 2014-06-01 | AY88: 2014-07-01 | AZ88: 2014-08-01 | BA88: 2014-09-01 | BB88: 2014-10-01 | BC88: 2014-11-01 | BD88: 2014-12-01 | BE88: 2015-01-01 | BF88: 2015-02-01 | BG88: 2015-03-01 | BH88: 2015-04-01 | BI88: 2015-05-01 | BJ88: 2015-06-01 | BK88: 2015-07-01 | BL88: 2015-08-01 | BM88: 2015-09-01 | BN88: 2015-10-01 | BO88: 2015-11-01 | BP88: 2015-12-01 | BQ88: 2016-01-01 | BR88: 2016-02-01 | BS88: 2016-03-01
B89: Delayed transfers of care (delayed days) from hospital | C89: Historic and projected delayed transfers | D89: =VLOOKUP($A$1,Data!$AC$5:$CL$156,D87+1,0) -> 2553 | E89: =VLOOKUP($A$1,Data!$AC$5:$CL$156,E87+1,0) -> 2788 | F89: =VLOOKUP($A$1,Data!$AC$5:$CL$156,F87+1,0) -> 2658 | G89: =VLOOKUP($A$1,Data!$AC$5:$CL$156,G87+1,0) -> 2305 | H89: =VLOOKUP($A$1,Data!$AC$5:$CL$156,H87+1,0) -> 3008 | I89: =VLOOKUP($A$1,Data!$AC$5:$CL$156,I87+1,0) -> 3127 | J89: =VLOOKUP($A$1,Data!$AC$5:$CL$156,J87+1,0) -> 2903 | K89: =VLOOKUP($A$1,Data!$AC$5:$CL$156,K87+1,0) -> 3285 | L89: =VLOOKUP($A$1,Data!$AC$5:$CL$156,L87+1,0) -> 2672 | M89: =VLOOKUP($A$1,Data!$AC$5:$CL$156,M87+1,0) -> 2599 | N89: =VLOOKUP($A$1,Data!$AC$5:$CL$156,N87+1,0) -> 2603 | O89: =VLOOKUP($A$1,Data!$AC$5:$CL$156,O87+1,0) -> 2506 | P89: =VLOOKUP($A$1,Data!$AC$5:$CL$156,P87+1,0) -> 2519 | Q89: =VLOOKUP($A$1,Data!$AC$5:$CL$156,Q87+1,0) -> 2694 | R89: =VLOOKUP($A$1,Data!$AC$5:$CL$156,R87+1,0) -> 2665 | S89: =VLOOKUP($A$1,Data!$AC$5:$CL$156,S87+1,0) -> 2864 | T89: =VLOOKUP($A$1,Data!$AC$5:$CL$156,T87+1,0) -> 2286 | U89: =VLOOKUP($A$1,Data!$AC$5:$CL$156,U87+1,0) -> 2446 | V89: =VLOOKUP($A$1,Data!$AC$5:$CL$156,V87+1,0) -> 2338 | W89: =VLOOKUP($A$1,Data!$AC$5:$CL$156,W87+1,0) -> 2295 | X89: =VLOOKUP($A$1,Data!$AC$5:$CL$156,X87+1,0) -> 2137 | Y89: =VLOOKUP($A$1,Data!$AC$5:$CL$156,Y87+1,0) -> 2194 | Z89: =VLOOKUP($A$1,Data!$AC$5:$CL$156,Z87+1,0) -> 2313 | AA89: =VLOOKUP($A$1,Data!$AC$5:$CL$156,AA87+1,0) -> 2487 | AB89: =VLOOKUP($A$1,Data!$AC$5:$CL$156,AB87+1,0) -> 2186 | AC89: =VLOOKUP($A$1,Data!$AC$5:$CL$156,AC87+1,0) -> 2597 | AD89: =VLOOKUP($A$1,Data!$AC$5:$CL$156,AD87+1,0) -> 2301 | AE89: =VLOOKUP($A$1,Data!$AC$5:$CL$156,AE87+1,0) -> 2416 | AF89: =VLOOKUP($A$1,Data!$AC$5:$CL$156,AF87+1,0) -> 1589 | AG89: =VLOOKUP($A$1,Data!$AC$5:$CL$156,AG87+1,0) -> 2302 | AH89: =VLOOKUP($A$1,Data!$AC$5:$CL$156,AH87+1,0) -> 2008 | AI89: =VLOOKUP($A$1,Data!$AC$5:$CL$156,AI87+1,0) -> 2067 | AJ89: =VLOOKUP($A$1,Data!$AC$5:$CL$156,AJ87+1,0) -> 2080 | AK89: =VLOOKUP($A$1,Data!$AC$5:$CL$156,AK87+1,0) -> 2298 | AL89: =VLOOKUP($A$1,Data!$AC$5:$CL$156,AL87+1,0) -> 2329 | AM89: =VLOOKUP($A$1,Data!$AC$5:$CL$156,AM87+1,0) -> 2205 | AN89: =VLOOKUP($A$1,Data!$AC$5:$CL$156,AN87+1,0) -> 2305 | AO89: =VLOOKUP($A$1,Data!$AC$5:$CL$156,AO87+1,0) -> 2319 | AP89: =VLOOKUP($A$1,Data!$AC$5:$CL$156,AP87+1,0) -> 2349 | AQ89: =VLOOKUP($A$1,Data!$AC$5:$CL$156,AQ87+1,0) -> 2117 | AR89: =VLOOKUP($A$1,Data!$AC$5:$CL$156,AR87+1,0) -> 1434 | AS89: =VLOOKUP($A$1,Data!$AC$5:$CL$156,AS87+1,0) -> 2091 | AT89: =VLOOKUP($A$1,Data!$AC$5:$CL$156,AT87+1,0) -> 1906 | AU89: =VLOOKUP($A$1,Data!$AC$5:$CL$156,AU87+1,0) -> 2241 | AV89: =IF(FORECAST(AV87,$D$89:$AU$89,$D$87:$AU$87)<0,0,FORECAST(AV87,$D$89:$AU$89,$D$87:$AU$87)) -> 1947.446089 | AW89: 1927.549753 | AX89: 1907.653418 | AY89: 1887.757082 | AZ89: 1867.860747 | BA89: 1847.964412 | BB89: 1828.068076 | BC89: 1808.171741 | BD89: 1788.275405 | BE89: 1768.37907 | BF89: 1748.482734 | BG89: 1728.586399 | BH89: 1708.690063 | BI89: 1688.793728 | BJ89: 1668.897393 | BK89: 1649.001057 | BL89: 1629.104722 | BM89: 1609.208386 | BN89: 1589.312051 | BO89: 1569.415715 | BP89: 1549.51938 | BQ89: 1529.623044 | BR89: 1509.726709 | BS89: 1489.830374
C90: Planned (from ''HWB Supporting Metrics' tab) | D90: =D89 -> 2553 | E90: =E89 -> 2788 | F90: 2658 | G90: 2305 | H90: 3008 | I90: 3127 | J90: 2903 | K90: 3285 | L90: 2672 | M90: 2599 | N90: 2603 | O90: 2506 | P90: 2519 | Q90: 2694 | R90: 2665 | S90: 2864 | T90: 2286 | U90: 2446 | V90: 2338 | W90: 2295 | X90: 2137 | Y90: 2194 | Z90: 2313 | AA90: 2487 | AB90: 2186 | AC90: 2597 | AD90: 2301 | AE90: 2416 | AF90: 1589 | AG90: 2302 | AH90: 2008 | AI90: 2067 | AJ90: 2080 | AK90: 2298 | AL90: 2329 | AM90: 2205 | AN90: 2305 | AO90: 2319 | AP90: 2349 | AQ90: 2117 | AR90: 1434 | AS90: 2091 | AT90: 1906 | AU90: 2241 | AV90: ='6. HWB Supporting Metrics'!$G30/3 -> 2000 | AW90: ='6. HWB Supporting Metrics'!$G30/3 -> 2000 | AX90: ='6. HWB Supporting Metrics'!$G30/3 -> 2000 | AY90: ='6. HWB Supporting Metrics'!$H30/3 -> 1933.333333 | AZ90: ='6. HWB Supporting Metrics'!$H30/3 -> 1933.333333 | BA90: ='6. HWB Supporting Metrics'!$H30/3 -> 1933.333333 | BB90: ='6. HWB Supporting Metrics'!$I30/3 -> 1866.666667 | BC90: ='6. HWB Supporting Metrics'!$I30/3 -> 1866.666667 | BD90: ='6. HWB Supporting Metrics'!$I30/3 -> 1866.666667 | BE90: ='6. HWB Supporting Metrics'!$J30/3 -> 1753.333333 | BF90: ='6. HWB Supporting Metrics'!$J30/3 -> 1753.333333 | BG90: ='6. HWB Supporting Metrics'!$J30/3 -> 1753.333333 | BH90: ='6. HWB Supporting Metrics'!$K30/3 -> 1753.333333 | BI90: ='6. HWB Supporting Metrics'!$K30/3 -> 1753.333333 | BJ90: ='6. HWB Supporting Metrics'!$K30/3 -> 1753.333333 | BK90: ='6. HWB Supporting Metrics'!$L30/3 -> 1753.333333 | BL90: ='6. HWB Supporting Metrics'!$L30/3 -> 1753.333333 | BM90: ='6. HWB Supporting Metrics'!$L30/3 -> 1753.333333 | BN90: ='6. HWB Supporting Metrics'!$M30/3 -> 1753.333333 | BO90: ='6. HWB Supporting Metrics'!$M30/3 -> 1753.333333 | BP90: ='6. HWB Supporting Metrics'!$M30/3 -> 1753.333333 | BQ90: ='6. HWB Supporting Metrics'!$N30/3 -> 1753.333333 | BR90: ='6. HWB Supporting Metrics'!$N30/3 -> 1753.333333 | BS90: ='6. HWB Supporting Metrics'!$N30/3 -> 1753.333333
B108: Metric | D108: Projected rates*
D109: 2014-15 | H109: 2015-16
D110: Q1 | E110: Q2 | F110: Q3 | G110: Q4 | H110: Q1 | I110: Q2 | J110: Q3 | K110: Q4
B111: Delayed transfers of care (delayed days) from hospital per 100,000 population (aged 18+). | C111: Quarterly rate | D111: =D112/D113*100000 -> 935.3989236 | E111: 906.4331176 | F111: 877.4673115 | G111: 843.4641856 | H111: 814.6703416 | I111: 785.8764976 | J111: 757.0826536 | K111: 724.2311691
C112: Numerator | D112: =SUM(AV89:AX89) -> 5782.64926 | E112: =SUM(AY89:BA89) -> 5603.582241 | F112: =SUM(BB89:BD89) -> 5424.515222 | G112: =SUM(BE89:BG89) -> 5245.448203 | H112: =SUM(BH89:BJ89) -> 5066.381184 | I112: =SUM(BK89:BM89) -> 4887.314165 | J112: =SUM(BN89:BP89) -> 4708.247146 | K112: =SUM(BQ89:BS89) -> 4529.180127
C113: Denominator | D113: =VLOOKUP($A$1,Data!$AC$5:$CL$156,60,0) -> 618201.402 | E113: =VLOOKUP($A$1,Data!$AC$5:$CL$156,60,0) -> 618201.402 | F113: =VLOOKUP($A$1,Data!$AC$5:$CL$156,60,0) -> 618201.402 | G113: =VLOOKUP($A$1,Data!$AC$5:$CL$156,61,0) -> 621893.412 | H113: =VLOOKUP($A$1,Data!$AC$5:$CL$156,61,0) -> 621893.412 | I113: =VLOOKUP($A$1,Data!$AC$5:$CL$156,61,0) -> 621893.412 | J113: =VLOOKUP($A$1,Data!$AC$5:$CL$156,61,0) -> 621893.412 | K113: =VLOOKUP($A$1,Data!$AC$5:$CL$156,62,0) -> 625377.686
B115: * The projected rates are based on annual population projections and therefore will not change linearly

Sheet List of Modifications
A1: HWB Financial Plan
A3: Date | B3: Sheet | C3: Cells | D3: Description
A4: 2014-07-28 | B4: Payment for Performance | C4: B23 | D4: formula modified to =IF(B21-B19<0,0,B21-B19)
A5: 2014-07-28 | B5: 1. HWB Funding Sources | C5: C27 | D5: formula modified to =SUM(C20:C26)
A6: 2014-07-28 | B6: HWB ID | C6: J2 | D6: Changed to Version 2
A7: 2014-07-28 | B7: a | C7: Various | D7: Data mapped correctly for Bournemouth & Poole
A8: 2014-07-29 | B8: a | C8: AP1:AP348 | D8: Allocation updated for changes
A9: 2014-07-28 | B9: All sheets | C9: Columns | D9: Allowed to modify column width if required
A10: 2014-07-30 | B10: 8. Non elective admissions - CCG | D10: Updated CCG plans for Wolverhampton, Ashford and Canterbury CCGs
A11: 2014-07-30 | B11: 6. HWB supporting metrics | C11: D18 | D11: Updated conditional formatting to not show green if baseline is 0
A12: 2014-07-30 | B12: 6. HWB supporting metrics | C12: D19 | D12: Comment added
A13: 2014-07-30 | B13: 7. Metric trends | C13: K11:O11, G43:H43,G66:H66 | D13: Updated forecast formulas
A14: 2014-07-30 | B14: Data | C14: Various | D14: Changed a couple of 'dashes' to zeros
A15: 2014-07-30 | B15: 5. HWB P4P metric | C15: H14 | D15: Removed rounding
A16: 2014-07-31 | B16: 1. HWB Funding Sources | C16: A48:C54 | D16: Unprotect cells and allow entry
A17: 2014-08-01 | B17: 5. HWB P4P metric | C17: G10:K10 | D17: Updated conditional formatting
A18: 2014-08-01 | B18: 5. HWB P4P metric | C18: H13 | D18: formula modified to =IF(OR(G10<0,H10<0,I10<0,J10<0),"",IF(OR(ISTEXT(G10),ISTEXT(H10),ISTEXT(I10),ISTEXT(J10)),"",IF(SUM(G10:J10)=0,"",(SUM(G10:J10)/SUM(C10:F10))-1)))
A19: 2014-08-01 | B19: 5. HWB P4P metric | C19: H13 | D19: Apply conditional formatting
A20: 2014-08-01 | B20: 5. HWB P4P metric | C20: H14 | D20: formula modified to =if(H13="","",-H12*J14)
A21: 2014-08-01 | B21: 4. HWB Benefits Plan | C21: J69:J118 | D21: Remove formula
A22: 2014-08-01 | B22: 4. HWB Benefits Plan | C22: B11:B60, B69:B118 | D22: Texted modified
A23: Version 2
A24: 2014-08-13 | B24: 4. HWB Benefits Plan | C24: I61, I119, J61, J119 | D24: Delete formula
A25: 2014-08-13 | B25: 4. HWB Benefits Plan | C25: rows 119:168 | D25: Additional 50 rows added to 14-15 table for orgaanisations that need it. Please unhide to use
A26: 2014-08-13 | B26: 4. HWB Benefits Plan | C26: rows 59:108 | D26: Additional 50 rows added to 15-16 table for orgaanisations that need it. Please unhide to use
A27: 2014-08-13 | B27: 3. HWB Expenditure Plan | C27: rows 59:108 | D27: Additional 50 rows added to table for orgaanisations that need it. Please unhide to use
A28: 2014-08-13 | B28: a | C28: M8 | D28: Add Primary Care to drop down list in column I on sheet '3. HWB Expenditure Plan'
A29: 2014-08-13 | B29: HWB ID | C29: J2 | D29: Changed to Version 3
A30: 2014-08-13 | B30: 6. HWB supporting metrics | C30: C11, I32, M32 | D30: Change text to ‘Annual change in admissions’
A31: 2014-08-13 | B31: 6. HWB supporting metrics | C31: C12, I33, M33 | D31: Change text to ‘Annual change in admissions %’
A32: 2014-08-13 | B32: 6. HWB supporting metrics | C32: C21 | D32: Change text to ‘Annual change in proportion’
A33: 2014-08-13 | B33: 6. HWB supporting metrics | C33: C22 | D33: Change text to ‘Annual change in proportion %’
A34: 2014-08-13 | B34: 6. HWB supporting metrics | C34: D21 | D34: Change formula to =if(D19=0,0,D18-C18)
A35: 2014-08-13 | B35: 6. HWB supporting metrics | C35: D21 | D35: Change format to 1.dec. place
A36: 2014-08-13 | B36: 6. HWB supporting metrics | C36: E21 | D36: Change formula to = if(E19=0,0,E18-D18)
A37: 2014-08-13 | B37: 6. HWB supporting metrics | C37: E21 | D37: Change format to 1.dec. place
A38: 2014-08-13 | B38: 6. HWB supporting metrics | C38: D22 | D38: Change formula to =if(D19=0,0,D18/C18-1)
A39: 2014-08-13 | B39: 6. HWB supporting metrics | C39: E22 | D39: Change formula to =if(E19=0,0,E18/D18-1)
A40: 2014-08-13 | B40: 5. HWB P4P metric | C40: J14 | D40: Cell can now be modified - £1,490 in as a placeholder
A41: 2014-08-13 | B41: 5. HWB P4P metric | C41: N9:AL9 | D41: Test box for an explanation of why different to £1,490 if it is.
A42: 2014-08-13 | B42: 4. HWB Benefits Plan | C42: H11:H110, H119:H218 | D42: Change formula to eg. =H11*G11
A43: 2014-08-13 | B43: 2. Summary | C43: G44:M44 | D43: Test box for an explanation for the difference between the calculated NEL saving on the metrics tab and the benefits tab

Sheet a (hidden)
U1: <Please Select CCG> | AO1: Split of £3.46bn | AY1: HWB | AZ1: CCG | BA1: £1.1bn
B2: <Please select> | C2: <Please select> | E2: Acute contracts -NHS (includes Ambulance services) | K2: <Please select> | M2: <Please select> | N2: <Please select> | P2: <Please select HWB> | S2: Yes | U2: NHS Airedale, Wharfedale and Craven CCG | V2: 02N | W2: 3173 | X2: 10032 | AA2: <Please select Local Authority> | AE2: NHS CCG | AG2: Reduction in permanent residential admissions | AL2: <Please select> | AM2: gu | AN2: HWB | AO2: CCG | AP2: £m | AU2: Sum of £1bn | AX2: =AY2&COUNTIF($AY2:AY$3,AY2) -> Barking and Dagenham1 | AY2: Barking and Dagenham | AZ2: NHS Barking and Dagenham CCG | BA2: 4184.865
B3: Acute | C3: Acute | E3: Acute contracts - Other providers (non-nhs, incl. VS) | K3: CCG | M3: NHS Acute Provider | N3: Local Authority | O3: E09000002 | P3: Barking and Dagenham | Q3: =O3 -> E09000002 | S3: No | U3: NHS Ashford CCG | V3: 09C | W3: 2443 | X3: 7321 | Z3: E09000002 | AA3: Barking and Dagenham | AB3: E09000002 | AE3: NHS Provider | AG3: Increased effectiveness of reablement | AL3: Red | AM3: Barking and Dagenham1 | AN3: Barking and Dagenham | AO3: NHS Barking and Dagenham CCG | AP3: 13055 | AU3: HWB | AV3: Total | AX3: =AY3&COUNTIF($AY3:AY$3,AY3) -> Barnet1 | AY3: Barnet | AZ3: NHS Barnet CCG | BA3: 6634.324
B4: Mental Health | C4: Mental Health | E4: Acute - Other | K4: Local Authority | M4: NHS Mental Health Provider | N4: NHS Commissioner | O4: E09000003 | P4: Barnet | Q4: =O4 -> E09000003 | U4: NHS Aylesbury Vale CCG | V4: 10Y | W4: 3012 | X4: 10382 | Z4: E09000003 | AA4: Barnet | AB4: E09000003 | AE4: NHS England | AG4: Reduction in delayed transfers of care | AL4: Amber | AM4: Barnet1 | AN4: Barnet | AO4: NHS Barnet CCG | AP4: 21540 | AU4: Barking and Dagenham | AV4: 3773.121387 | AX4: =AY4&COUNTIF($AY$3:AY4,AY4) -> Barnsley1 | AY4: Barnsley | AZ4: NHS Barnsley CCG | BA4: 5676.004
B5: Community Health | C5: Community Health | E5: Acute - Exclusions / cost per case | K5: NHS England | M5: NHS Community Provider | N5: NHS Provider | O5: E08000016 | P5: Barnsley | Q5: E08000016 | U5: NHS Barking & Dagenham CCG | V5: 07L | W5: 4185 | X5: 13055 | Z5: E08000016 | AA5: Barnsley | AB5: E08000016 | AE5: Local Authority | AG5: Reduction in non-elective (general + acute only) | AL5: Green | AM5: Barnsley1 | AN5: Barnsley | AO5: NHS Barnsley CCG | AP5: 18358 | AU5: Barnet | AV5: 6225.433526 | AX5: =AY5&COUNTIF($AY$3:AY5,AY5) -> Bath and North East Somerset1 | AY5: Bath and North East Somerset | AZ5: NHS Bath and North East Somerset CCG | BA5: 3344.7
B6: Continuing Care | C6: Continuing Care | E6: Acute - NCAs | K6: Joint | M6: CCG | O6: E06000022 | P6: Bath and North East Somerset | Q6: E06000022 | U6: NHS Barnet CCG | V6: 07M | W6: 6634 | X6: 21540 | Z6: E06000022 | AA6: Bath and North East Somerset | AB6: E06000022 | AG6: Other | AM6: Bath and North East Somerset1 | AN6: Bath and North East Somerset | AO6: NHS Bath and North East Somerset CCG | AP6: 11091 | AU6: Barnsley | AV6: 5305.780347 | AX6: =AY6&COUNTIF($AY$3:AY6,AY6) -> Bedford1 | AY6: Bedford | AZ6: NHS Bedfordshire CCG | BA6: 2845.389
B7: Primary Care | C7: Primary Care | E7: Acute - Pass-through payments | M7: Primary Care | O7: E06000055 | P7: Bedford | Q7: E06000055 | U7: NHS Barnsley CCG | V7: 02P | W7: 5676 | X7: 18358 | Z7: E06000055 | AA7: Bedford | AB7: E06000055 | AM7: Bedford1 | AN7: Bedford | AO7: NHS Bedfordshire CCG | AP7: 9396 | AU7: Bath and North East Somerset | AV7: 3205.491329 | AX7: =AY7&COUNTIF($AY$3:AY7,AY7) -> Bexley1 | AY7: Bexley | AZ7: NHS Bexley CCG | BA7: 4255.05
B8: Other Programme Services | C8: Social Care | M8: Local Authority | O8: E09000004 | P8: Bexley | Q8: E09000004 | U8: NHS Basildon and Brentwood CCG | V8: 99E | W8: 4854 | X8: 16041 | Z8: E09000004 | AA8: Bexley | AB8: E09000004 | AM8: Bexley1 | AN8: Bexley | AO8: NHS Bexley CCG | AP8: 13708 | AU8: Bedford | AV8: 2715.606936 | AX8: =AY8&COUNTIF($AY$3:AY8,AY8) -> Birmingham1 | AY8: Birmingham | AZ8: NHS Birmingham South and Central CCG | BA8: 4619.440219
B9: Running Costs | C9: Other | E9: Sub-total Acute services | M9: Charity/Voluntary Sector | O9: E08000025 | P9: Birmingham | Q9: E08000025 | U9: NHS Bassetlaw CCG | V9: 02Q | W9: 2277 | X9: 7526 | Z9: E08000025 | AA9: Birmingham | AB9: E08000025 | AM9: Birmingham1 | AN9: Birmingham | AO9: NHS Sandwell and West Birmingham CCG | AP9: 10977 | AU9: Bexley | AV9: 3961.849711 | AX9: =AY9&COUNTIF($AY$3:AY9,AY9) -> Birmingham2 | AY9: Birmingham | AZ9: NHS Sandwell and West Birmingham CCG | BA9: 3695.552175
M10: Private Sector | O10: E06000008 | P10: Blackburn with Darwen | Q10: E06000008 | U10: NHS Bath and North East Somerset CCG | V10: 11E | W10: 3345 | X10: 11091 | Z10: E06000008 | AA10: Blackburn with Darwen | AB10: E06000008 | AM10: Birmingham2 | AN10: Birmingham | AO10: NHS Birmingham South and Central CCG | AP10: 14448 | AU10: Birmingham | AV10: 21454.04624 | AX10: =AY10&COUNTIF($AY$3:AY10,AY10) -> Birmingham3 | AY10: Birmingham | AZ10: NHS Birmingham CrossCity CCG | BA10: 17353.02761
E11: Mental Health services | O11: E06000009 | P11: Blackpool | Q11: E06000009 | U11: NHS Bedfordshire CCG | V11: 06F | W11: 6814 | X11: 23350 | Z11: E06000009 | AA11: Blackpool | AB11: E06000009 | AM11: Birmingham3 | AN11: Birmingham | AO11: NHS Birmingham Crosscity CCG | AP11: 48806 | AU11: Blackburn with Darwen | AV11: 3123.121387 | AX11: =AY11&COUNTIF($AY$3:AY11,AY11) -> Blackburn with Darwen1 | AY11: Blackburn with Darwen | AZ11: NHS Blackburn with Darwen CCG | BA11: 3503.576
E12: MH contracts - NHS | O12: E08000001 | P12: Bolton | Q12: E08000001 | U12: NHS Bexley CCG | V12: 07N | W12: 4255 | X12: 13708 | Z12: E08000001 | AA12: Bolton | AB12: E08000001 | AM12: Blackburn with Darwen1 | AN12: Blackburn with Darwen | AO12: NHS Blackburn with Darwen CCG | AP12: 10806 | AU12: Blackpool | AV12: 3593.063584 | AX12: =AY12&COUNTIF($AY$3:AY12,AY12) -> Blackpool1 | AY12: Blackpool | AZ12: NHS Blackpool CCG | BA12: 4141.888
E13: MH contracts - Other providers (non-nhs, incl. VS) | O13: E06000028 | P13: Bournemouth & Poole | Q13: E06000028 | U13: NHS Birmingham CrossCity CCG | V13: 04W | W13: 17353 | X13: 48807 | Z13: E06000028 | AA13: Bournemouth | AB13: E06000028 | AM13: Blackpool1 | AN13: Blackpool | AO13: NHS Blackpool CCG | AP13: 12432 | AU13: Bolton | AV13: 5479.768786 | AX13: =AY13&COUNTIF($AY$3:AY13,AY13) -> Bolton1 | AY13: Bolton | AZ13: NHS Bolton CCG | BA13: 6371.303
E14: MH - Other | K14: <Please select> | O14: E06000036 | P14: Bracknell Forest | Q14: E06000036 | U14: NHS Birmingham South and Central CCG | V14: 04X | W14: 4619 | X14: 14448 | Z14: E06000036 | AA14: Bracknell Forest | AB14: E06000036 | AM14: Bolton1 | AN14: Bolton | AO14: NHS Bolton CCG | AP14: 18960 | AU14: Bournemouth | AV14: 3532.65896 | AX14: =AY14&COUNTIF($AY$3:AY14,AY14) -> Bournemouth1 | AY14: Bournemouth | AZ14: NHS Dorset CCG | BA14: 4051.273
E15: MH - Exclusions / cost per case | K15: Local Authority Social Services | O15: E08000032 | P15: Bradford | Q15: E08000032 | U15: NHS Blackburn with Darwen CCG | V15: 00Q | W15: 3505 | X15: 10806 | Z15: E08000032 | AA15: Bradford | AB15: E08000032 | AM15: Bournemouth & Poole1 | AN15: Bournemouth & Poole | AO15: NHS Dorset CCG - Bournemouth element | AP15: 12223 | AU15: Bracknell Forest | AV15: 1761.271676 | AX15: =AY15&COUNTIF($AY$3:AY15,AY15) -> Bracknell Forest1 | AY15: Bracknell Forest | AZ15: NHS Bracknell and Ascot CCG | BA15: 1658.414
E16: MH - NCAs | K16: CCG Minimum Contribution | O16: E09000005 | P16: Brent | Q16: E09000005 | U16: NHS Blackpool CCG | V16: 00R | W16: 4142 | X16: 12432 | Z16: E09000005 | AA16: Brent | AB16: E09000005 | AM16: Bracknell Forest1 | AN16: Bracknell Forest | AO16: NHS Bracknell and Ascot CCG | AP16: 6094 | AU16: Bradford | AV16: 9866.184971 | AX16: =AY16&COUNTIF($AY$3:AY16,AY16) -> Bradford1 | AY16: Bradford | AZ16: NHS Airedale, Wharfedale and Craven CCG | BA16: 2309.559897
E17: MH - Pass-through payments | K17: Additional CCG Contribution | O17: E06000043 | P17: Brighton and Hove | Q17: E06000043 | U17: NHS Bolton CCG | V17: 00T | W17: 6371 | X17: 18960 | Z17: E06000043 | AA17: Brighton and Hove | AB17: E06000043 | AM17: Bradford1 | AN17: Bradford | AO17: NHS Bradford Districts CCG | AP17: 21314 | AU17: Brent | AV17: 5731.791908 | AX17: =AY17&COUNTIF($AY$3:AY17,AY17) -> Bradford2 | AY17: Bradford | AZ17: NHS Bradford Districts CCG | BA17: 6758.85911
O18: E06000023 | P18: Bristol, City of | Q18: E06000023 | U18: NHS Bracknell and Ascot CCG | V18: 10G | W18: 1905 | X18: 6931 | Z18: E06000023 | AA18: Bristol, City of | AB18: E06000023 | AM18: Bradford2 | AN18: Bradford | AO18: NHS Bradford City CCG | AP18: 5705 | AU18: Brighton and Hove | AV18: 5221.098266 | AX18: =AY18&COUNTIF($AY$3:AY18,AY18) -> Bradford3 | AY18: Bradford | AZ18: NHS Bradford City CCG | BA18: 1460.456994
E19: Sub-total MH services | O19: E09000006 | P19: Bromley | Q19: E09000006 | U19: NHS Bradford City CCG | V19: 02W | W19: 1460 | X19: 5705 | Z19: E09000006 | AA19: Bromley | AB19: E09000006 | AM19: Bradford3 | AN19: Bradford | AO19: NHS Airedale, Wharfedale and Craven CCG | AP19: 7118 | AU19: Bristol, City of | AV19: 8070.520231 | AX19: =AY19&COUNTIF($AY$3:AY19,AY19) -> Brent1 | AY19: Brent | AZ19: NHS Brent CCG | BA19: 6155.585
O20: E10000002 | P20: Buckinghamshire | Q20: E10000002 | U20: NHS Bradford Districts CCG | V20: 02R | W20: 6759 | X20: 21314 | Z20: E10000002 | AA20: Buckinghamshire | AB20: E10000002 | AM20: Brent1 | AN20: Brent | AO20: NHS Brent CCG | AP20: 19832 | AU20: Bromley | AV20: 5558.381503 | AX20: =AY20&COUNTIF($AY$3:AY20,AY20) -> Brighton and Hove1 | AY20: Brighton and Hove | AZ20: NHS Brighton and Hove CCG | BA20: 5631.359
E21: Community Health Services | O21: E08000002 | P21: Bury | Q21: E08000002 | U21: NHS Brent CCG | V21: 07P | W21: 6156 | X21: 19832 | Z21: E08000002 | AA21: Bury | AB21: E08000002 | AM21: Brighton and Hove1 | AN21: Brighton and Hove | AO21: NHS Brighton and Hove CCG | AP21: 18065 | AU21: Buckinghamshire | AV21: 7626.300578 | AX21: =AY21&COUNTIF($AY$3:AY21,AY21) -> Bristol, City of1 | AY21: Bristol, City of | AZ21: NHS Bristol CCG | BA21: 9296.677
E22: CH Contracts - NHS | O22: E08000033 | P22: Calderdale | Q22: E08000033 | U22: NHS Brighton & Hove CCG | V22: 09D | W22: 5631 | X22: 18065 | Z22: E08000033 | AA22: Calderdale | AB22: E08000033 | AM22: Bristol, City of1 | AN22: Bristol, City of | AO22: NHS Bristol CCG | AP22: 27924 | AU22: Bury | AV22: 3389.306358 | AX22: =AY22&COUNTIF($AY$3:AY22,AY22) -> Bromley1 | AY22: Bromley | AZ22: NHS Bromley CCG | BA22: 5456.253
E23: CH Contracts - Other providers (non-nhs, incl. VS) | O23: E10000003 | P23: Cambridgeshire | Q23: E10000003 | U23: NHS Bristol CCG | V23: 11H | W23: 9297 | X23: 27924 | Z23: E10000003 | AA23: Cambridgeshire | AB23: E10000003 | AM23: Bromley1 | AN23: Bromley | AO23: NHS Bromley CCG | AP23: 19232 | AU23: Calderdale | AV23: 4001.734104 | AX23: =AY23&COUNTIF($AY$3:AY23,AY23) -> Buckinghamshire1 | AY23: Buckinghamshire | AZ23: NHS Milton Keynes CCG | BA23: 96.05277743
E24: CH - Other | O24: E09000007 | P24: Camden | Q24: E09000007 | U24: NHS Bromley CCG | V24: 07Q | W24: 5456 | X24: 19232 | Z24: E09000007 | AA24: Camden | AB24: E09000007 | AM24: Buckinghamshire1 | AN24: Buckinghamshire | AO24: NHS Milton Keynes CCG | AP24: 340 | AU24: Cambridgeshire | AV24: 9956.936416 | AX24: =AY24&COUNTIF($AY$3:AY24,AY24) -> Buckinghamshire2 | AY24: Buckinghamshire | AZ24: NHS Chiltern CCG | BA24: 4682.5729
E25: CH - Exclusions / cost per case | O25: E06000056 | P25: Central Bedfordshire | Q25: E06000056 | U25: NHS Bury CCG | V25: 00V | W25: 3743 | X25: 11727 | Z25: E06000056 | AA25: Central Bedfordshire | AB25: E06000056 | AM25: Buckinghamshire2 | AN25: Buckinghamshire | AO25: NHS Chiltern CCG | AP25: 16088 | AU25: Camden | AV25: 5251.445087 | AX25: =AY25&COUNTIF($AY$3:AY25,AY25) -> Buckinghamshire3 | AY25: Buckinghamshire | AZ25: NHS Aylesbury Vale CCG | BA25: 2881.583323
E26: CH - NCAs | O26: E06000049 | P26: Cheshire East | Q26: E06000049 | U26: NHS Calderdale CCG | V26: 02T | W26: 4219 | X26: 13846 | Z26: E06000049 | AA26: Cheshire East | AB26: E06000049 | AM26: Buckinghamshire3 | AN26: Buckinghamshire | AO26: NHS Aylesbury Vale CCG | AP26: 9959 | AU26: Central Bedfordshire | AV26: 4032.947977 | AX26: =AY26&COUNTIF($AY$3:AY26,AY26) -> Bury1 | AY26: Bury | AZ26: NHS Bury CCG | BA26: 3743.258
E27: CH - Pass-through payments | O27: E06000050 | P27: Cheshire West and Chester | Q27: E06000050 | U27: NHS Cambridgeshire and Peterborough CCG | V27: 06H | W27: 14857 | X27: 47034 | Z27: E06000050 | AA27: Cheshire West and Chester | AB27: E06000050 | AM27: 0 | AU27: Cheshire East | AV27: 6385.260116 | AX27: =AY27&COUNTIF($AY$3:AY27,AY27) -> Calderdale1 | AY27: Calderdale | AZ27: NHS Calderdale CCG | BA27: 4219.494
O28: E09000001 | P28: City of London | Q28: E09000001 | U28: NHS Camden CCG | V28: 07R | W28: 5893 | X28: 18170 | Z28: E09000001 | AA28: City of London | AB28: E09000001 | AM28: Bury1 | AN28: Bury | AO28: NHS Bury CCG | AP28: 11727 | AU28: Cheshire West and Chester | AV28: 6389.306358 | AX28: =AY28&COUNTIF($AY$3:AY28,AY28) -> Cambridgeshire1 | AY28: Cambridgeshire | AZ28: NHS Cambridgeshire and Peterborough CCG | BA28: 10651.926
E29: Sub-total Community services | O29: E06000052 | P29: Cornwall | Q29: E06000052 | U29: NHS Cannock Chase CCG | V29: 04Y | W29: 2521 | X29: 8048 | Z29: E06000052 | AA29: Cornwall | AB29: E06000052 | AM29: Calderdale1 | AN29: Calderdale | AO29: NHS Calderdale CCG | AP29: 13846 | AU29: City of London | AV29: 211.5606936 | AX29: =AY29&COUNTIF($AY$3:AY29,AY29) -> Camden1 | AY29: Camden | AZ29: NHS Camden CCG | BA29: 5893.076
O30: E06000047 | P30: County Durham | Q30: E06000047 | U30: NHS Canterbury and Coastal CCG | V30: 09E | W30: 3727 | X30: 12564 | Z30: E06000047 | AA30: County Durham | AB30: E06000047 | AM30: Cambridgeshire1 | AN30: Cambridgeshire | AO30: NHS Cambridgeshire and Peterborough CCG | AP30: 34451 | AU30: Cornwall | AV30: 10934.9711 | AX30: =AY30&COUNTIF($AY$3:AY30,AY30) -> Central Bedfordshire1 | AY30: Central Bedfordshire | AZ30: NHS Bedfordshire CCG | BA30: 3969.039
E31: Continuing Care Services (All Care Groups) | O31: E08000026 | P31: Coventry | Q31: E08000026 | U31: NHS Castle Point, Rayleigh and Rochford CCG | V31: 99F | W31: 3422 | X31: 10833 | Z31: E08000026 | AA31: Coventry | AB31: E08000026 | AM31: 0 | AU31: County Durham | AV31: 11327.45665 | AX31: =AY31&COUNTIF($AY$3:AY31,AY31) -> Cheshire East1 | AY31: Cheshire East | AZ31: NHS Eastern Cheshire CCG | BA31: 3466.445436
E32: Local Authority / Joint Services | O32: E09000008 | P32: Croydon | Q32: E09000008 | U32: NHS Central London (Westminster) CCG | V32: 09A | W32: 4454 | X32: 13553 | Z32: E09000008 | AA32: Croydon | AB32: E09000008 | AM32: 0 | AU32: Coventry | AV32: 6294.219653 | AX32: =AY32&COUNTIF($AY$3:AY32,AY32) -> Cheshire East2 | AY32: Cheshire East | AZ32: NHS South Cheshire CCG | BA32: 3182.310564
E33: Free Nursing Care | O33: E10000006 | P33: Cumbria | Q33: E10000006 | U33: NHS Central Manchester CCG | V33: 00W | W33: 3943 | X33: 12564 | Z33: E10000006 | AA33: Cumbria | AB33: E10000006 | AM33: 0 | AU33: Croydon | AV33: 6213.294798 | AX33: =AY33&COUNTIF($AY$3:AY33,AY33) -> Cheshire West and Chester1 | AY33: Cheshire West and Chester | AZ33: NHS Vale Royal CCG | BA33: 2030.114113
O34: E06000005 | P34: Darlington | Q34: E06000005 | U34: NHS Chiltern CCG | V34: 10H | W34: 4683 | X34: 16088 | Z34: E06000005 | AA34: Darlington | AB34: E06000005 | AM34: 0 | AU34: Cumbria | AV34: 10408.3815 | AX34: =AY34&COUNTIF($AY$3:AY34,AY34) -> Cheshire West and Chester2 | AY34: Cheshire West and Chester | AZ34: NHS West Cheshire CCG | BA34: 4694.638887
E35: Sub-total Continuing Care services | O35: E06000015 | P35: Derby | Q35: E06000015 | U35: NHS Chorley and South Ribble CCG | V35: 00X | W35: 3412 | X35: 11332 | Z35: E06000015 | AA35: Derby | AB35: E06000015 | AM35: Camden1 | AN35: Camden | AO35: NHS Camden CCG | AP35: 18170 | AU35: Darlington | AV35: 2073.699422 | AX35: =AY35&COUNTIF($AY$3:AY35,AY35) -> City of London1 | AY35: City of London | AZ35: NHS City and Hackney CCG | BA35: 223.624
O36: E10000007 | P36: Derbyshire | Q36: E10000007 | U36: NHS City and Hackney CCG | V36: 07T | W36: 6663 | X36: 19381 | Z36: E10000007 | AA36: Derbyshire | AB36: E10000007 | AM36: Central Bedfordshire1 | AN36: Central Bedfordshire | AO36: NHS Bedfordshire CCG | AP36: 13954 | AU36: Derby | AV36: 4585.549133 | AX36: =AY36&COUNTIF($AY$3:AY36,AY36) -> Cornwall1 | AY36: Cornwall | AZ36: NHS Kernow CCG | BA36: 12803.01
E37: Primary Care services | O37: E10000008 | P37: Devon | Q37: E10000008 | U37: NHS Coastal West Sussex CCG | V37: 09G | W37: 8935 | X37: 31215 | Z37: E10000008 | AA37: Devon | AB37: E10000008 | AM37: Cheshire East1 | AN37: Cheshire East | AO37: NHS South Cheshire CCG | AP37: 10481 | AU37: Derbyshire | AV37: 15070.23121 | AX37: =AY37&COUNTIF($AY$3:AY37,AY37) -> County Durham1 | AY37: County Durham | AZ37: NHS Durham Dales, Easington and Sedgefield CCG | BA37: 7146.678864
E38: Prescribing | O38: E08000017 | P38: Doncaster | Q38: E08000017 | U38: NHS Corby CCG | V38: 03V | W38: 1210 | X38: 4123 | Z38: E08000017 | AA38: Doncaster | AB38: E08000017 | AM38: Cheshire East2 | AN38: Cheshire East | AO38: NHS Eastern Cheshire CCG | AP38: 11612 | AU38: Devon | AV38: 14522.54335 | AX38: =AY38&COUNTIF($AY$3:AY38,AY38) -> County Durham2 | AY38: County Durham | AZ38: NHS North Durham CCG | BA38: 5789.209136
E39: Enhanced services | O39: E10000009 | P39: Dorset | Q39: E10000009 | U39: NHS Coventry and Rugby CCG | V39: 05A | W39: 8952 | X39: 28210 | Z39: E10000009 | AA39: Dorset | AB39: E10000009 | AM39: Cheshire West and Chester1 | AN39: Cheshire West and Chester | AO39: NHS West Cheshire CCG | AP39: 15812 | AU39: Doncaster | AV39: 6380.924855 | AX39: =AY39&COUNTIF($AY$3:AY39,AY39) -> Coventry1 | AY39: Coventry | AZ39: NHS Coventry and Rugby CCG | BA39: 7109.033
E40: Out of Hours | O40: E08000027 | P40: Dudley | Q40: E08000027 | U40: NHS Crawley CCG | V40: 09H | W40: 1980 | X40: 7244 | Z40: E08000027 | AA40: Dudley | AB40: E08000027 | AM40: Cheshire West and Chester2 | AN40: Cheshire West and Chester | AO40: NHS Vale Royal CCG | AP40: 6295 | AU40: Dorset | AV40: 7909.82659 | AX40: =AY40&COUNTIF($AY$3:AY40,AY40) -> Croydon1 | AY40: Croydon | AZ40: NHS Croydon CCG | BA40: 6422.805
E41: PC - Other | O41: E09000009 | P41: Ealing | Q41: E09000009 | U41: NHS Croydon CCG | V41: 07V | W41: 6423 | X41: 21498 | Z41: E09000009 | AA41: Ealing | AB41: E09000009 | AM41: City of London1 | AN41: City of London | AO41: NHS City and Hackney CCG | AP41: 732 | AU41: Dudley | AV41: 5979.768786 | AX41: =AY41&COUNTIF($AY$3:AY41,AY41) -> Cumbria1 | AY41: Cumbria | AZ41: NHS Cumbria CCG | BA41: 11491.433
O42: E06000011 | P42: East Riding of Yorkshire | Q42: E06000011 | U42: NHS Cumbria CCG | V42: 01H | W42: 11581 | X42: 36332 | Z42: E06000011 | AA42: East Riding of Yorkshire | AB42: E06000011 | AM42: Cornwall1 | AN42: Cornwall | AO42: NHS Kernow CCG | AP42: 37835 | AU42: Ealing | AV42: 6440.17341 | AX42: =AY42&COUNTIF($AY$3:AY42,AY42) -> Darlington1 | AY42: Darlington | AZ42: NHS Darlington CCG | BA42: 2297.038
E43: Sub-total Primary Care services | O43: E10000011 | P43: East Sussex | Q43: E10000011 | U43: NHS Darlington CCG | V43: 00C | W43: 2297 | X43: 7175 | Z43: E10000011 | AA43: East Sussex | AB43: E10000011 | AM43: County Durham1 | AN43: County Durham | AO43: NHS North Durham CCG | AP43: 17226 | AU43: East Riding of Yorkshire | AV43: 5916.184971 | AX43: =AY43&COUNTIF($AY$3:AY43,AY43) -> Derby1 | AY43: Derby | AZ43: NHS Southern Derbyshire CCG | BA43: 5264.275
O44: E09000010 | P44: Enfield | Q44: E09000010 | U44: NHS Dartford, Gravesham and Swanley CCG | V44: 09J | W44: 4792 | X44: 14947 | Z44: E09000010 | AA44: Enfield | AB44: E09000010 | AM44: County Durham2 | AN44: County Durham | AO44: NHS Durham Dales, Easington and Sedgefield CCG | AP44: 21967 | AU44: East Sussex | AV44: 10563.87283 | AX44: =AY44&COUNTIF($AY$3:AY44,AY44) -> Derbyshire1 | AY44: Derbyshire | AZ44: NHS Tameside and Glossop CCG | BA44: 711.0553809
E45: Other Programme services | O45: E10000012 | P45: Essex | Q45: E10000012 | U45: NHS Doncaster CCG | V45: 02X | W45: 6920 | X45: 22078 | Z45: E10000012 | AA45: Essex | AB45: E10000012 | AM45: Coventry1 | AN45: Coventry | AO45: NHS Coventry and Rugby CCG | AP45: 21778 | AU45: Enfield | AV45: 5352.023121 | AX45: =AY45&COUNTIF($AY$3:AY45,AY45) -> Derbyshire2 | AY45: Derbyshire | AZ45: NHS Erewash CCG | BA45: 2099.306363
E46: GP IT Costs | O46: E08000020 | P46: Gateshead | Q46: E08000020 | U46: NHS Dorset CCG | V46: 11J | W46: 15843 | X46: 49424 | Z46: E08000020 | AA46: Gateshead | AB46: E08000020 | AM46: Croydon1 | AN46: Croydon | AO46: NHS Croydon CCG | AP46: 21498 | AU46: Essex | AV46: 25129.19075 | AX46: =AY46&COUNTIF($AY$3:AY46,AY46) -> Derbyshire3 | AY46: Derbyshire | AZ46: NHS Hardwick CCG | BA46: 2370.184603
E47: Voluntary Sector Grants / Services | O47: E10000013 | P47: Gloucestershire | Q47: E10000013 | U47: NHS Dudley CCG | V47: 05C | W47: 7157 | X47: 20690 | Z47: E10000013 | AA47: Gloucestershire | AB47: E10000013 | AM47: Cumbria1 | AN47: Cumbria | AO47: NHS Cumbria CCG | AP47: 36013 | AU47: Gateshead | AV47: 4531.213873 | AX47: =AY47&COUNTIF($AY$3:AY47,AY47) -> Derbyshire4 | AY47: Derbyshire | AZ47: NHS North Derbyshire CCG | BA47: 5925.461507
E48: Other CCG reserves | O48: E09000011 | P48: Greenwich | Q48: E09000011 | U48: NHS Durham Dales, Easington and Sedgefield CCG | V48: 00D | W48: 7147 | X48: 21967 | Z48: E09000011 | AA48: Greenwich | AB48: E09000011 | AM48: 0 | AU48: Gloucestershire | AV48: 10401.44509 | AX48: =AY48&COUNTIF($AY$3:AY48,AY48) -> Derbyshire5 | AY48: Derbyshire | AZ48: NHS Southern Derbyshire CCG | BA48: 5519.144147
E49: Other Programme Services | O49: E09000012 | P49: Hackney | Q49: E09000012 | U49: NHS Ealing CCG | V49: 07W | W49: 6497 | X49: 22283 | Z49: E09000012 | AA49: Hackney | AB49: E09000012 | AM49: 0 | AU49: Greenwich | AV49: 5205.202312 | AX49: =AY49&COUNTIF($AY$3:AY49,AY49) -> Devon1 | AY49: Devon | AZ49: NHS North, East, West Devon CCG | BA49: 13088.76981
O50: E06000006 | P50: Halton | Q50: E06000006 | U50: NHS East and North Hertfordshire CCG | V50: 06K | W50: 9063 | X50: 31426 | Z50: E06000006 | AA50: Halton | AB50: E06000006 | AM50: 0 | AU50: Hackney | AV50: 5389.884393 | AX50: =AY50&COUNTIF($AY$3:AY50,AY50) -> Devon2 | AY50: Devon | AZ50: NHS South Devon and Torbay CCG | BA50: 3299.087186
E51: Sub-total Other Programme services | O51: E09000013 | P51: Hammersmith and Fulham | Q51: E09000013 | U51: NHS EAST LANCASHIRE CCG | V51: 01A | W51: 8163 | X51: 26095 | Z51: E09000013 | AA51: Hammersmith and Fulham | AB51: E09000013 | AM51: 0 | AU51: Halton | AV51: 2731.50289 | AX51: =AY51&COUNTIF($AY$3:AY51,AY51) -> Doncaster1 | AY51: Doncaster | AZ51: NHS Doncaster CCG | BA51: 6920.282
O52: E10000014 | P52: Hampshire | Q52: E10000014 | U52: NHS East Leicestershire and Rutland CCG | V52: 03W | W52: 5344 | X52: 17232 | Z52: E10000014 | AA52: Hampshire | AB52: E10000014 | AM52: 0 | AU52: Hammersmith and Fulham | AV52: 3800 | AX52: =AY52&COUNTIF($AY$3:AY52,AY52) -> Dorset1 | AY52: Dorset | AZ52: NHS Dorset CCG | BA52: 8869.611
E53: Total - Commissioning services | O53: E09000014 | P53: Haringey | Q53: E09000014 | U53: NHS East Riding of Yorkshire CCG | V53: 02Y | W53: 6217 | X53: 19212 | Z53: E09000014 | AA53: Haringey | AB53: E09000014 | AM53: Darlington1 | AN53: Darlington | AO53: NHS Darlington CCG | AP53: 7175 | AU53: Hampshire | AV53: 21047.10983 | AX53: =AY53&COUNTIF($AY$3:AY53,AY53) -> Dudley1 | AY53: Dudley | AZ53: NHS Dudley CCG | BA53: 7157.427
O54: E09000015 | P54: Harrow | Q54: E09000015 | U54: NHS East Staffordshire CCG | V54: 05D | W54: 2367 | X54: 7480 | Z54: E09000015 | AA54: Harrow | AB54: E09000015 | AM54: Derby1 | AN54: Derby | AO54: NHS Southern Derbyshire CCG | AP54: 15866 | AU54: Haringey | AV54: 4760.982659 | AX54: =AY54&COUNTIF($AY$3:AY54,AY54) -> Ealing1 | AY54: Ealing | AZ54: NHS Ealing CCG | BA54: 6497.189
E55: Running Costs | O55: E06000001 | P55: Hartlepool | Q55: E06000001 | U55: NHS East Surrey CCG | V55: 09L | W55: 2711 | X55: 9397 | Z55: E06000001 | AA55: Hartlepool | AB55: E06000001 | AM55: Derbyshire1 | AN55: Derbyshire | AO55: NHS Tameside and Glossop CCG | AP55: 2178 | AU55: Harrow | AV55: 3810.115607 | AX55: =AY55&COUNTIF($AY$3:AY55,AY55) -> East Riding of Yorkshire1 | AY55: East Riding of Yorkshire | AZ55: NHS East Riding of Yorkshire CCG | BA55: 6217.090167
E56: CCG Pay costs | O56: E09000016 | P56: Havering | Q56: E09000016 | U56: NHS Eastbourne, Hailsham and Seaford CCG | V56: 09F | W56: 4106 | X56: 12749 | Z56: E09000016 | AA56: Havering | AB56: E09000016 | AM56: Derbyshire2 | AN56: Derbyshire | AO56: NHS Southern Derbyshire CCG | AP56: 16963 | AU56: Hartlepool | AV56: 1922.254335 | AX56: =AY56&COUNTIF($AY$3:AY56,AY56) -> East Riding of Yorkshire2 | AY56: East Riding of Yorkshire | AZ56: NHS Vale of York CCG | BA56: 410.2648333
E57: CSU Re-charge | O57: E06000019 | P57: Herefordshire, County of | Q57: E06000019 | U57: NHS Eastern Cheshire CCG | V57: 01C | W57: 3466 | X57: 11612 | Z57: E06000019 | AA57: Herefordshire, County of | AB57: E06000019 | AM57: Derbyshire3 | AN57: Derbyshire | AO57: NHS North Derbyshire CCG | AP57: 19439 | AU57: Havering | AV57: 4478.323699 | AX57: =AY57&COUNTIF($AY$3:AY57,AY57) -> East Sussex1 | AY57: East Sussex | AZ57: NHS Eastbourne, Hailsham and Seaford CCG | BA57: 4106.390535
E58: NHS Property Services re-charge | O58: E10000015 | P58: Hertfordshire | Q58: E10000015 | U58: NHS ENFIELD CCG | V58: 07X | W58: 5952 | X58: 18518 | Z58: E10000015 | AA58: Hertfordshire | AB58: E10000015 | AM58: Derbyshire4 | AN58: Derbyshire | AO58: NHS Hardwick CCG | AP58: 7263 | AU58: Herefordshire, County of | AV58: 3379.768786 | AX58: =AY58&COUNTIF($AY$3:AY58,AY58) -> East Sussex2 | AY58: East Sussex | AZ58: NHS Hastings and Rother CCG | BA58: 3998.327626
E59: Running Costs - Other Non-pay | O59: E09000017 | P59: Hillingdon | Q59: E09000017 | U59: NHS Erewash CCG | V59: 03X | W59: 2099 | X59: 6300 | Z59: E09000017 | AA59: Hillingdon | AB59: E09000017 | AM59: Derbyshire5 | AN59: Derbyshire | AO59: NHS Erewash CCG | AP59: 6300 | AU59: Hertfordshire | AV59: 18956.6474 | AX59: =AY59&COUNTIF($AY$3:AY59,AY59) -> East Sussex3 | AY59: East Sussex | AZ59: NHS High Weald Lewes Havens CCG | BA59: 3746.180839
O60: E09000018 | P60: Hounslow | Q60: E09000018 | U60: NHS Fareham and Gosport CCG | V60: 10K | W60: 3300 | X60: 10876 | Z60: E09000018 | AA60: Hounslow | AB60: E09000018 | AM60: 0 | AU60: Hillingdon | AV60: 4520.809249 | AX60: =AY60&COUNTIF($AY$3:AY60,AY60) -> Enfield1 | AY60: Enfield | AZ60: NHS Enfield CCG | BA60: 5952.079
E61: Total - Running costs | O61: E06000046 | P61: Isle of Wight | Q61: E06000046 | U61: NHS Fylde & Wyre CCG | V61: 02M | W61: 3680 | X61: 10961 | Z61: E06000046 | AA61: Isle of Wight | AB61: E06000046 | AM61: 0 | AU61: Hounslow | AV61: 4418.49711 | AX61: =AY61&COUNTIF($AY$3:AY61,AY61) -> Essex1 | AY61: Essex | AZ61: NHS Mid Essex CCG | BA61: 7280.570539
O62: E06000053 | P62: Isles of Scilly | Q62: E06000053 | U62: NHS Gateshead CCG | V62: 00F | W62: 5194 | X62: 15678 | Z62: E06000053 | AA62: Isles of Scilly | AB62: E06000053 | AM62: 0 | AU62: Isle of Wight | AV62: 3122.254335 | AX62: =AY62&COUNTIF($AY$3:AY62,AY62) -> Essex2 | AY62: Essex | AZ62: NHS North East Essex CCG | BA62: 6036.028567
E63: Contingency | O63: E09000019 | P63: Islington | Q63: E09000019 | U63: NHS Gloucestershire CCG | V63: 11M | W63: 11596 | X63: 35989 | Z63: E09000019 | AA63: Islington | AB63: E09000019 | AM63: Devon1 | AN63: Devon | AO63: NHS South Devon and Torbay CCG | AP63: 10262 | AU63: Isles of Scilly | AV63: 39.01734104 | AX63: =AY63&COUNTIF($AY$3:AY63,AY63) -> Essex3 | AY63: Essex | AZ63: NHS West Essex CCG | BA63: 5538.211778
O64: E09000020 | P64: Kensington and Chelsea | Q64: E09000020 | U64: NHS Great Yarmouth & Waveney CCG | V64: 06M | W64: 4646 | X64: 15516 | Z64: E09000020 | AA64: Kensington and Chelsea | AB64: E09000020 | AM64: Devon2 | AN64: Devon | AO64: NHS North, East, West Devon CCG | AP64: 39986 | AU64: Islington | AV64: 4907.803468 | AX64: =AY64&COUNTIF($AY$3:AY64,AY64) -> Essex4 | AY64: Essex | AZ64: NHS Basildon and Brentwood CCG | BA64: 4853.713693
E65: Total Application of Funds | O65: E10000016 | P65: Kent | Q65: E10000016 | U65: NHS Greater Huddersfield CCG | V65: 03A | W65: 4739 | X65: 14697 | Z65: E10000016 | AA65: Kent | AB65: E10000016 | AM65: 0 | AU65: Kensington and Chelsea | AV65: 3809.248555 | AX65: =AY65&COUNTIF($AY$3:AY65,AY65) -> Essex5 | AY65: Essex | AZ65: NHS Castle Point and Rochford CCG | BA65: 3422.490424
O66: E06000010 | P66: Kingston upon Hull, City of | Q66: E06000010 | U66: NHS Greater Preston CCG | V66: 01E | W66: 4282 | X66: 13223 | Z66: E06000010 | AA66: Kingston upon Hull, City of | AB66: E06000010 | AM66: 0 | AU66: Kent | AV66: 26232.36994 | AX66: =AY66&COUNTIF($AY$3:AY66,AY66) -> Gateshead1 | AY66: Gateshead | AZ66: NHS Gateshead CCG | BA66: 5194.221
O67: E09000021 | P67: Kingston upon Thames | Q67: E09000021 | U67: NHS Greenwich CCG | V67: 08A | W67: 6097 | X67: 18010 | Z67: E09000021 | AA67: Kingston upon Thames | AB67: E09000021 | AM67: 0 | AU67: Kingston upon Hull, City of | AV67: 5729.479769 | AX67: =AY67&COUNTIF($AY$3:AY67,AY67) -> Gloucestershire1 | AY67: Gloucestershire | AZ67: NHS Gloucestershire CCG | BA67: 11595.761
O68: E08000034 | P68: Kirklees | Q68: =O68 -> E08000034 | U68: NHS Guildford and Waverley CCG | V68: 09N | W68: 3322 | X68: 11609 | Z68: E08000034 | AA68: Kirklees | AB68: E08000034 | AM68: 0 | AU68: Kingston upon Thames | AV68: 2856.069364 | AX68: =AY68&COUNTIF($AY$3:AY68,AY68) -> Greenwich1 | AY68: Greenwich | AZ68: NHS Greenwich CCG | BA68: 6097.101
O69: E08000011 | P69: Knowsley | Q69: E08000011 | U69: NHS Halton CCG | V69: 01F | W69: 2929 | X69: 9451 | Z69: E08000011 | AA69: Knowsley | AB69: E08000011 | AM69: 0 | AU69: Kirklees | AV69: 7674.855491 | AX69: =AY69&COUNTIF($AY$3:AY69,AY69) -> Hackney1 | AY69: Hackney | AZ69: NHS City and Hackney CCG | BA69: 6439.598
O70: E09000022 | P70: Lambeth | Q70: E09000022 | U70: NHS Hambleton, Richmondshire and Whitby CCG | V70: 03D | W70: 2829 | X70: 9152 | Z70: E09000022 | AA70: Lambeth | AB70: E09000022 | AM70: 0 | AU70: Knowsley | AV70: 3878.612717 | AX70: =AY70&COUNTIF($AY$3:AY70,AY70) -> Halton1 | AY70: Halton | AZ70: NHS Halton CCG | BA70: 2929.355
O71: E10000017 | P71: Lancashire | Q71: E10000017 | U71: NHS Hammersmith and Fulham CCG | V71: 08C | W71: 4209 | X71: 13148 | Z71: E10000017 | AA71: Lancashire | AB71: E10000017 | AM71: Doncaster1 | AN71: Doncaster | AO71: NHS Doncaster CCG | AP71: 22078 | AU71: Lambeth | AV71: 6360.404624 | AX71: =AY71&COUNTIF($AY$3:AY71,AY71) -> Hammersmith and Fulham1 | AY71: Hammersmith and Fulham | AZ71: NHS Hammersmith and Fulham CCG | BA71: 4209.247
O72: E08000035 | P72: Leeds | Q72: E08000035 | U72: NHS Hardwick CCG | V72: 03Y | W72: 2370 | X72: 7263 | Z72: E08000035 | AA72: Leeds | AB72: E08000035 | AM72: Dorset1 | AN72: Dorset | AO72: NHS Dorset CCG | AP72: 27368 | AU72: Lancashire | AV72: 22974.56647 | AX72: =AY72&COUNTIF($AY$3:AY72,AY72) -> Hampshire1 | AY72: Hampshire | AZ72: NHS North Hampshire CCG | BA72: 3588.254601
O73: E06000016 | P73: Leicester | Q73: E06000016 | U73: NHS Haringey CCG | V73: 08D | W73: 5263 | X73: 16473 | Z73: E06000016 | AA73: Leicester | AB73: E06000016 | AM73: 0 | AU73: Leeds | AV73: 14485.83815 | AX73: =AY73&COUNTIF($AY$3:AY73,AY73) -> Hampshire2 | AY73: Hampshire | AZ73: NHS Fareham and Gosport CCG | BA73: 3300.146567
O74: E10000018 | P74: Leicestershire | Q74: E10000018 | U74: NHS Harrogate and Rural District CCG | V74: 03E | W74: 3097 | X74: 9557 | Z74: E10000018 | AA74: Leicestershire | AB74: E10000018 | AM74: 0 | AU74: Leicester | AV74: 6180.346821 | AX74: =AY74&COUNTIF($AY$3:AY74,AY74) -> Hampshire3 | AY74: Hampshire | AZ74: NHS South Eastern Hampshire CCG | BA74: 3483.488043
O75: E09000023 | P75: Lewisham | Q75: E09000023 | U75: NHS Harrow CCG | V75: 08E | W75: 4445 | X75: 13183 | Z75: E09000023 | AA75: Lewisham | AB75: E09000023 | AM75: 0 | AU75: Leicestershire | AV75: 10190.75145 | AX75: =AY75&COUNTIF($AY$3:AY75,AY75) -> Hampshire4 | AY75: Hampshire | AZ75: NHS West Hampshire CCG | BA75: 8774.199207
O76: E10000019 | P76: Lincolnshire | Q76: E10000019 | U76: NHS Hartlepool and Stockton-on-Tees CCG | V76: 00K | W76: 6171 | X76: 19533 | Z76: E10000019 | AA76: Lincolnshire | AB76: E10000019 | AM76: 0 | AU76: Lewisham | AV76: 5705.202312 | AX76: =AY76&COUNTIF($AY$3:AY76,AY76) -> Hampshire5 | AY76: Hampshire | AZ76: NHS North East Hampshire and Farnham CCG | BA76: 2645.355582
O77: E08000012 | P77: Liverpool | Q77: E08000012 | U77: NHS Hastings & Rother CCG | V77: 09P | W77: 3998 | X77: 13188 | Z77: E08000012 | AA77: Liverpool | AB77: E08000012 | AM77: 0 | AU77: Lincolnshire | AV77: 13988.15029 | AX77: =AY77&COUNTIF($AY$3:AY77,AY77) -> Haringey1 | AY77: Haringey | AZ77: NHS Haringey CCG | BA77: 5262.594
O78: E06000032 | P78: Luton | Q78: E06000032 | U78: NHS Havering CCG | V78: 08F | W78: 4609 | X78: 15495 | Z78: E06000032 | AA78: Luton | AB78: E06000032 | AM78: Dudley1 | AN78: Dudley | AO78: NHS Dudley CCG | AP78: 20690 | AU78: Liverpool | AV78: 11512.13873 | AX78: =AY78&COUNTIF($AY$3:AY78,AY78) -> Harrow1 | AY78: Harrow | AZ78: NHS Harrow CCG | BA78: 4445.047
O79: E08000003 | P79: Manchester | Q79: E08000003 | U79: NHS Herefordshire CCG | V79: 05F | W79: 4036 | X79: 11694 | Z79: E08000003 | AA79: Manchester | AB79: E08000003 | AM79: Ealing1 | AN79: Ealing | AO79: NHS Ealing CCG | AP79: 22283 | AU79: Luton | AV79: 3467.630058 | AX79: =AY79&COUNTIF($AY$3:AY79,AY79) -> Hartlepool1 | AY79: Hartlepool | AZ79: NHS Hartlepool and Stockton-on-Tees CCG | BA79: 2296.816
O80: E06000035 | P80: Medway | Q80: E06000035 | U80: NHS Herts Valleys CCG | V80: 06N | W80: 9585 | X80: 33164 | Z80: E06000035 | AA80: Medway | AB80: E06000035 | AM80: East Riding of Yorkshire1 | AN80: East Riding of Yorkshire | AO80: NHS Vale of York CCG | AP80: 1258 | AU80: Manchester | AV80: 10878.03468 | AX80: =AY80&COUNTIF($AY$3:AY80,AY80) -> Havering1 | AY80: Havering | AZ80: NHS Havering CCG | BA80: 4609.381
O81: E09000024 | P81: Merton | Q81: E09000024 | U81: NHS Heywood, Middleton & Rochdale CCG | V81: 01D | W81: 5080 | X81: 15125 | Z81: E09000024 | AA81: Merton | AB81: E09000024 | AM81: East Riding of Yorkshire2 | AN81: East Riding of Yorkshire | AO81: NHS East Riding of Yorkshire CCG | AP81: 19212 | AU81: Medway | AV81: 4668.786127 | AX81: =AY81&COUNTIF($AY$3:AY81,AY81) -> Herefordshire, County of1 | AY81: Herefordshire, County of | AZ81: NHS Herefordshire CCG | BA81: 4036.146
O82: E06000002 | P82: Middlesbrough | Q82: E06000002 | U82: NHS High Weald Lewes Havens CCG | V82: 99K | W82: 3746 | X82: 10614 | Z82: E06000002 | AA82: Middlesbrough | AB82: E06000002 | AM82: East Sussex1 | AN82: East Sussex | AO82: NHS High Weald Lewes Havens CCG | AP82: 10614 | AU82: Merton | AV82: 3252.601156 | AX82: =AY82&COUNTIF($AY$3:AY82,AY82) -> Hertfordshire1 | AY82: Hertfordshire | AZ82: NHS Cambridgeshire and Peterborough CCG | BA82: 302.0919159
O83: E06000042 | P83: Milton Keynes | Q83: E06000042 | U83: NHS Hillingdon CCG | V83: 08G | W83: 4772 | X83: 15642 | Z83: E06000042 | AA83: Milton Keynes | AB83: E06000042 | AM83: East Sussex2 | AN83: East Sussex | AO83: NHS Hastings and Rother CCG | AP83: 13188 | AU83: Middlesbrough | AV83: 3013.872832 | AX83: =AY83&COUNTIF($AY$3:AY83,AY83) -> Hertfordshire2 | AY83: Hertfordshire | AZ83: NHS East and North Hertfordshire CCG | BA83: 9062.757478
O84: E08000021 | P84: Newcastle upon Tyne | Q84: E08000021 | U84: NHS Horsham and Mid Sussex CCG | V84: 09X | W84: 4109 | X84: 12712 | Z84: E08000021 | AA84: Newcastle upon Tyne | AB84: E08000021 | AM84: East Sussex3 | AN84: East Sussex | AO84: NHS Eastbourne, Hailsham and Seaford CCG | AP84: 12749 | AU84: Milton Keynes | AV84: 3886.705202 | AX84: =AY84&COUNTIF($AY$3:AY84,AY84) -> Hertfordshire3 | AY84: Hertfordshire | AZ84: NHS Herts Valleys CCG | BA84: 9584.552606
O85: E09000025 | P85: Newham | Q85: E09000025 | U85: NHS Hounslow CCG | V85: 07Y | W85: 4580 | X85: 15288 | Z85: E09000025 | AA85: Newham | AB85: E09000025 | AM85: 0 | AU85: Newcastle upon Tyne | AV85: 5759.248555 | AX85: =AY85&COUNTIF($AY$3:AY85,AY85) -> Hillingdon1 | AY85: Hillingdon | AZ85: NHS Hillingdon CCG | BA85: 4771.743
O86: E10000020 | P86: Norfolk | Q86: E10000020 | U86: NHS Hull CCG | V86: 03F | W86: 6659 | X86: 19824 | Z86: E10000020 | AA86: Norfolk | AB86: E10000020 | AM86: 0 | AU86: Newham | AV86: 6080.924855 | AX86: =AY86&COUNTIF($AY$3:AY86,AY86) -> Hounslow1 | AY86: Hounslow | AZ86: NHS Hounslow CCG | BA86: 4580.316
O87: E06000012 | P87: North East Lincolnshire | Q87: E06000012 | U87: NHS Ipswich and East Suffolk CCG | V87: 06L | W87: 8067 | X87: 22885 | Z87: E06000012 | AA87: North East Lincolnshire | AB87: E06000012 | AM87: Enfield1 | AN87: Enfield | AO87: NHS Enfield CCG | AP87: 18518 | AU87: Norfolk | AV87: 16295.08671 | AX87: =AY87&COUNTIF($AY$3:AY87,AY87) -> Isle of Wight1 | AY87: Isle of Wight | AZ87: NHS Isle of Wight CCG | BA87: 3512.737
O88: E06000013 | P88: North Lincolnshire | Q88: E06000013 | U88: NHS Isle of Wight CCG | V88: 10L | W88: 3513 | X88: 10803 | Z88: E06000013 | AA88: North Lincolnshire | AB88: E06000013 | AM88: Essex1 | AN88: Essex | AO88: NHS West Essex CCG | AP88: 17435 | AU88: North East Lincolnshire | AV88: 3250.289017 | AX88: =AY88&COUNTIF($AY$3:AY88,AY88) -> Isles of Scilly1 | AY88: Isles of Scilly | AZ88: NHS Kernow CCG | BA88: 58.029
O89: E06000024 | P89: North Somerset | Q89: E06000024 | U89: NHS Islington CCG | V89: 08H | W89: 5894 | X89: 16981 | Z89: E06000024 | AA89: North Somerset | AB89: E06000024 | AM89: Essex2 | AN89: Essex | AO89: NHS North East Essex CCG | AP89: 20987 | AU89: North Lincolnshire | AV89: 3180.924855 | AX89: =AY89&COUNTIF($AY$3:AY89,AY89) -> Islington1 | AY89: Islington | AZ89: NHS Islington CCG | BA89: 5893.658
O90: E08000022 | P90: North Tyneside | Q90: E08000022 | U90: NHS Kernow CCG | V90: 11N | W90: 12861 | X90: 37970 | Z90: E08000022 | AA90: North Tyneside | AB90: E08000022 | AM90: Essex3 | AN90: Essex | AO90: NHS Mid Essex CCG | AP90: 21651 | AU90: North Somerset | AV90: 3821.676301 | AX90: =AY90&COUNTIF($AY$3:AY90,AY90) -> Kensington and Chelsea1 | AY90: Kensington and Chelsea | AZ90: NHS West London (K&C & QPP) CCG | BA90: 3972.86
O91: E10000023 | P91: North Yorkshire | Q91: E10000023 | U91: NHS Kingston CCG | V91: 08J | W91: 2627 | X91: 9882 | Z91: E10000023 | AA91: North Yorkshire | AB91: E10000023 | AM91: Essex4 | AN91: Essex | AO91: NHS Castle Point and Rochford CCG | AP91: 10833 | AU91: North Tyneside | AV91: 4402.601156 | AX91: =AY91&COUNTIF($AY$3:AY91,AY91) -> Kent1 | AY91: Kent | AZ91: NHS Ashford CCG | BA91: 2443.220894
O92: E10000021 | P92: Northamptonshire | Q92: E10000021 | U92: NHS Knowsley CCG | V92: 01J | W92: 4478 | X92: 13420 | Z92: E10000021 | AA92: Northamptonshire | AB92: E10000021 | AM92: Essex5 | AN92: Essex | AO92: NHS Basildon and Brentwood CCG | AP92: 16041 | AU92: North Yorkshire | AV92: 10523.69942 | AX92: =AY92&COUNTIF($AY$3:AY92,AY92) -> Kent2 | AY92: Kent | AZ92: NHS Canterbury and Coastal CCG | BA92: 3727.47803
O93: E06000048 | P93: Northumberland | Q93: E06000048 | U93: NHS Lambeth CCG | V93: 08K | W93: 6916 | X93: 22007 | Z93: E06000048 | AA93: Northumberland | AB93: E06000048 | AM93: 0 | AU93: Northamptonshire | AV93: 11734.9711 | AX93: =AY93&COUNTIF($AY$3:AY93,AY93) -> Kent3 | AY93: Kent | AZ93: NHS Dartford, Gravesham and Swanley CCG | BA93: 4792.471753
O94: E06000018 | P94: Nottingham | Q94: E06000018 | U94: NHS Lancashire North CCG | V94: 01K | W94: 3312 | X94: 10462 | Z94: E06000018 | AA94: Nottingham | AB94: E06000018 | AM94: 0 | AU94: Northumberland | AV94: 6435.549133 | AX94: =AY94&COUNTIF($AY$3:AY94,AY94) -> Kent4 | AY94: Kent | AZ94: NHS South Kent Coast CCG | BA94: 3884.094754
O95: E10000024 | P95: Nottinghamshire | Q95: E10000024 | U95: NHS Leeds North CCG | V95: 02V | W95: 4157 | X95: 12665 | Z95: E10000024 | AA95: Nottinghamshire | AB95: E10000024 | AM95: 0 | AU95: Nottingham | AV95: 6191.040462 | AX95: =AY95&COUNTIF($AY$3:AY95,AY95) -> Kent5 | AY95: Kent | AZ95: NHS Swale CCG | BA95: 2067.340756
O96: E08000004 | P96: Oldham | Q96: E08000004 | U96: NHS Leeds South and East CCG | V96: 03G | W96: 4880 | X96: 17351 | Z96: E08000004 | AA96: Oldham | AB96: E08000004 | AM96: 0 | AU96: Nottinghamshire | AV96: 14374.85549 | AX96: =AY96&COUNTIF($AY$3:AY96,AY96) -> Kent6 | AY96: Kent | AZ96: NHS Thanet CCG | BA96: 2631.160962
O97: E10000025 | P97: Oxfordshire | Q97: E10000025 | U97: NHS Leeds West CCG | V97: 03C | W97: 6139 | X97: 20105 | Z97: E10000025 | AA97: Oxfordshire | AB97: E10000025 | AM97: 0 | AU97: Oldham | AV97: 4634.682081 | AX97: =AY97&COUNTIF($AY$3:AY97,AY97) -> Kent7 | AY97: Kent | AZ97: NHS West Kent CCG | BA97: 8707.889851
O98: E06000031 | P98: Peterborough | Q98: E06000031 | U98: NHS Leicester City CCG | V98: 04C | W98: 7213 | X98: 21384 | Z98: E06000031 | AA98: Peterborough | AB98: E06000031 | AM98: 0 | AU98: Oxfordshire | AV98: 9796.820809 | AX98: =AY98&COUNTIF($AY$3:AY98,AY98) -> Kingston upon Hull, City of1 | AY98: Kingston upon Hull, City of | AZ98: NHS Hull CCG | BA98: 6659.322
O99: E06000026 | P99: Plymouth | Q99: E06000026 | U99: NHS Lewisham CCG | V99: 08L | W99: 6269 | X99: 19740 | Z99: E06000026 | AA99: Plymouth | AB99: E06000026 | AM99: 0 | AU99: Peterborough | AV99: 3105.780347 | AX99: =AY99&COUNTIF($AY$3:AY99,AY99) -> Kingston upon Thames1 | AY99: Kingston upon Thames | AZ99: NHS Kingston CCG | BA99: 2627.07
O100: E06000044 | P100: Portsmouth | Q100: E06000044 | U100: NHS Lincolnshire East CCG | V100: 03T | W100: 4815 | X100: 16187 | Z100: E0600002 | AA100: Poole | AB100: E0600002 | AM100: Gateshead1 | AN100: Gateshead | AO100: NHS Gateshead CCG | AP100: 15678 | AU100: Plymouth | AV100: 5130.057803 | AX100: =AY100&COUNTIF($AY$3:AY100,AY100) -> Kirklees1 | AY100: Kirklees | AZ100: NHS Greater Huddersfield CCG | BA100: 4739.465884
O101: E06000038 | P101: Reading | Q101: E06000038 | U101: NHS Lincolnshire West CCG | V101: 04D | W101: 5035 | X101: 14497 | Z101: E06000044 | AA101: Portsmouth | AB101: E06000044 | AM101: Gloucestershire1 | AN101: Gloucestershire | AO101: NHS Gloucestershire CCG | AP101: 35989 | AU101: Poole | AV101: 2841.32948 | AX101: =AY101&COUNTIF($AY$3:AY101,AY101) -> Kirklees2 | AY101: Kirklees | AZ101: NHS North Kirklees CCG | BA101: 3784.990116
O102: E09000026 | P102: Redbridge | Q102: E09000026 | U102: NHS Liverpool CCG | V102: 99A | W102: 13553 | X102: 39832 | Z102: E06000038 | AA102: Reading | AB102: E06000038 | AM102: 0 | AU102: Portsmouth | AV102: 3772.254335 | AX102: =AY102&COUNTIF($AY$3:AY102,AY102) -> Knowsley1 | AY102: Knowsley | AZ102: NHS Knowsley CCG | BA102: 4478.172
O103: E06000003 | P103: Redcar and Cleveland | Q103: E06000003 | U103: NHS Luton CCG | V103: 06P | W103: 3612 | X103: 11998 | Z103: E09000026 | AA103: Redbridge | AB103: E09000026 | AM103: 0 | AU103: Reading | AV103: 2623.121387 | AX103: =AY103&COUNTIF($AY$3:AY103,AY103) -> Lambeth1 | AY103: Lambeth | AZ103: NHS Lambeth CCG | BA103: 6915.866
O104: E09000027 | P104: Richmond upon Thames | Q104: E09000027 | U104: NHS Mansfield & Ashfield CCG | V104: 04E | W104: 3936 | X104: 12418 | Z104: E06000003 | AA104: Redcar and Cleveland | AB104: E06000003 | AM104: 0 | AU104: Redbridge | AV104: 4633.526012 | AX104: =AY104&COUNTIF($AY$3:AY104,AY104) -> Lancashire1 | AY104: Lancashire | AZ104: NHS Chorley and South Ribble CCG | BA104: 3412.349151
O105: E08000005 | P105: Rochdale | Q105: E08000005 | U105: NHS Medway CCG | V105: 09W | W105: 4574 | X105: 16154 | Z105: E09000027 | AA105: Richmond upon Thames | AB105: E09000027 | AM105: 0 | AU105: Redcar and Cleveland | AV105: 3010.404624 | AX105: =AY105&COUNTIF($AY$3:AY105,AY105) -> Lancashire2 | AY105: Lancashire | AZ105: NHS East Lancashire CCG | BA105: 8162.874439
O106: E08000018 | P106: Rotherham | Q106: E08000018 | U106: NHS Merton CCG | V106: 08R | W106: 3428 | X106: 11254 | Z106: E08000005 | AA106: Rochdale | AB106: E08000005 | AM106: 0 | AU106: Richmond upon Thames | AV106: 3089.306358 | AX106: =AY106&COUNTIF($AY$3:AY106,AY106) -> Lancashire3 | AY106: Lancashire | AZ106: NHS Greater Preston CCG | BA106: 4282.16364
O107: E06000017 | P107: Rutland | Q107: E06000017 | U107: NHS Mid Essex CCG | V107: 06Q | W107: 7281 | X107: 21651 | Z107: E08000018 | AA107: Rotherham | AB107: E08000018 | AM107: Greenwich1 | AN107: Greenwich | AO107: NHS Greenwich CCG | AP107: 18010 | AU107: Rochdale | AV107: 4371.387283 | AX107: =AY107&COUNTIF($AY$3:AY107,AY107) -> Lancashire4 | AY107: Lancashire | AZ107: NHS Lancashire North CCG | BA107: 3311.98594
O108: E08000006 | P108: Salford | Q108: E08000006 | U108: NHS Milton Keynes CCG | V108: 04F | W108: 4258 | X108: 13788 | Z108: E06000017 | AA108: Rutland | AB108: E06000017 | AM108: Hackney1 | AN108: Hackney | AO108: NHS City and Hackney CCG | AP108: 18649 | AU108: Rotherham | AV108: 5303.468208 | AX108: =AY108&COUNTIF($AY$3:AY108,AY108) -> Lancashire5 | AY108: Lancashire | AZ108: NHS West Lancashire CCG | BA108: 2442.171451
O109: E08000028 | P109: Sandwell | Q109: E08000028 | U109: NHS Nene CCG | V109: 04G | W109: 10978 | X109: 35643 | Z109: E08000006 | AA109: Salford | AB109: E08000006 | AM109: Halton1 | AN109: Halton | AO109: NHS Halton CCG | AP109: 9451 | AU109: Rutland | AV109: 591.3294798 | AX109: =AY109&COUNTIF($AY$3:AY109,AY109) -> Lancashire6 | AY109: Lancashire | AZ109: NHS Fylde and Wyre CCG | BA109: 3679.984378
O110: E08000014 | P110: Sefton | Q110: E08000014 | U110: NHS Newark & Sherwood CCG | V110: 04H | W110: 2309 | X110: 7718 | Z110: E08000028 | AA110: Sandwell | AB110: E08000028 | AM110: Hammersmith and Fulham1 | AN110: Hammersmith and Fulham | AO110: NHS Hammersmith and Fulham CCG | AP110: 13148 | AU110: Salford | AV110: 5225.433526 | AX110: =AY110&COUNTIF($AY$3:AY110,AY110) -> Leeds1 | AY110: Leeds | AZ110: NHS Leeds North CCG | BA110: 4155.583469
O111: E08000019 | P111: Sheffield | Q111: E08000019 | U111: NHS Newbury and District CCG | V111: 10M | W111: 1538 | X111: 5722 | Z111: E08000014 | AA111: Sefton | AB111: E08000014 | AM111: Hampshire1 | AN111: Hampshire | AO111: NHS West Hampshire CCG | AP111: 29845 | AU111: Sandwell | AV111: 6702.890173 | AX111: =AY111&COUNTIF($AY$3:AY111,AY111) -> Leeds2 | AY111: Leeds | AZ111: NHS Leeds West CCG | BA111: 6138.930124
O112: E06000051 | P112: Shropshire | Q112: E06000051 | U112: NHS Newcastle North and East CCG | V112: 00G | W112: 3341 | X112: 9691 | Z112: E08000019 | AA112: Sheffield | AB112: E08000019 | AM112: Hampshire2 | AN112: Hampshire | AO112: NHS South Eastern Hampshire CCG | AP112: 11617 | AU112: Sefton | AV112: 6136.416185 | AX112: =AY112&COUNTIF($AY$3:AY112,AY112) -> Leeds3 | AY112: Leeds | AZ112: NHS Leeds South and East CCG | BA112: 4879.662407
O113: E06000039 | P113: Slough | Q113: E06000039 | U113: NHS Newcastle West CCG | V113: 00H | W113: 3538 | X113: 10236 | Z113: E06000051 | AA113: Shropshire | AB113: E06000051 | AM113: Hampshire3 | AN113: Hampshire | AO113: NHS North Hampshire CCG | AP113: 11391 | AU113: Sheffield | AV113: 10919.9422 | AX113: =AY113&COUNTIF($AY$3:AY113,AY113) -> Leicester1 | AY113: Leicester | AZ113: NHS Leicester City CCG | BA113: 7212.968
O114: E08000029 | P114: Solihull | Q114: E08000029 | U114: NHS Newham CCG | V114: 08M | W114: 6730 | X114: 21040 | Z114: E06000039 | AA114: Slough | AB114: E06000039 | AM114: Hampshire4 | AN114: Hampshire | AO114: NHS North East Hampshire and Farnham CCG | AP114: 9094 | AU114: Shropshire | AV114: 5576.878613 | AX114: =AY114&COUNTIF($AY$3:AY114,AY114) -> Leicestershire1 | AY114: Leicestershire | AZ114: NHS East Leicestershire and Rutland CCG | BA114: 4722.312374
O115: E10000027 | P115: Somerset | Q115: E10000027 | U115: NHS North & West Reading CCG | V115: 10N | W115: 1618 | X115: 5716 | Z115: E08000029 | AA115: Solihull | AB115: E08000029 | AM115: Hampshire5 | AN115: Hampshire | AO115: NHS Fareham and Gosport CCG | AP115: 10876 | AU115: Slough | AV115: 2331.791908 | AX115: =AY115&COUNTIF($AY$3:AY115,AY115) -> Leicestershire2 | AY115: Leicestershire | AZ115: NHS West Leicestershire CCG | BA115: 6342.987626
O116: E06000025 | P116: South Gloucestershire | Q116: E06000025 | U116: NHS North Derbyshire CCG | V116: 04J | W116: 5925 | X116: 19439 | Z116: E10000027 | AA116: Somerset | AB116: E10000027 | AM116: 0 | AU116: Solihull | AV116: 3965.028902 | AX116: =AY116&COUNTIF($AY$3:AY116,AY116) -> Lewisham1 | AY116: Lewisham | AZ116: NHS Lewisham CCG | BA116: 6269.459
O117: E08000023 | P117: South Tyneside | Q117: E08000023 | U117: NHS North Durham CCG | V117: 00J | W117: 5789 | X117: 17226 | Z117: E06000025 | AA117: South Gloucestershire | AB117: E06000025 | AM117: 0 | AU117: Somerset | AV117: 10134.9711 | AX117: =AY117&COUNTIF($AY$3:AY117,AY117) -> Lincolnshire1 | AY117: Lincolnshire | AZ117: NHS Lincolnshire East CCG | BA117: 4814.698207
O118: E06000045 | P118: Southampton | Q118: E06000045 | U118: NHS North East Essex CCG | V118: 06T | W118: 6036 | X118: 20987 | Z118: E08000023 | AA118: South Tyneside | AB118: E08000023 | AM118: 0 | AU118: South Gloucestershire | AV118: 3908.959538 | AX118: =AY118&COUNTIF($AY$3:AY118,AY118) -> Lincolnshire2 | AY118: Lincolnshire | AZ118: NHS Lincolnshire West CCG | BA118: 5035.218736
O119: E06000033 | P119: Southend-on-Sea | Q119: E06000033 | U119: NHS North East Hampshire and Farnham CCG | V119: 99M | W119: 3394 | X119: 11695 | Z119: E06000045 | AA119: Southampton | AB119: E06000045 | AM119: 0 | AU119: South Tyneside | AV119: 3617.052023 | AX119: =AY119&COUNTIF($AY$3:AY119,AY119) -> Lincolnshire3 | AY119: Lincolnshire | AZ119: NHS South West Lincolnshire CCG | BA119: 2499.232657
O120: E09000028 | P120: Southwark | Q120: E09000028 | U120: NHS North East Lincolnshire CCG | V120: 03H | W120: 3574 | X120: 11246 | Z120: E06000033 | AA120: Southend-on-Sea | AB120: E06000033 | AM120: 0 | AU120: Southampton | AV120: 4429.190751 | AX120: =AY120&COUNTIF($AY$3:AY120,AY120) -> Lincolnshire4 | AY120: Lincolnshire | AZ120: NHS South Lincolnshire CCG | BA120: 3087.2874
O121: E08000013 | P121: St. Helens | Q121: E08000013 | U121: NHS North Hampshire CCG | V121: 10J | W121: 3588 | X121: 11391 | Z121: E09000028 | AA121: Southwark | AB121: E09000028 | AM121: 0 | AU121: Southend-on-Sea | AV121: 3358.092486 | AX121: =AY121&COUNTIF($AY$3:AY121,AY121) -> Liverpool1 | AY121: Liverpool | AZ121: NHS Liverpool CCG | BA121: 13553.41
O122: E10000028 | P122: Staffordshire | Q122: E10000028 | U122: NHS North Kirklees CCG | V122: 03J | W122: 3785 | X122: 11858 | Z122: E08000013 | AA122: St. Helens | AB122: E08000013 | AM122: Haringey1 | AN122: Haringey | AO122: NHS Haringey CCG | AP122: 16473 | AU122: Southwark | AV122: 5918.49711 | AX122: =AY122&COUNTIF($AY$3:AY122,AY122) -> Luton1 | AY122: Luton | AZ122: NHS Luton CCG | BA122: 3612.238
O123: E08000007 | P123: Stockport | Q123: E08000007 | U123: NHS North Lincolnshire CCG | V123: 03K | W123: 3489 | X123: 11006 | Z123: E10000028 | AA123: Staffordshire | AB123: E10000028 | AM123: Harrow1 | AN123: Harrow | AO123: NHS Harrow CCG | AP123: 13183 | AU123: St. Helens | AV123: 4099.421965 | AX123: =AY123&COUNTIF($AY$3:AY123,AY123) -> Manchester1 | AY123: Manchester | AZ123: NHS Central Manchester CCG | BA123: 3943.138103
O124: E06000004 | P124: Stockton-on-Tees | Q124: E06000004 | U124: NHS North Manchester CCG | V124: 01M | W124: 4160 | X124: 13436 | Z124: E08000007 | AA124: Stockport | AB124: E08000007 | AM124: Hartlepool1 | AN124: Hartlepool | AO124: NHS Hartlepool and Stockton-On-Tees CCG | AP124: 6651 | AU124: Staffordshire | AV124: 14535.83815 | AX124: =AY124&COUNTIF($AY$3:AY124,AY124) -> Manchester2 | AY124: Manchester | AZ124: NHS North Manchester CCG | BA124: 4159.794043
O125: E06000021 | P125: Stoke-on-Trent | Q125: E06000021 | U125: NHS North Norfolk CCG | V125: 06V | W125: 3809 | X125: 11553 | Z125: E06000004 | AA125: Stockton-on-Tees | AB125: E06000004 | AM125: Havering1 | AN125: Havering | AO125: NHS Havering CCG | AP125: 15495 | AU125: Stockport | AV125: 5319.075145 | AX125: =AY125&COUNTIF($AY$3:AY125,AY125) -> Manchester3 | AY125: Manchester | AZ125: NHS South Manchester CCG | BA125: 4116.462855
O126: E10000029 | P126: Suffolk | Q126: E10000029 | U126: NHS North Somerset CCG | V126: 11T | W126: 4235 | X126: 13223 | Z126: E06000021 | AA126: Stoke-on-Trent | AB126: E06000021 | AM126: Herefordshire, County of1 | AN126: Herefordshire, County of | AO126: NHS Herefordshire CCG | AP126: 11694 | AU126: Stockton-on-Tees | AV126: 3723.121387 | AX126: =AY126&COUNTIF($AY$3:AY126,AY126) -> Medway1 | AY126: Medway | AZ126: NHS Medway CCG | BA126: 4573.577
O127: E08000024 | P127: Sunderland | Q127: E08000024 | U127: NHS North Staffordshire CCG | V127: 05G | W127: 4120 | X127: 13399 | Z127: E10000029 | AA127: Suffolk | AB127: E10000029 | AM127: Hertfordshire1 | AN127: Hertfordshire | AO127: NHS Herts Valleys CCG | AP127: 33164 | AU127: Stoke-on-Trent | AV127: 5323.410405 | AX127: =AY127&COUNTIF($AY$3:AY127,AY127) -> Merton1 | AY127: Merton | AZ127: NHS Merton CCG | BA127: 3427.92
O128: E10000030 | P128: Surrey | Q128: E10000030 | U128: NHS North Tyneside CCG | V128: 99C | W128: 4726 | X128: 15233 | Z128: E08000024 | AA128: Sunderland | AB128: E08000024 | AM128: Hertfordshire2 | AN128: Hertfordshire | AO128: NHS East and North Hertfordshire CCG | AP128: 31426 | AU128: Suffolk | AV128: 13151.15607 | AX128: =AY128&COUNTIF($AY$3:AY128,AY128) -> Middlesbrough1 | AY128: Middlesbrough | AZ128: NHS South Tees CCG | BA128: 3473.88
O129: E09000029 | P129: Sutton | Q129: E09000029 | U129: NHS North West Surrey CCG | V129: 09Y | W129: 5475 | X129: 19808 | Z129: E10000030 | AA129: Surrey | AB129: E10000030 | AM129: Hertfordshire3 | AN129: Hertfordshire | AO129: NHS Cambridgeshire and Peterborough CCG | AP129: 1000 | AU129: Sunderland | AV129: 6483.236994 | AX129: =AY129&COUNTIF($AY$3:AY129,AY129) -> Milton Keynes1 | AY129: Milton Keynes | AZ129: NHS Milton Keynes CCG | BA129: 4162.024
O130: E06000030 | P130: Swindon | Q130: E06000030 | U130: NHS North, East, West Devon CCG | V130: 99P | W130: 18974 | X130: 57737 | Z130: E09000029 | AA130: Sutton | AB130: E09000029 | AM130: 0 | AU130: Surrey | AV130: 18923.4104 | AX130: =AY130&COUNTIF($AY$3:AY130,AY130) -> Newcastle upon Tyne1 | AY130: Newcastle upon Tyne | AZ130: NHS Newcastle North and East CCG | BA130: 3341.135314
O131: E08000008 | P131: Tameside | Q131: E08000008 | U131: NHS Northumberland CCG | V131: 00L | W131: 6973 | X131: 22267 | Z131: E06000030 | AA131: Swindon | AB131: E06000030 | AM131: 0 | AU131: Sutton | AV131: 3206.936416 | AX131: =AY131&COUNTIF($AY$3:AY131,AY131) -> Newcastle upon Tyne2 | AY131: Newcastle upon Tyne | AZ131: NHS Newcastle West CCG | BA131: 3537.672686
O132: E06000020 | P132: Telford and Wrekin | Q132: =O132 -> E06000020 | U132: NHS Norwich CCG | V132: 06W | W132: 4343 | X132: 12245 | Z132: E08000008 | AA132: Tameside | AB132: E08000008 | AM132: 0 | AU132: Swindon | AV132: 3396.820809 | AX132: =AY132&COUNTIF($AY$3:AY132,AY132) -> Newham1 | AY132: Newham | AZ132: NHS Newham CCG | BA132: 6730.226
O133: E06000034 | P133: Thurrock | Q133: E06000034 | U133: NHS Nottingham City CCG | V133: 04K | W133: 7104 | X133: 21421 | Z133: E06000020 | AA133: Telford and Wrekin | AB133: E06000020 | AM133: 0 | AU133: Tameside | AV133: 4375.722543 | AX133: =AY133&COUNTIF($AY$3:AY133,AY133) -> Norfolk1 | AY133: Norfolk | AZ133: NHS Great Yarmouth and Waveney CCG | BA133: 2171.540361
O134: E06000027 | P134: Torbay | Q134: E06000027 | U134: NHS Nottingham North & East CCG | V134: 04L | W134: 3124 | X134: 9115 | Z134: E06000034 | AA134: Thurrock | AB134: E06000034 | AM134: 0 | AU134: Telford and Wrekin | AV134: 3008.67052 | AX134: =AY134&COUNTIF($AY$3:AY134,AY134) -> Norfolk2 | AY134: Norfolk | AZ134: NHS North Norfolk CCG | BA134: 3809.095387
O135: E09000030 | P135: Tower Hamlets | Q135: E09000030 | U135: NHS Nottingham West CCG | V135: 04M | W135: 2309 | X135: 6180 | Z135: E06000027 | AA135: Torbay | AB135: E06000027 | AM135: 0 | AU135: Thurrock | AV135: 2809.248555 | AX135: =AY135&COUNTIF($AY$3:AY135,AY135) -> Norfolk3 | AY135: Norfolk | AZ135: NHS Norwich CCG | BA135: 4343.080721
O136: E08000009 | P136: Trafford | Q136: E08000009 | U136: NHS Oldham CCG | V136: 00Y | W136: 5144 | X136: 16036 | Z136: E09000030 | AA136: Tower Hamlets | AB136: E09000030 | AM136: 0 | AU136: Torbay | AV136: 3044.219653 | AX136: =AY136&COUNTIF($AY$3:AY136,AY136) -> Norfolk4 | AY136: Norfolk | AZ136: NHS South Norfolk CCG | BA136: 5197.457257
O137: E08000036 | P137: Wakefield | Q137: E08000036 | U137: NHS Oxfordshire CCG | V137: 10Q | W137: 10271 | X137: 33120 | Z137: E08000009 | AA137: Trafford | AB137: E08000009 | AM137: Hillingdon1 | AN137: Hillingdon | AO137: NHS Hillingdon CCG | AP137: 15642 | AU137: Tower Hamlets | AV137: 5415.606936 | AX137: =AY137&COUNTIF($AY$3:AY137,AY137) -> Norfolk5 | AY137: Norfolk | AZ137: NHS West Norfolk CCG | BA137: 3631.100275
O138: E08000030 | P138: Walsall | Q138: E08000030 | U138: NHS Portsmouth CCG | V138: 10R | W138: 4081 | X138: 13052 | Z138: E08000036 | AA138: Wakefield | AB138: E08000036 | AM138: Hounslow1 | AN138: Hounslow | AO138: NHS Hounslow CCG | AP138: 15288 | AU138: Trafford | AV138: 4076.011561 | AX138: =AY138&COUNTIF($AY$3:AY138,AY138) -> North East Lincolnshire1 | AY138: North East Lincolnshire | AZ138: NHS North East Lincolnshire CCG | BA138: 3573.67
O139: E09000031 | P139: Waltham Forest | Q139: E09000031 | U139: NHS Redbridge CCG | V139: 08N | W139: 5115 | X139: 16032 | Z139: E08000030 | AA139: Walsall | AB139: E08000030 | AM139: Isle of Wight1 | AN139: Isle of Wight | AO139: NHS Isle of Wight CCG | AP139: 10803 | AU139: Wakefield | AV139: 7015.895954 | AX139: =AY139&COUNTIF($AY$3:AY139,AY139) -> North Lincolnshire1 | AY139: North Lincolnshire | AZ139: NHS North Lincolnshire CCG | BA139: 3487.546
O140: E09000032 | P140: Wandsworth | Q140: E09000032 | U140: NHS Redditch and Bromsgrove CCG | V140: 05J | W140: 3393 | X140: 10069 | Z140: E09000031 | AA140: Waltham Forest | AB140: E09000031 | AM140: Isles of Scilly1 | AN140: Isles of Scilly | AO140: NHS Kernow CCG | AP140: 135 | AU140: Walsall | AV140: 5590.17341 | AX140: =AY140&COUNTIF($AY$3:AY140,AY140) -> North Somerset1 | AY140: North Somerset | AZ140: NHS North Somerset CCG | BA140: 4234.75
O141: E06000007 | P141: Warrington | Q141: E06000007 | U141: NHS Richmond CCG | V141: 08P | W141: 3029 | X141: 10689 | Z141: E09000032 | AA141: Wandsworth | AB141: E09000032 | AM141: Islington1 | AN141: Islington | AO141: NHS Islington CCG | AP141: 16981 | AU141: Waltham Forest | AV141: 4639.884393 | AX141: =AY141&COUNTIF($AY$3:AY141,AY141) -> North Tyneside1 | AY141: North Tyneside | AZ141: NHS North Tyneside CCG | BA141: 4725.769
O142: E10000031 | P142: Warwickshire | Q142: E10000031 | U142: NHS Rotherham CCG | V142: 03L | W142: 6166 | X142: 18350 | Z142: E06000007 | AA142: Warrington | AB142: E06000007 | AM142: Kensington and Chelsea1 | AN142: Kensington and Chelsea | AO142: NHS West London (K&C & QPP) CCG | AP142: 13180 | AU142: Wandsworth | AV142: 5782.369942 | AX142: =AY142&COUNTIF($AY$3:AY142,AY142) -> North Yorkshire1 | AY142: North Yorkshire | AZ142: NHS Cumbria CCG | BA142: 89.34185791
O143: E06000037 | P143: West Berkshire | Q143: E06000037 | U143: NHS Rushcliffe CCG | V143: 04N | W143: 2212 | X143: 6780 | Z143: E10000031 | AA143: Warwickshire | AB143: E10000031 | AM143: Kent1 | AN143: Kent | AO143: NHS West Kent CCG | AP143: 26394 | AU143: Warrington | AV143: 3652.601156 | AX143: =AY143&COUNTIF($AY$3:AY143,AY143) -> North Yorkshire2 | AY143: North Yorkshire | AZ143: NHS Airedale, Wharfedale and Craven CCG | BA143: 863.6379598
O144: E10000032 | P144: West Sussex | Q144: E10000032 | U144: NHS Salford CCG | V144: 01G | W144: 6039 | X144: 18080 | Z144: E06000037 | AA144: West Berkshire | AB144: E06000037 | AM144: Kent2 | AN144: Kent | AO144: NHS Thanet CCG | AP144: 9699 | AU144: Warwickshire | AV144: 9528.323699 | AX144: =AY144&COUNTIF($AY$3:AY144,AY144) -> North Yorkshire3 | AY144: North Yorkshire | AZ144: NHS Hambleton, Richmondshire and Whitby CCG | BA144: 2829.158834
O145: E09000033 | P145: Westminster | Q145: E09000033 | U145: NHS Sandwell and West Birmingham CCG | V145: 05L | W145: 12165 | X145: 34169 | Z145: E10000032 | AA145: West Sussex | AB145: E10000032 | AM145: Kent3 | AN145: Kent | AO145: NHS Swale CCG | AP145: 6556 | AU145: West Berkshire | AV145: 2464.739884 | AX145: =AY145&COUNTIF($AY$3:AY145,AY145) -> North Yorkshire4 | AY145: North Yorkshire | AZ145: NHS Harrogate and Rural District CCG | BA145: 3097.184408
O146: E08000010 | P146: Wigan | Q146: E08000010 | U146: NHS Scarborough and Ryedale CCG | V146: 03M | W146: 2055 | X146: 7538 | Z146: E09000033 | AA146: Westminster | AB146: E09000033 | AM146: Kent4 | AN146: Kent | AO146: NHS South Kent Coast CCG | AP146: 13283 | AU146: West Sussex | AV146: 14898.84393 | AX146: =AY146&COUNTIF($AY$3:AY146,AY146) -> North Yorkshire5 | AY146: North Yorkshire | AZ146: NHS Scarborough and Ryedale CCG | BA146: 2054.862732
O147: E06000054 | P147: Wiltshire | Q147: E06000054 | U147: NHS Sheffield CCG | V147: 03N | W147: 12399 | X147: 37783 | Z147: E08000010 | AA147: Wigan | AB147: E08000010 | AM147: Kent5 | AN147: Kent | AO147: NHS Dartford, Gravesham and Swanley CCG | AP147: 14947 | AU147: Westminster | AV147: 5260.982659 | AX147: =AY147&COUNTIF($AY$3:AY147,AY147) -> North Yorkshire6 | AY147: North Yorkshire | AZ147: NHS Vale of York CCG | BA147: 2173.985209
O148: E06000040 | P148: Windsor and Maidenhead | Q148: E06000040 | U148: NHS Shropshire CCG | V148: 05N | W148: 6388 | X148: 19296 | Z148: E06000054 | AA148: Wiltshire | AB148: E06000054 | AM148: Kent6 | AN148: Kent | AO148: NHS Canterbury and Coastal CCG | AP148: 12564 | AU148: Wigan | AV148: 6456.936416 | AX148: =AY148&COUNTIF($AY$3:AY148,AY148) -> Northamptonshire1 | AY148: Northamptonshire | AZ148: NHS Corby CCG | BA148: 1209.92846
O149: E08000015 | P149: Wirral | Q149: E08000015 | U149: NHS Slough CCG | V149: 10T | W149: 2362 | X149: 8068 | Z149: E06000040 | AA149: Windsor and Maidenhead | AB149: E06000040 | AM149: Kent7 | AN149: Kent | AO149: NHS Ashford CCG | AP149: 7321 | AU149: Wiltshire | AV149: 7824.566474 | AX149: =AY149&COUNTIF($AY$3:AY149,AY149) -> Northamptonshire2 | AY149: Northamptonshire | AZ149: NHS Nene CCG | BA149: 10977.88749
O150: E06000041 | P150: Wokingham | Q150: E06000041 | U150: NHS Solihull CCG | V150: 05P | W150: 3989 | X150: 13719 | Z150: E08000015 | AA150: Wirral | AB150: E08000015 | AM150: 0 | AU150: Windsor and Maidenhead | AV150: 2265.895954 | AX150: =AY150&COUNTIF($AY$3:AY150,AY150) -> Northamptonshire3 | AY150: Northamptonshire | AZ150: NHS Cambridgeshire and Peterborough CCG | BA150: 265.5940521
O151: E08000031 | P151: Wolverhampton | Q151: E08000031 | U151: NHS Somerset CCG | V151: 11X | W151: 11447 | X151: 35067 | Z151: E06000041 | AA151: Wokingham | AB151: E06000041 | AM151: 0 | AU151: Wirral | AV151: 7206.069364 | AX151: =AY151&COUNTIF($AY$3:AY151,AY151) -> Northumberland1 | AY151: Northumberland | AZ151: NHS Northumberland CCG | BA151: 6973.323
O152: E10000034 | P152: Worcestershire | Q152: E10000034 | U152: NHS South Cheshire CCG | V152: 01R | W152: 3182 | X152: 10481 | Z152: E08000031 | AA152: Wolverhampton | AB152: E08000031 | AM152: 0 | AU152: Wokingham | AV152: 2147.687861 | AX152: =AY152&COUNTIF($AY$3:AY152,AY152) -> Nottingham1 | AY152: Nottingham | AZ152: NHS Nottingham City CCG | BA152: 7104.294
O153: E06000014 | P153: York | Q153: E06000014 | U153: NHS South Devon and Torbay CCG | V153: 99Q | W153: 7097 | X153: 20795 | Z153: E10000034 | AA153: Worcestershire | AB153: E10000034 | AM153: 0 | AU153: Wolverhampton | AV153: 5184.682081 | AX153: =AY153&COUNTIF($AY$3:AY153,AY153) -> Nottinghamshire1 | AY153: Nottinghamshire | AZ153: NHS Bassetlaw CCG | BA153: 2276.864507
U154: NHS South East Staffs and Seisdon and Peninsular CCG | V154: 05Q | W154: 4243 | X154: 12341 | Z154: E06000014 | AA154: York | AB154: E06000014 | AM154: 0 | AU154: Worcestershire | AV154: 9684.104046 | AX154: =AY154&COUNTIF($AY$3:AY154,AY154) -> Nottinghamshire2 | AY154: Nottinghamshire | AZ154: NHS Mansfield and Ashfield CCG | BA154: 3935.722934
U155: NHS South Eastern Hampshire CCG | V155: 10V | W155: 3483 | X155: 11617 | AM155: Kingston upon Hull, City of1 | AN155: Kingston upon Hull, City of | AO155: NHS Hull CCG | AP155: 19824 | AU155: York | AV155: 3230.057803 | AX155: =AY155&COUNTIF($AY$3:AY155,AY155) -> Nottinghamshire3 | AY155: Nottinghamshire | AZ155: NHS Newark and Sherwood CCG | BA155: 2309.391143
U156: NHS South Gloucestershire CCG | V156: 12A | W156: 4286 | X156: 13525 | AM156: Kingston upon Thames1 | AN156: Kingston upon Thames | AO156: NHS Kingston CCG | AP156: 9882 | AU156: (blank) | AV156: 0 | AX156: =AY156&COUNTIF($AY$3:AY156,AY156) -> Nottinghamshire4 | AY156: Nottinghamshire | AZ156: NHS Nottingham North and East CCG | BA156: 3122.557038
U157: NHS South Kent Coast CCG | V157: 10A | W157: 3884 | X157: 13283 | AM157: Kirklees1 | AN157: Kirklees | AO157: NHS North Kirklees CCG | AP157: 11858 | AU157: Grand Total | AV157: 1000000 | AX157: =AY157&COUNTIF($AY$3:AY157,AY157) -> Nottinghamshire5 | AY157: Nottinghamshire | AZ157: NHS Nottingham West CCG | BA157: 2309.391143
U158: NHS South Lincolnshire CCG | V158: 99D | W158: 3087 | X158: 9810 | AM158: Kirklees2 | AN158: Kirklees | AO158: NHS Greater Huddersfield CCG | AP158: 14697 | AX158: =AY158&COUNTIF($AY$3:AY158,AY158) -> Nottinghamshire6 | AY158: Nottinghamshire | AZ158: NHS Rushcliffe CCG | BA158: 2211.811235
U159: NHS South Manchester CCG | V159: 01N | W159: 4116 | X159: 11638 | AM159: Knowsley1 | AN159: Knowsley | AO159: NHS Knowsley CCG | AP159: 13420 | AX159: =AY159&COUNTIF($AY$3:AY159,AY159) -> Oldham1 | AY159: Oldham | AZ159: NHS Oldham CCG | BA159: 5144.124
U160: NHS South Norfolk CCG | V160: 06Y | W160: 5197 | X160: 14020 | AM160: Lambeth1 | AN160: Lambeth | AO160: NHS Lambeth CCG | AP160: 22007 | AX160: =AY160&COUNTIF($AY$3:AY160,AY160) -> Oxfordshire1 | AY160: Oxfordshire | AZ160: NHS Oxfordshire CCG | BA160: 10270.70586
U161: NHS South Reading CCG | V161: 10W | W161: 1749 | X161: 6166 | AM161: Lancashire1 | AN161: Lancashire | AO161: NHS West Lancashire CCG | AP161: 7419 | AX161: =AY161&COUNTIF($AY$3:AY161,AY161) -> Oxfordshire2 | AY161: Oxfordshire | AZ161: NHS Aylesbury Vale CCG | BA161: 129.0289681
U162: NHS South Sefton CCG | V162: 01T | W162: 4105 | X162: 12387 | AM162: Lancashire2 | AN162: Lancashire | AO162: NHS Lancashire North CCG | AP162: 10462 | AX162: =AY162&COUNTIF($AY$3:AY162,AY162) -> Oxfordshire3 | AY162: Oxfordshire | AZ162: NHS Swindon CCG | BA162: 103.2231744
U163: NHS South Tees CCG | V163: 00M | W163: 6775 | X163: 20844 | AM163: Lancashire3 | AN163: Lancashire | AO163: NHS Greater Preston CCG | AP163: 13223 | AX163: =AY163&COUNTIF($AY$3:AY163,AY163) -> Peterborough1 | AY163: Peterborough | AZ163: NHS Cambridgeshire and Peterborough CCG | BA163: 3637.614
U164: NHS South Tyneside CCG | V164: 00N | W164: 4195 | X164: 12515 | AM164: Lancashire4 | AN164: Lancashire | AO164: NHS Fylde & Wyre CCG | AP164: 10961 | AX164: =AY164&COUNTIF($AY$3:AY164,AY164) -> Plymouth1 | AY164: Plymouth | AZ164: NHS North, East, West Devon CCG | BA164: 5885.479
U165: NHS South Warwickshire CCG | V165: 05R | W165: 4804 | X165: 15500 | AM165: Lancashire5 | AN165: Lancashire | AO165: NHS East Lancashire CCG | AP165: 26095 | AX165: =AY165&COUNTIF($AY$3:AY165,AY165) -> Poole1 | AY165: Poole | AZ165: NHS Dorset CCG | BA165: 2922.09
U166: NHS South West Lincolnshire CCG | V166: 04Q | W166: 2499 | X166: 7905 | AM166: Lancashire6 | AN166: Lancashire | AO166: NHS Chorley and South Ribble CCG | AP166: 11332 | AX166: =AY166&COUNTIF($AY$3:AY166,AY166) -> Portsmouth1 | AY166: Portsmouth | AZ166: NHS Portsmouth CCG | BA166: 4081.079
U167: NHS South Worcestershire CCG | V167: 05T | W167: 5585 | X167: 16866 | AM167: 0 | AX167: =AY167&COUNTIF($AY$3:AY167,AY167) -> Reading1 | AY167: Reading | AZ167: NHS North and West Reading CCG | BA167: 861.1028454
U168: NHS Southampton CCG | V168: 10X | W168: 5085 | X168: 15325 | AM168: 0 | AX168: =AY168&COUNTIF($AY$3:AY168,AY168) -> Reading2 | AY168: Reading | AZ168: NHS South Reading CCG | BA168: 1749.115155
U169: NHS Southend CCG | V169: 99G | W169: 3777 | X169: 11619 | AM169: 0 | AX169: =AY169&COUNTIF($AY$3:AY169,AY169) -> Redbridge1 | AY169: Redbridge | AZ169: NHS Redbridge CCG | BA169: 5114.891
U170: NHS Southern Derbyshire CCG | V170: 04R | W170: 10783 | X170: 32829 | AM170: 0 | AX170: =AY170&COUNTIF($AY$3:AY170,AY170) -> Redcar and Cleveland1 | AY170: Redcar and Cleveland | AZ170: NHS South Tees CCG | BA170: 3301.031
U171: NHS Southport and Formby CCG | V171: 01V | W171: 2884 | X171: 8845 | AM171: 0 | AX171: =AY171&COUNTIF($AY$3:AY171,AY171) -> Richmond upon Thames1 | AY171: Richmond upon Thames | AZ171: NHS Richmond CCG | BA171: 3028.859
U172: NHS Southwark CCG | V172: 08Q | W172: 7199 | X172: 20478 | AM172: 0 | AX172: =AY172&COUNTIF($AY$3:AY172,AY172) -> Rochdale1 | AY172: Rochdale | AZ172: NHS Heywood, Middleton and Rochdale CCG | BA172: 5079.976
U173: NHS St Helens CCG | V173: 01X | W173: 4413 | X173: 14184 | AM173: Leeds1 | AN173: Leeds | AO173: NHS Leeds West CCG | AP173: 20105 | AX173: =AY173&COUNTIF($AY$3:AY173,AY173) -> Rotherham1 | AY173: Rotherham | AZ173: NHS Rotherham CCG | BA173: 6165.899
U174: NHS Stafford and Surrounds CCG | V174: 05V | W174: 2830 | X174: 8485 | AM174: Leeds2 | AN174: Leeds | AO174: NHS Leeds South and East CCG | AP174: 17351 | AX174: =AY174&COUNTIF($AY$3:AY174,AY174) -> Rutland1 | AY174: Rutland | AZ174: NHS East Leicestershire and Rutland CCG | BA174: 622.051
U175: NHS Stockport CCG | V175: 01W | W175: 5881 | X175: 18404 | AM175: Leeds3 | AN175: Leeds | AO175: NHS Leeds North CCG | AP175: 12665 | AX175: =AY175&COUNTIF($AY$3:AY175,AY175) -> Salford1 | AY175: Salford | AZ175: NHS Salford CCG | BA175: 6039.312
U176: NHS Stoke on Trent CCG | V176: 05W | W176: 6258 | X176: 18960 | AM176: Leicester1 | AN176: Leicester | AO176: NHS Leicester City CCG | AP176: 21384 | AX176: =AY176&COUNTIF($AY$3:AY176,AY176) -> Sandwell1 | AY176: Sandwell | AZ176: NHS Sandwell and West Birmingham CCG | BA176: 8469.67
U177: NHS Sunderland CCG | V177: 00P | W177: 7186 | X177: 22432 | AM177: Leicestershire1 | AN177: Leicestershire | AO177: NHS West Leicestershire CCG | AP177: 20073 | AX177: =AY177&COUNTIF($AY$3:AY177,AY177) -> Sefton1 | AY177: Sefton | AZ177: NHS South Sefton CCG | BA177: 4104.68427
U178: NHS Surrey Downs CCG | V178: 99H | W178: 4467 | X178: 16398 | AM178: Leicestershire2 | AN178: Leicestershire | AO178: NHS East Leicestershire and Rutland CCG | AP178: 15187 | AX178: =AY178&COUNTIF($AY$3:AY178,AY178) -> Sefton2 | AY178: Sefton | AZ178: NHS Southport and Formby CCG | BA178: 2884.37273
U179: NHS Surrey Heath CCG | V179: 10C | W179: 1549 | X179: 5501 | AM179: 0 | AX179: =AY179&COUNTIF($AY$3:AY179,AY179) -> Sheffield1 | AY179: Sheffield | AZ179: NHS Sheffield CCG | BA179: 12399.124
U180: NHS Sutton CCG | V180: 08T | W180: 3379 | X180: 11096 | AM180: 0 | AX180: =AY180&COUNTIF($AY$3:AY180,AY180) -> Shropshire1 | AY180: Shropshire | AZ180: NHS Shropshire CCG | BA180: 6388.357
U181: NHS Swale CCG | V181: 10D | W181: 2067 | X181: 6556 | AM181: 0 | AX181: =AY181&COUNTIF($AY$3:AY181,AY181) -> Slough1 | AY181: Slough | AZ181: NHS Slough CCG | BA181: 2362.493
U182: NHS Swindon CCG | V182: 12D | W182: 3629 | X182: 12105 | AM182: 0 | AX182: =AY182&COUNTIF($AY$3:AY182,AY182) -> Solihull1 | AY182: Solihull | AZ182: NHS Solihull CCG | BA182: 3989.132
U183: NHS Tameside and Glossop CCG | V183: 01Y | W183: 6000 | X183: 17318 | AM183: 0 | AX183: =AY183&COUNTIF($AY$3:AY183,AY183) -> Somerset1 | AY183: Somerset | AZ183: NHS Somerset CCG | BA183: 11447.183
U184: NHS Telford & Wrekin CCG | V184: 05X | W184: 3549 | X184: 10410 | AM184: Lewisham1 | AN184: Lewisham | AO184: NHS Lewisham CCG | AP184: 19740 | AX184: =AY184&COUNTIF($AY$3:AY184,AY184) -> South Gloucestershire1 | AY184: South Gloucestershire | AZ184: NHS South Gloucestershire CCG | BA184: 4285.625
U185: NHS Thanet CCG | V185: 10E | W185: 2631 | X185: 9699 | AM185: Lincolnshire1 | AN185: Lincolnshire | AO185: NHS South West Lincolnshire CCG | AP185: 7905 | AX185: =AY185&COUNTIF($AY$3:AY185,AY185) -> South Tyneside1 | AY185: South Tyneside | AZ185: NHS South Tyneside CCG | BA185: 4194.944
U186: NHS Thurrock CCG | V186: 07G | W186: 2998 | X186: 9720 | AM186: Lincolnshire2 | AN186: Lincolnshire | AO186: NHS South Lincolnshire CCG | AP186: 9810 | AX186: =AY186&COUNTIF($AY$3:AY186,AY186) -> Southampton1 | AY186: Southampton | AZ186: NHS Southampton CCG | BA186: 5084.686
U187: NHS Tower Hamlets CCG | V187: 08V | W187: 6714 | X187: 18738 | AM187: Lincolnshire3 | AN187: Lincolnshire | AO187: NHS Lincolnshire West CCG | AP187: 14497 | AX187: =AY187&COUNTIF($AY$3:AY187,AY187) -> Southend-on-Sea1 | AY187: Southend-on-Sea | AZ187: NHS Southend CCG | BA187: 3776.668
U188: NHS Trafford CCG | V188: 02A | W188: 4334 | X188: 14103 | AM188: Lincolnshire4 | AN188: Lincolnshire | AO188: NHS Lincolnshire East CCG | AP188: 16187 | AX188: =AY188&COUNTIF($AY$3:AY188,AY188) -> Southwark1 | AY188: Southwark | AZ188: NHS Southwark CCG | BA188: 7198.801
U189: NHS Vale of York CCG | V189: 03Q | W189: 5938 | X189: 19366 | AM189: 0 | AX189: =AY189&COUNTIF($AY$3:AY189,AY189) -> St. Helens1 | AY189: St. Helens | AZ189: NHS St Helens CCG | BA189: 4413.088
U190: NHS Vale Royal CCG | V190: 02D | W190: 2030 | X190: 6295 | AM190: 0 | AX190: =AY190&COUNTIF($AY$3:AY190,AY190) -> Staffordshire1 | AY190: Staffordshire | AZ190: NHS Cannock Chase CCG | BA190: 2521.18986
U191: NHS Wakefield CCG | V191: 03R | W191: 7557 | X191: 24275 | AM191: 0 | AX191: =AY191&COUNTIF($AY$3:AY191,AY191) -> Staffordshire2 | AY191: Staffordshire | AZ191: NHS East Staffordshire CCG | BA191: 2367.458771
U192: NHS Walsall CCG | V192: 05Y | W192: 6563 | X192: 19342 | AM192: Liverpool1 | AN192: Liverpool | AO192: NHS Liverpool CCG | AP192: 39832 | AX192: =AY192&COUNTIF($AY$3:AY192,AY192) -> Staffordshire3 | AY192: Staffordshire | AZ192: NHS North Staffordshire CCG | BA192: 4119.993186
U193: NHS Waltham Forest CCG | V193: 08W | W193: 4990 | X193: 16054 | AM193: Luton1 | AN193: Luton | AO193: NHS Luton CCG | AP193: 11998 | AX193: =AY193&COUNTIF($AY$3:AY193,AY193) -> Staffordshire4 | AY193: Staffordshire | AZ193: NHS South East Staffs and Seisdon Peninsular CCG | BA193: 4242.978057
U194: NHS Wandsworth CCG | V194: 08X | W194: 5947 | X194: 20007 | AM194: Manchester1 | AN194: Manchester | AO194: NHS South Manchester CCG | AP194: 11638 | AX194: =AY194&COUNTIF($AY$3:AY194,AY194) -> Staffordshire5 | AY194: Staffordshire | AZ194: NHS Stafford and Surrounds CCG | BA194: 2828.652038
U195: NHS Warrington CCG | V195: 02E | W195: 3775 | X195: 12638 | AM195: Manchester2 | AN195: Manchester | AO195: NHS North Manchester CCG | AP195: 13436 | AX195: =AY195&COUNTIF($AY$3:AY195,AY195) -> Staffordshire6 | AY195: Staffordshire | AZ195: NHS Stoke-on-Trent CCG | BA195: 153.731089
U196: NHS Warwickshire North CCG | V196: 05H | W196: 3595 | X196: 11036 | AM196: Manchester3 | AN196: Manchester | AO196: NHS Central Manchester CCG | AP196: 12564 | AX196: =AY196&COUNTIF($AY$3:AY196,AY196) -> Stockport1 | AY196: Stockport | AZ196: NHS Stockport CCG | BA196: 5881.404
U197: NHS West Cheshire CCG | V197: 02F | W197: 4695 | X197: 15812 | AM197: Medway1 | AN197: Medway | AO197: NHS Medway CCG | AP197: 16154 | AX197: =AY197&COUNTIF($AY$3:AY197,AY197) -> Stockton-on-Tees1 | AY197: Stockton-on-Tees | AZ197: NHS Hartlepool and Stockton-on-Tees CCG | BA197: 3874.01
U198: NHS West Essex CCG | V198: 07H | W198: 5538 | X198: 17435 | AM198: Merton1 | AN198: Merton | AO198: NHS Merton CCG | AP198: 11254 | AX198: =AY198&COUNTIF($AY$3:AY198,AY198) -> Stoke-on-Trent1 | AY198: Stoke-on-Trent | AZ198: NHS Stoke-on-Trent CCG | BA198: 6104.522
U199: NHS West Hampshire CCG | V199: 11A | W199: 8774 | X199: 29845 | AM199: Middlesbrough1 | AN199: Middlesbrough | AO199: NHS South Tees CCG | AP199: 10428 | AX199: =AY199&COUNTIF($AY$3:AY199,AY199) -> Suffolk1 | AY199: Suffolk | AZ199: NHS Ipswich and East Suffolk CCG | BA199: 8067.217778
U200: NHS West Kent CCG | V200: 99J | W200: 8708 | X200: 26394 | AM200: Milton Keynes1 | AN200: Milton Keynes | AO200: NHS Milton Keynes CCG | AP200: 13448 | AX200: =AY200&COUNTIF($AY$3:AY200,AY200) -> Suffolk2 | AY200: Suffolk | AZ200: NHS Great Yarmouth and Waveney CCG | BA200: 2474.39873
... 148 more rows

Sheet Extraction sheet (hidden)
A1: HWB | B1: ='6. HWB Supporting Metrics'!A1 -> Devon
A2: Res baseline num | B2: ='6. HWB Supporting Metrics'!C9 -> 980
A3: Res baseline denom | B3: ='6. HWB Supporting Metrics'!C10 -> 176490
A4: Res Baseline rate | B4: ='6. HWB Supporting Metrics'!C8 -> 556.4
A5: Res 14/15 num | B5: ='6. HWB Supporting Metrics'!D9 -> 980
A6: Res 14/15 denom | B6: ='6. HWB Supporting Metrics'!D10 -> 186142.571
A7: Res 14/15 rate | B7: ='6. HWB Supporting Metrics'!D8 -> 526.4781693
A8: Res 15/16 num | B8: ='6. HWB Supporting Metrics'!E9 -> 980
A9: Res 15/16 denom | B9: ='6. HWB Supporting Metrics'!E10 -> 190357.334
A10: Res 15/16 rate | B10: ='6. HWB Supporting Metrics'!E8 -> 514.8212467
A11: Rationale for reds | B11: ='6. HWB Supporting Metrics'!H8 -> 0
A12: Res 14/15 Annual change | B12: ='6. HWB Supporting Metrics'!D11 -> 0
A13: Res 14/15 Annual change % | B13: ='6. HWB Supporting Metrics'!D12 -> 0
A14: Res 14/15 Estimated savings | B14: ='6. HWB Supporting Metrics'!D13 -> 0
A15: Res 15/16 Annual change | B15: ='6. HWB Supporting Metrics'!E11 -> 0
A16: Res 15/16 Annual change % | B16: ='6. HWB Supporting Metrics'!E12 -> 0
A17: Res 15/16 Estimated savings | B17: ='6. HWB Supporting Metrics'!E13 -> 0
A18: Res cost | B18: ='6. HWB Supporting Metrics'!G13 -> 25950
A19: Res 14/15 project num | B19: ='7. Metric trends'!G44 -> 992.7603787
A20: Res 14/15 project denom | B20: ='7. Metric trends'!G45 -> 186142.571
A21: Res 14/15 project rate | B21: ='7. Metric trends'!G43 -> 533.3333333
A22: Res 15/16 project num | B22: ='7. Metric trends'!H44 -> 949.6610131
A23: Res 15/16 project denom | B23: ='7. Metric trends'!H45 -> 190357.334
A24: Res 15/16 project rate | B24: ='7. Metric trends'!H43 -> 498.8833333
A25: Reable baseline num | B25: ='6. HWB Supporting Metrics'!C19 -> 465
A26: Reable baseline denom | B26: ='6. HWB Supporting Metrics'!C20 -> 520
A27: Reable Baseline rate | B27: ='6. HWB Supporting Metrics'!C18 -> 89.8
A28: Reable 14/15 num | B28: ='6. HWB Supporting Metrics'!D19 -> 706
A29: Reable 14/15 denom | B29: ='6. HWB Supporting Metrics'!D20 -> 866
A30: Reable 14/15 rate | B30: ='6. HWB Supporting Metrics'!D18 -> 81.52424942
A31: Reable 15/16 num | B31: ='6. HWB Supporting Metrics'!E19 -> 706
A32: Reable 15/16 denom | B32: ='6. HWB Supporting Metrics'!E20 -> 866
A33: Reable 15/16 rate | B33: ='6. HWB Supporting Metrics'!E18 -> 81.52424942
A34: Reable Rationale for red plans | B34: ='6. HWB Supporting Metrics'!H18 -> Significant expansion in coverage will include focus on cohort f patients with higher needs
A35: Reable rationale for decrease in offered | B35: ='6. HWB Supporting Metrics'!H20 -> 0
A36: Reable 14/15 Annual change | B36: ='6. HWB Supporting Metrics'!D21 -> -8.275750577
A37: Reable 14/15 Annual change % | B37: ='6. HWB Supporting Metrics'!D22 -> -0.09215757881
A38: Reable 14/15 Estimated savings | B38: ='6. HWB Supporting Metrics'!D23 -> 0
A39: Reable 15/16 Annual change | B39: ='6. HWB Supporting Metrics'!E21 -> 0
A40: Reable 15/16 Annual change % | B40: ='6. HWB Supporting Metrics'!E22 -> 0
A41: Reable 15/16 Estimated savings | B41: ='6. HWB Supporting Metrics'!E23 -> 0
A42: Reable cost | B42: ='6. HWB Supporting Metrics'!G23 -> 0
A43: Reable project 14/15 num | B43: ='7. Metric trends'!G67 -> 477.1866667
A44: Reable project 14/15 denom | B44: ='7. Metric trends'!G68 -> 520
A45: Reable project 14/15 rate | B45: ='7. Metric trends'!G66 -> 91.76666667
A46: Reable project 15/16 num | B46: ='7. Metric trends'!H67 -> 487.5866667
A47: Reable project 15/16 denom | B47: ='7. Metric trends'!H68 -> 520
A48: Reable project 15/16 rate | B48: ='7. Metric trends'!H66 -> 93.76666667
A49: D Q1 baseline num | B49: ='6. HWB Supporting Metrics'!C30 -> 6707
A50: D Q1 baseline denom | B50: ='6. HWB Supporting Metrics'!C31 -> 616507
A51: D Q1 baseline rate | B51: ='6. HWB Supporting Metrics'!C29 -> 1087.9033
A52: D Q2 baseline num | B52: ='6. HWB Supporting Metrics'!D30 -> 6829
A53: D Q2 baseline denom | B53: ='6. HWB Supporting Metrics'!D31 -> 616507
A54: D Q2 baseline rate | B54: ='6. HWB Supporting Metrics'!D29 -> 1107.692208
A55: D Q3 baseline num | B55: ='6. HWB Supporting Metrics'!E30 -> 5900
A56: D Q3 baseline denom | B56: ='6. HWB Supporting Metrics'!E31 -> 616507
A57: D Q3 baseline rate | B57: ='6. HWB Supporting Metrics'!E29 -> 957.0045433
A58: D Q4 baseline num | B58: ='6. HWB Supporting Metrics'!F30 -> 6238
A59: D Q4 baseline denom | B59: ='6. HWB Supporting Metrics'!F31 -> 618201.402
A60: D Q4 baseline rate | B60: ='6. HWB Supporting Metrics'!F29 -> 1009.056269
A61: D Q1 14/15 num | B61: ='6. HWB Supporting Metrics'!G30 -> 6000
A62: D Q1 14/15 denom | B62: ='6. HWB Supporting Metrics'!G31 -> 618201.402
A63: D Q1 14/15 rate | B63: ='6. HWB Supporting Metrics'!G29 -> 970.5574883
A64: D Q2 14/15 num | B64: ='6. HWB Supporting Metrics'!H30 -> 5800
A65: D Q2 14/15 denom | B65: ='6. HWB Supporting Metrics'!H31 -> 618201.402
A66: D Q2 14/15 rate | B66: ='6. HWB Supporting Metrics'!H29 -> 938.205572
A67: D Q3 14/15 rate | B67: ='6. HWB Supporting Metrics'!I30 -> 5600
A68: D Q3 14/15 denom | B68: ='6. HWB Supporting Metrics'!I31 -> 618201.402
A69: D Q3 14/15 rate | B69: ='6. HWB Supporting Metrics'!I29 -> 905.8536558
A70: D Q4 14/15 num | B70: ='6. HWB Supporting Metrics'!J30 -> 5260
A71: D Q4 14/15 denom | B71: ='6. HWB Supporting Metrics'!J31 -> 621893.412
A72: D Q4 14/15 rate | B72: ='6. HWB Supporting Metrics'!J29 -> 845.8041038
A73: D Q1 15/16 num | B73: ='6. HWB Supporting Metrics'!K30 -> 5260
A74: D Q1 15/16 denom | B74: ='6. HWB Supporting Metrics'!K31 -> 621893.412
A75: D Q1 15/16 rate | B75: ='6. HWB Supporting Metrics'!K29 -> 845.8041038
A76: D Q2 15/16 num | B76: ='6. HWB Supporting Metrics'!L30 -> 5260
A77: D Q2 15/16 denom | B77: ='6. HWB Supporting Metrics'!L31 -> 621893.412
A78: D Q2 15/16 rate | B78: ='6. HWB Supporting Metrics'!L29 -> 845.8041038
A79: D Q3 15/16 num | B79: ='6. HWB Supporting Metrics'!M30 -> 5260
A80: D Q3 15/16 denom | B80: ='6. HWB Supporting Metrics'!M31 -> 621893.412
A81: D Q3 15/16 rate | B81: ='6. HWB Supporting Metrics'!M29 -> 845.8041038
A82: D Q4 15/16 num | B82: ='6. HWB Supporting Metrics'!N30 -> 5260
A83: D Q4 15/16 denom | B83: ='6. HWB Supporting Metrics'!N31 -> 625377.686
A84: D Q4 15/16 rate | B84: ='6. HWB Supporting Metrics'!N29 -> 841.0917303
A85: D rationale for red | B85: ='6. HWB Supporting Metrics'!R29 -> 0
A86: D 14/15 Annual change | B86: ='6. HWB Supporting Metrics'!J32 -> -3014
A87: D 14/15 Annual change % | B87: ='6. HWB Supporting Metrics'!J33 -> -0.11739503
A88: D 14/15 Estimated savings | B88: ='6. HWB Supporting Metrics'!J34 -> 829000
A89: D 15/16 Annual change | B89: ='6. HWB Supporting Metrics'!N32 -> -1620
A90: D 15/16 Annual change % | B90: ='6. HWB Supporting Metrics'!N33 -> -0.07149161518
A91: D 15/16 Estimated savings | B91: ='6. HWB Supporting Metrics'!N34 -> 446000
A92: D cost | B92: ='6. HWB Supporting Metrics'!P34 -> 275
A93: D project 14/15 Q1 num | B93: ='7. Metric trends'!D112 -> 5782.64926
A94: D project 14/15 Q1 denom | B94: ='7. Metric trends'!D113 -> 618201.402
A95: D project 14/15 Q1 rate | B95: ='7. Metric trends'!D111 -> 935.3989236
A96: D project 14/15 Q2 num | B96: ='7. Metric trends'!E112 -> 5603.582241
A97: D project 14/15 Q2 denom | B97: ='7. Metric trends'!E113 -> 618201.402
A98: D project 14/15 Q2 rate | B98: ='7. Metric trends'!E111 -> 906.4331176
A99: D project 14/15 Q3 num | B99: ='7. Metric trends'!F112 -> 5424.515222
A100: D project 14/15 Q3 denom | B100: ='7. Metric trends'!F113 -> 618201.402
A101: D project 14/15 Q3 rate | B101: ='7. Metric trends'!F111 -> 877.4673115
A102: D project 14/15 Q4 num | B102: ='7. Metric trends'!G112 -> 5245.448203
A103: D project 14/15 Q4 denom | B103: ='7. Metric trends'!G113 -> 621893.412
A104: D project 14/15 Q4 rate | B104: ='7. Metric trends'!G111 -> 843.4641856
A105: D project 15/16 Q1 num | B105: ='7. Metric trends'!H112 -> 5066.381184
A106: D project 15/16 Q1 denom | B106: ='7. Metric trends'!H113 -> 621893.412
A107: D project 15/16 Q1 rate | B107: ='7. Metric trends'!H111 -> 814.6703416
A108: D project 15/16 Q2 num | B108: ='7. Metric trends'!I112 -> 4887.314165
A109: D project 15/16 Q2 denom | B109: ='7. Metric trends'!I113 -> 621893.412
A110: D project 15/16 Q2 rate | B110: ='7. Metric trends'!I111 -> 785.8764976
A111: D project 15/16 Q3 num | B111: ='7. Metric trends'!J112 -> 4708.247146
A112: D project 15/16 Q3 denom | B112: ='7. Metric trends'!J113 -> 621893.412
A113: D project 15/16 Q3 rate | B113: ='7. Metric trends'!J111 -> 757.0826536
A114: D project 15/16 Q4 num | B114: ='7. Metric trends'!K112 -> 4529.180127
A115: D project 15/16 Q4 denom | B115: ='7. Metric trends'!K113 -> 625377.686
A116: D project 15/16 Q4 rate | B116: ='7. Metric trends'!K111 -> 724.2311691
A117: Pat ex metric | B117: ='6. HWB Supporting Metrics'!A39 -> % of adults using services satisfied with the care and support they receive (ASCOF 3A)
A118: Pat ex baseline time period | B118: ='6. HWB Supporting Metrics'!C38 -> 2013/14
A119: Pat ex baseline num | B119: ='6. HWB Supporting Metrics'!C40 -> 10045
A120: Pat ex baseline denom | B120: ='6. HWB Supporting Metrics'!C41 -> 15050
A121: Pat ex baseline rate | B121: ='6. HWB Supporting Metrics'!C39 -> 66.74418605
A122: Pat ex Apr payment num | B122: ='6. HWB Supporting Metrics'!D40 -> 10190
A123: Pat ex Apr payment denom | B123: ='6. HWB Supporting Metrics'!D41 -> 15050
A124: Pat ex Apr payment rate | B124: ='6. HWB Supporting Metrics'!D39 -> 67.7076412
A125: Pat ex Oct payment num | B125: ='6. HWB Supporting Metrics'!E40 -> 10310
A126: Pat ex Oct payment denom | B126: ='6. HWB Supporting Metrics'!E41 -> 15050
A127: Pat ex Oct payment rate | B127: ='6. HWB Supporting Metrics'!E39 -> 68.50498339
A128: Local Improvement indicated by | B128: ='6. HWB Supporting Metrics'!B42 -> Increase
A129: Local metric | B129: ='6. HWB Supporting Metrics'!A48 -> Dementia diagnosis rate
A130: Local baseline time period | B130: ='6. HWB Supporting Metrics'!C47 -> 2012/13
A131: Local baseline num | B131: ='6. HWB Supporting Metrics'!C49 -> 4848
A132: Local baseline denom | B132: ='6. HWB Supporting Metrics'!C50 -> 13075
A133: Local baseline rate | B133: ='6. HWB Supporting Metrics'!C48 -> 37.07839388
A134: Local Apr payment num | B134: ='6. HWB Supporting Metrics'!D49 -> 6950
A135: Local Apr payment denom | B135: ='6. HWB Supporting Metrics'!D50 -> 13506
A136: Local Apr payment rate | B136: ='6. HWB Supporting Metrics'!D48 -> 51.45861099
A137: Local Oct payment num | B137: ='6. HWB Supporting Metrics'!E49 -> 7500
A138: Local Oct payment denom | B138: ='6. HWB Supporting Metrics'!E50 -> 13506
A139: Local Oct payment rate | B139: ='6. HWB Supporting Metrics'!E48 -> 55.53087517
A140: Local Improvement indicated by | B140: ='6. HWB Supporting Metrics'!B51 -> Increase
A141: Non-elective Q4 baseline num | B141: ='5. HWB P4P metric'!C10 -> 19612
A142: Non-elective Q4 baseline denom | B142: ='5. HWB P4P metric'!C11 -> 760047.97
A143: Non-elective Q4 baseline rate | B143: ='5. HWB P4P metric'!C9 -> 2580.363447
A144: Non-elective Q1 baseline num | B144: ='5. HWB P4P metric'!D10 -> 19343
A145: Non-elective Q1 baseline denom | B145: ='5. HWB P4P metric'!D11 -> 760047.97
A146: Non-elective Q1 baseline rate | B146: ='5. HWB P4P metric'!D9 -> 2544.970944
A147: Non-elective Q2 baseline num | B147: ='5. HWB P4P metric'!E10 -> 19822
A148: Non-elective Q2 baseline denom | B148: ='5. HWB P4P metric'!E11 -> 760047.97
A149: Non-elective Q2 baseline rate | B149: ='5. HWB P4P metric'!E9 -> 2607.993282
A150: Non-elective Q3 baseline num | B150: ='5. HWB P4P metric'!F10 -> 20080
A151: Non-elective Q3 baseline denom | B151: ='5. HWB P4P metric'!F11 -> 760047.97
A152: Non-elective Q3 baseline rate | B152: ='5. HWB P4P metric'!F9 -> 2641.938508
A153: Non-elective Q4 14/15 num | B153: ='5. HWB P4P metric'!G10 -> 18925
A154: Non-elective Q4 14/15 denom | B154: ='5. HWB P4P metric'!G11 -> 764130.419
A155: Non-elective Q4 14/15 rate | B155: ='5. HWB P4P metric'!G9 -> 2476.671459
A156: Non-elective Q1 14/15 num | B156: ='5. HWB P4P metric'!H10 -> 18666
A157: Non-elective Q1 14/15 denom | B157: ='5. HWB P4P metric'!H11 -> 764130.419
A158: Non-elective Q1 14/15 rate | B158: ='5. HWB P4P metric'!H9 -> 2442.776722
A159: Non-elective Q2 14/15 rate | B159: ='5. HWB P4P metric'!I10 -> 19128
A160: Non-elective Q2 14/15 denom | B160: ='5. HWB P4P metric'!I11 -> 764130.419
A161: Non-elective Q2 14/15 rate | B161: ='5. HWB P4P metric'!I9 -> 2503.237605
A162: Non-elective Q3 14/15 num | B162: ='5. HWB P4P metric'!J10 -> 19377
A163: Non-elective Q3 14/15 denom | B163: ='5. HWB P4P metric'!J11 -> 764130.419
A164: Non-elective Q3 14/15 rate | B164: ='5. HWB P4P metric'!J9 -> 2535.823665
A165: Non-elective Q4 15/16 num | B165: ='5. HWB P4P metric'!K10 -> 18925
A166: Non-elective Q4 15/16 denom | B166: ='5. HWB P4P metric'!K11 -> 768456.721
A167: Non-elective Q4 15/16 rate | B167: ='5. HWB P4P metric'!K9 -> 2462.728151
A168: Non-elective rationale for red | B168: ='5. HWB P4P metric'!N9 -> 0
A169: Non-elective Annual change | B169: ='5. HWB P4P metric'!H12 -> -2761
A170: Non-elective Annual change % | B170: ='5. HWB P4P metric'!H13 -> -0.03501274459
A171: Non-elective Estimated savings | B171: ='5. HWB P4P metric'!H14 -> 4113890
A172: Non-elective cost | B172: ='5. HWB P4P metric'!J14 -> 1490
A173: Non-elective contri CCG1 plan activity 13/14 Q4 | B173: ='5. HWB P4P metric'!C20 -> 21156
A174: Non-elective contri CCG1 plan activity 14/15 Q1 | B174: ='5. HWB P4P metric'!D20 -> 19263
A175: Non-elective contri CCG1 plan activity 14/15 Q2 | B175: ='5. HWB P4P metric'!E20 -> 19576
A176: Non-elective contri CCG1 plan activity 14/15 Q3 | B176: ='5. HWB P4P metric'!F20 -> 20281
A177: Non-elective contri CCG2 plan activity 13/14 Q4 | B177: ='5. HWB P4P metric'!C21 -> 13647
A178: Non-elective contri CCG2 plan activity 14/15 Q1 | B178: ='5. HWB P4P metric'!D21 -> 11490
A179: Non-elective contri CCG2 plan activity 14/15 Q2 | B179: ='5. HWB P4P metric'!E21 -> 11434
A180: Non-elective contri CCG2 plan activity 14/15 Q3 | B180: ='5. HWB P4P metric'!F21 -> 11976
A181: Non-elective contri CCG3 plan activity 13/14 Q4 | B181: ='5. HWB P4P metric'!C22 -> 23004
A182: Non-elective contri CCG3 plan activity 14/15 Q1 | B182: ='5. HWB P4P metric'!D22 -> 21324
A183: Non-elective contri CCG3 plan activity 14/15 Q2 | B183: ='5. HWB P4P metric'!E22 -> 21891
A184: Non-elective contri CCG3 plan activity 14/15 Q3 | B184: ='5. HWB P4P metric'!F22 -> 21985
A185: Non-elective contri CCG4 plan activity 13/14 Q4 | B185: ='5. HWB P4P metric'!C23 -> 14655
A186: Non-elective contri CCG4 plan activity 14/15 Q1 | B186: ='5. HWB P4P metric'!D23 -> 16641
A187: Non-elective contri CCG4 plan activity 14/15 Q2 | B187: ='5. HWB P4P metric'!E23 -> 16654
A188: Non-elective contri CCG4 plan activity 14/15 Q3 | B188: ='5. HWB P4P metric'!F23 -> 17370
A189: Non-elective contri CCG5 plan activity 13/14 Q4 | B189: ='5. HWB P4P metric'!C24 -> 6627
A190: Non-elective contri CCG5 plan activity 14/15 Q1 | B190: ='5. HWB P4P metric'!D24 -> 8406
A191: Non-elective contri CCG5 plan activity 14/15 Q2 | B191: ='5. HWB P4P metric'!E24 -> 8567
A192: Non-elective contri CCG5 plan activity 14/15 Q3 | B192: ='5. HWB P4P metric'!F24 -> 8932
A193: Non-elective contri CCG6 plan activity 13/14 Q4 | B193: ='5. HWB P4P metric'!C25 -> 
A194: Non-elective contri CCG6 plan activity 14/15 Q1 | B194: ='5. HWB P4P metric'!D25 -> 
A195: Non-elective contri CCG6 plan activity 14/15 Q2 | B195: ='5. HWB P4P metric'!E25 -> 
A196: Non-elective contri CCG6 plan activity 14/15 Q3 | B196: ='5. HWB P4P metric'!F25 -> 
A197: Non-elective contri CCG7 plan activity 13/14 Q4 | B197: ='5. HWB P4P metric'!C26 -> 
A198: Non-elective contri CCG7 plan activity 14/15 Q1 | B198: ='5. HWB P4P metric'!D26 -> 
A199: Non-elective contri CCG7 plan activity 14/15 Q2 | B199: ='5. HWB P4P metric'!E26 -> 
A200: Non-elective contri CCG7 plan activity 14/15 Q3 | B200: ='5. HWB P4P metric'!F26 -> 
... 71 more rows

Sheet 8.Non-elective admissions - CCG (hidden)
A1: CCG Non-elective acute activity
F2: CCG Planned Activity (Non-elective admissions*)
F3: 2013-14 | J3: 2014-15 | N3: 2015-16
A4: NHS Region | B4: AT code | C4: Area Team | D4: CCG code | E4: CCG name | F4: Q1 | G4: Q2 | H4: Q3 | I4: Q4 | J4: Q1 | K4: Q2 | L4: Q3 | M4: Q4 | N4: Q1 | O4: Q2 | P4: Q3 | Q4: Q4
A5: London | B5: Q71 | C5: London | D5: 07L | E5: NHS Barking and Dagenham CCG | F5: 5187 | G5: 4926 | H5: 4959 | I5: 5335 | J5: 5208.0942 | K5: 4940.6475 | L5: 4975.4873 | M5: 5361.7992 | N5: 5332.567651 | O5: 5058.728975 | P5: 5094.401446 | Q5: 5489.946201
A6: London | B6: Q71 | C6: London | D6: 07M | E6: NHS Barnet CCG | F6: 7279 | G6: 6870 | H6: 7441 | I6: 7546 | J6: 7207.128 | K6: 6915.169309 | L6: 7783.922182 | M6: 7919.540509 | N6: 7195.969889 | O6: 6899.018704 | P6: 7782.627251 | Q6: 7920.564652
A7: London | B7: Q71 | C7: London | D7: 07N | E7: NHS Bexley CCG | F7: 4835 | G7: 4916 | H7: 4924 | I7: 4862 | J7: 4641.353425 | K7: 4686.939726 | L7: 4715.939726 | M7: 4563.767123 | N7: 4565.636986 | O7: 4611.589041 | P7: 4637.589041 | Q7: 4489.684932
A8: London | B8: Q71 | C8: London | D8: 07P | E8: NHS Brent CCG | F8: 7670 | G8: 7438 | H8: 7714 | I8: 7815 | J8: 7663 | K8: 7403 | L8: 7634 | M8: 7741 | N8: 7377 | O8: 7104 | P8: 7350 | Q8: 7458
A9: London | B9: Q71 | C9: London | D9: 07Q | E9: NHS Bromley CCG | F9: 6230 | G9: 6038 | H9: 5795 | I9: 5896 | J9: 5982 | K9: 5800 | L9: 5663 | M9: 5588 | N9: 5991 | O9: 5807 | P9: 5671 | Q9: 5596
A10: London | B10: Q71 | C10: London | D10: 07R | E10: NHS Camden CCG | F10: 4462 | G10: 4434 | H10: 4296 | I10: 4373 | J10: 4550 | K10: 4601 | L10: 4678 | M10: 4706 | N10: 4446 | O10: 4495 | P10: 4573 | Q10: 4596
A11: London | B11: Q71 | C11: London | D11: 09A | E11: NHS Central London (Westminster) CCG | F11: 3824 | G11: 3538 | H11: 3846 | I11: 3530 | J11: 4004.372678 | K11: 3911.820484 | L11: 3893.261083 | M11: 3539.245641 | N11: 3967.85556 | O11: 3870.371023 | P11: 3853.891299 | Q11: 3494.211904
A12: London | B12: Q71 | C12: London | D12: 07T | E12: NHS City and Hackney CCG | F12: 5972 | G12: 5685 | H12: 5778 | I12: 5538 | J12: 7082.753749 | K12: 6673.71608 | L12: 7013.198999 | M12: 7367.419209 | N12: 7319.059634 | O12: 6893.675479 | P12: 7247.738458 | Q12: 7613.642517
A13: London | B13: Q71 | C13: London | D13: 07V | E13: NHS Croydon CCG | F13: 8891 | G13: 9065 | H13: 9123 | I13: 9042 | J13: 8244 | K13: 8410 | L13: 8376 | M13: 8550 | N13: 8524 | O13: 8696 | P13: 8659 | Q13: 8839
A14: London | B14: Q71 | C14: London | D14: 07W | E14: NHS Ealing CCG | F14: 9327 | G14: 9641 | H14: 9597 | I14: 9339 | J14: 9834.169664 | K14: 9854.498617 | L14: 9868.06036 | M14: 9620.756237 | N14: 9898.039761 | O14: 9921.600658 | P14: 9934.658325 | Q14: 9687.800944
A15: London | B15: Q71 | C15: London | D15: 07X | E15: NHS Enfield CCG | F15: 5884 | G15: 5693 | H15: 6276 | I15: 7034 | J15: 5963.23116 | K15: 5835.572022 | L15: 6044.294468 | M15: 5545.263143 | N15: 5947.845161 | O15: 5818.91897 | P15: 6027.954794 | Q15: 5535.059099
A16: London | B16: Q71 | C16: London | D16: 08A | E16: NHS Greenwich CCG | F16: 5426 | G16: 5333 | H16: 5533 | I16: 5294 | J16: 5396 | K16: 5305 | L16: 5581 | M16: 5165 | N16: 5282 | O16: 5193 | P16: 5462 | Q16: 5055
A17: London | B17: Q71 | C17: London | D17: 08C | E17: NHS Hammersmith and Fulham CCG | F17: 4508 | G17: 4862 | H17: 4836 | I17: 4776 | J17: 5181.95969 | K17: 5325.178718 | L17: 5354.329226 | M17: 5103.739438 | N17: 5108.463811 | O17: 5251.802182 | P17: 5283.093238 | Q17: 5031.096219
A18: London | B18: Q71 | C18: London | D18: 08D | E18: NHS Haringey CCG | F18: 5891 | G18: 5310 | H18: 4146 | I18: 4706 | J18: 43888.42683 | K18: 45131.49226 | L18: 41816.60179 | M18: 42759.82563 | N18: 6159.695202 | O18: 6212.433624 | P18: 6398.7968 | Q18: 6938.232041
A19: London | B19: Q71 | C19: London | D19: 08E | E19: NHS Harrow CCG | F19: 5211 | G19: 5211 | H19: 5276 | I19: 5538 | J19: 5250 | K19: 5022 | L19: 5070 | M19: 5280 | N19: 5204 | O19: 4966 | P19: 5019 | Q19: 5232
A20: London | B20: Q71 | C20: London | D20: 08F | E20: NHS Havering CCG | F20: 6496 | G20: 6218 | H20: 6176 | I20: 6776 | J20: 6054.7984 | K20: 5788.2122 | L20: 5753.6575 | M20: 6374.4104 | N20: 6132.905299 | O20: 5862.880137 | P20: 5808.258903 | Q20: 6389.759178
A21: London | B21: Q71 | C21: London | D21: 08G | E21: NHS Hillingdon CCG | F21: 6461 | G21: 6258 | H21: 6781 | I21: 7025 | J21: 5741 | K21: 5529 | L21: 6075 | M21: 6295 | N21: 5543 | O21: 5318 | P21: 5893 | Q21: 6121
A22: London | B22: Q71 | C22: London | D22: 07Y | E22: NHS Hounslow CCG | F22: 5669 | G22: 5648 | H22: 6085 | I22: 6036 | J22: 7003.449598 | K22: 7049.533902 | L22: 7054.145581 | M22: 6918.027121 | N22: 6940.428249 | O22: 6990.5543 | P22: 6994.215145 | Q22: 6859.30404
A23: London | B23: Q71 | C23: London | D23: 08H | E23: NHS Islington CCG | F23: 4913 | G23: 4280 | H23: 2812 | I23: 2873 | J23: 4873.8485 | K23: 5046.903205 | L23: 5218.757629 | M23: 5308.986386 | N23: 4800.877348 | O23: 4970.265206 | P23: 5139.455886 | Q23: 5228.270597
A24: London | B24: Q71 | C24: London | D24: 08J | E24: NHS Kingston CCG | F24: 3150 | G24: 3174 | H24: 3103 | I24: 3223 | J24: 3158 | K24: 3180 | L24: 3106 | M24: 3247 | N24: 3081 | O24: 3102 | P24: 3029 | Q24: 3168
A25: London | B25: Q71 | C25: London | D25: 08K | E25: NHS Lambeth CCG | F25: 6996 | G25: 7462 | H25: 7395 | I25: 7181 | J25: 6970 | K25: 7432 | L25: 7128 | M25: 6805 | N25: 6941 | O25: 7403 | P25: 7101 | Q25: 6779
A26: London | B26: Q71 | C26: London | D26: 08L | E26: NHS Lewisham CCG | F26: 6062 | G26: 6367 | H26: 6101 | I26: 5897 | J26: 6318.684932 | K26: 6472.945206 | L26: 6405.945206 | M26: 6266.424658 | N26: 6323.234932 | O26: 6477.545206 | P26: 6410.545206 | Q26: 6270.924658
A27: London | B27: Q71 | C27: London | D27: 08R | E27: NHS Merton CCG | F27: 3879 | G27: 3808 | H27: 4191 | I27: 3962 | J27: 3965 | K27: 3935 | L27: 4170 | M27: 4051 | N27: 4061 | O27: 4030 | P27: 4272 | Q27: 4149
A28: London | B28: Q71 | C28: London | D28: 08M | E28: NHS Newham CCG | F28: 7441 | G28: 7626 | H28: 8091 | I28: 7845 | J28: 7424 | K28: 7560 | L28: 7968 | M28: 7667 | N28: 7349 | O28: 7484 | P28: 7893 | Q28: 7590
A29: London | B29: Q71 | C29: London | D29: 08N | E29: NHS Redbridge CCG | F29: 6721 | G29: 6519 | H29: 6597 | I29: 7249 | J29: 6755.0676 | K29: 6417.008 | L29: 6458.5788 | M29: 7150.8592 | N29: 6886.498918 | O29: 6541.847156 | P29: 6584.228587 | Q29: 8090.953142
A30: London | B30: Q71 | C30: London | D30: 08P | E30: NHS Richmond CCG | F30: 3256 | G30: 3132 | H30: 3332 | I30: 3285 | J30: 3231 | K30: 3106 | L30: 3249 | M30: 3335 | N30: 3200 | O30: 3071 | P30: 3216 | Q30: 3303
A31: London | B31: Q71 | C31: London | D31: 08Q | E31: NHS Southwark CCG | F31: 6065 | G31: 6122 | H31: 6150 | I31: 5782 | J31: 5760 | K31: 5814 | L31: 5697 | M31: 5124 | N31: 5615 | O31: 5669 | P31: 5554 | Q31: 4996
A32: London | B32: Q71 | C32: London | D32: 08T | E32: NHS Sutton CCG | F32: 3872 | G32: 3928 | H32: 4423 | I32: 4266 | J32: 3807 | K32: 3860 | L32: 4140 | M32: 4012 | N32: 3662 | O32: 3715 | P32: 3984 | Q32: 3859
A33: London | B33: Q71 | C33: London | D33: 08V | E33: NHS Tower Hamlets CCG | F33: 5609 | G33: 5066 | H33: 5424 | I33: 5005 | J33: 5494 | K33: 4888 | L33: 5227 | M33: 4733 | N33: 5623 | O33: 5002 | P33: 5350 | Q33: 4843
A34: London | B34: Q71 | C34: London | D34: 08W | E34: NHS Waltham Forest CCG | F34: 7357 | G34: 7038 | H34: 7661 | I34: 7187 | J34: 7565 | K34: 7244 | L34: 7873 | M34: 7393 | N34: 7929 | O34: 7465 | P34: 7996 | Q34: 6787
A35: London | B35: Q71 | C35: London | D35: 08X | E35: NHS Wandsworth CCG | F35: 6258 | G35: 6250 | H35: 6301 | I35: 5999 | J35: 6722 | K35: 6688 | L35: 6859 | M35: 6849 | N35: 6820 | O35: 6787 | P35: 6961 | Q35: 6947
A36: London | B36: Q71 | C36: London | D36: 08Y | E36: NHS West London (K&C & QPP) CCG | F36: 4501 | G36: 4542 | H36: 4494 | I36: 4415 | J36: 5085.144032 | K36: 5085.579583 | L36: 4889.051204 | M36: 5156.338531 | N36: 4981.4446 | O36: 4980.980845 | P36: 4783.57105 | Q36: 5055.358515
A37: Midlands & East | B37: Q53 | C37: Arden, Herefordshire And Worcestershire Area Team | D37: 05A | E37: NHS Coventry and Rugby CCG | F37: 10964 | G37: 10759 | H37: 11297 | I37: 11000 | J37: 10660.56603 | K37: 10777.71511 | L37: 10777.71511 | M37: 10543.41695 | N37: 10200.97151 | O37: 10313.0701 | P37: 10313.0701 | Q37: 10200.97151
A38: Midlands & East | B38: Q53 | C38: Arden, Herefordshire And Worcestershire Area Team | D38: 05F | E38: NHS Herefordshire CCG | F38: 3702 | G38: 3704 | H38: 4011 | I38: 4351 | J38: 3581 | K38: 3300 | L38: 3626 | M38: 3559 | N38: 3394 | O38: 3152 | P38: 3529 | Q38: 3523
A39: Midlands & East | B39: Q53 | C39: Arden, Herefordshire And Worcestershire Area Team | D39: 05J | E39: NHS Redditch and Bromsgrove CCG | F39: 4417 | G39: 4163 | H39: 4382 | I39: 4307 | J39: 4139 | K39: 4102 | L39: 4405 | M39: 4214 | N39: 4025 | O39: 3987 | P39: 4282 | Q39: 4102
A40: Midlands & East | B40: Q53 | C40: Arden, Herefordshire And Worcestershire Area Team | D40: 05R | E40: NHS South Warwickshire CCG | F40: 5860 | G40: 5944 | H40: 6325 | I40: 5966 | J40: 6023.950685 | K40: 6090.147945 | L40: 6090.147945 | M40: 5957.753425 | N40: 6007.491803 | O40: 6073.508197 | P40: 6073.508197 | Q40: 6007.491803
A41: Midlands & East | B41: Q53 | C41: Arden, Herefordshire And Worcestershire Area Team | D41: 05T | E41: NHS South Worcestershire CCG | F41: 6270 | G41: 6113 | H41: 6718 | I41: 6298 | J41: 6019 | K41: 5878 | L41: 6448 | M41: 5922 | N41: 5724 | O41: 5375 | P41: 6127 | Q41: 5510
A42: Midlands & East | B42: Q53 | C42: Arden, Herefordshire And Worcestershire Area Team | D42: 05H | E42: NHS Warwickshire North CCG | F42: 4246 | G42: 3969 | H42: 4170 | I42: 4316 | J42: 4056.282068 | K42: 4100.856596 | L42: 4100.856596 | M42: 4011.70754 | N42: 3888.555123 | O42: 3934.198586 | P42: 3934.198586 | Q42: 3863.555123
A43: Midlands & East | B43: Q53 | C43: Arden, Herefordshire And Worcestershire Area Team | D43: 06D | E43: NHS Wyre Forest CCG | F43: 2102 | G43: 2119 | H43: 2292 | I43: 2066 | J43: 2108 | K43: 2059 | L43: 2211 | M43: 2104 | N43: 2019 | O43: 2016 | P43: 2203 | Q43: 2096
A44: Midlands & East | B44: Q54 | C44: Birmingham And The Black Country Area Team | D44: 13P | E44: NHS Birmingham Crosscity CCG | F44: 19016 | G44: 18797 | H44: 19960 | I44: 20013 | J44: 19591.77 | K44: 19591.77 | L44: 19591.77 | M44: 19591.77 | N44: 19572.72 | O44: 19572.72 | P44: 19572.72 | Q44: 19572.72
A45: Midlands & East | B45: Q54 | C45: Birmingham And The Black Country Area Team | D45: 04X | E45: NHS Birmingham South and Central CCG | F45: 5740 | G45: 5506 | H45: 5716 | I45: 5845 | J45: 5884.525 | K45: 5647.75 | L45: 5857.875 | M45: 5988.05 | N45: 6031.638125 | O45: 5788.94375 | P45: 6004.321875 | Q45: 6137.75125
A46: Midlands & East | B46: Q54 | C46: Birmingham And The Black Country Area Team | D46: 05C | E46: NHS Dudley CCG | F46: 8138 | G46: 8125 | H46: 8305 | I46: 8659 | J46: 7991 | K46: 8080 | L46: 8080 | M46: 7905 | N46: 7610 | O46: 7696 | P46: 7696 | Q46: 7529
A47: Midlands & East | B47: Q54 | C47: Birmingham And The Black Country Area Team | D47: 05L | E47: NHS Sandwell and West Birmingham CCG | F47: 15153 | G47: 14881 | H47: 15440 | I47: 15448 | J47: 15549.00615 | K47: 15548.00615 | L47: 15548.00615 | M47: 15548.00615 | N47: 15881.73348 | O47: 15880.73348 | P47: 15880.73348 | Q47: 15880.73348
A48: Midlands & East | B48: Q54 | C48: Birmingham And The Black Country Area Team | D48: 05P | E48: NHS Solihull CCG | F48: 6298 | G48: 6289 | H48: 6651 | I48: 6650 | J48: 6343.888037 | K48: 6066.718758 | L48: 6295.03108 | M48: 5932.362125 | N48: 6119.877055 | O48: 5852.494985 | P48: 6072.7453 | Q48: 5722.88266
A49: Midlands & East | B49: Q54 | C49: Birmingham And The Black Country Area Team | D49: 05Y | E49: NHS Walsall CCG | F49: 7285 | G49: 7064 | H49: 7336 | I49: 7242 | J49: 6953 | K49: 7214 | L49: 7129 | M49: 7042 | N49: 6983 | O49: 7244 | P49: 7160 | Q49: 7071
A50: Midlands & East | B50: Q54 | C50: Birmingham And The Black Country Area Team | D50: 06A | E50: NHS Wolverhampton CCG | F50: 7296 | G50: 6897 | H50: 7242 | I50: 7026 | J50: 7723 | K50: 7344 | L50: 7671 | M50: 8009 | N50: 7584 | O50: 7213 | P50: 7534 | Q50: 7868
A51: Midlands & East | B51: Q55 | C51: Derbyshire And Nottinghamshire Area Team | D51: 03X | E51: NHS Erewash CCG | F51: 2510 | G51: 2479 | H51: 2551 | I51: 2297 | J51: 2476.833709 | K51: 2472.189669 | L51: 2573.505395 | M51: 2390.1895 | N51: 2414.120384 | O51: 2409.383462 | P51: 2512.725503 | Q51: 2325.74329
A52: Midlands & East | B52: Q55 | C52: Derbyshire And Nottinghamshire Area Team | D52: 03Y | E52: NHS Hardwick CCG | F52: 3582 | G52: 3470 | H52: 3628 | I52: 3738 | J52: 3513.377432 | K52: 3557.519327 | L52: 3662.148344 | M52: 3645.750008 | N52: 3443.418563 | O52: 3486.656543 | P52: 3589.204451 | Q52: 3573.121435
A53: Midlands & East | B53: Q55 | C53: Derbyshire And Nottinghamshire Area Team | D53: 04E | E53: NHS Mansfield and Ashfield CCG | F53: 6084 | G53: 5892 | H53: 6037 | I53: 5735 | J53: 5913.32 | K53: 5777.1 | L53: 5920.18 | M53: 5764.36 | N53: 5203.85 | O53: 5083.67 | P53: 5206.44 | Q53: 5071.51
A54: Midlands & East | B54: Q55 | C54: Derbyshire And Nottinghamshire Area Team | D54: 04H | E54: NHS Newark & Sherwood CCG | F54: 3213 | G54: 3117 | H54: 3234 | I54: 3126 | J54: 3120.32 | K54: 3056.62 | L54: 3172.26 | M54: 3058.58 | N54: 2732.64 | O54: 2677 | P54: 2779.85 | Q54: 2679.17
A55: Midlands & East | B55: Q55 | C55: Derbyshire And Nottinghamshire Area Team | D55: 04J | E55: NHS North Derbyshire CCG | F55: 9223 | G55: 9031 | H55: 9369 | I55: 9618 | J55: 9143.278221 | K55: 9262.750667 | L55: 9537.017847 | M55: 9493.384432 | N55: 9090.583912 | O55: 9209.367817 | P55: 9482.054347 | Q55: 9438.672399
A56: Midlands & East | B56: Q55 | C56: Derbyshire And Nottinghamshire Area Team | D56: 04K | E56: NHS Nottingham City CCG | F56: 8333 | G56: 8200 | H56: 8563 | I56: 7254 | J56: 8049 | K56: 8070 | L56: 8277 | M56: 6789 | N56: 7882 | O56: 7908 | P56: 8116 | Q56: 6605
A57: Midlands & East | B57: Q55 | C57: Derbyshire And Nottinghamshire Area Team | D57: 04L | E57: NHS Nottingham North and East CCG | F57: 3431 | G57: 3496 | H57: 3314 | I57: 3032 | J57: 3461 | K57: 3420 | L57: 3235 | M57: 2937 | N57: 3394 | O57: 3340 | P57: 3155 | Q57: 2855
A58: Midlands & East | B58: Q55 | C58: Derbyshire And Nottinghamshire Area Team | D58: 04M | E58: NHS Nottingham West CCG | F58: 2234 | G58: 2193 | H58: 2236 | I58: 1903 | J58: 2176 | K58: 2178 | L58: 2218 | M58: 1875 | N58: 2167 | O58: 2161 | P58: 2198 | Q58: 1857
A59: Midlands & East | B59: Q55 | C59: Derbyshire And Nottinghamshire Area Team | D59: 04N | E59: NHS Rushcliffe CCG | F59: 2615 | G59: 2624 | H59: 2501 | I59: 2184 | J59: 2371 | K59: 2575 | L59: 2455 | M59: 2112 | N59: 2336 | O59: 2522 | P59: 2403 | Q59: 2054
A60: Midlands & East | B60: Q55 | C60: Derbyshire And Nottinghamshire Area Team | D60: 04R | E60: NHS Southern Derbyshire CCG | F60: 14188 | G60: 14334 | H60: 14572 | I60: 14666 | J60: 13627.23623 | K60: 13805.00066 | L60: 14212.93406 | M60: 14148.19903 | N60: 13035.37875 | O60: 13205.42252 | P60: 13595.63858 | Q60: 13533.71513
A61: Midlands & East | B61: Q56 | C61: East Anglia Area Team | D61: 06H | E61: NHS Cambridgeshire and Peterborough CCG | F61: 17248 | G61: 17600 | H61: 18538 | I61: 18317 | J61: 17236.629 | K61: 17554.443 | L61: 18495.831 | M61: 18032.463 | N61: 17106.3323 | O61: 17425.53794 | P61: 18346.35839 | Q61: 17892.50383
A62: Midlands & East | B62: Q56 | C62: East Anglia Area Team | D62: 06M | E62: NHS Great Yarmouth and Waveney CCG | F62: 5912 | G62: 4934 | H62: 5140 | I62: 5279 | J62: 5323 | K62: 5223 | L62: 5121 | M62: 5000 | N62: 5108 | O62: 5010 | P62: 4912 | Q62: 4797
A63: Midlands & East | B63: Q56 | C63: East Anglia Area Team | D63: 06L | E63: NHS Ipswich and East Suffolk CCG | F63: 8161 | G63: 8102 | H63: 9122 | I63: 9128 | J63: 7932 | K63: 8019 | L63: 8019 | M63: 7845 | N63: 7307 | O63: 7387 | P63: 7387 | Q63: 7226
A64: Midlands & East | B64: Q56 | C64: East Anglia Area Team | D64: 06V | E64: NHS North Norfolk CCG | F64: 4133 | G64: 4106 | H64: 4321 | I64: 4213 | J64: 4516.643574 | K64: 4410.833367 | L64: 4663.947981 | M64: 4275.818821 | N64: 4670.209456 | O64: 4560.801701 | P64: 4822.522213 | Q64: 4421.196661
A65: Midlands & East | B65: Q56 | C65: East Anglia Area Team | D65: 06W | E65: NHS Norwich CCG | F65: 4920 | G65: 5094 | H65: 5206 | I65: 5120 | J65: 5432 | K65: 5361 | L65: 5464 | M65: 5315 | N65: 5329 | O65: 5261 | P65: 5361 | Q65: 5219
A66: Midlands & East | B66: Q56 | C66: East Anglia Area Team | D66: 06Y | E66: NHS South Norfolk CCG | F66: 5235 | G66: 5341 | H66: 5336 | I66: 5498 | J66: 5548 | K66: 5507 | L66: 5501 | M66: 5549 | N66: 5543 | O66: 5500 | P66: 5494 | Q66: 5543
A67: Midlands & East | B67: Q56 | C67: East Anglia Area Team | D67: 07J | E67: NHS West Norfolk CCG | F67: 4909 | G67: 4887 | H67: 5135 | I67: 5420 | J67: 4822 | K67: 4826 | L67: 4828 | M67: 4619 | N67: 4638 | O67: 4642 | P67: 4830 | Q67: 4621
A68: Midlands & East | B68: Q56 | C68: East Anglia Area Team | D68: 07K | E68: NHS West Suffolk CCG | F68: 5317 | G68: 5475 | H68: 5763 | I68: 5719 | J68: 4915 | K68: 4970 | L68: 4970 | M68: 4863 | N68: 4589 | O68: 4639 | P68: 4639 | Q68: 4538
A69: Midlands & East | B69: Q57 | C69: Essex Area Team | D69: 99E | E69: NHS Basildon and Brentwood CCG | F69: 5652 | G69: 5724 | H69: 5762 | I69: 5783 | J69: 5945.869518 | K69: 5915.031939 | L69: 5956.297393 | M69: 5889.720677 | N69: 5858.481011 | O69: 5822.559867 | P69: 5864.410335 | Q69: 5805.749353
A70: Midlands & East | B70: Q57 | C70: Essex Area Team | D70: 99F | E70: NHS Castle Point and Rochford CCG | F70: 3883 | G70: 3959 | H70: 3943 | I70: 4129 | J70: 4143.73517 | K70: 4177.757205 | L70: 4188.292566 | M70: 4105.85227 | N70: 4158.589346 | O70: 4192.475611 | P70: 4203.170295 | Q70: 4120.798954
A71: Midlands & East | B71: Q57 | C71: Essex Area Team | D71: 06Q | E71: NHS Mid Essex CCG | F71: 7672 | G71: 7775 | H71: 8473 | I71: 8417 | J71: 8211 | K71: 8301 | L71: 8301 | M71: 8120 | N71: 8175 | O71: 8265 | P71: 8265 | Q71: 8173
A72: Midlands & East | B72: Q57 | C72: Essex Area Team | D72: 06T | E72: NHS North East Essex CCG | F72: 8013 | G72: 8191 | H72: 9387 | I72: 9187 | J72: 8671 | K72: 8677 | L72: 8675 | M72: 8677 | N72: 8809.736 | O72: 8815.832 | P72: 8813.8 | Q72: 8815.832
A73: Midlands & East | B73: Q57 | C73: Essex Area Team | D73: 99G | E73: NHS Southend CCG | F73: 4288 | G73: 4647 | H73: 4544 | I73: 4839 | J73: 4411.061349 | K73: 4753.700592 | L73: 4627.701479 | M73: 4606.362418 | N73: 4342.3364 | O73: 4678.852845 | P73: 4555.345329 | Q73: 4534.520344
A74: Midlands & East | B74: Q57 | C74: Essex Area Team | D74: 07G | E74: NHS Thurrock CCG | F74: 3410 | G74: 3547 | H74: 3314 | I74: 3464 | J74: 3487.100845 | K74: 3518.480026 | L74: 3511.730746 | M74: 3457.372154 | N74: 3493.850216 | O74: 3524.161631 | P74: 3517.345597 | Q74: 3462.191695
A75: Midlands & East | B75: Q57 | C75: Essex Area Team | D75: 07H | E75: NHS West Essex CCG | F75: 6445 | G75: 6707 | H75: 6995 | I75: 7163 | J75: 6398.0943 | K75: 6468.403028 | L75: 6468.403028 | M75: 6327.785571 | N75: 6376.178044 | O75: 6446.245935 | P75: 6446.245935 | Q75: 6376.178044
A76: Midlands & East | B76: Q58 | C76: Hertfordshire And The South Midlands Area Team | D76: 06F | E76: NHS Bedfordshire CCG | F76: 9084 | G76: 8914 | H76: 9129 | I76: 8981 | J76: 9029 | K76: 8860 | L76: 8861 | M76: 8806 | N76: 9279 | O76: 9109 | P76: 9110 | Q76: 9055
A77: Midlands & East | B77: Q58 | C77: Hertfordshire And The South Midlands Area Team | D77: 03V | E77: NHS Corby CCG | F77: 1474 | G77: 1599 | H77: 1588 | I77: 1572 | J77: 1530 | K77: 1690 | L77: 1637 | M77: 1615 | N77: 1541 | O77: 1725 | P77: 1671 | Q77: 1650
A78: Midlands & East | B78: Q58 | C78: Hertfordshire And The South Midlands Area Team | D78: 06K | E78: NHS East and North Hertfordshire CCG | F78: 11498 | G78: 12089 | H78: 12652 | I78: 12854 | J78: 12019 | K78: 12145 | L78: 12152 | M78: 11883 | N78: 11891 | O78: 12015 | P78: 12022 | Q78: 11872
A79: Midlands & East | B79: Q58 | C79: Hertfordshire And The South Midlands Area Team | D79: 06N | E79: NHS Herts Valleys CCG | F79: 12516 | G79: 12709 | H79: 13740 | I79: 14001 | J79: 12608 | K79: 12768 | L79: 13136 | M79: 12885 | N79: 10766 | O79: 10901 | P79: 11983 | Q79: 12034
A80: Midlands & East | B80: Q58 | C80: Hertfordshire And The South Midlands Area Team | D80: 06P | E80: NHS Luton CCG | F80: 5313 | G80: 5328 | H80: 6018 | I80: 5987 | J80: 5640 | K80: 5610 | L80: 5483 | M80: 5299 | N80: 5190 | O80: 5212 | P80: 5212 | Q80: 5087
A81: Midlands & East | B81: Q58 | C81: Hertfordshire And The South Midlands Area Team | D81: 04F | E81: NHS Milton Keynes CCG | F81: 7363 | G81: 7290 | H81: 7428 | I81: 6691 | J81: 7369 | K81: 7224 | L81: 7237 | M81: 6236 | N81: 6360 | O81: 6303 | P81: 6417 | Q81: 5777
A82: Midlands & East | B82: Q58 | C82: Hertfordshire And The South Midlands Area Team | D82: 04G | E82: NHS Nene CCG | F82: 13544 | G82: 13916 | H82: 14970 | I82: 14986 | J82: 13008 | K82: 13326 | L82: 14069 | M82: 13515 | N82: 13219 | O82: 13540 | P82: 14288 | Q82: 13733
A83: Midlands & East | B83: Q59 | C83: Leicestershire And Lincolnshire Area Team | D83: 03W | E83: NHS East Leicestershire and Rutland CCG | F83: 6611 | G83: 6513 | H83: 6887 | I83: 7028 | J83: 6017 | K83: 6384 | L83: 6326 | M83: 6226 | N83: 6043 | O83: 6409 | P83: 6351 | Q83: 6339
A84: Midlands & East | B84: Q59 | C84: Leicestershire And Lincolnshire Area Team | D84: 04C | E84: NHS Leicester City CCG | F84: 7382 | G84: 7309 | H84: 7753 | I84: 8515 | J84: 6796 | K84: 7229 | L84: 7152 | M84: 7030 | N84: 6483 | O84: 6896 | P84: 6821 | Q84: 6810
A85: Midlands & East | B85: Q59 | C85: Leicestershire And Lincolnshire Area Team | D85: 03T | E85: NHS Lincolnshire East CCG | F85: 6500 | G85: 6382 | H85: 6615 | I85: 6600 | J85: 6290.515062 | K85: 6229.034116 | L85: 6536.06992 | M85: 6451.784363 | N85: 5700.815348 | O85: 5647.901525 | P85: 5917.299503 | Q85: 5835.355544
A86: Midlands & East | B86: Q59 | C86: Leicestershire And Lincolnshire Area Team | D86: 04D | E86: NHS Lincolnshire West CCG | F86: 5846 | G86: 5469 | H86: 5483 | I86: 5446 | J86: 5427.486544 | K86: 5382.434005 | L86: 5585.203219 | M86: 5464.429188 | N86: 5464.645725 | O86: 5170.330225 | P86: 5238.957219 | Q86: 5286.064747
A87: Midlands & East | B87: Q59 | C87: Leicestershire And Lincolnshire Area Team | D87: 99D | E87: NHS South Lincolnshire CCG | F87: 3493 | G87: 3483 | H87: 3832 | I87: 3700 | J87: 3433.531398 | K87: 3239.188826 | L87: 3468.074784 | M87: 3231.356577 | N87: 3388.473546 | O87: 3196.159797 | P87: 3422.638422 | Q87: 3188.395117
A88: Midlands & East | B88: Q59 | C88: Leicestershire And Lincolnshire Area Team | D88: 04Q | E88: NHS South West Lincolnshire CCG | F88: 3119 | G88: 3033 | H88: 3067 | I88: 2844 | J88: 2977.46035 | K88: 2969.639467 | L88: 3013.082159 | M88: 2927.331609 | N88: 2865.284528 | O88: 2858.298076 | P88: 2899.450878 | Q88: 2817.182807
A89: Midlands & East | B89: Q59 | C89: Leicestershire And Lincolnshire Area Team | D89: 04V | E89: NHS West Leicestershire CCG | F89: 7220 | G89: 7290 | H89: 7688 | I89: 8087 | J89: 6944 | K89: 7349 | L89: 7288 | M89: 7176 | N89: 6556 | O89: 6941 | P89: 6883 | Q89: 6873
A90: Midlands & East | B90: Q60 | C90: Shropshire And Staffordshire Area Team | D90: 04Y | E90: NHS Cannock Chase CCG | F90: 3572 | G90: 3495 | H90: 3626 | I90: 3599 | J90: 3591 | K90: 3478 | L90: 3326 | M90: 3324 | N90: 3351 | O90: 3351 | P90: 3351 | Q90: 3351
A91: Midlands & East | B91: Q60 | C91: Shropshire And Staffordshire Area Team | D91: 05D | E91: NHS East Staffordshire CCG | F91: 3180 | G91: 3238 | H91: 3642 | I91: 3636 | J91: 3134 | K91: 3189 | L91: 3588 | M91: 3417 | N91: 3057 | O91: 3109 | P91: 3497 | Q91: 3335
A92: Midlands & East | B92: Q60 | C92: Shropshire And Staffordshire Area Team | D92: 05G | E92: NHS North Staffordshire CCG | F92: 5540 | G92: 5237 | H92: 5778 | I92: 5831 | J92: 4852 | K92: 4959 | L92: 4984 | M92: 5107 | N92: 4559 | O92: 4664 | P92: 4688 | Q92: 4802
A93: Midlands & East | B93: Q60 | C93: Shropshire And Staffordshire Area Team | D93: 05N | E93: NHS Shropshire CCG | F93: 6760 | G93: 6599 | H93: 7341 | I93: 7185 | J93: 7210 | K93: 6908 | L93: 7359 | M93: 6919 | N93: 7216 | O93: 6914 | P93: 7365 | Q93: 6924
A94: Midlands & East | B94: Q60 | C94: Shropshire And Staffordshire Area Team | D94: 05Q | E94: NHS South East Staffs and Seisdon Peninsular CCG | F94: 4825 | G94: 5128 | H94: 5286 | I94: 5307 | J94: 5394 | K94: 5396 | L94: 5390 | M94: 5391 | N94: 5088 | O94: 5094 | P94: 5093 | Q94: 5094
A95: Midlands & East | B95: Q60 | C95: Shropshire And Staffordshire Area Team | D95: 05V | E95: NHS Stafford and Surrounds CCG | F95: 3887 | G95: 3595 | H95: 3837 | I95: 3840 | J95: 3813 | K95: 3723 | L95: 3575 | M95: 3573 | N95: 3585 | O95: 3585 | P95: 3585 | Q95: 3585
A96: Midlands & East | B96: Q60 | C96: Shropshire And Staffordshire Area Team | D96: 05W | E96: NHS Stoke on Trent CCG | F96: 8066 | G96: 7990 | H96: 8943 | I96: 8880 | J96: 7232 | K96: 7391 | L96: 7429 | M96: 7613 | N96: 6795 | O96: 6952 | P96: 6988 | Q96: 7156
A97: Midlands & East | B97: Q60 | C97: Shropshire And Staffordshire Area Team | D97: 05X | E97: NHS Telford and Wrekin CCG | F97: 4115 | G97: 4063 | H97: 4497 | I97: 4405 | J97: 3788 | K97: 3842 | L97: 4084 | M97: 4175 | N97: 3257 | O97: 3306 | P97: 3512 | Q97: 3586
A98: North | B98: Q44 | C98: Cheshire, Warrington And Wirral Area Team | D98: 01C | E98: NHS Eastern Cheshire CCG | F98: 4853 | G98: 4966 | H98: 5154 | I98: 4874 | J98: 4786 | K98: 4857 | L98: 4987 | M98: 4848 | N98: 4637 | O98: 4703 | P98: 4832 | Q98: 4699
A99: North | B99: Q44 | C99: Cheshire, Warrington And Wirral Area Team | D99: 01R | E99: NHS South Cheshire CCG | F99: 4015 | G99: 3875 | H99: 3967 | I99: 3850 | J99: 5546 | K99: 5363 | L99: 5684 | M99: 5461 | N99: 5380 | O99: 5153 | P99: 5442 | Q99: 5229
A100: North | B100: Q44 | C100: Cheshire, Warrington And Wirral Area Team | D100: 02D | E100: NHS Vale Royal CCG | F100: 2092 | G100: 2165 | H100: 2222 | I100: 2207 | J100: 2808 | K100: 2866 | L100: 3046 | M100: 2911 | N100: 2706 | O100: 2753 | P100: 2935 | Q100: 2794
A101: North | B101: Q44 | C101: Cheshire, Warrington And Wirral Area Team | D101: 02E | E101: NHS Warrington CCG | F101: 5893 | G101: 5823 | H101: 5915 | I101: 5869 | J101: 5570 | K101: 5791 | L101: 5856 | M101: 5814 | N101: 5403 | O101: 5617 | P101: 5679 | Q101: 5640
A102: North | B102: Q44 | C102: Cheshire, Warrington And Wirral Area Team | D102: 02F | E102: NHS West Cheshire CCG | F102: 6122 | G102: 6157 | H102: 6327 | I102: 6010 | J102: 5775 | K102: 5806 | L102: 5781 | M102: 5453 | N102: 5602 | O102: 5631 | P102: 5609 | Q102: 5292
A103: North | B103: Q44 | C103: Cheshire, Warrington And Wirral Area Team | D103: 12F | E103: NHS Wirral CCG | F103: 11415 | G103: 11119 | H103: 12085 | I103: 11656 | J103: 11085 | K103: 11205 | L103: 11201 | M103: 10952 | N103: 10124 | O103: 10232 | P103: 10231 | Q103: 10116
A104: North | B104: Q45 | C104: Durham, Darlington And Tees Area Team | D104: 00C | E104: NHS Darlington CCG | F104: 3326 | G104: 3316 | H104: 3518 | I104: 3262 | J104: 3321 | K104: 3194 | L104: 3340 | M104: 3342 | N104: 3287 | O104: 3161 | P104: 3303 | Q104: 3303
A105: North | B105: Q45 | C105: Durham, Darlington And Tees Area Team | D105: 00D | E105: NHS Durham Dales, Easington and Sedgefield CCG | F105: 8886 | G105: 8402 | H105: 8681 | I105: 8470 | J105: 8630 | K105: 8570 | L105: 8727 | M105: 8793 | N105: 8630 | O105: 8570 | P105: 8727 | Q105: 8793
A106: North | B106: Q45 | C106: Durham, Darlington And Tees Area Team | D106: 00K | E106: NHS Hartlepool and Stockton-On-Tees CCG | F106: 7801 | G106: 7471 | H106: 7728 | I106: 7400 | J106: 7567 | K106: 7474 | L106: 7706 | M106: 7628 | N106: 7193 | O106: 7105 | P106: 7325 | Q106: 7251
A107: North | B107: Q45 | C107: Durham, Darlington And Tees Area Team | D107: 00J | E107: NHS North Durham CCG | F107: 7143 | G107: 7007 | H107: 7432 | I107: 7207 | J107: 7148 | K107: 7098 | L107: 7226 | M107: 7279 | N107: 7148 | O107: 7098 | P107: 7226 | Q107: 7279
A108: North | B108: Q45 | C108: Durham, Darlington And Tees Area Team | D108: 00M | E108: NHS South Tees CCG | F108: 9137 | G108: 8909 | H108: 9380 | I108: 8668 | J108: 8864 | K108: 8759 | L108: 9027 | M108: 9026 | N108: 7802 | O108: 7710 | P108: 7944 | Q108: 7941
A109: North | B109: Q46 | C109: Greater Manchester Area Team | D109: 00T | E109: NHS Bolton CCG | F109: 7927 | G109: 7888 | H109: 8500 | I109: 8368 | J109: 7771 | K109: 7687 | L109: 7728 | M109: 6916 | N109: 7560 | O109: 7473 | P109: 7513 | Q109: 6727
A110: North | B110: Q46 | C110: Greater Manchester Area Team | D110: 00V | E110: NHS Bury CCG | F110: 5031 | G110: 4848 | H110: 4963 | I110: 4834 | J110: 4956 | K110: 4797 | L110: 4878 | M110: 5009 | N110: 4261 | O110: 4122 | P110: 4182 | Q110: 4325
A111: North | B111: Q46 | C111: Greater Manchester Area Team | D111: 00W | E111: NHS Central Manchester CCG | F111: 5279 | G111: 5089 | H111: 5421 | I111: 5435 | J111: 5235 | K111: 5108 | L111: 5419 | M111: 5290 | N111: 4814 | O111: 4703 | P111: 4988 | Q111: 4862
A112: North | B112: Q46 | C112: Greater Manchester Area Team | D112: 01D | E112: NHS Heywood, Middleton and Rochdale CCG | F112: 6494 | G112: 6322 | H112: 6621 | I112: 6805 | J112: 6261.21 | K112: 6133.508 | L112: 6418.455 | M112: 5862.593221 | N112: 5943.546 | O112: 5878.53 | P112: 6108.795 | Q112: 5585.081887
A113: North | B113: Q46 | C113: Greater Manchester Area Team | D113: 01M | E113: NHS North Manchester CCG | F113: 6105 | G113: 6126 | H113: 6388 | I113: 6381 | J113: 5907 | K113: 5955 | L113: 6223 | M113: 6122 | N113: 5747 | O113: 5799 | P113: 6061 | Q113: 5957
A114: North | B114: Q46 | C114: Greater Manchester Area Team | D114: 00Y | E114: NHS Oldham CCG | F114: 7232 | G114: 7131 | H114: 7397 | I114: 7451 | J114: 7067 | K114: 7027 | L114: 7376 | M114: 7014 | N114: 7070 | O114: 7147 | P114: 7147 | Q114: 7068
A115: North | B115: Q46 | C115: Greater Manchester Area Team | D115: 01G | E115: NHS Salford CCG | F115: 8083 | G115: 7982 | H115: 8627 | I115: 8399 | J115: 6892.628058 | K115: 7092.022175 | L115: 7412.832676 | M115: 7577.957964 | N115: 6856.514326 | O115: 6997.263887 | P115: 7333.33937 | Q115: 7537.282611
A116: North | B116: Q46 | C116: Greater Manchester Area Team | D116: 01N | E116: NHS South Manchester CCG | F116: 4511 | G116: 4543 | H116: 4823 | I116: 4610 | J116: 4473 | K116: 4501 | L116: 4782 | M116: 4483 | N116: 4338 | O116: 4371 | P116: 4639 | Q116: 4348
A117: North | B117: Q46 | C117: Greater Manchester Area Team | D117: 01W | E117: NHS Stockport CCG | F117: 9669 | G117: 9539 | H117: 9843 | I117: 9551 | J117: 8187.505888 | K117: 8327.148791 | L117: 8622.949251 | M117: 8546.020227 | N117: 7370.39643 | O117: 7496.103033 | P117: 7762.382739 | Q117: 7693.131197
A118: North | B118: Q46 | C118: Greater Manchester Area Team | D118: 01Y | E118: NHS Tameside and Glossop CCG | F118: 7079 | G118: 7024 | H118: 7517 | I118: 7108 | J118: 6906.546818 | K118: 6849.332349 | L118: 6821.156707 | M118: 6837.135163 | N118: 7165.446154 | O118: 7106.142043 | P118: 7077.103239 | Q118: 7093.814329
A119: North | B119: Q46 | C119: Greater Manchester Area Team | D119: 02A | E119: NHS Trafford CCG | F119: 5735 | G119: 5755 | H119: 5936 | I119: 5576 | J119: 5054 | K119: 5071 | L119: 5066 | M119: 5031 | N119: 4616 | O119: 4633 | P119: 4628 | Q119: 4593
A120: North | B120: Q46 | C120: Greater Manchester Area Team | D120: 02H | E120: NHS Wigan Borough CCG | F120: 8325 | G120: 8284 | H120: 8310 | I120: 8145 | J120: 7980 | K120: 7945 | L120: 7965 | M120: 7801 | N120: 7848 | O120: 7814 | P120: 7832 | Q120: 7671
A121: North | B121: Q47 | C121: Lancashire Area Team | D121: 00Q | E121: NHS Blackburn with Darwen CCG | F121: 5221 | G121: 4900 | H121: 4997 | I121: 5308 | J121: 4961.015041 | K121: 4929.209884 | L121: 4970.299232 | M121: 5008.087104 | N121: 4972.679089 | O121: 4939.768956 | P121: 4981.91619 | Q121: 5019.876183
A122: North | B122: Q47 | C122: Lancashire Area Team | D122: 00R | E122: NHS Blackpool CCG | F122: 5315 | G122: 5299 | H122: 5612 | I122: 5434 | J122: 5587 | K122: 5210 | L122: 5516 | M122: 5341 | N122: 4987 | O122: 4981 | P122: 5335 | Q122: 5161
A123: North | B123: Q47 | C123: Lancashire Area Team | D123: 00X | E123: NHS Chorley and South Ribble CCG | F123: 4485 | G123: 4406 | H123: 4436 | I123: 4330 | J123: 4467 | K123: 4386 | L123: 4416 | M123: 4414 | N123: 4319 | O123: 4242 | P123: 4269 | Q123: 4269
A124: North | B124: Q47 | C124: Lancashire Area Team | D124: 01A | E124: NHS East Lancashire CCG | F124: 10825 | G124: 10121 | H124: 10879 | I124: 10623 | J124: 10326.33544 | K124: 10267.30411 | L124: 10414.50929 | M124: 10425.21687 | N124: 10357.12927 | O124: 10298.85603 | P124: 10444.19461 | Q124: 10458.29884
A125: North | B125: Q47 | C125: Lancashire Area Team | D125: 02M | E125: NHS Fylde & Wyre CCG | F125: 3895 | G125: 3692 | H125: 3820 | I125: 3989 | J125: 3941 | K125: 3645 | L125: 3768 | M125: 3931 | N125: 3875 | O125: 3583 | P125: 3704 | Q125: 3864
A126: North | B126: Q47 | C126: Lancashire Area Team | D126: 01E | E126: NHS Greater Preston CCG | F126: 5522 | G126: 5358 | H126: 5864 | I126: 5745 | J126: 5494 | K126: 5330 | L126: 5830 | M126: 5764 | N126: 5292 | O126: 5133 | P126: 5619 | Q126: 5558
A127: North | B127: Q47 | C127: Lancashire Area Team | D127: 01K | E127: NHS Lancashire North CCG | F127: 4331 | G127: 4220 | H127: 4507 | I127: 4552 | J127: 4516 | K127: 4380 | L127: 4803 | M127: 4685 | N127: 4457 | O127: 4321 | P127: 4741 | Q127: 4624
A128: North | B128: Q47 | C128: Lancashire Area Team | D128: 02G | E128: NHS West Lancashire CCG | F128: 3205 | G128: 3180 | H128: 3475 | I128: 3324 | J128: 3284 | K128: 3160 | L128: 3310 | M128: 3392 | N128: 3272 | O128: 3148 | P128: 3298 | Q128: 3379
A129: North | B129: Q48 | C129: Merseyside Area Team | D129: 01F | E129: NHS Halton CCG | F129: 4452 | G129: 4116 | H129: 4173 | I129: 4199 | J129: 4183 | K129: 4093 | L129: 4124 | M129: 4099 | N129: 3968 | O129: 3882 | P129: 3914 | Q129: 3888
A130: North | B130: Q48 | C130: Merseyside Area Team | D130: 01J | E130: NHS Knowsley CCG | F130: 5502 | G130: 5220 | H130: 5149 | I130: 5174 | J130: 5284 | K130: 5191 | L130: 5251 | M130: 5481 | N130: 5168 | O130: 5080 | P130: 5136 | Q130: 5362
A131: North | B131: Q48 | C131: Merseyside Area Team | D131: 99A | E131: NHS Liverpool CCG | F131: 12921 | G131: 12917 | H131: 13433 | I131: 13920 | J131: 12751 | K131: 12900 | L131: 12902 | M131: 12625 | N131: 12431 | O131: 12570 | P131: 12572 | Q131: 12441
A132: North | B132: Q48 | C132: Merseyside Area Team | D132: 01T | E132: NHS South Sefton CCG | F132: 3944 | G132: 4064 | H132: 4240 | I132: 4161 | J132: 4060 | K132: 4070 | L132: 4011 | M132: 4035 | N132: 4020 | O132: 4028 | P132: 3971 | Q132: 3998
A133: North | B133: Q48 | C133: Merseyside Area Team | D133: 01V | E133: NHS Southport and Formby CCG | F133: 3742 | G133: 3689 | H133: 3872 | I133: 4071 | J133: 3885 | K133: 3875 | L133: 3566 | M133: 4291 | N133: 3807 | O133: 3797 | P133: 3492 | Q133: 4204
A134: North | B134: Q48 | C134: Merseyside Area Team | D134: 01X | E134: NHS St Helens CCG | F134: 6174 | G134: 6021 | H134: 5869 | I134: 5919 | J134: 5615 | K134: 5484 | L134: 5362 | M134: 5420 | N134: 5475 | O134: 5353 | P134: 5234 | Q134: 5291
A135: North | B135: Q49 | C135: Cumbria, Northumberland, Tyne And Wear Area Team | D135: 01H | E135: NHS Cumbria CCG | F135: 14143 | G135: 14099 | H135: 14844 | I135: 14996 | J135: 13851 | K135: 14008 | L135: 14947 | M135: 14555 | N135: 13736 | O135: 13890 | P135: 14823 | Q135: 14431
A136: North | B136: Q49 | C136: Cumbria, Northumberland, Tyne And Wear Area Team | D136: 00F | E136: NHS Gateshead CCG | F136: 6328 | G136: 6298 | H136: 6588 | I136: 6989 | J136: 6321 | K136: 6189 | L136: 6465 | M136: 6458 | N136: 6195 | O136: 6061 | P136: 6338 | Q136: 6330
A137: North | B137: Q49 | C137: Cumbria, Northumberland, Tyne And Wear Area Team | D137: 00G | E137: NHS Newcastle North and East CCG | F137: 3845 | G137: 3713 | H137: 3916 | I137: 3878 | J137: 3622 | K137: 3577 | L137: 3711 | M137: 3962 | N137: 3548 | O137: 3504 | P137: 3634 | Q137: 3883
A138: North | B138: Q49 | C138: Cumbria, Northumberland, Tyne And Wear Area Team | D138: 00H | E138: NHS Newcastle West CCG | F138: 4395 | G138: 4503 | H138: 4760 | I138: 4691 | J138: 4310 | K138: 4256 | L138: 4415 | M138: 4709 | N138: 4223 | O138: 4170 | P138: 4324 | Q138: 4613
A139: North | B139: Q49 | C139: Cumbria, Northumberland, Tyne And Wear Area Team | D139: 99C | E139: NHS North Tyneside CCG | F139: 5975 | G139: 5811 | H139: 6187 | I139: 6752 | J139: 5581 | K139: 5529 | L139: 5813 | M139: 6159 | N139: 5480 | O139: 5432 | P139: 5710 | Q139: 6049
A140: North | B140: Q49 | C140: Cumbria, Northumberland, Tyne And Wear Area Team | D140: 00L | E140: NHS Northumberland CCG | F140: 8210 | G140: 8341 | H140: 8476 | I140: 8850 | J140: 8131 | K140: 8219 | L140: 7953 | M140: 8425 | N140: 8154 | O140: 8243 | P140: 7976 | Q140: 8449
A141: North | B141: Q49 | C141: Cumbria, Northumberland, Tyne And Wear Area Team | D141: 00N | E141: NHS South Tyneside CCG | F141: 4247 | G141: 4133 | H141: 4269 | I141: 4181 | J141: 4137 | K141: 4006 | L141: 4031 | M141: 4120 | N141: 4053 | O141: 3926 | P141: 3952 | Q141: 4038
A142: North | B142: Q49 | C142: Cumbria, Northumberland, Tyne And Wear Area Team | D142: 00P | E142: NHS Sunderland CCG | F142: 8808 | G142: 7025 | H142: 7140 | I142: 7849 | J142: 7834 | K142: 7740 | L142: 7810 | M142: 7532 | N142: 7776 | O142: 7679 | P142: 7749 | Q142: 7472
A143: North | B143: Q50 | C143: North Yorkshire And Humber Area Team | D143: 02Y | E143: NHS East Riding of Yorkshire CCG | F143: 7198 | G143: 6984 | H143: 7172 | I143: 7140 | J143: 7070 | K143: 7150 | L143: 7150 | M143: 6990 | N143: 7180 | O143: 7265 | P143: 7265 | Q143: 7100
A144: North | B144: Q50 | C144: North Yorkshire And Humber Area Team | D144: 03D | E144: NHS Hambleton, Richmondshire and Whitby CCG | F144: 3522 | G144: 3239 | H144: 3466 | I144: 3555 | J144: 3117.974539 | K144: 3308.335181 | L144: 3261.454508 | M144: 3208.897934 | N144: 3206.54715 | O144: 3241.783932 | P144: 3241.783932 | Q144: 3206.54715
A145: North | B145: Q50 | C145: North Yorkshire And Humber Area Team | D145: 03E | E145: NHS Harrogate and Rural District CCG | F145: 3413 | G145: 3358 | H145: 3617 | I145: 3670 | J145: 3279.343307 | K145: 3333.849939 | L145: 3553.175881 | M145: 3335.466778 | N145: 3160.865221 | O145: 3207.531231 | P145: 3419.357343 | Q145: 3213.276772
A146: North | B146: Q50 | C146: North Yorkshire And Humber Area Team | D146: 03F | E146: NHS Hull CCG | F146: 7988 | G146: 7832 | H146: 8097 | I146: 8375 | J146: 8182.55376 | K146: 8278.195607 | L146: 8275.727103 | M146: 8096.785929 | N146: 8241.423181 | O146: 8337.739331 | P146: 8335.259016 | Q146: 8243.903496
A147: North | B147: Q50 | C147: North Yorkshire And Humber Area Team | D147: 03H | E147: NHS North East Lincolnshire CCG | F147: 3528 | G147: 3630 | H147: 3638 | I147: 3784 | J147: 3562 | K147: 3624 | L147: 3593 | M147: 3508 | N147: 3531 | O147: 3626 | P147: 3624 | Q147: 3529
A148: North | B148: Q50 | C148: North Yorkshire And Humber Area Team | D148: 03K | E148: NHS North Lincolnshire CCG | F148: 4355 | G148: 4468 | H148: 4657 | I148: 4664 | J148: 4143.339137 | K148: 4189.463743 | L148: 4189.463743 | M148: 4098.214531 | N148: 3535.196941 | O148: 3574.638666 | P148: 3574.638666 | Q148: 3501.635332
A149: North | B149: Q50 | C149: North Yorkshire And Humber Area Team | D149: 03M | E149: NHS Scarborough and Ryedale CCG | F149: 3478 | G149: 3004 | H149: 2976 | I149: 2793 | J149: 2949.392749 | K149: 3135.650041 | L149: 3089.445352 | M149: 3040.363592 | N149: 3036.458798 | O149: 3069.826477 | P149: 3069.826477 | Q149: 3036.458797
A150: North | B150: Q50 | C150: North Yorkshire And Humber Area Team | D150: 03Q | E150: NHS Vale of York CCG | F150: 9481 | G150: 8398 | H150: 8244 | I150: 8176 | J150: 8228.286497 | K150: 8029.803397 | L150: 7856.209248 | M150: 7611.675479 | N150: 7415.078099 | O150: 7496.562473 | P150: 7496.562473 | Q150: 7415.078099
A151: North | B151: Q51 | C151: South Yorkshire And Bassetlaw Area Team | D151: 02P | E151: NHS Barnsley CCG | F151: 7738 | G151: 7457 | H151: 7808 | I151: 8087 | J151: 7881 | K151: 7590 | L151: 7940 | M151: 7914 | N151: 8112 | O151: 7813 | P151: 8172 | Q151: 8145
A152: North | B152: Q51 | C152: South Yorkshire And Bassetlaw Area Team | D152: 02Q | E152: NHS Bassetlaw CCG | F152: 2829 | G152: 2800 | H152: 2828 | I152: 2880 | J152: 2626 | K152: 2605 | L152: 2627 | M152: 2614 | N152: 2532 | O152: 2514 | P152: 2537 | Q152: 2468
A153: North | B153: Q51 | C153: South Yorkshire And Bassetlaw Area Team | D153: 02X | E153: NHS Doncaster CCG | F153: 9445 | G153: 9713 | H153: 9647 | I153: 9728 | J153: 9319 | K153: 9423 | L153: 9537 | M153: 9135 | N153: 9254 | O153: 9356 | P153: 9468 | Q153: 9162
A154: North | B154: Q51 | C154: South Yorkshire And Bassetlaw Area Team | D154: 03L | E154: NHS Rotherham CCG | F154: 6885 | G154: 6944 | H154: 7390 | I154: 7080 | J154: 6934 | K154: 7010 | L154: 7010 | M154: 6858 | N154: 6934 | O154: 7010 | P154: 7010 | Q154: 6858
A155: North | B155: Q51 | C155: South Yorkshire And Bassetlaw Area Team | D155: 03N | E155: NHS Sheffield CCG | F155: 15568 | G155: 14893 | H155: 16118 | I155: 15409 | J155: 13754.72413 | K155: 13851.68358 | L155: 14969.63062 | M155: 14762.649 | N155: 13550.97128 | O155: 13650.26187 | P155: 14737.71797 | Q155: 14555.64822
A156: North | B156: Q52 | C156: West Yorkshire Area Team | D156: 02N | E156: NHS Airedale, Wharfdale and Craven CCG | F156: 4053 | G156: 4031 | H156: 4436 | I156: 4706 | J156: 3564 | K156: 3684 | L156: 3897 | M156: 4022 | N156: 3591 | O156: 3718 | P156: 3923 | Q156: 4080
A157: North | B157: Q52 | C157: West Yorkshire Area Team | D157: 02W | E157: NHS Bradford City CCG | F157: 3021 | G157: 3246 | H157: 3082 | I157: 3279 | J157: 3023 | K157: 3121 | L157: 2963 | M157: 3152 | N157: 2818 | O157: 3025 | P157: 2874 | Q157: 3056
A158: North | B158: Q52 | C158: West Yorkshire Area Team | D158: 02R | E158: NHS Bradford Districts CCG | F158: 9313 | G158: 9351 | H158: 9519 | I158: 9433 | J158: 9421 | K158: 9084 | L158: 9243 | M158: 9155 | N158: 8789 | O158: 8809 | P158: 8959 | Q158: 8872
A159: North | B159: Q52 | C159: West Yorkshire Area Team | D159: 02T | E159: NHS Calderdale CCG | F159: 6134 | G159: 5870 | H159: 6575 | I159: 6035 | J159: 6124 | K159: 5860 | L159: 6561 | M159: 6145 | N159: 6093 | O159: 5832 | P159: 6529 | Q159: 6114
A160: North | B160: Q52 | C160: West Yorkshire Area Team | D160: 03A | E160: NHS Greater Huddersfield CCG | F160: 6099 | G160: 6173 | H160: 6256 | I160: 5993 | J160: 6166 | K160: 6244 | L160: 6326 | M160: 6087 | N160: 6193 | O160: 6271 | P160: 6355 | Q160: 6113
A161: North | B161: Q52 | C161: West Yorkshire Area Team | D161: 02V | E161: NHS Leeds North CCG | F161: 4173 | G161: 4171 | H161: 3931 | I161: 4104 | J161: 3810.899247 | K161: 3852.77726 | L161: 3852.77726 | M161: 3769.021233 | N161: 3742.494141 | O161: 3783.620451 | P161: 3783.620451 | Q161: 3701.367832
A162: North | B162: Q52 | C162: West Yorkshire Area Team | D162: 03G | E162: NHS Leeds South and East CCG | F162: 6827 | G162: 6678 | H162: 6589 | I162: 6429 | J162: 6015.889082 | K162: 6081.997753 | L162: 6081.997753 | M162: 5949.780411 | N162: 5906.30265 | O162: 5971.207075 | P162: 5971.207075 | Q162: 5841.398225
A163: North | B163: Q52 | C163: West Yorkshire Area Team | D163: 03C | E163: NHS Leeds West CCG | F163: 7291 | G163: 7386 | H163: 7197 | I163: 7233 | J163: 6657.488322 | K163: 6730.647534 | L163: 6730.647534 | M163: 6584.32911 | N163: 6534.403233 | O163: 6606.209862 | P163: 6606.209862 | Q163: 6462.596604
A164: North | B164: Q52 | C164: West Yorkshire Area Team | D164: 03J | E164: NHS North Kirklees CCG | F164: 5346 | G164: 5270 | H164: 5555 | I164: 5281 | J164: 5242 | K164: 5167 | L164: 5448 | M164: 5117 | N164: 5190 | O164: 5116 | P164: 5394 | Q164: 5066
A165: North | B165: Q52 | C165: West Yorkshire Area Team | D165: 03R | E165: NHS Wakefield CCG | F165: 10865 | G165: 10030 | H165: 10435 | I165: 10565 | J165: 10946.03612 | K165: 10907.56399 | L165: 11329.56399 | M165: 10908.50825 | N165: 11052.03612 | O165: 11013.56399 | P165: 11441.56399 | Q165: 11014.50825
A166: South | B166: Q64 | C166: Bath, Gloucestershire, Swindon And Wiltshire Area Team | D166: 11E | E166: NHS Bath and North East Somerset CCG | F166: 3686 | G166: 3458 | H166: 3627 | I166: 3824 | J166: 3492 | K166: 3262 | L166: 3432 | M166: 3631 | N166: 3371 | O166: 3141 | P166: 3309 | Q166: 3512
A167: South | B167: Q64 | C167: Bath, Gloucestershire, Swindon And Wiltshire Area Team | D167: 11M | E167: NHS Gloucestershire CCG | F167: 13112 | G167: 13350 | H167: 14384 | I167: 14077 | J167: 12655 | K167: 12904 | L167: 14008 | M167: 14136 | N167: 12404 | O167: 12655 | P167: 13787 | Q167: 13917
A168: South | B168: Q64 | C168: Bath, Gloucestershire, Swindon And Wiltshire Area Team | D168: 12D | E168: NHS Swindon CCG | F168: 4864 | G168: 4946 | H168: 5688 | I168: 5287 | J168: 4605 | K168: 4689 | L168: 5454 | M168: 4932 | N168: 4336 | O168: 4422 | P168: 5211 | Q168: 4675
A169: South | B169: Q64 | C169: Bath, Gloucestershire, Swindon And Wiltshire Area Team | D169: 99N | E169: NHS Wiltshire CCG | F169: 9502 | G169: 9627 | H169: 9980 | I169: 10159 | J169: 9250 | K169: 9373 | L169: 9716 | M169: 9766 | N169: 9063 | O169: 9183 | P169: 9518 | Q169: 9565
A170: South | B170: Q65 | C170: Bristol, North Somerset, Somerset And South Gloucestershire Area Team | D170: 11H | E170: NHS Bristol CCG | F170: 9490 | G170: 9783 | H170: 9939 | I170: 9672 | J170: 9542.006457 | K170: 10163.89213 | L170: 10010.17071 | M170: 10009.17071 | N170: 9882.86845 | O170: 10189.33309 | P170: 9882.86845 | Q170: 9575.403811
A171: South | B171: Q65 | C171: Bristol, North Somerset, Somerset And South Gloucestershire Area Team | D171: 11T | E171: NHS North Somerset CCG | F171: 4622 | G171: 4904 | H171: 5012 | I171: 5225 | J171: 4735 | K171: 5046 | L171: 4968 | M171: 4970 | N171: 4637 | O171: 4782 | P171: 4637 | Q171: 4493
A172: South | B172: Q65 | C172: Bristol, North Somerset, Somerset And South Gloucestershire Area Team | D172: 11X | E172: NHS Somerset CCG | F172: 14377 | G172: 14755 | H172: 14316 | I172: 14655 | J172: 16641 | K172: 16654 | L172: 17370 | M172: 16807 | N172: 16601 | O172: 16615 | P172: 17327 | Q172: 16782
A173: South | B173: Q65 | C173: Bristol, North Somerset, Somerset And South Gloucestershire Area Team | D173: 12A | E173: NHS South Gloucestershire CCG | F173: 4734 | G173: 4679 | H173: 4993 | I173: 5219 | J173: 4888.631472 | K173: 5194.082717 | L173: 5124.219906 | M173: 5121.219906 | N173: 5054.503769 | O173: 5204.113262 | P173: 5059.503769 | Q173: 4905.894276
A174: South | B174: Q66 | C174: Devon, Cornwall And Isles Of Scilly Area Team | D174: 11N | E174: NHS Kernow CCG | F174: 13088 | G174: 12821 | H174: 13810 | I174: 13647 | J174: 11490 | K174: 11434 | L174: 11976 | M174: 11871 | N174: 10189 | O174: 10149 | P174: 10646 | Q174: 10519
A175: South | B175: Q66 | C175: Devon, Cornwall And Isles Of Scilly Area Team | D175: 99P | E175: NHS North, East, West Devon CCG | F175: 24376 | G175: 25663 | H175: 26007 | I175: 24724 | J175: 21324 | K175: 21891 | L175: 21985 | M175: 21758 | N175: 21541 | O175: 22114 | P175: 22211 | Q175: 21824
A176: South | B176: Q66 | C176: Devon, Cornwall And Isles Of Scilly Area Team | D176: 99Q | E176: NHS South Devon and Torbay CCG | F176: 4829 | G176: 5325 | H176: 4977 | I176: 5846 | J176: 8406 | K176: 8567 | L176: 8932 | M176: 8671 | N176: 8490 | O176: 8652 | P176: 9021 | Q176: 8758
A177: South | B177: Q67 | C177: Kent And Medway Area Team | D177: 09C | E177: NHS Ashford CCG | F177: 2605 | G177: 2636 | H177: 2559 | I177: 2758 | J177: 2685.171854 | K177: 2714.679237 | L177: 2714.679237 | M177: 2655.664471 | N177: 2643.164051 | O177: 2672.20981 | P177: 2672.20981 | Q177: 2643.164051
A178: South | B178: Q67 | C178: Kent And Medway Area Team | D178: 09E | E178: NHS Canterbury and Coastal CCG | F178: 5469 | G178: 5331 | H178: 5428 | I178: 5526 | J178: 5621.283613 | K178: 5683.055961 | L178: 5683.055961 | M178: 5559.511266 | N178: 5492.10122 | O178: 5552.453981 | P178: 5552.453981 | Q178: 5492.10122
A179: South | B179: Q67 | C179: Kent And Medway Area Team | D179: 09J | E179: NHS Dartford, Gravesham and Swanley CCG | F179: 6520 | G179: 6514 | H179: 6803 | I179: 6626 | J179: 6581 | K179: 6628 | L179: 6628 | M179: 6475 | N179: 6297 | O179: 6366 | P179: 6366 | Q179: 6296
A180: South | B180: Q67 | C180: Kent And Medway Area Team | D180: 09W | E180: NHS Medway CCG | F180: 6202 | G180: 6132 | H180: 6644 | I180: 6562 | J180: 5854 | K180: 5918 | L180: 5918 | M180: 5796 | N180: 5421 | O180: 5390 | P180: 5492 | Q180: 5477
A181: South | B181: Q67 | C181: Kent And Medway Area Team | D181: 10A | E181: NHS South Kent Coast CCG | F181: 5042 | G181: 5005 | H181: 4979 | I181: 4997 | J181: 5554 | K181: 5615 | L181: 5615 | M181: 5493 | N181: 5493 | O181: 5553 | P181: 5553 | Q181: 5431
A182: South | B182: Q67 | C182: Kent And Medway Area Team | D182: 10D | E182: NHS Swale CCG | F182: 2305 | G182: 2307 | H182: 2331 | I182: 2236 | J182: 2194 | K182: 2100 | L182: 2055 | M182: 2006 | N182: 2204 | O182: 2115 | P182: 2070 | Q182: 2025
A183: South | B183: Q67 | C183: Kent And Medway Area Team | D183: 10E | E183: NHS Thanet CCG | F183: 4098 | G183: 4056 | H183: 3837 | I183: 4037 | J183: 4204.077556 | K183: 4251.248071 | L183: 4200.248071 | M183: 4035.863688 | N183: 4125.077556 | O183: 3994.248071 | P183: 3880.248071 | Q183: 3791.863688
A184: South | B184: Q67 | C184: Kent And Medway Area Team | D184: 99J | E184: NHS West Kent CCG | F184: 9758 | G184: 9718 | H184: 9860 | I184: 9942 | J184: 9073 | K184: 9173 | L184: 9173 | M184: 8974 | N184: 8691 | O184: 8787 | P184: 8787 | Q184: 8692
A185: South | B185: Q68 | C185: Surrey And Sussex Area Team | D185: 09D | E185: NHS Brighton and Hove CCG | F185: 6309 | G185: 6555 | H185: 6594 | I185: 6207 | J185: 6091 | K185: 6205 | L185: 6206 | M185: 5822 | N185: 5895 | O185: 6003 | P185: 6004 | Q185: 5699
A186: South | B186: Q68 | C186: Surrey And Sussex Area Team | D186: 09G | E186: NHS Coastal West Sussex CCG | F186: 11785 | G186: 11852 | H186: 12630 | I186: 12553 | J186: 11198 | K186: 11201 | L186: 11595 | M186: 11396 | N186: 10966 | O186: 10968 | P186: 11334 | Q186: 11286
A187: South | B187: Q68 | C187: Surrey And Sussex Area Team | D187: 09H | E187: NHS Crawley CCG | F187: 3032 | G187: 3104 | H187: 3073 | I187: 3005 | J187: 2884 | K187: 2863 | L187: 2928 | M187: 2871 | N187: 2713 | O187: 2692 | P187: 2753 | Q187: 2734
A188: South | B188: Q68 | C188: Surrey And Sussex Area Team | D188: 09L | E188: NHS East Surrey CCG | F188: 4114 | G188: 4120 | H188: 4159 | I188: 4161 | J188: 3728 | K188: 3728 | L188: 3731 | M188: 3751 | N188: 3708 | O188: 3710 | P188: 3711 | Q188: 3730
A189: South | B189: Q68 | C189: Surrey And Sussex Area Team | D189: 09F | E189: NHS Eastbourne, Hailsham and Seaford CCG | F189: 4640 | G189: 4658 | H189: 4928 | I189: 4768 | J189: 4152 | K189: 4195 | L189: 4194 | M189: 4111 | N189: 4198 | O189: 4242 | P189: 4241 | Q189: 4158
A190: South | B190: Q68 | C190: Surrey And Sussex Area Team | D190: 09N | E190: NHS Guildford and Waverley CCG | F190: 4298 | G190: 4254 | H190: 4830 | I190: 4478 | J190: 4371 | K190: 3463 | L190: 3839 | M190: 3848 | N190: 3475 | O190: 2548 | P190: 2931 | Q190: 2942
A191: South | B191: Q68 | C191: Surrey And Sussex Area Team | D191: 09P | E191: NHS Hastings and Rother CCG | F191: 4601 | G191: 4717 | H191: 5287 | I191: 5250 | J191: 4101 | K191: 4146 | L191: 4146 | M191: 4059 | N191: 4143 | O191: 4188 | P191: 4188 | Q191: 4100
A192: South | B192: Q68 | C192: Surrey And Sussex Area Team | D192: 99K | E192: NHS High Weald Lewes Havens CCG | F192: 3221 | G192: 3395 | H192: 3336 | I192: 3361 | J192: 3634.968452 | K192: 3651.935144 | L192: 3651.935144 | M192: 3619.001772 | N192: 3600.608995 | O192: 3616.340968 | P192: 3616.340968 | Q192: 3591.877034
A193: South | B193: Q68 | C193: Surrey And Sussex Area Team | D193: 09X | E193: NHS Horsham and Mid Sussex CCG | F193: 4331 | G193: 4797 | H193: 4878 | I193: 4957 | J193: 4160 | K193: 4200 | L193: 4243 | M193: 4030 | N193: 3905 | O193: 3934 | P193: 3973 | Q193: 3839
A194: South | B194: Q68 | C194: Surrey And Sussex Area Team | D194: 09Y | E194: NHS North West Surrey CCG | F194: 6801 | G194: 6655 | H194: 6750 | I194: 6618 | J194: 7628.525014 | K194: 7712.354959 | L194: 7712.354959 | M194: 7544.695069 | N194: 7754.15037 | O194: 7839.360813 | P194: 7839.360813 | Q194: 7668.939926
A195: South | B195: Q68 | C195: Surrey And Sussex Area Team | D195: 99H | E195: NHS Surrey Downs CCG | F195: 5417 | G195: 5467 | H195: 6019 | I195: 6261 | J195: 5790 | K195: 5579 | L195: 5823 | M195: 5649 | N195: 5173 | O195: 5428 | P195: 5680 | Q195: 5582
A196: South | B196: Q68 | C196: Surrey And Sussex Area Team | D196: 10C | E196: NHS Surrey Heath CCG | F196: 1856 | G196: 1877 | H196: 2016 | I196: 1931 | J196: 1882 | K196: 1867 | L196: 1948 | M196: 1850 | N196: 1776 | O196: 1763 | P196: 1844 | Q196: 1772
A197: South | B197: Q69 | C197: Thames Valley Area Team | D197: 10Y | E197: NHS Aylesbury Vale CCG | F197: 3778 | G197: 3610 | H197: 3936 | I197: 4038 | J197: 4428 | K197: 4468 | L197: 4479 | M197: 4382 | N197: 4428 | O197: 4468 | P197: 4479 | Q197: 4382
A198: South | B198: Q69 | C198: Thames Valley Area Team | D198: 10G | E198: NHS Bracknell and Ascot CCG | F198: 2401 | G198: 2468 | H198: 2559 | I198: 2477 | J198: 2205 | K198: 2276 | L198: 2388 | M198: 2314 | N198: 2240 | O198: 2316 | P198: 2425 | Q198: 2351
A199: South | B199: Q69 | C199: Thames Valley Area Team | D199: 10H | E199: NHS Chiltern CCG | F199: 6156 | G199: 6064 | H199: 6445 | I199: 6506 | J199: 7087.728767 | K199: 7165.813699 | L199: 7165.813699 | M199: 7009.643836 | N199: 7087.875614 | O199: 7165.962159 | P199: 7165.962159 | Q199: 7009.789068
A200: South | B200: Q69 | C200: Thames Valley Area Team | D200: 10M | E200: NHS Newbury and District CCG | F200: 1857 | G200: 1854 | H200: 1912 | I200: 1789 | J200: 1892 | K200: 1851 | L200: 1936 | M200: 1823 | N200: 1857 | O200: 1842 | P200: 1924 | Q200: 1834
... 17 more rows

Sheet 9.Non-elective admissions - Map (hidden)
B1: Mapping of CCGs to Health and Wellbeing Boards
A2: 1
H3: Can be amended*:
A4: CCG | B4: CCG Name | C4: HWB Code | D4: LA Name | H4: % CCG in LA | I4: % LA in CCG | J4: 13-14 Q1 | K4: 13-14 Q2 | L4: 13-14 Q3 | M4: 13-14 Q4 | N4: 14-15 Q1 | O4: 14-15 Q2 | P4: 14-15 Q3 | Q4: 14-15 Q4 | R4: 2015/16 Q1 | S4: 2015/16 Q2 | T4: 2015/16 Q3 | U4: 2015/16 Q4
A5: 02N | B5: NHS Airedale, Wharfdale and Craven CCG | C5: E08000032 | D5: Bradford | E5: =COUNTIF($D$5:D5,D5) -> 1 | F5: =D5&E5 -> Bradford1 | G5: =B5 -> NHS Airedale, Wharfdale and Craven CCG | H5: 0.6738004041 | I5: 0.1882244864 | J5: =VLOOKUP($A5,'8.Non-elective admissions - CCG'!$D$5:$N$215,3,0)*$H5 -> 2730.913038 | K5: =VLOOKUP($A5,'8.Non-elective admissions - CCG'!$D$5:$N$215,4,0)*$H5 -> 2716.089429 | L5: =VLOOKUP($A5,'8.Non-elective admissions - CCG'!$D$5:$N$215,5,0)*$H5 -> 2988.978592 | M5: =VLOOKUP($A5,'8.Non-elective admissions - CCG'!$D$5:$N$215,6,0)*$H5 -> 3170.904702 | N5: =VLOOKUP($A5,'8.Non-elective admissions - CCG'!$D$5:$N$215,7,0)*$H5 -> 2401.42464 | O5: =VLOOKUP($A5,'8.Non-elective admissions - CCG'!$D$5:$N$215,8,0)*$H5 -> 2482.280689 | P5: =VLOOKUP($A5,'8.Non-elective admissions - CCG'!$D$5:$N$215,9,0)*$H5 -> 2625.800175 | Q5: =VLOOKUP($A5,'8.Non-elective admissions - CCG'!$D$5:$N$215,10,0)*$H5 -> 2710.025225 | R5: =VLOOKUP($A5,'8.Non-elective admissions - CCG'!$D$5:$Q$215,11,0)*$H5 -> 2419.617251 | S5: =VLOOKUP($A5,'8.Non-elective admissions - CCG'!$D$5:$Q$215,12,0)*$H5 -> 2505.189902 | T5: =VLOOKUP($A5,'8.Non-elective admissions - CCG'!$D$5:$Q$215,13,0)*$H5 -> 2643.318985 | U5: =VLOOKUP($A5,'8.Non-elective admissions - CCG'!$D$5:$Q$215,14,0)*$H5 -> 2749.105649
A6: 02N | B6: NHS Airedale, Wharfdale and Craven CCG | C6: E10000017 | D6: Lancashire | E6: =COUNTIF($D$5:D6,D6) -> 1 | F6: =D6&E6 -> Lancashire1 | G6: =B6 -> NHS Airedale, Wharfdale and Craven CCG | H6: 0.001637912904 | I6: 0 | J6: =VLOOKUP($A6,'8.Non-elective admissions - CCG'!$D$5:$N$215,3,0)*$H6 -> 6.638460999 | K6: =VLOOKUP($A6,'8.Non-elective admissions - CCG'!$D$5:$N$215,4,0)*$H6 -> 6.602426915 | L6: =VLOOKUP($A6,'8.Non-elective admissions - CCG'!$D$5:$N$215,5,0)*$H6 -> 7.265781641 | M6: =VLOOKUP($A6,'8.Non-elective admissions - CCG'!$D$5:$N$215,6,0)*$H6 -> 7.708018125 | N6: =VLOOKUP($A6,'8.Non-elective admissions - CCG'!$D$5:$N$215,7,0)*$H6 -> 5.837521589 | O6: =VLOOKUP($A6,'8.Non-elective admissions - CCG'!$D$5:$N$215,8,0)*$H6 -> 6.034071138 | P6: =VLOOKUP($A6,'8.Non-elective admissions - CCG'!$D$5:$N$215,9,0)*$H6 -> 6.382946586 | Q6: =VLOOKUP($A6,'8.Non-elective admissions - CCG'!$D$5:$N$215,10,0)*$H6 -> 6.587685699 | R6: =VLOOKUP($A6,'8.Non-elective admissions - CCG'!$D$5:$Q$215,11,0)*$H6 -> 5.881745238 | S6: =VLOOKUP($A6,'8.Non-elective admissions - CCG'!$D$5:$Q$215,12,0)*$H6 -> 6.089760176 | T6: =VLOOKUP($A6,'8.Non-elective admissions - CCG'!$D$5:$Q$215,13,0)*$H6 -> 6.425532322 | U6: =VLOOKUP($A6,'8.Non-elective admissions - CCG'!$D$5:$Q$215,14,0)*$H6 -> 6.682684648
A7: 02N | B7: NHS Airedale, Wharfdale and Craven CCG | C7: E10000023 | D7: North Yorkshire | E7: =COUNTIF($D$5:D7,D7) -> 1 | F7: North Yorkshire1 | G7: NHS Airedale, Wharfdale and Craven CCG | H7: 0.324561683 | I7: 0.08349400593 | J7: =VLOOKUP($A7,'8.Non-elective admissions - CCG'!$D$5:$N$215,3,0)*$H7 -> 1315.448501 | K7: =VLOOKUP($A7,'8.Non-elective admissions - CCG'!$D$5:$N$215,4,0)*$H7 -> 1308.308144 | L7: =VLOOKUP($A7,'8.Non-elective admissions - CCG'!$D$5:$N$215,5,0)*$H7 -> 1439.755626 | M7: =VLOOKUP($A7,'8.Non-elective admissions - CCG'!$D$5:$N$215,6,0)*$H7 -> 1527.38728 | N7: =VLOOKUP($A7,'8.Non-elective admissions - CCG'!$D$5:$N$215,7,0)*$H7 -> 1156.737838 | O7: =VLOOKUP($A7,'8.Non-elective admissions - CCG'!$D$5:$N$215,8,0)*$H7 -> 1195.68524 | P7: =VLOOKUP($A7,'8.Non-elective admissions - CCG'!$D$5:$N$215,9,0)*$H7 -> 1264.816879 | Q7: =VLOOKUP($A7,'8.Non-elective admissions - CCG'!$D$5:$N$215,10,0)*$H7 -> 1305.387089 | R7: =VLOOKUP($A7,'8.Non-elective admissions - CCG'!$D$5:$Q$215,11,0)*$H7 -> 1165.501004 | S7: =VLOOKUP($A7,'8.Non-elective admissions - CCG'!$D$5:$Q$215,12,0)*$H7 -> 1206.720338 | T7: =VLOOKUP($A7,'8.Non-elective admissions - CCG'!$D$5:$Q$215,13,0)*$H7 -> 1273.255483 | U7: =VLOOKUP($A7,'8.Non-elective admissions - CCG'!$D$5:$Q$215,14,0)*$H7 -> 1324.211667
A8: 09C | B8: NHS Ashford CCG | C8: E10000016 | D8: Kent | E8: =COUNTIF($D$5:D8,D8) -> 1 | F8: Kent1 | G8: NHS Ashford CCG | H8: 1 | I8: 0.08251776242 | J8: =VLOOKUP($A8,'8.Non-elective admissions - CCG'!$D$5:$N$215,3,0)*$H8 -> 2605 | K8: =VLOOKUP($A8,'8.Non-elective admissions - CCG'!$D$5:$N$215,4,0)*$H8 -> 2636 | L8: =VLOOKUP($A8,'8.Non-elective admissions - CCG'!$D$5:$N$215,5,0)*$H8 -> 2559 | M8: =VLOOKUP($A8,'8.Non-elective admissions - CCG'!$D$5:$N$215,6,0)*$H8 -> 2758 | N8: =VLOOKUP($A8,'8.Non-elective admissions - CCG'!$D$5:$N$215,7,0)*$H8 -> 2685.171854 | O8: =VLOOKUP($A8,'8.Non-elective admissions - CCG'!$D$5:$N$215,8,0)*$H8 -> 2714.679237 | P8: =VLOOKUP($A8,'8.Non-elective admissions - CCG'!$D$5:$N$215,9,0)*$H8 -> 2714.679237 | Q8: =VLOOKUP($A8,'8.Non-elective admissions - CCG'!$D$5:$N$215,10,0)*$H8 -> 2655.664471 | R8: =VLOOKUP($A8,'8.Non-elective admissions - CCG'!$D$5:$Q$215,11,0)*$H8 -> 2643.164051 | S8: =VLOOKUP($A8,'8.Non-elective admissions - CCG'!$D$5:$Q$215,12,0)*$H8 -> 2672.20981 | T8: =VLOOKUP($A8,'8.Non-elective admissions - CCG'!$D$5:$Q$215,13,0)*$H8 -> 2672.20981 | U8: =VLOOKUP($A8,'8.Non-elective admissions - CCG'!$D$5:$Q$215,14,0)*$H8 -> 2643.164051
A9: 10Y | B9: NHS Aylesbury Vale CCG | C9: E10000002 | D9: Buckinghamshire | E9: =COUNTIF($D$5:D9,D9) -> 1 | F9: Buckinghamshire1 | G9: NHS Aylesbury Vale CCG | H9: 0.9112003504 | I9: 0.3478585157 | J9: =VLOOKUP($A9,'8.Non-elective admissions - CCG'!$D$5:$N$215,3,0)*$H9 -> 3442.514924 | K9: =VLOOKUP($A9,'8.Non-elective admissions - CCG'!$D$5:$N$215,4,0)*$H9 -> 3289.433265 | L9: =VLOOKUP($A9,'8.Non-elective admissions - CCG'!$D$5:$N$215,5,0)*$H9 -> 3586.484579 | M9: =VLOOKUP($A9,'8.Non-elective admissions - CCG'!$D$5:$N$215,6,0)*$H9 -> 3679.427015 | N9: =VLOOKUP($A9,'8.Non-elective admissions - CCG'!$D$5:$N$215,7,0)*$H9 -> 4034.795152 | O9: =VLOOKUP($A9,'8.Non-elective admissions - CCG'!$D$5:$N$215,8,0)*$H9 -> 4071.243166 | P9: =VLOOKUP($A9,'8.Non-elective admissions - CCG'!$D$5:$N$215,9,0)*$H9 -> 4081.266369 | Q9: =VLOOKUP($A9,'8.Non-elective admissions - CCG'!$D$5:$N$215,10,0)*$H9 -> 3992.879935 | R9: =VLOOKUP($A9,'8.Non-elective admissions - CCG'!$D$5:$Q$215,11,0)*$H9 -> 4034.795152 | S9: =VLOOKUP($A9,'8.Non-elective admissions - CCG'!$D$5:$Q$215,12,0)*$H9 -> 4071.243166 | T9: =VLOOKUP($A9,'8.Non-elective admissions - CCG'!$D$5:$Q$215,13,0)*$H9 -> 4081.266369 | U9: =VLOOKUP($A9,'8.Non-elective admissions - CCG'!$D$5:$Q$215,14,0)*$H9 -> 3992.879935
A10: 10Y | B10: NHS Aylesbury Vale CCG | C10: E06000056 | D10: Central Bedfordshire | E10: =COUNTIF($D$5:D10,D10) -> 1 | F10: Central Bedfordshire1 | G10: NHS Aylesbury Vale CCG | H10: 0.0205955738 | I10: 0.0154373928 | J10: =VLOOKUP($A10,'8.Non-elective admissions - CCG'!$D$5:$N$215,3,0)*$H10 -> 77.81007781 | K10: =VLOOKUP($A10,'8.Non-elective admissions - CCG'!$D$5:$N$215,4,0)*$H10 -> 74.35002141 | L10: =VLOOKUP($A10,'8.Non-elective admissions - CCG'!$D$5:$N$215,5,0)*$H10 -> 81.06417847 | M10: =VLOOKUP($A10,'8.Non-elective admissions - CCG'!$D$5:$N$215,6,0)*$H10 -> 83.16492699 | N10: =VLOOKUP($A10,'8.Non-elective admissions - CCG'!$D$5:$N$215,7,0)*$H10 -> 91.19720077 | O10: =VLOOKUP($A10,'8.Non-elective admissions - CCG'!$D$5:$N$215,8,0)*$H10 -> 92.02102373 | P10: =VLOOKUP($A10,'8.Non-elective admissions - CCG'!$D$5:$N$215,9,0)*$H10 -> 92.24757504 | Q10: =VLOOKUP($A10,'8.Non-elective admissions - CCG'!$D$5:$N$215,10,0)*$H10 -> 90.24980438 | R10: =VLOOKUP($A10,'8.Non-elective admissions - CCG'!$D$5:$Q$215,11,0)*$H10 -> 91.19720077 | S10: =VLOOKUP($A10,'8.Non-elective admissions - CCG'!$D$5:$Q$215,12,0)*$H10 -> 92.02102373 | T10: =VLOOKUP($A10,'8.Non-elective admissions - CCG'!$D$5:$Q$215,13,0)*$H10 -> 92.24757504 | U10: =VLOOKUP($A10,'8.Non-elective admissions - CCG'!$D$5:$Q$215,14,0)*$H10 -> 90.24980438
A11: 10Y | B11: NHS Aylesbury Vale CCG | C11: E10000015 | D11: Hertfordshire | E11: =COUNTIF($D$5:D11,D11) -> 1 | F11: Hertfordshire1 | G11: NHS Aylesbury Vale CCG | H11: 0.003976397522 | I11: 0 | J11: =VLOOKUP($A11,'8.Non-elective admissions - CCG'!$D$5:$N$215,3,0)*$H11 -> 15.02282984 | K11: =VLOOKUP($A11,'8.Non-elective admissions - CCG'!$D$5:$N$215,4,0)*$H11 -> 14.35479505 | L11: =VLOOKUP($A11,'8.Non-elective admissions - CCG'!$D$5:$N$215,5,0)*$H11 -> 15.65110065 | M11: =VLOOKUP($A11,'8.Non-elective admissions - CCG'!$D$5:$N$215,6,0)*$H11 -> 16.05669319 | N11: =VLOOKUP($A11,'8.Non-elective admissions - CCG'!$D$5:$N$215,7,0)*$H11 -> 17.60748823 | O11: =VLOOKUP($A11,'8.Non-elective admissions - CCG'!$D$5:$N$215,8,0)*$H11 -> 17.76654413 | P11: =VLOOKUP($A11,'8.Non-elective admissions - CCG'!$D$5:$N$215,9,0)*$H11 -> 17.8102845 | Q11: =VLOOKUP($A11,'8.Non-elective admissions - CCG'!$D$5:$N$215,10,0)*$H11 -> 17.42457394 | R11: =VLOOKUP($A11,'8.Non-elective admissions - CCG'!$D$5:$Q$215,11,0)*$H11 -> 17.60748823 | S11: =VLOOKUP($A11,'8.Non-elective admissions - CCG'!$D$5:$Q$215,12,0)*$H11 -> 17.76654413 | T11: =VLOOKUP($A11,'8.Non-elective admissions - CCG'!$D$5:$Q$215,13,0)*$H11 -> 17.8102845 | U11: =VLOOKUP($A11,'8.Non-elective admissions - CCG'!$D$5:$Q$215,14,0)*$H11 -> 17.42457394
A12: 10Y | B12: NHS Aylesbury Vale CCG | C12: E10000021 | D12: Northamptonshire | E12: =COUNTIF($D$5:D12,D12) -> 1 | F12: Northamptonshire1 | G12: NHS Aylesbury Vale CCG | H12: 0.001510834207 | I12: 0 | J12: =VLOOKUP($A12,'8.Non-elective admissions - CCG'!$D$5:$N$215,3,0)*$H12 -> 5.707931634 | K12: =VLOOKUP($A12,'8.Non-elective admissions - CCG'!$D$5:$N$215,4,0)*$H12 -> 5.454111487 | L12: =VLOOKUP($A12,'8.Non-elective admissions - CCG'!$D$5:$N$215,5,0)*$H12 -> 5.946643438 | M12: =VLOOKUP($A12,'8.Non-elective admissions - CCG'!$D$5:$N$215,6,0)*$H12 -> 6.100748527 | N12: =VLOOKUP($A12,'8.Non-elective admissions - CCG'!$D$5:$N$215,7,0)*$H12 -> 6.689973868 | O12: =VLOOKUP($A12,'8.Non-elective admissions - CCG'!$D$5:$N$215,8,0)*$H12 -> 6.750407236 | P12: =VLOOKUP($A12,'8.Non-elective admissions - CCG'!$D$5:$N$215,9,0)*$H12 -> 6.767026413 | Q12: =VLOOKUP($A12,'8.Non-elective admissions - CCG'!$D$5:$N$215,10,0)*$H12 -> 6.620475494 | R12: =VLOOKUP($A12,'8.Non-elective admissions - CCG'!$D$5:$Q$215,11,0)*$H12 -> 6.689973868 | S12: =VLOOKUP($A12,'8.Non-elective admissions - CCG'!$D$5:$Q$215,12,0)*$H12 -> 6.750407236 | T12: =VLOOKUP($A12,'8.Non-elective admissions - CCG'!$D$5:$Q$215,13,0)*$H12 -> 6.767026413 | U12: =VLOOKUP($A12,'8.Non-elective admissions - CCG'!$D$5:$Q$215,14,0)*$H12 -> 6.620475494
A13: 10Y | B13: NHS Aylesbury Vale CCG | C13: E10000025 | D13: Oxfordshire | E13: =COUNTIF($D$5:D13,D13) -> 1 | F13: Oxfordshire1 | G13: NHS Aylesbury Vale CCG | H13: 0.06271684408 | I13: 0.01801236442 | J13: =VLOOKUP($A13,'8.Non-elective admissions - CCG'!$D$5:$N$215,3,0)*$H13 -> 236.9442369 | K13: =VLOOKUP($A13,'8.Non-elective admissions - CCG'!$D$5:$N$215,4,0)*$H13 -> 226.4078071 | L13: =VLOOKUP($A13,'8.Non-elective admissions - CCG'!$D$5:$N$215,5,0)*$H13 -> 246.8534983 | M13: =VLOOKUP($A13,'8.Non-elective admissions - CCG'!$D$5:$N$215,6,0)*$H13 -> 253.2506164 | N13: =VLOOKUP($A13,'8.Non-elective admissions - CCG'!$D$5:$N$215,7,0)*$H13 -> 277.7101856 | O13: =VLOOKUP($A13,'8.Non-elective admissions - CCG'!$D$5:$N$215,8,0)*$H13 -> 280.2188593 | P13: =VLOOKUP($A13,'8.Non-elective admissions - CCG'!$D$5:$N$215,9,0)*$H13 -> 280.9087446 | Q13: =VLOOKUP($A13,'8.Non-elective admissions - CCG'!$D$5:$N$215,10,0)*$H13 -> 274.8252108 | R13: =VLOOKUP($A13,'8.Non-elective admissions - CCG'!$D$5:$Q$215,11,0)*$H13 -> 277.7101856 | S13: =VLOOKUP($A13,'8.Non-elective admissions - CCG'!$D$5:$Q$215,12,0)*$H13 -> 280.2188593 | T13: =VLOOKUP($A13,'8.Non-elective admissions - CCG'!$D$5:$Q$215,13,0)*$H13 -> 280.9087446 | U13: =VLOOKUP($A13,'8.Non-elective admissions - CCG'!$D$5:$Q$215,14,0)*$H13 -> 274.8252108
A14: 07L | B14: NHS Barking and Dagenham CCG | C14: E09000002 | D14: Barking and Dagenham | E14: =COUNTIF($D$5:D14,D14) -> 1 | F14: Barking and Dagenham1 | G14: NHS Barking and Dagenham CCG | H14: 0.8994341688 | I14: 0.8922845499 | J14: =VLOOKUP($A14,'8.Non-elective admissions - CCG'!$D$5:$N$215,3,0)*$H14 -> 4665.365034 | K14: =VLOOKUP($A14,'8.Non-elective admissions - CCG'!$D$5:$N$215,4,0)*$H14 -> 4430.612716 | L14: =VLOOKUP($A14,'8.Non-elective admissions - CCG'!$D$5:$N$215,5,0)*$H14 -> 4460.294043 | M14: =VLOOKUP($A14,'8.Non-elective admissions - CCG'!$D$5:$N$215,6,0)*$H14 -> 4798.481291 | N14: =VLOOKUP($A14,'8.Non-elective admissions - CCG'!$D$5:$N$215,7,0)*$H14 -> 4684.337878 | O14: =VLOOKUP($A14,'8.Non-elective admissions - CCG'!$D$5:$N$215,8,0)*$H14 -> 4443.787178 | P14: =VLOOKUP($A14,'8.Non-elective admissions - CCG'!$D$5:$N$215,9,0)*$H14 -> 4475.123284 | Q14: =VLOOKUP($A14,'8.Non-elective admissions - CCG'!$D$5:$N$215,10,0)*$H14 -> 4822.585407 | R14: =VLOOKUP($A14,'8.Non-elective admissions - CCG'!$D$5:$Q$215,11,0)*$H14 -> 4796.293553 | S14: =VLOOKUP($A14,'8.Non-elective admissions - CCG'!$D$5:$Q$215,12,0)*$H14 -> 4549.993691 | T14: =VLOOKUP($A14,'8.Non-elective admissions - CCG'!$D$5:$Q$215,13,0)*$H14 -> 4582.078731 | U14: =VLOOKUP($A14,'8.Non-elective admissions - CCG'!$D$5:$Q$215,14,0)*$H14 -> 4937.845198
A15: 07L | B15: NHS Barking and Dagenham CCG | C15: E09000016 | D15: Havering | E15: =COUNTIF($D$5:D15,D15) -> 1 | F15: Havering1 | G15: NHS Barking and Dagenham CCG | H15: 0.03833893674 | I15: 0.03179807379 | J15: =VLOOKUP($A15,'8.Non-elective admissions - CCG'!$D$5:$N$215,3,0)*$H15 -> 198.8640649 | K15: =VLOOKUP($A15,'8.Non-elective admissions - CCG'!$D$5:$N$215,4,0)*$H15 -> 188.8576024 | L15: =VLOOKUP($A15,'8.Non-elective admissions - CCG'!$D$5:$N$215,5,0)*$H15 -> 190.1227873 | M15: =VLOOKUP($A15,'8.Non-elective admissions - CCG'!$D$5:$N$215,6,0)*$H15 -> 204.5382275 | N15: =VLOOKUP($A15,'8.Non-elective admissions - CCG'!$D$5:$N$215,7,0)*$H15 -> 199.6727941 | O15: =VLOOKUP($A15,'8.Non-elective admissions - CCG'!$D$5:$N$215,8,0)*$H15 -> 189.419172 | P15: =VLOOKUP($A15,'8.Non-elective admissions - CCG'!$D$5:$N$215,9,0)*$H15 -> 190.7548929 | Q15: =VLOOKUP($A15,'8.Non-elective admissions - CCG'!$D$5:$N$215,10,0)*$H15 -> 205.5656803 | R15: =VLOOKUP($A15,'8.Non-elective admissions - CCG'!$D$5:$Q$215,11,0)*$H15 -> 204.4449739 | S15: =VLOOKUP($A15,'8.Non-elective admissions - CCG'!$D$5:$Q$215,12,0)*$H15 -> 193.9462902 | T15: =VLOOKUP($A15,'8.Non-elective admissions - CCG'!$D$5:$Q$215,13,0)*$H15 -> 195.3139348 | U15: =VLOOKUP($A15,'8.Non-elective admissions - CCG'!$D$5:$Q$215,14,0)*$H15 -> 210.4787001
A16: 07L | B16: NHS Barking and Dagenham CCG | C16: E09000025 | D16: Newham | E16: =COUNTIF($D$5:D16,D16) -> 1 | F16: Newham1 | G16: NHS Barking and Dagenham CCG | H16: 0.00521746713 | I16: 0.00297439863 | J16: =VLOOKUP($A16,'8.Non-elective admissions - CCG'!$D$5:$N$215,3,0)*$H16 -> 27.06300201 | K16: =VLOOKUP($A16,'8.Non-elective admissions - CCG'!$D$5:$N$215,4,0)*$H16 -> 25.70124308 | L16: =VLOOKUP($A16,'8.Non-elective admissions - CCG'!$D$5:$N$215,5,0)*$H16 -> 25.8734195 | M16: =VLOOKUP($A16,'8.Non-elective admissions - CCG'!$D$5:$N$215,6,0)*$H16 -> 27.83518714 | N16: =VLOOKUP($A16,'8.Non-elective admissions - CCG'!$D$5:$N$215,7,0)*$H16 -> 27.1730603 | O16: =VLOOKUP($A16,'8.Non-elective admissions - CCG'!$D$5:$N$215,8,0)*$H16 -> 25.77766593 | P16: =VLOOKUP($A16,'8.Non-elective admissions - CCG'!$D$5:$N$215,9,0)*$H16 -> 25.95944145 | Q16: =VLOOKUP($A16,'8.Non-elective admissions - CCG'!$D$5:$N$215,10,0)*$H16 -> 27.97501109 | R16: =VLOOKUP($A16,'8.Non-elective admissions - CCG'!$D$5:$Q$215,11,0)*$H16 -> 27.82249644 | S16: =VLOOKUP($A16,'8.Non-elective admissions - CCG'!$D$5:$Q$215,12,0)*$H16 -> 26.39375215 | T16: =VLOOKUP($A16,'8.Non-elective admissions - CCG'!$D$5:$Q$215,13,0)*$H16 -> 26.5798721 | U16: =VLOOKUP($A16,'8.Non-elective admissions - CCG'!$D$5:$Q$215,14,0)*$H16 -> 28.64361385
A17: 07L | B17: NHS Barking and Dagenham CCG | C17: E09000026 | D17: Redbridge | E17: =COUNTIF($D$5:D17,D17) -> 1 | F17: Redbridge1 | G17: NHS Barking and Dagenham CCG | H17: 0.05577409385 | I17: 0.03751543728 | J17: =VLOOKUP($A17,'8.Non-elective admissions - CCG'!$D$5:$N$215,3,0)*$H17 -> 289.3002248 | K17: =VLOOKUP($A17,'8.Non-elective admissions - CCG'!$D$5:$N$215,4,0)*$H17 -> 274.7431863 | L17: =VLOOKUP($A17,'8.Non-elective admissions - CCG'!$D$5:$N$215,5,0)*$H17 -> 276.5837314 | M17: =VLOOKUP($A17,'8.Non-elective admissions - CCG'!$D$5:$N$215,6,0)*$H17 -> 297.5547907 | N17: =VLOOKUP($A17,'8.Non-elective admissions - CCG'!$D$5:$N$215,7,0)*$H17 -> 290.4767347 | O17: =VLOOKUP($A17,'8.Non-elective admissions - CCG'!$D$5:$N$215,8,0)*$H17 -> 275.5601373 | P17: =VLOOKUP($A17,'8.Non-elective admissions - CCG'!$D$5:$N$215,9,0)*$H17 -> 277.5032956 | Q17: =VLOOKUP($A17,'8.Non-elective admissions - CCG'!$D$5:$N$215,10,0)*$H17 -> 299.0494918 | R17: =VLOOKUP($A17,'8.Non-elective admissions - CCG'!$D$5:$Q$215,11,0)*$H17 -> 297.4191286 | S17: =VLOOKUP($A17,'8.Non-elective admissions - CCG'!$D$5:$Q$215,12,0)*$H17 -> 282.1460246 | T17: =VLOOKUP($A17,'8.Non-elective admissions - CCG'!$D$5:$Q$215,13,0)*$H17 -> 284.1356244 | U17: =VLOOKUP($A17,'8.Non-elective admissions - CCG'!$D$5:$Q$215,14,0)*$H17 -> 306.1967746
A18: 07L | B18: NHS Barking and Dagenham CCG | C18: E06000034 | D18: Thurrock | E18: =COUNTIF($D$5:D18,D18) -> 1 | F18: Thurrock1 | G18: NHS Barking and Dagenham CCG | H18: 0.001235333443 | I18: 0.001542621731 | J18: =VLOOKUP($A18,'8.Non-elective admissions - CCG'!$D$5:$N$215,3,0)*$H18 -> 6.40767457 | K18: =VLOOKUP($A18,'8.Non-elective admissions - CCG'!$D$5:$N$215,4,0)*$H18 -> 6.085252541 | L18: =VLOOKUP($A18,'8.Non-elective admissions - CCG'!$D$5:$N$215,5,0)*$H18 -> 6.126018545 | M18: =VLOOKUP($A18,'8.Non-elective admissions - CCG'!$D$5:$N$215,6,0)*$H18 -> 6.590503919 | N18: =VLOOKUP($A18,'8.Non-elective admissions - CCG'!$D$5:$N$215,7,0)*$H18 -> 6.43373294 | O18: =VLOOKUP($A18,'8.Non-elective admissions - CCG'!$D$5:$N$215,8,0)*$H18 -> 6.103347088 | P18: =VLOOKUP($A18,'8.Non-elective admissions - CCG'!$D$5:$N$215,9,0)*$H18 -> 6.146385858 | Q18: =VLOOKUP($A18,'8.Non-elective admissions - CCG'!$D$5:$N$215,10,0)*$H18 -> 6.623609867 | R18: =VLOOKUP($A18,'8.Non-elective admissions - CCG'!$D$5:$Q$215,11,0)*$H18 -> 6.587499158 | S18: =VLOOKUP($A18,'8.Non-elective admissions - CCG'!$D$5:$Q$215,12,0)*$H18 -> 6.249217083 | T18: =VLOOKUP($A18,'8.Non-elective admissions - CCG'!$D$5:$Q$215,13,0)*$H18 -> 6.29328448 | U18: =VLOOKUP($A18,'8.Non-elective admissions - CCG'!$D$5:$Q$215,14,0)*$H18 -> 6.781914143
A19: 07M | B19: NHS Barnet CCG | C19: E09000003 | D19: Barnet | E19: =COUNTIF($D$5:D19,D19) -> 1 | F19: Barnet1 | G19: NHS Barnet CCG | H19: 0.9124546397 | I19: 0.9280153744 | J19: =VLOOKUP($A19,'8.Non-elective admissions - CCG'!$D$5:$N$215,3,0)*$H19 -> 6641.757322 | K19: =VLOOKUP($A19,'8.Non-elective admissions - CCG'!$D$5:$N$215,4,0)*$H19 -> 6268.563375 | L19: =VLOOKUP($A19,'8.Non-elective admissions - CCG'!$D$5:$N$215,5,0)*$H19 -> 6789.574974 | M19: =VLOOKUP($A19,'8.Non-elective admissions - CCG'!$D$5:$N$215,6,0)*$H19 -> 6885.382711 | N19: =VLOOKUP($A19,'8.Non-elective admissions - CCG'!$D$5:$N$215,7,0)*$H19 -> 6576.177383 | O19: =VLOOKUP($A19,'8.Non-elective admissions - CCG'!$D$5:$N$215,8,0)*$H19 -> 6309.77832 | P19: =VLOOKUP($A19,'8.Non-elective admissions - CCG'!$D$5:$N$215,9,0)*$H19 -> 7102.47591 | Q19: =VLOOKUP($A19,'8.Non-elective admissions - CCG'!$D$5:$N$215,10,0)*$H19 -> 7226.221482 | R19: =VLOOKUP($A19,'8.Non-elective admissions - CCG'!$D$5:$Q$215,11,0)*$H19 -> 6565.996112 | S19: =VLOOKUP($A19,'8.Non-elective admissions - CCG'!$D$5:$Q$215,12,0)*$H19 -> 6295.041626 | T19: =VLOOKUP($A19,'8.Non-elective admissions - CCG'!$D$5:$Q$215,13,0)*$H19 -> 7101.294344 | U19: =VLOOKUP($A19,'8.Non-elective admissions - CCG'!$D$5:$Q$215,14,0)*$H19 -> 7227.155966
A20: 07M | B20: NHS Barnet CCG | C20: E09000005 | D20: Brent | E20: =COUNTIF($D$5:D20,D20) -> 1 | F20: Brent1 | G20: NHS Barnet CCG | H20: 0.01822965267 | I20: 0.01925915378 | J20: =VLOOKUP($A20,'8.Non-elective admissions - CCG'!$D$5:$N$215,3,0)*$H20 -> 132.6936418 | K20: =VLOOKUP($A20,'8.Non-elective admissions - CCG'!$D$5:$N$215,4,0)*$H20 -> 125.2377138 | L20: =VLOOKUP($A20,'8.Non-elective admissions - CCG'!$D$5:$N$215,5,0)*$H20 -> 135.6468455 | M20: =VLOOKUP($A20,'8.Non-elective admissions - CCG'!$D$5:$N$215,6,0)*$H20 -> 137.560959 | N20: =VLOOKUP($A20,'8.Non-elective admissions - CCG'!$D$5:$N$215,7,0)*$H20 -> 131.3834402 | O20: =VLOOKUP($A20,'8.Non-elective admissions - CCG'!$D$5:$N$215,8,0)*$H20 -> 126.0611347 | P20: =VLOOKUP($A20,'8.Non-elective admissions - CCG'!$D$5:$N$215,9,0)*$H20 -> 141.8981978 | Q20: =VLOOKUP($A20,'8.Non-elective admissions - CCG'!$D$5:$N$215,10,0)*$H20 -> 144.3704728 | R20: =VLOOKUP($A20,'8.Non-elective admissions - CCG'!$D$5:$Q$215,11,0)*$H20 -> 131.1800317 | S20: =VLOOKUP($A20,'8.Non-elective admissions - CCG'!$D$5:$Q$215,12,0)*$H20 -> 125.7667147 | T20: =VLOOKUP($A20,'8.Non-elective admissions - CCG'!$D$5:$Q$215,13,0)*$H20 -> 141.8745916 | U20: =VLOOKUP($A20,'8.Non-elective admissions - CCG'!$D$5:$Q$215,14,0)*$H20 -> 144.3891426
A21: 07M | B21: NHS Barnet CCG | C21: E09000007 | D21: Camden | E21: =COUNTIF($D$5:D21,D21) -> 1 | F21: Camden1 | G21: NHS Barnet CCG | H21: 0.001163815448 | I21: 0.001836964304 | J21: =VLOOKUP($A21,'8.Non-elective admissions - CCG'!$D$5:$N$215,3,0)*$H21 -> 8.471412649 | K21: =VLOOKUP($A21,'8.Non-elective admissions - CCG'!$D$5:$N$215,4,0)*$H21 -> 7.995412131 | L21: =VLOOKUP($A21,'8.Non-elective admissions - CCG'!$D$5:$N$215,5,0)*$H21 -> 8.659950752 | M21: =VLOOKUP($A21,'8.Non-elective admissions - CCG'!$D$5:$N$215,6,0)*$H21 -> 8.782151374 | N21: =VLOOKUP($A21,'8.Non-elective admissions - CCG'!$D$5:$N$215,7,0)*$H21 -> 8.387766905 | O21: =VLOOKUP($A21,'8.Non-elective admissions - CCG'!$D$5:$N$215,8,0)*$H21 -> 8.04798087 | P21: =VLOOKUP($A21,'8.Non-elective admissions - CCG'!$D$5:$N$215,9,0)*$H21 -> 9.059048884 | Q21: =VLOOKUP($A21,'8.Non-elective admissions - CCG'!$D$5:$N$215,10,0)*$H21 -> 9.216883589 | R21: =VLOOKUP($A21,'8.Non-elective admissions - CCG'!$D$5:$Q$215,11,0)*$H21 -> 8.374780923 | S21: =VLOOKUP($A21,'8.Non-elective admissions - CCG'!$D$5:$Q$215,12,0)*$H21 -> 8.029184547 | T21: =VLOOKUP($A21,'8.Non-elective admissions - CCG'!$D$5:$Q$215,13,0)*$H21 -> 9.057541824 | U21: =VLOOKUP($A21,'8.Non-elective admissions - CCG'!$D$5:$Q$215,14,0)*$H21 -> 9.218075502
A22: 07M | B22: NHS Barnet CCG | C22: E09000010 | D22: Enfield | E22: =COUNTIF($D$5:D22,D22) -> 1 | F22: Enfield1 | G22: NHS Barnet CCG | H22: 0.01156557802 | I22: 0.01364939232 | J22: =VLOOKUP($A22,'8.Non-elective admissions - CCG'!$D$5:$N$215,3,0)*$H22 -> 84.18584241 | K22: =VLOOKUP($A22,'8.Non-elective admissions - CCG'!$D$5:$N$215,4,0)*$H22 -> 79.455521 | L22: =VLOOKUP($A22,'8.Non-elective admissions - CCG'!$D$5:$N$215,5,0)*$H22 -> 86.05946604 | M22: =VLOOKUP($A22,'8.Non-elective admissions - CCG'!$D$5:$N$215,6,0)*$H22 -> 87.27385174 | N22: =VLOOKUP($A22,'8.Non-elective admissions - CCG'!$D$5:$N$215,7,0)*$H22 -> 83.35460118 | O22: =VLOOKUP($A22,'8.Non-elective admissions - CCG'!$D$5:$N$215,8,0)*$H22 -> 79.97793016 | P22: =VLOOKUP($A22,'8.Non-elective admissions - CCG'!$D$5:$N$215,9,0)*$H22 -> 90.02555929 | Q22: =VLOOKUP($A22,'8.Non-elective admissions - CCG'!$D$5:$N$215,10,0)*$H22 -> 91.59406364 | R22: =VLOOKUP($A22,'8.Non-elective admissions - CCG'!$D$5:$Q$215,11,0)*$H22 -> 83.22555118 | S22: =VLOOKUP($A22,'8.Non-elective admissions - CCG'!$D$5:$Q$215,12,0)*$H22 -> 79.79113908 | T22: =VLOOKUP($A22,'8.Non-elective admissions - CCG'!$D$5:$Q$215,13,0)*$H22 -> 90.01058267 | U22: =VLOOKUP($A22,'8.Non-elective admissions - CCG'!$D$5:$Q$215,14,0)*$H22 -> 91.60590844
A23: 07M | B23: NHS Barnet CCG | C23: E09000014 | D23: Haringey | E23: =COUNTIF($D$5:D23,D23) -> 1 | F23: Haringey1 | G23: NHS Barnet CCG | H23: 0.01141524106 | I23: 0.01614629926 | J23: =VLOOKUP($A23,'8.Non-elective admissions - CCG'!$D$5:$N$215,3,0)*$H23 -> 83.09153966 | K23: =VLOOKUP($A23,'8.Non-elective admissions - CCG'!$D$5:$N$215,4,0)*$H23 -> 78.42270607 | L23: =VLOOKUP($A23,'8.Non-elective admissions - CCG'!$D$5:$N$215,5,0)*$H23 -> 84.94080871 | M23: =VLOOKUP($A23,'8.Non-elective admissions - CCG'!$D$5:$N$215,6,0)*$H23 -> 86.13940902 | N23: =VLOOKUP($A23,'8.Non-elective admissions - CCG'!$D$5:$N$215,7,0)*$H23 -> 82.27110345 | O23: =VLOOKUP($A23,'8.Non-elective admissions - CCG'!$D$5:$N$215,8,0)*$H23 -> 78.93832462 | P23: =VLOOKUP($A23,'8.Non-elective admissions - CCG'!$D$5:$N$215,9,0)*$H23 -> 88.85534808 | Q23: =VLOOKUP($A23,'8.Non-elective admissions - CCG'!$D$5:$N$215,10,0)*$H23 -> 90.40346398 | R23: =VLOOKUP($A23,'8.Non-elective admissions - CCG'!$D$5:$Q$215,11,0)*$H23 -> 82.14373092 | S23: =VLOOKUP($A23,'8.Non-elective admissions - CCG'!$D$5:$Q$215,12,0)*$H23 -> 78.75396157 | T23: =VLOOKUP($A23,'8.Non-elective admissions - CCG'!$D$5:$Q$215,13,0)*$H23 -> 88.84056613 | U23: =VLOOKUP($A23,'8.Non-elective admissions - CCG'!$D$5:$Q$215,14,0)*$H23 -> 90.41515481
A24: 07M | B24: NHS Barnet CCG | C24: E09000015 | D24: Harrow | E24: =COUNTIF($D$5:D24,D24) -> 1 | F24: Harrow1 | G24: NHS Barnet CCG | H24: 0.04380248834 | I24: 0.06296035498 | J24: =VLOOKUP($A24,'8.Non-elective admissions - CCG'!$D$5:$N$215,3,0)*$H24 -> 318.8383126 | K24: =VLOOKUP($A24,'8.Non-elective admissions - CCG'!$D$5:$N$215,4,0)*$H24 -> 300.9230949 | L24: =VLOOKUP($A24,'8.Non-elective admissions - CCG'!$D$5:$N$215,5,0)*$H24 -> 325.9343157 | M24: =VLOOKUP($A24,'8.Non-elective admissions - CCG'!$D$5:$N$215,6,0)*$H24 -> 330.533577 | N24: =VLOOKUP($A24,'8.Non-elective admissions - CCG'!$D$5:$N$215,7,0)*$H24 -> 315.6901402 | O24: =VLOOKUP($A24,'8.Non-elective admissions - CCG'!$D$5:$N$215,8,0)*$H24 -> 302.901623 | P24: =VLOOKUP($A24,'8.Non-elective admissions - CCG'!$D$5:$N$215,9,0)*$H24 -> 340.9551606 | Q24: =VLOOKUP($A24,'8.Non-elective admissions - CCG'!$D$5:$N$215,10,0)*$H24 -> 346.8955808 | R24: =VLOOKUP($A24,'8.Non-elective admissions - CCG'!$D$5:$Q$215,11,0)*$H24 -> 315.2013871 | S24: =VLOOKUP($A24,'8.Non-elective admissions - CCG'!$D$5:$Q$215,12,0)*$H24 -> 302.1941863 | T24: =VLOOKUP($A24,'8.Non-elective admissions - CCG'!$D$5:$Q$215,13,0)*$H24 -> 340.8984394 | U24: =VLOOKUP($A24,'8.Non-elective admissions - CCG'!$D$5:$Q$215,14,0)*$H24 -> 346.9404408
A25: 07M | B25: NHS Barnet CCG | C25: E10000015 | D25: Hertfordshire | E25: =COUNTIF($D$5:D25,D25) -> 2 | F25: Hertfordshire2 | G25: NHS Barnet CCG | H25: 0.001368584759 | I25: 0 | J25: =VLOOKUP($A25,'8.Non-elective admissions - CCG'!$D$5:$N$215,3,0)*$H25 -> 9.96192846 | K25: =VLOOKUP($A25,'8.Non-elective admissions - CCG'!$D$5:$N$215,4,0)*$H25 -> 9.402177294 | L25: =VLOOKUP($A25,'8.Non-elective admissions - CCG'!$D$5:$N$215,5,0)*$H25 -> 10.18363919 | M25: =VLOOKUP($A25,'8.Non-elective admissions - CCG'!$D$5:$N$215,6,0)*$H25 -> 10.32734059 | N25: =VLOOKUP($A25,'8.Non-elective admissions - CCG'!$D$5:$N$215,7,0)*$H25 -> 9.863565537 | O25: =VLOOKUP($A25,'8.Non-elective admissions - CCG'!$D$5:$N$215,8,0)*$H25 -> 9.463995322 | P25: =VLOOKUP($A25,'8.Non-elective admissions - CCG'!$D$5:$N$215,9,0)*$H25 -> 10.65295726 | Q25: =VLOOKUP($A25,'8.Non-elective admissions - CCG'!$D$5:$N$215,10,0)*$H25 -> 10.83856244 | R25: =VLOOKUP($A25,'8.Non-elective admissions - CCG'!$D$5:$Q$215,11,0)*$H25 -> 9.848294716 | S25: =VLOOKUP($A25,'8.Non-elective admissions - CCG'!$D$5:$Q$215,12,0)*$H25 -> 9.44189185 | T25: =VLOOKUP($A25,'8.Non-elective admissions - CCG'!$D$5:$Q$215,13,0)*$H25 -> 10.65118504 | U25: =VLOOKUP($A25,'8.Non-elective admissions - CCG'!$D$5:$Q$215,14,0)*$H25 -> 10.83996406
A26: 02P | B26: NHS Barnsley CCG | C26: E08000016 | D26: Barnsley | E26: =COUNTIF($D$5:D26,D26) -> 1 | F26: Barnsley1 | G26: NHS Barnsley CCG | H26: 0.9440016754 | I26: 0.9830633315 | J26: =VLOOKUP($A26,'8.Non-elective admissions - CCG'!$D$5:$N$215,3,0)*$H26 -> 7304.684964 | K26: =VLOOKUP($A26,'8.Non-elective admissions - CCG'!$D$5:$N$215,4,0)*$H26 -> 7039.420493 | L26: =VLOOKUP($A26,'8.Non-elective admissions - CCG'!$D$5:$N$215,5,0)*$H26 -> 7370.765081 | M26: =VLOOKUP($A26,'8.Non-elective admissions - CCG'!$D$5:$N$215,6,0)*$H26 -> 7634.141549 | N26: =VLOOKUP($A26,'8.Non-elective admissions - CCG'!$D$5:$N$215,7,0)*$H26 -> 7439.677204 | O26: =VLOOKUP($A26,'8.Non-elective admissions - CCG'!$D$5:$N$215,8,0)*$H26 -> 7164.972716 | P26: =VLOOKUP($A26,'8.Non-elective admissions - CCG'!$D$5:$N$215,9,0)*$H26 -> 7495.373302 | Q26: =VLOOKUP($A26,'8.Non-elective admissions - CCG'!$D$5:$N$215,10,0)*$H26 -> 7470.829259 | R26: =VLOOKUP($A26,'8.Non-elective admissions - CCG'!$D$5:$Q$215,11,0)*$H26 -> 7657.741591 | S26: =VLOOKUP($A26,'8.Non-elective admissions - CCG'!$D$5:$Q$215,12,0)*$H26 -> 7375.48509 | T26: =VLOOKUP($A26,'8.Non-elective admissions - CCG'!$D$5:$Q$215,13,0)*$H26 -> 7714.381691 | U26: =VLOOKUP($A26,'8.Non-elective admissions - CCG'!$D$5:$Q$215,14,0)*$H26 -> 7688.893646
A27: 02P | B27: NHS Barnsley CCG | C27: E08000017 | D27: Doncaster | E27: =COUNTIF($D$5:D27,D27) -> 1 | F27: Doncaster1 | G27: NHS Barnsley CCG | H27: 0.004010605384 | I27: 0.00329539035 | J27: =VLOOKUP($A27,'8.Non-elective admissions - CCG'!$D$5:$N$215,3,0)*$H27 -> 31.03406446 | K27: =VLOOKUP($A27,'8.Non-elective admissions - CCG'!$D$5:$N$215,4,0)*$H27 -> 29.90708435 | L27: =VLOOKUP($A27,'8.Non-elective admissions - CCG'!$D$5:$N$215,5,0)*$H27 -> 31.31480684 | M27: =VLOOKUP($A27,'8.Non-elective admissions - CCG'!$D$5:$N$215,6,0)*$H27 -> 32.43376574 | N27: =VLOOKUP($A27,'8.Non-elective admissions - CCG'!$D$5:$N$215,7,0)*$H27 -> 31.60758103 | O27: =VLOOKUP($A27,'8.Non-elective admissions - CCG'!$D$5:$N$215,8,0)*$H27 -> 30.44049487 | P27: =VLOOKUP($A27,'8.Non-elective admissions - CCG'!$D$5:$N$215,9,0)*$H27 -> 31.84420675 | Q27: =VLOOKUP($A27,'8.Non-elective admissions - CCG'!$D$5:$N$215,10,0)*$H27 -> 31.73993101 | R27: =VLOOKUP($A27,'8.Non-elective admissions - CCG'!$D$5:$Q$215,11,0)*$H27 -> 32.53403088 | S27: =VLOOKUP($A27,'8.Non-elective admissions - CCG'!$D$5:$Q$215,12,0)*$H27 -> 31.33485987 | T27: =VLOOKUP($A27,'8.Non-elective admissions - CCG'!$D$5:$Q$215,13,0)*$H27 -> 32.7746672 | U27: =VLOOKUP($A27,'8.Non-elective admissions - CCG'!$D$5:$Q$215,14,0)*$H27 -> 32.66638085
A28: 02P | B28: NHS Barnsley CCG | C28: E08000034 | D28: Kirklees | E28: =COUNTIF($D$5:D28,D28) -> 1 | F28: Kirklees1 | G28: NHS Barnsley CCG | H28: 0.001323697344 | I28: 0 | J28: =VLOOKUP($A28,'8.Non-elective admissions - CCG'!$D$5:$N$215,3,0)*$H28 -> 10.24277004 | K28: =VLOOKUP($A28,'8.Non-elective admissions - CCG'!$D$5:$N$215,4,0)*$H28 -> 9.870811091 | L28: =VLOOKUP($A28,'8.Non-elective admissions - CCG'!$D$5:$N$215,5,0)*$H28 -> 10.33542886 | M28: =VLOOKUP($A28,'8.Non-elective admissions - CCG'!$D$5:$N$215,6,0)*$H28 -> 10.70474042 | N28: =VLOOKUP($A28,'8.Non-elective admissions - CCG'!$D$5:$N$215,7,0)*$H28 -> 10.43205876 | O28: =VLOOKUP($A28,'8.Non-elective admissions - CCG'!$D$5:$N$215,8,0)*$H28 -> 10.04686284 | P28: =VLOOKUP($A28,'8.Non-elective admissions - CCG'!$D$5:$N$215,9,0)*$H28 -> 10.51015691 | Q28: =VLOOKUP($A28,'8.Non-elective admissions - CCG'!$D$5:$N$215,10,0)*$H28 -> 10.47574078 | R28: =VLOOKUP($A28,'8.Non-elective admissions - CCG'!$D$5:$Q$215,11,0)*$H28 -> 10.73783285 | S28: =VLOOKUP($A28,'8.Non-elective admissions - CCG'!$D$5:$Q$215,12,0)*$H28 -> 10.34204734 | T28: =VLOOKUP($A28,'8.Non-elective admissions - CCG'!$D$5:$Q$215,13,0)*$H28 -> 10.81725469 | U28: =VLOOKUP($A28,'8.Non-elective admissions - CCG'!$D$5:$Q$215,14,0)*$H28 -> 10.78151486
A29: 02P | B29: NHS Barnsley CCG | C29: E08000018 | D29: Rotherham | E29: =COUNTIF($D$5:D29,D29) -> 1 | F29: Rotherham1 | G29: NHS Barnsley CCG | H29: 0.03439242292 | I29: 0.03225866229 | J29: =VLOOKUP($A29,'8.Non-elective admissions - CCG'!$D$5:$N$215,3,0)*$H29 -> 266.1285685 | K29: =VLOOKUP($A29,'8.Non-elective admissions - CCG'!$D$5:$N$215,4,0)*$H29 -> 256.4642977 | L29: =VLOOKUP($A29,'8.Non-elective admissions - CCG'!$D$5:$N$215,5,0)*$H29 -> 268.5360382 | M29: =VLOOKUP($A29,'8.Non-elective admissions - CCG'!$D$5:$N$215,6,0)*$H29 -> 278.1315241 | N29: =VLOOKUP($A29,'8.Non-elective admissions - CCG'!$D$5:$N$215,7,0)*$H29 -> 271.046685 | O29: =VLOOKUP($A29,'8.Non-elective admissions - CCG'!$D$5:$N$215,8,0)*$H29 -> 261.03849 | P29: =VLOOKUP($A29,'8.Non-elective admissions - CCG'!$D$5:$N$215,9,0)*$H29 -> 273.075838 | Q29: =VLOOKUP($A29,'8.Non-elective admissions - CCG'!$D$5:$N$215,10,0)*$H29 -> 272.181635 | R29: =VLOOKUP($A29,'8.Non-elective admissions - CCG'!$D$5:$Q$215,11,0)*$H29 -> 278.9913347 | S29: =VLOOKUP($A29,'8.Non-elective admissions - CCG'!$D$5:$Q$215,12,0)*$H29 -> 268.7080003 | T29: =VLOOKUP($A29,'8.Non-elective admissions - CCG'!$D$5:$Q$215,13,0)*$H29 -> 281.0548801 | U29: =VLOOKUP($A29,'8.Non-elective admissions - CCG'!$D$5:$Q$215,14,0)*$H29 -> 280.1262847
A30: 02P | B30: NHS Barnsley CCG | C30: E08000019 | D30: Sheffield | E30: =COUNTIF($D$5:D30,D30) -> 1 | F30: Sheffield1 | G30: NHS Barnsley CCG | H30: 0.00809628614 | I30: 0.003556661841 | J30: =VLOOKUP($A30,'8.Non-elective admissions - CCG'!$D$5:$N$215,3,0)*$H30 -> 62.64906215 | K30: =VLOOKUP($A30,'8.Non-elective admissions - CCG'!$D$5:$N$215,4,0)*$H30 -> 60.37400575 | L30: =VLOOKUP($A30,'8.Non-elective admissions - CCG'!$D$5:$N$215,5,0)*$H30 -> 63.21580218 | M30: =VLOOKUP($A30,'8.Non-elective admissions - CCG'!$D$5:$N$215,6,0)*$H30 -> 65.47466601 | N30: =VLOOKUP($A30,'8.Non-elective admissions - CCG'!$D$5:$N$215,7,0)*$H30 -> 63.80683107 | O30: =VLOOKUP($A30,'8.Non-elective admissions - CCG'!$D$5:$N$215,8,0)*$H30 -> 61.4508118 | P30: =VLOOKUP($A30,'8.Non-elective admissions - CCG'!$D$5:$N$215,9,0)*$H30 -> 64.28451195 | Q30: =VLOOKUP($A30,'8.Non-elective admissions - CCG'!$D$5:$N$215,10,0)*$H30 -> 64.07400851 | R30: =VLOOKUP($A30,'8.Non-elective admissions - CCG'!$D$5:$Q$215,11,0)*$H30 -> 65.67707317 | S30: =VLOOKUP($A30,'8.Non-elective admissions - CCG'!$D$5:$Q$215,12,0)*$H30 -> 63.25628361 | T30: =VLOOKUP($A30,'8.Non-elective admissions - CCG'!$D$5:$Q$215,13,0)*$H30 -> 66.16285034 | U30: =VLOOKUP($A30,'8.Non-elective admissions - CCG'!$D$5:$Q$215,14,0)*$H30 -> 65.94425061
A31: 02P | B31: NHS Barnsley CCG | C31: E08000036 | D31: Wakefield | E31: =COUNTIF($D$5:D31,D31) -> 1 | F31: Wakefield1 | G31: NHS Barnsley CCG | H31: 0.008175312847 | I31: 0.005973967477 | J31: =VLOOKUP($A31,'8.Non-elective admissions - CCG'!$D$5:$N$215,3,0)*$H31 -> 63.26057081 | K31: =VLOOKUP($A31,'8.Non-elective admissions - CCG'!$D$5:$N$215,4,0)*$H31 -> 60.9633079 | L31: =VLOOKUP($A31,'8.Non-elective admissions - CCG'!$D$5:$N$215,5,0)*$H31 -> 63.83284271 | M31: =VLOOKUP($A31,'8.Non-elective admissions - CCG'!$D$5:$N$215,6,0)*$H31 -> 66.11375499 | N31: =VLOOKUP($A31,'8.Non-elective admissions - CCG'!$D$5:$N$215,7,0)*$H31 -> 64.42964055 | O31: =VLOOKUP($A31,'8.Non-elective admissions - CCG'!$D$5:$N$215,8,0)*$H31 -> 62.05062451 | P31: =VLOOKUP($A31,'8.Non-elective admissions - CCG'!$D$5:$N$215,9,0)*$H31 -> 64.911984 | Q31: =VLOOKUP($A31,'8.Non-elective admissions - CCG'!$D$5:$N$215,10,0)*$H31 -> 64.69942587 | R31: =VLOOKUP($A31,'8.Non-elective admissions - CCG'!$D$5:$Q$215,11,0)*$H31 -> 66.31813781 | S31: =VLOOKUP($A31,'8.Non-elective admissions - CCG'!$D$5:$Q$215,12,0)*$H31 -> 63.87371927 | T31: =VLOOKUP($A31,'8.Non-elective admissions - CCG'!$D$5:$Q$215,13,0)*$H31 -> 66.80865659 | U31: =VLOOKUP($A31,'8.Non-elective admissions - CCG'!$D$5:$Q$215,14,0)*$H31 -> 66.58792314
A32: 99E | B32: NHS Basildon and Brentwood CCG | C32: E10000012 | D32: Essex | E32: =COUNTIF($D$5:D32,D32) -> 1 | F32: Essex1 | G32: NHS Basildon and Brentwood CCG | H32: 0.9984804859 | I32: 0.1825361464 | J32: =VLOOKUP($A32,'8.Non-elective admissions - CCG'!$D$5:$N$215,3,0)*$H32 -> 5643.411707 | K32: =VLOOKUP($A32,'8.Non-elective admissions - CCG'!$D$5:$N$215,4,0)*$H32 -> 5715.302302 | L32: =VLOOKUP($A32,'8.Non-elective admissions - CCG'!$D$5:$N$215,5,0)*$H32 -> 5753.24456 | M32: =VLOOKUP($A32,'8.Non-elective admissions - CCG'!$D$5:$N$215,6,0)*$H32 -> 5774.21265 | N32: =VLOOKUP($A32,'8.Non-elective admissions - CCG'!$D$5:$N$215,7,0)*$H32 -> 5936.834685 | O32: =VLOOKUP($A32,'8.Non-elective admissions - CCG'!$D$5:$N$215,8,0)*$H32 -> 5906.043965 | P32: =VLOOKUP($A32,'8.Non-elective admissions - CCG'!$D$5:$N$215,9,0)*$H32 -> 5947.246716 | Q32: =VLOOKUP($A32,'8.Non-elective admissions - CCG'!$D$5:$N$215,10,0)*$H32 -> 5880.771164 | R32: =VLOOKUP($A32,'8.Non-elective admissions - CCG'!$D$5:$Q$215,11,0)*$H32 -> 5849.578967 | S32: =VLOOKUP($A32,'8.Non-elective admissions - CCG'!$D$5:$Q$215,12,0)*$H32 -> 5813.712405 | T32: =VLOOKUP($A32,'8.Non-elective admissions - CCG'!$D$5:$Q$215,13,0)*$H32 -> 5855.499281 | U32: =VLOOKUP($A32,'8.Non-elective admissions - CCG'!$D$5:$Q$215,14,0)*$H32 -> 5796.927435
A33: 99E | B33: NHS Basildon and Brentwood CCG | C33: E06000034 | D33: Thurrock | E33: =COUNTIF($D$5:D33,D33) -> 2 | F33: Thurrock2 | G33: NHS Basildon and Brentwood CCG | H33: 0.001519514053 | I33: 0.002474244267 | J33: =VLOOKUP($A33,'8.Non-elective admissions - CCG'!$D$5:$N$215,3,0)*$H33 -> 8.588293426 | K33: =VLOOKUP($A33,'8.Non-elective admissions - CCG'!$D$5:$N$215,4,0)*$H33 -> 8.697698438 | L33: =VLOOKUP($A33,'8.Non-elective admissions - CCG'!$D$5:$N$215,5,0)*$H33 -> 8.755439972 | M33: =VLOOKUP($A33,'8.Non-elective admissions - CCG'!$D$5:$N$215,6,0)*$H33 -> 8.787349767 | N33: =VLOOKUP($A33,'8.Non-elective admissions - CCG'!$D$5:$N$215,7,0)*$H33 -> 9.034832288 | O33: =VLOOKUP($A33,'8.Non-elective admissions - CCG'!$D$5:$N$215,8,0)*$H33 -> 8.987974153 | P33: =VLOOKUP($A33,'8.Non-elective admissions - CCG'!$D$5:$N$215,9,0)*$H33 -> 9.050677591 | Q33: =VLOOKUP($A33,'8.Non-elective admissions - CCG'!$D$5:$N$215,10,0)*$H33 -> 8.949513335 | R33: =VLOOKUP($A33,'8.Non-elective admissions - CCG'!$D$5:$Q$215,11,0)*$H33 -> 8.902044225 | S33: =VLOOKUP($A33,'8.Non-elective admissions - CCG'!$D$5:$Q$215,12,0)*$H33 -> 8.84746154 | T33: =VLOOKUP($A33,'8.Non-elective admissions - CCG'!$D$5:$Q$215,13,0)*$H33 -> 8.911053915 | U33: =VLOOKUP($A33,'8.Non-elective admissions - CCG'!$D$5:$Q$215,14,0)*$H33 -> 8.821917729
A34: 02Q | B34: NHS Bassetlaw CCG | C34: E10000007 | D34: Derbyshire | E34: =COUNTIF($D$5:D34,D34) -> 1 | F34: Derbyshire1 | G34: NHS Bassetlaw CCG | H34: 0.001352127613 | I34: 0 | J34: =VLOOKUP($A34,'8.Non-elective admissions - CCG'!$D$5:$N$215,3,0)*$H34 -> 3.825169016 | K34: =VLOOKUP($A34,'8.Non-elective admissions - CCG'!$D$5:$N$215,4,0)*$H34 -> 3.785957315 | L34: =VLOOKUP($A34,'8.Non-elective admissions - CCG'!$D$5:$N$215,5,0)*$H34 -> 3.823816888 | M34: =VLOOKUP($A34,'8.Non-elective admissions - CCG'!$D$5:$N$215,6,0)*$H34 -> 3.894127524 | N34: =VLOOKUP($A34,'8.Non-elective admissions - CCG'!$D$5:$N$215,7,0)*$H34 -> 3.550687111 | O34: =VLOOKUP($A34,'8.Non-elective admissions - CCG'!$D$5:$N$215,8,0)*$H34 -> 3.522292431 | P34: =VLOOKUP($A34,'8.Non-elective admissions - CCG'!$D$5:$N$215,9,0)*$H34 -> 3.552039238 | Q34: =VLOOKUP($A34,'8.Non-elective admissions - CCG'!$D$5:$N$215,10,0)*$H34 -> 3.534461579 | R34: =VLOOKUP($A34,'8.Non-elective admissions - CCG'!$D$5:$Q$215,11,0)*$H34 -> 3.423587115 | S34: =VLOOKUP($A34,'8.Non-elective admissions - CCG'!$D$5:$Q$215,12,0)*$H34 -> 3.399248818 | T34: =VLOOKUP($A34,'8.Non-elective admissions - CCG'!$D$5:$Q$215,13,0)*$H34 -> 3.430347753 | U34: =VLOOKUP($A34,'8.Non-elective admissions - CCG'!$D$5:$Q$215,14,0)*$H34 -> 3.337050948
A35: 02Q | B35: NHS Bassetlaw CCG | C35: E08000017 | D35: Doncaster | E35: =COUNTIF($D$5:D35,D35) -> 2 | F35: Doncaster2 | G35: NHS Bassetlaw CCG | H35: 0.0112412178 | I35: 0.004129789679 | J35: =VLOOKUP($A35,'8.Non-elective admissions - CCG'!$D$5:$N$215,3,0)*$H35 -> 31.80140515 | K35: =VLOOKUP($A35,'8.Non-elective admissions - CCG'!$D$5:$N$215,4,0)*$H35 -> 31.47540984 | L35: =VLOOKUP($A35,'8.Non-elective admissions - CCG'!$D$5:$N$215,5,0)*$H35 -> 31.79016393 | M35: =VLOOKUP($A35,'8.Non-elective admissions - CCG'!$D$5:$N$215,6,0)*$H35 -> 32.37470726 | N35: =VLOOKUP($A35,'8.Non-elective admissions - CCG'!$D$5:$N$215,7,0)*$H35 -> 29.51943794 | O35: =VLOOKUP($A35,'8.Non-elective admissions - CCG'!$D$5:$N$215,8,0)*$H35 -> 29.28337237 | P35: =VLOOKUP($A35,'8.Non-elective admissions - CCG'!$D$5:$N$215,9,0)*$H35 -> 29.53067916 | Q35: =VLOOKUP($A35,'8.Non-elective admissions - CCG'!$D$5:$N$215,10,0)*$H35 -> 29.38454333 | R35: =VLOOKUP($A35,'8.Non-elective admissions - CCG'!$D$5:$Q$215,11,0)*$H35 -> 28.46276347 | S35: =VLOOKUP($A35,'8.Non-elective admissions - CCG'!$D$5:$Q$215,12,0)*$H35 -> 28.26042155 | T35: =VLOOKUP($A35,'8.Non-elective admissions - CCG'!$D$5:$Q$215,13,0)*$H35 -> 28.51896956 | U35: =VLOOKUP($A35,'8.Non-elective admissions - CCG'!$D$5:$Q$215,14,0)*$H35 -> 27.74332553
A36: 02Q | B36: NHS Bassetlaw CCG | C36: E06000013 | D36: North Lincolnshire | E36: =COUNTIF($D$5:D36,D36) -> 1 | F36: North Lincolnshire1 | G36: NHS Bassetlaw CCG | H36: 0.002138659361 | I36: 0.001417833059 | J36: =VLOOKUP($A36,'8.Non-elective admissions - CCG'!$D$5:$N$215,3,0)*$H36 -> 6.050267332 | K36: =VLOOKUP($A36,'8.Non-elective admissions - CCG'!$D$5:$N$215,4,0)*$H36 -> 5.988246211 | L36: =VLOOKUP($A36,'8.Non-elective admissions - CCG'!$D$5:$N$215,5,0)*$H36 -> 6.048128673 | M36: =VLOOKUP($A36,'8.Non-elective admissions - CCG'!$D$5:$N$215,6,0)*$H36 -> 6.15933896 | N36: =VLOOKUP($A36,'8.Non-elective admissions - CCG'!$D$5:$N$215,7,0)*$H36 -> 5.616119482 | O36: =VLOOKUP($A36,'8.Non-elective admissions - CCG'!$D$5:$N$215,8,0)*$H36 -> 5.571207636 | P36: =VLOOKUP($A36,'8.Non-elective admissions - CCG'!$D$5:$N$215,9,0)*$H36 -> 5.618258141 | Q36: =VLOOKUP($A36,'8.Non-elective admissions - CCG'!$D$5:$N$215,10,0)*$H36 -> 5.59045557 | R36: =VLOOKUP($A36,'8.Non-elective admissions - CCG'!$D$5:$Q$215,11,0)*$H36 -> 5.415085502 | S36: =VLOOKUP($A36,'8.Non-elective admissions - CCG'!$D$5:$Q$215,12,0)*$H36 -> 5.376589634 | T36: =VLOOKUP($A36,'8.Non-elective admissions - CCG'!$D$5:$Q$215,13,0)*$H36 -> 5.425778799 | U36: =VLOOKUP($A36,'8.Non-elective admissions - CCG'!$D$5:$Q$215,14,0)*$H36 -> 5.278211303
A37: 02Q | B37: NHS Bassetlaw CCG | C37: E10000024 | D37: Nottinghamshire | E37: =COUNTIF($D$5:D37,D37) -> 1 | F37: Nottinghamshire1 | G37: NHS Bassetlaw CCG | H37: 0.9759533383 | I37: 0.1349206058 | J37: =VLOOKUP($A37,'8.Non-elective admissions - CCG'!$D$5:$N$215,3,0)*$H37 -> 2760.971994 | K37: =VLOOKUP($A37,'8.Non-elective admissions - CCG'!$D$5:$N$215,4,0)*$H37 -> 2732.669347 | L37: =VLOOKUP($A37,'8.Non-elective admissions - CCG'!$D$5:$N$215,5,0)*$H37 -> 2759.996041 | M37: =VLOOKUP($A37,'8.Non-elective admissions - CCG'!$D$5:$N$215,6,0)*$H37 -> 2810.745614 | N37: =VLOOKUP($A37,'8.Non-elective admissions - CCG'!$D$5:$N$215,7,0)*$H37 -> 2562.853466 | O37: =VLOOKUP($A37,'8.Non-elective admissions - CCG'!$D$5:$N$215,8,0)*$H37 -> 2542.358446 | P37: =VLOOKUP($A37,'8.Non-elective admissions - CCG'!$D$5:$N$215,9,0)*$H37 -> 2563.82942 | Q37: =VLOOKUP($A37,'8.Non-elective admissions - CCG'!$D$5:$N$215,10,0)*$H37 -> 2551.142026 | R37: =VLOOKUP($A37,'8.Non-elective admissions - CCG'!$D$5:$Q$215,11,0)*$H37 -> 2471.113853 | S37: =VLOOKUP($A37,'8.Non-elective admissions - CCG'!$D$5:$Q$215,12,0)*$H37 -> 2453.546693 | T37: =VLOOKUP($A37,'8.Non-elective admissions - CCG'!$D$5:$Q$215,13,0)*$H37 -> 2475.993619 | U37: =VLOOKUP($A37,'8.Non-elective admissions - CCG'!$D$5:$Q$215,14,0)*$H37 -> 2408.652839
A38: 02Q | B38: NHS Bassetlaw CCG | C38: E08000018 | D38: Rotherham | E38: =COUNTIF($D$5:D38,D38) -> 2 | F38: Rotherham2 | G38: NHS Bassetlaw CCG | H38: 0.009314656887 | I38: 0.003906322386 | J38: =VLOOKUP($A38,'8.Non-elective admissions - CCG'!$D$5:$N$215,3,0)*$H38 -> 26.35116433 | K38: =VLOOKUP($A38,'8.Non-elective admissions - CCG'!$D$5:$N$215,4,0)*$H38 -> 26.08103928 | L38: =VLOOKUP($A38,'8.Non-elective admissions - CCG'!$D$5:$N$215,5,0)*$H38 -> 26.34184968 | M38: =VLOOKUP($A38,'8.Non-elective admissions - CCG'!$D$5:$N$215,6,0)*$H38 -> 26.82621183 | N38: =VLOOKUP($A38,'8.Non-elective admissions - CCG'!$D$5:$N$215,7,0)*$H38 -> 24.46028898 | O38: =VLOOKUP($A38,'8.Non-elective admissions - CCG'!$D$5:$N$215,8,0)*$H38 -> 24.26468119 | P38: =VLOOKUP($A38,'8.Non-elective admissions - CCG'!$D$5:$N$215,9,0)*$H38 -> 24.46960364 | Q38: =VLOOKUP($A38,'8.Non-elective admissions - CCG'!$D$5:$N$215,10,0)*$H38 -> 24.3485131 | R38: =VLOOKUP($A38,'8.Non-elective admissions - CCG'!$D$5:$Q$215,11,0)*$H38 -> 23.58471124 | S38: =VLOOKUP($A38,'8.Non-elective admissions - CCG'!$D$5:$Q$215,12,0)*$H38 -> 23.41704741 | T38: =VLOOKUP($A38,'8.Non-elective admissions - CCG'!$D$5:$Q$215,13,0)*$H38 -> 23.63128452 | U38: =VLOOKUP($A38,'8.Non-elective admissions - CCG'!$D$5:$Q$215,14,0)*$H38 -> 22.9885732
A39: 11E | B39: NHS Bath and North East Somerset CCG | C39: E06000022 | D39: Bath and North East Somerset | E39: =COUNTIF($D$5:D39,D39) -> 1 | F39: Bath and North East Somerset1 | G39: NHS Bath and North East Somerset CCG | H39: 0.9411008256 | I39: 0.9844336388 | J39: =VLOOKUP($A39,'8.Non-elective admissions - CCG'!$D$5:$N$215,3,0)*$H39 -> 3468.897643 | K39: =VLOOKUP($A39,'8.Non-elective admissions - CCG'!$D$5:$N$215,4,0)*$H39 -> 3254.326655 | L39: =VLOOKUP($A39,'8.Non-elective admissions - CCG'!$D$5:$N$215,5,0)*$H39 -> 3413.372695 | M39: =VLOOKUP($A39,'8.Non-elective admissions - CCG'!$D$5:$N$215,6,0)*$H39 -> 3598.769557 | N39: =VLOOKUP($A39,'8.Non-elective admissions - CCG'!$D$5:$N$215,7,0)*$H39 -> 3286.324083 | O39: =VLOOKUP($A39,'8.Non-elective admissions - CCG'!$D$5:$N$215,8,0)*$H39 -> 3069.870893 | P39: =VLOOKUP($A39,'8.Non-elective admissions - CCG'!$D$5:$N$215,9,0)*$H39 -> 3229.858034 | Q39: =VLOOKUP($A39,'8.Non-elective admissions - CCG'!$D$5:$N$215,10,0)*$H39 -> 3417.137098 | R39: =VLOOKUP($A39,'8.Non-elective admissions - CCG'!$D$5:$Q$215,11,0)*$H39 -> 3172.450883 | S39: =VLOOKUP($A39,'8.Non-elective admissions - CCG'!$D$5:$Q$215,12,0)*$H39 -> 2955.997693 | T39: =VLOOKUP($A39,'8.Non-elective admissions - CCG'!$D$5:$Q$215,13,0)*$H39 -> 3114.102632 | U39: =VLOOKUP($A39,'8.Non-elective admissions - CCG'!$D$5:$Q$215,14,0)*$H39 -> 3305.1461
A40: 11E | B40: NHS Bath and North East Somerset CCG | C40: E06000024 | D40: North Somerset | E40: =COUNTIF($D$5:D40,D40) -> 1 | F40: North Somerset1 | G40: NHS Bath and North East Somerset CCG | H40: 0.01688766575 | I40: 0.01557963154 | J40: =VLOOKUP($A40,'8.Non-elective admissions - CCG'!$D$5:$N$215,3,0)*$H40 -> 62.24793595 | K40: =VLOOKUP($A40,'8.Non-elective admissions - CCG'!$D$5:$N$215,4,0)*$H40 -> 58.39754816 | L40: =VLOOKUP($A40,'8.Non-elective admissions - CCG'!$D$5:$N$215,5,0)*$H40 -> 61.25156367 | M40: =VLOOKUP($A40,'8.Non-elective admissions - CCG'!$D$5:$N$215,6,0)*$H40 -> 64.57843383 | N40: =VLOOKUP($A40,'8.Non-elective admissions - CCG'!$D$5:$N$215,7,0)*$H40 -> 58.9717288 | O40: =VLOOKUP($A40,'8.Non-elective admissions - CCG'!$D$5:$N$215,8,0)*$H40 -> 55.08756567 | P40: =VLOOKUP($A40,'8.Non-elective admissions - CCG'!$D$5:$N$215,9,0)*$H40 -> 57.95846885 | Q40: =VLOOKUP($A40,'8.Non-elective admissions - CCG'!$D$5:$N$215,10,0)*$H40 -> 61.31911434 | R40: =VLOOKUP($A40,'8.Non-elective admissions - CCG'!$D$5:$Q$215,11,0)*$H40 -> 56.92832124 | S40: =VLOOKUP($A40,'8.Non-elective admissions - CCG'!$D$5:$Q$215,12,0)*$H40 -> 53.04415812 | T40: =VLOOKUP($A40,'8.Non-elective admissions - CCG'!$D$5:$Q$215,13,0)*$H40 -> 55.88128596 | U40: =VLOOKUP($A40,'8.Non-elective admissions - CCG'!$D$5:$Q$215,14,0)*$H40 -> 59.30948211
A41: 11E | B41: NHS Bath and North East Somerset CCG | C41: E10000027 | D41: Somerset | E41: =COUNTIF($D$5:D41,D41) -> 1 | F41: Somerset1 | G41: NHS Bath and North East Somerset CCG | H41: 0.03076807606 | I41: 0.01098975731 | J41: =VLOOKUP($A41,'8.Non-elective admissions - CCG'!$D$5:$N$215,3,0)*$H41 -> 113.4111283 | K41: =VLOOKUP($A41,'8.Non-elective admissions - CCG'!$D$5:$N$215,4,0)*$H41 -> 106.396007 | L41: =VLOOKUP($A41,'8.Non-elective admissions - CCG'!$D$5:$N$215,5,0)*$H41 -> 111.5958119 | M41: =VLOOKUP($A41,'8.Non-elective admissions - CCG'!$D$5:$N$215,6,0)*$H41 -> 117.6571228 | N41: =VLOOKUP($A41,'8.Non-elective admissions - CCG'!$D$5:$N$215,7,0)*$H41 -> 107.4421216 | O41: =VLOOKUP($A41,'8.Non-elective admissions - CCG'!$D$5:$N$215,8,0)*$H41 -> 100.3654641 | P41: =VLOOKUP($A41,'8.Non-elective admissions - CCG'!$D$5:$N$215,9,0)*$H41 -> 105.596037 | Q41: =VLOOKUP($A41,'8.Non-elective admissions - CCG'!$D$5:$N$215,10,0)*$H41 -> 111.7188842 | R41: =VLOOKUP($A41,'8.Non-elective admissions - CCG'!$D$5:$Q$215,11,0)*$H41 -> 103.7191844 | S41: =VLOOKUP($A41,'8.Non-elective admissions - CCG'!$D$5:$Q$215,12,0)*$H41 -> 96.6425269 | T41: =VLOOKUP($A41,'8.Non-elective admissions - CCG'!$D$5:$Q$215,13,0)*$H41 -> 101.8115637 | U41: =VLOOKUP($A41,'8.Non-elective admissions - CCG'!$D$5:$Q$215,14,0)*$H41 -> 108.0574831
A42: 11E | B42: NHS Bath and North East Somerset CCG | C42: E06000025 | D42: South Gloucestershire | E42: =COUNTIF($D$5:D42,D42) -> 1 | F42: South Gloucestershire1 | G42: NHS Bath and North East Somerset CCG | H42: 0.004948711534 | I42: 0.003565814332 | J42: =VLOOKUP($A42,'8.Non-elective admissions - CCG'!$D$5:$N$215,3,0)*$H42 -> 18.24095071 | K42: =VLOOKUP($A42,'8.Non-elective admissions - CCG'!$D$5:$N$215,4,0)*$H42 -> 17.11264448 | L42: =VLOOKUP($A42,'8.Non-elective admissions - CCG'!$D$5:$N$215,5,0)*$H42 -> 17.94897673 | M42: =VLOOKUP($A42,'8.Non-elective admissions - CCG'!$D$5:$N$215,6,0)*$H42 -> 18.9238729 | N42: =VLOOKUP($A42,'8.Non-elective admissions - CCG'!$D$5:$N$215,7,0)*$H42 -> 17.28090068 | O42: =VLOOKUP($A42,'8.Non-elective admissions - CCG'!$D$5:$N$215,8,0)*$H42 -> 16.14269702 | P42: =VLOOKUP($A42,'8.Non-elective admissions - CCG'!$D$5:$N$215,9,0)*$H42 -> 16.98397798 | Q42: =VLOOKUP($A42,'8.Non-elective admissions - CCG'!$D$5:$N$215,10,0)*$H42 -> 17.96877158 | R42: =VLOOKUP($A42,'8.Non-elective admissions - CCG'!$D$5:$Q$215,11,0)*$H42 -> 16.68210658 | S42: =VLOOKUP($A42,'8.Non-elective admissions - CCG'!$D$5:$Q$215,12,0)*$H42 -> 15.54390293 | T42: =VLOOKUP($A42,'8.Non-elective admissions - CCG'!$D$5:$Q$215,13,0)*$H42 -> 16.37528646 | U42: =VLOOKUP($A42,'8.Non-elective admissions - CCG'!$D$5:$Q$215,14,0)*$H42 -> 17.37987491
A43: 11E | B43: NHS Bath and North East Somerset CCG | C43: E06000054 | D43: Wiltshire | E43: =COUNTIF($D$5:D43,D43) -> 1 | F43: Wiltshire1 | G43: NHS Bath and North East Somerset CCG | H43: 0.006294721041 | I43: 0.002630038468 | J43: =VLOOKUP($A43,'8.Non-elective admissions - CCG'!$D$5:$N$215,3,0)*$H43 -> 23.20234176 | K43: =VLOOKUP($A43,'8.Non-elective admissions - CCG'!$D$5:$N$215,4,0)*$H43 -> 21.76714536 | L43: =VLOOKUP($A43,'8.Non-elective admissions - CCG'!$D$5:$N$215,5,0)*$H43 -> 22.83095321 | M43: =VLOOKUP($A43,'8.Non-elective admissions - CCG'!$D$5:$N$215,6,0)*$H43 -> 24.07101326 | N43: =VLOOKUP($A43,'8.Non-elective admissions - CCG'!$D$5:$N$215,7,0)*$H43 -> 21.98116587 | O43: =VLOOKUP($A43,'8.Non-elective admissions - CCG'!$D$5:$N$215,8,0)*$H43 -> 20.53338004 | P43: =VLOOKUP($A43,'8.Non-elective admissions - CCG'!$D$5:$N$215,9,0)*$H43 -> 21.60348261 | Q43: =VLOOKUP($A43,'8.Non-elective admissions - CCG'!$D$5:$N$215,10,0)*$H43 -> 22.8561321 | R43: =VLOOKUP($A43,'8.Non-elective admissions - CCG'!$D$5:$Q$215,11,0)*$H43 -> 21.21950463 | S43: =VLOOKUP($A43,'8.Non-elective admissions - CCG'!$D$5:$Q$215,12,0)*$H43 -> 19.77171879 | T43: =VLOOKUP($A43,'8.Non-elective admissions - CCG'!$D$5:$Q$215,13,0)*$H43 -> 20.82923192 | U43: =VLOOKUP($A43,'8.Non-elective admissions - CCG'!$D$5:$Q$215,14,0)*$H43 -> 22.1070603
A44: 06F | B44: NHS Bedfordshire CCG | C44: E06000055 | D44: Bedford | E44: =COUNTIF($D$5:D44,D44) -> 1 | F44: Bedford1 | G44: NHS Bedfordshire CCG | H44: 0.373207921 | I44: 0.9734926695 | J44: =VLOOKUP($A44,'8.Non-elective admissions - CCG'!$D$5:$N$215,3,0)*$H44 -> 3390.220754 | K44: =VLOOKUP($A44,'8.Non-elective admissions - CCG'!$D$5:$N$215,4,0)*$H44 -> 3326.775408 | L44: =VLOOKUP($A44,'8.Non-elective admissions - CCG'!$D$5:$N$215,5,0)*$H44 -> 3407.015111 | M44: =VLOOKUP($A44,'8.Non-elective admissions - CCG'!$D$5:$N$215,6,0)*$H44 -> 3351.780338 | N44: =VLOOKUP($A44,'8.Non-elective admissions - CCG'!$D$5:$N$215,7,0)*$H44 -> 3369.694318 | O44: =VLOOKUP($A44,'8.Non-elective admissions - CCG'!$D$5:$N$215,8,0)*$H44 -> 3306.62218 | P44: =VLOOKUP($A44,'8.Non-elective admissions - CCG'!$D$5:$N$215,9,0)*$H44 -> 3306.995388 | Q44: =VLOOKUP($A44,'8.Non-elective admissions - CCG'!$D$5:$N$215,10,0)*$H44 -> 3286.468952 | R44: =VLOOKUP($A44,'8.Non-elective admissions - CCG'!$D$5:$Q$215,11,0)*$H44 -> 3462.996299 | S44: =VLOOKUP($A44,'8.Non-elective admissions - CCG'!$D$5:$Q$215,12,0)*$H44 -> 3399.550952 | T44: =VLOOKUP($A44,'8.Non-elective admissions - CCG'!$D$5:$Q$215,13,0)*$H44 -> 3399.92416 | U44: =VLOOKUP($A44,'8.Non-elective admissions - CCG'!$D$5:$Q$215,14,0)*$H44 -> 3379.397724
